Workbook

Sheet Kuntakortti
A1: Valtiovarainministeriö/Kunta- ja aluehallinto-osasto, 29.5.2020
A2: KUNTAKONSERNIEN TP 2017 - 2019 (lyhennetty kaava) | G2: Valitse kunta valikosta:
A4: =INDEX(Luvut!$B$3:'Luvut'!$B$298,$A$7) -> KOKO MAA (Manner-Suomi) | D4: 2017 | G4: 2018 | J4: 2019
A6: Asukasluku | D6: =VLOOKUP($A$4,Luvut!$B$3:$AV$298,2) -> 5483641 | G6: =VLOOKUP($A$4,Luvut!$B$3:$EJ$298,48) -> 5488130 | I6: =((G6/D6)-1)*100 -> 0.08186166819 | J6: =VLOOKUP($A$4,Luvut!$B$3:$EJ$298,94) -> 5495408 | L6: =((J6/G6)-1)*100 -> 0.1326134767
A7: 96
A8: Tunnuslukuja
I9: muut.% | L9: muut.%
A10: Lainat, euro/as | D10: =E66 -> 6314.227901 | G10: =H66 -> 6557.649873 | I10: =((G10/D10)-1)*100 -> 3.855134412 | J10: =K66 -> 7105.3243 | L10: =((J10/G10)-1)*100 -> 8.351687525
A12: Lainanhoitokate* | D12: =VLOOKUP($A$4,Luvut!$B$3:$AV$298,4) -> 1.885379184 | G12: =VLOOKUP($A$4,Luvut!$B$3:$EJ$298,50) -> 1.526367982 | J12: =VLOOKUP($A$4,Luvut!$B$3:$EJ$298,96) -> 1.35695111
A13: Suhteellinen velkaantuneisuus, % | D13: =VLOOKUP($A$4,Luvut!$B$3:$AV$298,5) -> 78.71552436 | G13: =VLOOKUP($A$4,Luvut!$B$3:$EJ$298,51) -> 80.75610324 | J13: =VLOOKUP($A$4,Luvut!$B$3:$EJ$298,97) -> 84.44733037
A14: Rahoitusvarallisuus, euro/as | D14: =VLOOKUP($A$4,Luvut!$B$3:$AV$298,6) -> -6016.301578 | G14: =VLOOKUP($A$4,Luvut!$B$3:$EJ$298,52) -> -6400.727752 | J14: =VLOOKUP($A$4,Luvut!$B$3:$EJ$298,98) -> -6908.850808
A15: Omavaraisuusaste, % | D15: =VLOOKUP($A$4,Luvut!$B$3:$AV$298,10) -> 43.38546408 | G15: =VLOOKUP($A$4,Luvut!$B$3:$EJ$298,56) -> 42.44390773 | J15: =VLOOKUP($A$4,Luvut!$B$3:$EJ$298,102) -> 41.85903726
A17: Rahavarat, euro/as | D17: =VLOOKUP($A$4,Luvut!$B$3:$AV$298,11) -> 1378.654803 | G17: =VLOOKUP($A$4,Luvut!$B$3:$EJ$298,57) -> 1343.538692 | J17: =VLOOKUP($A$4,Luvut!$B$3:$EJ$298,103) -> 1415
A18: Kassan riittävyys, pv | D18: =VLOOKUP($A$4,Luvut!$B$3:$AV$298,12) -> 59 | G18: =VLOOKUP($A$4,Luvut!$B$3:$EJ$298,58) -> 41.77203475 | J18: =VLOOKUP($A$4,Luvut!$B$3:$EJ$298,104) -> 39.9955649
A19: Kassastamaksut, euro/as | D19: =VLOOKUP($A$4,Luvut!$B$3:$AV$298,13) -> 8537.36377 | G19: =VLOOKUP($A$4,Luvut!$B$3:$EJ$298,59) -> 11739.71116 | J19: =VLOOKUP($A$4,Luvut!$B$3:$EJ$298,105) -> 12284.03351
A20: Tuloslaskelma | D20: 1000 | E20: euro/as | G20: 1000 | H20: euro/as | I20: muut.% | J20: 1000 | K20: euro/as | L20: muut.% | N20: 2017 - 2018 | O20: 2018 - 2019
N21: €/as | O21: €/as
D22: =VLOOKUP($A$4,Luvut!$B$3:$AZ$298,14) -> 0
D23: =VLOOKUP($A$4,Luvut!$B$3:$EL$298,134) -> 0
A24: Toimintatuotot, sis. valmistus omaan käyt. | D24: =VLOOKUP($A$4,Luvut!$B$3:$AV$298,15) -> 24592758 | E24: =D24*1000/$D$6 -> 4484.749822 | G24: =VLOOKUP($A$4,Luvut!$B$3:$EJ$298,61) -> 25943563 | H24: =G24*1000/$G$6 -> 4727.213641 | I24: =((G24/D24)-1)*100 -> 5.492694231 | J24: =VLOOKUP($A$4,Luvut!$B$3:$EJ$298,107) -> 26773679 | K24: =J24*1000/$J$6 -> 4872.009321 | L24: =((J24/G24)-1)*100 -> 3.199699286 | N24: =((H24/E24)-1)*100 -> 5.406406788 | O24: =((K24/H24)-1)*100 -> 3.063023827
A25: Toimintakulut | D25: =VLOOKUP($A$4,Luvut!$B$3:$AV$298,16) -> 50642020 | E25: =D25*1000/$D$6 -> 9235.108571 | G25: =VLOOKUP($A$4,Luvut!$B$3:$EJ$298,62) -> 52927942 | H25: =G25*1000/$G$6 -> 9644.075851 | I25: 4.513883925 | J25: =VLOOKUP($A$4,Luvut!$B$3:$EJ$298,108) -> 54871181 | K25: =J25*1000/$J$6 -> 9984.91486 | L25: 3.671480369 | N25: =((H25/E25)-1)*100 -> 4.428397097 | O25: =((K25/H25)-1)*100 -> 3.534180093
A26: Osuus osakkuusyhteisöjen voitosta/tappiosta | D26: =VLOOKUP($A$4,Luvut!$B$3:$AZ$298,17) -> 81899 | E26: 14.93514984 | G26: =VLOOKUP($A$4,Luvut!$B$3:$EJ$298,63) -> 66311 | H26: 12.08262195 | J26: =VLOOKUP($A$4,Luvut!$B$3:$EJ$298,109) -> 70720 | K26: =J26*1000/$J$6 -> 12.8689262
A27: Toimintakate | D27: =VLOOKUP($A$4,Luvut!$B$3:$AV$298,18) -> -25967363 | E27: -4735.423599 | G27: =VLOOKUP($A$4,Luvut!$B$3:$EJ$298,64) -> -26918068 | H27: -4904.779588 | I27: 3.661153426 | J27: =VLOOKUP($A$4,Luvut!$B$3:$EJ$298,110) -> -28026782 | K27: =J27*1000/$J$6 -> -5100.036612 | L27: 4.118846865 | N27: =((H27/E27)-1)*100 -> 3.576364086 | O27: =((K27/H27)-1)*100 -> 3.980954107
A29: Verotulot | D29: =VLOOKUP($A$4,Luvut!$B$3:$AV$298,19) -> 22391744 | E29: 4083.371614 | G29: =VLOOKUP($A$4,Luvut!$B$3:$EJ$298,65) -> 22270468 | H29: 4057.933759 | I29: -0.5416103364 | J29: =VLOOKUP($A$4,Luvut!$B$3:$EJ$298,111) -> 22852554 | K29: =J29*1000/$J$6 -> 4158.481772 | L29: 2.613712473 | N29: =((H29/E29)-1)*100 -> -0.6229620375 | O29: =((K29/H29)-1)*100 -> 2.477813083
A30: Valtionosuudet, | D30: =VLOOKUP($A$4,Luvut!$B$3:$AV$298,20) -> 9701332 | E30: 1769.140613 | G30: =VLOOKUP($A$4,Luvut!$B$3:$EJ$298,66) -> 9617527 | H30: 1752.423321 | I30: -0.8638504486 | J30: =VLOOKUP($A$4,Luvut!$B$3:$EJ$298,112) -> 9778488 | K30: =J30*1000/$J$6 -> 1779.39254 | L30: 1.673621504 | N30: =((H30/E30)-1)*100 -> -0.9449385743 | O30: =((K30/H30)-1)*100 -> 1.538967149
A32: Verorahoitus | D32: =SUM(D29:D30) -> 32093076 | E32: 5852.512227 | G32: =SUM(G29:G30) -> 31887995 | H32: 5810.35708 | I32: -0.639019457 | J32: =SUM(J29:J30) -> 32631042 | K32: =J32*1000/$J$6 -> 5937.874313 | L32: 2.330177862 | N32: =((H32/E32)-1)*100 -> -0.7202914826 | O32: =((K32/H32)-1)*100 -> 2.194653978
A33: Käyttökate | D33: =D32+D27 -> 6125713 | E33: 1117.088628 | G33: =G27+G32 -> 4969927 | H33: 905.5774918 | J33: =J27+J32 -> 4604260 | K33: =J33*1000/$J$6 -> 837.8377001
A35: Korkotuotot/-menot, netto | D35: =VLOOKUP($A$4,Luvut!$B$3:$AV$298,23) -> -371567 | E35: -67.7591768 | G35: =VLOOKUP($A$4,Luvut!$B$3:$EJ$298,69) -> -334759 | H35: -60.99691516 | J35: =VLOOKUP($A$4,Luvut!$B$3:$EJ$298,115) -> -331984 | K35: =J35*1000/$J$6 -> -60.4111651
A36: Muut rahoituskulut/-tuotot, netto | D36: =VLOOKUP($A$4,Luvut!$B$3:$AV$298,24) -> 156115 | E36: 28.46922328 | G36: =VLOOKUP($A$4,Luvut!$B$3:$EJ$298,70) -> 102912 | H36: 18.7517424 | J36: =VLOOKUP($A$4,Luvut!$B$3:$EJ$298,116) -> 204608 | K36: =J36*1000/$J$6 -> 37.23254033
A37: Vuosikate | D37: =VLOOKUP($A$4,Luvut!$B$3:$AV$298,25) -> 5910261 | E37: 1077.798674 | G37: =VLOOKUP($A$4,Luvut!$B$3:$EJ$298,71) -> 4738081 | H37: 863.3325012 | J37: =VLOOKUP($A$4,Luvut!$B$3:$EJ$298,117) -> 4476884 | K37: =J37*1000/$J$6 -> 814.6590754
A39: Suunnitelman mukaiset poistot ja arvonalen. | D39: =VLOOKUP($A$4,Luvut!$B$3:$AV$298,26) -> 4145979 | E39: 756.0631704 | G39: =VLOOKUP($A$4,Luvut!$B$3:$EJ$298,72) -> 4281198 | H39: 780.0831977 | I39: 3.261449226 | J39: =VLOOKUP($A$4,Luvut!$B$3:$EJ$298,118) -> 4468739 | K39: =J39*1000/$J$6 -> 813.1769288 | L39: 4.380572914
A40: Satunnaiset erät | D40: =VLOOKUP($A$4,Luvut!$B$3:$AV$298,27) -> 94051 | E40: 17.15119571 | G40: =VLOOKUP($A$4,Luvut!$B$3:$EJ$298,73) -> -9816 | H40: -1.788587369 | J40: =VLOOKUP($A$4,Luvut!$B$3:$EJ$298,119) -> 339728 | K40: =J40*1000/$J$6 -> 61.82034164
A42: Tilikauden tulos | D42: =VLOOKUP($A$4,Luvut!$B$3:$AV$298,29) -> 1848434 | E42: 337.0815121 | G42: =VLOOKUP($A$4,Luvut!$B$3:$EJ$298,75) -> 447119 | H42: 81.47019112 | J42: =VLOOKUP($A$4,Luvut!$B$3:$EJ$298,121) -> 347873 | K42: =J42*1000/$J$6 -> 63.30248819
A44: Tilinpäätössiirrot | D44: =VLOOKUP($A$4,Luvut!$B$3:$AV$298,31) -> -9836 | E44: =D44*1000/$D$6 -> -1.793698749 | G44: =VLOOKUP($A$4,Luvut!$B$3:$EJ$298,77) -> 17985 | H44: 3.277072518 | J44: =VLOOKUP($A$4,Luvut!$B$3:$EJ$298,123) -> 24483 | K44: =J44*1000/$J$6 -> 4.455174211
A45: Tilikauden verot | D45: =VLOOKUP($A$4,Luvut!$B$3:$EJ$298,32) -> -78795 | E45: -14.36910257 | G45: =VLOOKUP($A$4,Luvut!$B$3:$EJ$298,78) -> -84766 | H45: -15.44533384 | J45: =VLOOKUP($A$4,Luvut!$B$3:$EJ$298,124) -> 103368 | K45: =J45*1000/$J$6 -> 18.80988636
A46: Laskennalliset verot | D46: =VLOOKUP($A$4,Luvut!$B$3:$EJ$298,33) -> -48094 | E46: -8.770450144 | G46: =VLOOKUP($A$4,Luvut!$B$3:$EJ$298,79) -> -64631 | H46: -11.77650675 | J46: =VLOOKUP($A$4,Luvut!$B$3:$EJ$298,125) -> -54303 | K46: =J46*1000/$J$6 -> -9.881522901
A47: Vähemmistöosuudet | D47: =VLOOKUP($A$4,Luvut!$B$3:$AV$298,30) -> -39026 | E47: =D47*1000/$D$6 -> -7.116804328 | G47: =VLOOKUP($A$4,Luvut!$B$3:$EJ$298,76) -> -26068 | H47: =G47*1000/$G$6 -> -4.749887484 | J47: =VLOOKUP($A$4,Luvut!$B$3:$EJ$298,122) -> -36500 | K47: -6.641909027
A48: Tilikauden yli-/alijäämä | D48: =VLOOKUP($A$4,Luvut!$B$3:$AV$298,34) -> 1672683 | E48: 305.0314563 | G48: =VLOOKUP($A$4,Luvut!$B$3:$EJ$298,80) -> 288815 | H48: 52.62539335 | J48: =VLOOKUP($A$4,Luvut!$B$3:$EJ$298,126) -> 178184 | K48: =J48*1000/$J$6 -> 32.42416214
A49: Taseen kertynyt yli-/alijäämä | D49: =VLOOKUP($A$4,Luvut!$B$3:$AW$298,35) -> 12313216 | E49: 2245.445316 | G49: =VLOOKUP($A$4,Luvut!$B$3:$EJ$298,81) -> 12553814 | H49: 2287.448366 | J49: =VLOOKUP($A$4,Luvut!$B$3:$EJ$298,127) -> 12670810 | K49: =J49*1000/$J$6 -> 2305.708694
A51: Rahoituslaskelma | D51: 1000 | E51: euro/as | G51: 1000 | H51: euro/as | J51: 1000 | K51: euro/as
A53: Toiminnan rahavirta | D53: =VLOOKUP($A$4,Luvut!$B$3:$AV$298,36) -> 5404397 | E53: 985.5490175 | G53: =VLOOKUP($A$4,Luvut!$B$3:$EJ$298,82) -> 4083711 | H53: =G53*1000/$G$6 -> 744.0988096 | J53: =VLOOKUP($A$4,Luvut!$B$3:$EJ$298,128) -> 3883616 | K53: =J53*1000/$J$6 -> 706.702032
A54: Investoinnit, netto | D54: =D55+D56+D57 -> -5826620 | E54: -1062.545852 | G54: =G55+G56+G57 -> -6237260 | H54: -1136.500046 | I54: 7.0476537 | J54: =J55+J56+J57 -> -6831446 | K54: =J54*1000/$J$6 -> -1243.118982 | L54: 9.526394603
A55: - Investointimenot | D55: =VLOOKUP($A$4,Luvut!$B$3:$EV$298,146) -> -7342003 | E55: -1338.891988 | G55: =VLOOKUP($A$4,Luvut!$B$3:$EV$298,149) -> -7989989 | H55: -1455.867299 | I55: 8.825738698 | J55: =VLOOKUP($A$4,Luvut!$B$3:$FQ$298,152) -> -8899552 | K55: -1619.452459 | L55: 11.38378288
A56: + Rahoitusosuudet investointimenoihin | D56: =VLOOKUP($A$4,Luvut!$B$3:$EV$298,147) -> 215662 | E56: 39.32824924 | G56: =VLOOKUP($A$4,Luvut!$B$3:$EV$298,150) -> 167734 | H56: 30.56305153 | I56: =((G56/D56)-1)*100 -> -22.22366481 | J56: =VLOOKUP($A$4,Luvut!$B$3:$FQ$298,153) -> 189104 | K56: 34.41127574 | L56: 12.74041041
A57: + Investointihyödykkeiden luovutustulot | D57: =VLOOKUP($A$4,Luvut!$B$3:$EV$298,148) -> 1299721 | E57: 237.0178865 | G57: =VLOOKUP($A$4,Luvut!$B$3:$EV$298,151) -> 1584995 | H57: 288.8042011 | I57: =((G57/D57)-1)*100 -> 21.94886441 | J57: =VLOOKUP($A$4,Luvut!$B$3:$FQ$298,154) -> 1879002 | K57: 341.9222012 | L57: 18.54939605
A58: Saamisten muutos | D58: =VLOOKUP($A$4,Luvut!$B$3:$AV$298,38) -> -72292 | E58: -13.18321167 | G58: =VLOOKUP($A$4,Luvut!$B$3:$EJ$298,84) -> -120148 | H58: -21.89233856 | J58: =VLOOKUP($A$4,Luvut!$B$3:$EJ$298,130) -> -198386 | K58: -36.10032231
A59: Pitkäaikaisten lainojen vähennys | D59: =VLOOKUP($A$4,Luvut!$B$3:$AV$298,39) -> -2923408 | E59: -533.1144034 | G59: =VLOOKUP($A$4,Luvut!$B$3:$EJ$298,85) -> -2961293 | H59: -539.5814239 | J59: =VLOOKUP($A$4,Luvut!$B$3:$EJ$298,131) -> -3191200 | K59: -580.703016
A60: Pitkäaikaisten lainojen lisäys | D60: =VLOOKUP($A$4,Luvut!$B$3:$FE$298,155) -> 3784026 | E60: 690.0572083 | G60: =VLOOKUP($A$4,Luvut!$B$3:$FE$298,157) -> 4325546 | H60: 788.1639101 | J60: =VLOOKUP($A$4,Luvut!$B$3:$FE$298,159) -> 5848370 | K60: 1064.228534
A61: ± Lyhytaikaisten lainojen muutos | D61: =VLOOKUP($A$4,Luvut!$B$3:$FE$298,156) -> 43211 | E61: 7.879983391 | G61: =VLOOKUP($A$4,Luvut!$B$3:$FE$298,158) -> 64935 | H61: 11.83189903 | J61: =VLOOKUP($A$4,Luvut!$B$3:$FE$298,160) -> 541869 | K61: 98.60396171
A62: Toiminnan ja investointien rahavirta | D62: =VLOOKUP($A$4,Luvut!$B$3:$AV$298,40) -> -422223 | E62: -76.99683477 | G62: =VLOOKUP($A$4,Luvut!$B$3:$EJ$298,86) -> -2153549 | H62: -392.4012369 | J62: =VLOOKUP($A$4,Luvut!$B$3:$EJ$298,132) -> -2947830 | K62: -536.4169503
A64: Takaukset muiden puolesta (jäljellä oleva po) | D64: =VLOOKUP($A$4,Luvut!$B$3:$FR$298,173) -> 1498550 | E64: 273.2764599 | G64: =VLOOKUP($A$4,Luvut!$B$3:$FS$298,174) -> 1508183 | H64: 274.8081769 | J64: =VLOOKUP($A$4,Luvut!$B$3:$FT$298,175) -> 1443994 | K64: =J64*1000/$J$6 -> 262.7637475 | L64: =((J64/G64)-1)*100 -> -4.256048503
N65: 2017 - 2018 | O65: 2018 - 2019
A66: Lainakanta, | D66: =VLOOKUP($A$4,Luvut!$B$3:$FI$298,161) -> 34624959 | E66: 6314.227901 | G66: =VLOOKUP($A$4,Luvut!$B$3:$FM$298,165) -> 35989235 | H66: 6557.649873 | I66: =((G66/D66)-1)*100 -> 3.940151958 | J66: =VLOOKUP($A$4,Luvut!$B$3:$FQ$298,169) -> 39046656 | K66: =J66*1000/$J$6 -> 7105.3243 | L66: =((J66/G66)-1)*100 -> 8.495376465 | N66: €/as | O66: €/as
A67: josta pitkäaikainen laina | D67: =VLOOKUP($A$4,Luvut!$B$3:$FI$298,162) -> 29283914 | E67: 5340.231791 | G67: =VLOOKUP($A$4,Luvut!$B$3:$FM$298,166) -> 30314309 | H67: =G67*1000/$G$6 -> 5523.613508 | J67: =VLOOKUP($A$4,Luvut!$B$3:$FQ$298,170) -> 32611444 | K67: =J67*1000/$J$6 -> 5934.308062 | N67: =((H66/E66)-1)*100 -> 3.855134412 | O67: =((K66/H66)-1)*100 -> 8.351687525
A68: josta lyhytaikainen laina | D68: =VLOOKUP($A$4,Luvut!$B$3:$FI$298,163) -> 5341045 | E68: 973.9961095 | G68: =VLOOKUP($A$4,Luvut!$B$3:$FM$298,167) -> 5674926 | H68: 1034.036366 | J68: =VLOOKUP($A$4,Luvut!$B$3:$FQ$298,171) -> 6435212 | K68: 1171.016238 | N68: =((H67/E67)-1)*100 -> 3.433965483 | O68: 7.435251471
A69: Lainasaamiset | D69: =VLOOKUP($A$4,Luvut!$B$3:$FI$298,164) -> 1196148 | E69: 218.1302532 | G69: =VLOOKUP($A$4,Luvut!$B$3:$FM$298,168) -> 1170334 | H69: 213.2482284 | J69: =VLOOKUP($A$4,Luvut!$B$3:$FQ$298,172) -> 1087580 | K69: 197.9070526 | N69: 6.164321977 | O69: 13.24710391
A70: Vuokravastuut | J70: =VLOOKUP($A$4,Luvut!$B$3:$FU$298,176) -> 6170415 | K70: 1122.831098 | N70: -2.238123652 | O70: -7.194046104
A71: Lanat ja vuokravastuut | J71: =J66+J70 -> 45217071 | K71: =K66+K70 -> 8228.155398
A73: Tuloveroprosentti | D73: =VLOOKUP($A$4,Luvut!$B$3:$AV$298,45) -> 19.92 | G73: =VLOOKUP($A$4,Luvut!$B$3:$EJ$298,91) -> 19.87 | J73: =VLOOKUP($A$4,Luvut!$B$3:$EJ$298,137) -> 19.9
A74: * Ei tietoa kertalyhenteisistä lainoista
A75: Sijoitus vuosikatteen (euro/as) mukaan | D75: =VLOOKUP($A$4,Luvut!$B$3:$AV$298,47) -> - | G75: =VLOOKUP($A$4,Luvut!$B$3:$EJ$298,93) -> - | J75: =VLOOKUP($A$4,Luvut!$B$3:$EJ$298,139) -> -
A76: Lähde: Tilastokeskus
A78: Rahoitusvarallisuus = ((saamiset + rahoitusarvopaperit + rahat ja pankkisaamiset) - (vieras pääoma - saadut ennakot))
A79: Kunnat vuoden 2019 kuntajaolla

Sheet Luvut
C1: 2017 | D1: hakee muualta | E1: 92 | F1: 93 | G1: 94 | H1: vanha | I1: 96 | J1: 97 | K1: 98 | L1: 99 | M1: 100 | N1: 101 | O1: 102 | P1: 103 | Q1: 104 | S1: 105 | T1: 106 | U1: 107 | V1: 108 | W1: summana | X1: 110 | Y1: 111 | Z1: 112 | AA1: 113 | AB1: 114 | AC1: 115 | AD1: 116 | AF1: 117 | AG1: 118 | AH1: 119 | AI1: 120 | AJ1: 121 | AK1: 122 | AL1: kaavasta | AM1: 124 | AN1: 125 | AO1: 126 | AP1: 127 | AQ1: 128 | AR1: 129 | AS1: 130 | AT1: 131 | AU1: kaavasta | AV1: 133 | AW1: 2018 | AX1: hakee muualta | AY1: 92 | AZ1: 93 | BA1: 94 | BB1: vanha | BC1: 96 | BD1: 97 | BE1: 98 | BF1: 99 | BG1: 100 | BH1: 101 | BI1: 102 | BJ1: 103 | BK1: 104 | BM1: 105 | BN1: 106 | BO1: 107 | BP1: 108 | BQ1: summana | BR1: 110 | BS1: 111 | BT1: 112 | BU1: 113 | BV1: 114 | BW1: 115 | BX1: 116 | BY1: 117 | CA1: 118 | CB1: 119 | CC1: 120 | CD1: 121 | CE1: 122 | CF1: kaavasta | CG1: 124 | CH1: 125 | CI1: 126 | CJ1: 127 | CK1: 128 | CL1: 129 | CM1: 130 | CN1: 131 | CO1: kaavasta | CP1: 133 | CQ1: 2019 | CR1: hakee muualta | CS1: 92 | CT1: 93 | CU1: 94 | CV1: vanha | CW1: 96 | CX1: 97 | CY1: 98 | CZ1: 99 | DA1: 100 | DB1: 101 | DC1: 102 | DD1: 107 | DE1: 108 | DF1: 109 | DG1: 110 | DH1: 111 | DI1: 112 | DJ1: 113 | DK1: summana | DL1: 115 | DM1: 116 | DN1: 117 | DO1: 118 | DP1: 119 | DQ1: 120 | DR1: 121 | DS1: 122 | DT1: 123 | DU1: 124 | DV1: 125 | DW1: 126 | DX1: 127 | DY1: 128 | DZ1: kaavasta | EA1: 130 | EB1: 131 | EC1: 132 | ED1: 133 | EE1: 134 | EF1: 135 | EG1: 136 | EH1: 137 | EI1: kaavasta | EJ1: 139 | EK1: Erillistiedot | EL1: 141 | EM1: 142 | EN1: 143 | EO1: 144 | EP1: 145 | EQ1: 2017 | ER1: 147 | ES1: 148 | ET1: 2018 | EU1: 150 | EV1: 151 | EW1: 2019 | EX1: 153 | EY1: 154 | EZ1: 2017 | FA1: 156 | FB1: 2018 | FC1: 158 | FD1: 2019 | FE1: 160 | FF1: 2017 | FG1: 162 | FH1: 163 | FI1: 164 | FJ1: 2018 | FK1: 166 | FL1: 167 | FM1: 168 | FN1: 2019 | FO1: 170 | FP1: 171 | FQ1: 172 | FR1: 2017 | FS1: 2018 | FT1: 2019 | FU1: 2019
A2: Kunta nro | B2: Kunta | C2: Asukasluku | D2: Lainat e/asukas | E2: Lainanhoitokate | F2: Suhteellinen velkaantuneisuus-% | G2: Rahoitusvarallisuus, e/as | H2: Vuosikate | I2: Suunnitelman mukaiset poistot | J2: Tilikauden tulos | K2: Omavaraisuusaste, % | L2: Rahavarat e/as | M2: Kassan riittävyys, pv | N2: Kassasta maksut, €/as | O2: Henkilöstökulut | P2: Toimintatuotot | Q2: Toimintakulut | R2: Osuus osakkuusyhteisojen voitosta/tappiosta | S2: Toimintakate | T2: Verotulot | U2: Valtionosuudet | V2: Alv-takaisinperintä | W2: Käyttökate | X2: Korkotuotot/-menot, netto | Y2: Muut rahoitustuotot/-menot, netto (sis Osinkotuotot) | Z2: Vuosikate | AA2: Suunnitelman mukaiset poistot ja arvonalet | AB2: Satu. erät, netto | AC2: Satunnaiset kulut | AD2: Tilikauden tulos | AE2: Vähemmistöosuudet | AF2: Tilinpäätössiirrot | AG2: Tilikauden verot | AH2: Lask. Verot | AI2: Tilikauden yli- tai alijäämä | AJ2: Kumulat yli/alij | AK2: Tulorah (toiminnan rahavirta) | AL2: Investoinnit, netto | AM2: Saamisten muutos (ent Pitkäaikaisten saamisten muutokset, netto) | AN2: Pitkäaikaisten lainojen vähennys | AO2: Toim ja inv rahavirta | AP2: Verotulot | AQ2: Kunnallisvero | AR2: Osuus yhteisöveron tuotosta | AS2: Kiinteistövero | AT2: Tuloveroprosentti 2015 | AU2: Yhden veroprosentin tuotto 2015 | AV2: Sijoitus vuosikatteen mukaan | AW2: Asukasluku | AX2: Lainat e/asukas | AY2: Lainanhoitokate | AZ2: Suhteellinen velkaantuneisuus-% | BA2: Rahoitusvarallisuus, e/as | BB2: Vuosikate | BC2: Suunnitelman mukaiset poistot | BD2: Tilikauden tulos | BE2: Omavaraisuusaste, % | BF2: Rahavarat e/as | BG2: Kassan riittävyys, pv | BH2: Kassasta maksut, €/as | BI2: Henkilöstökulut | BJ2: Toimintatuotot | BK2: Toimintakulut | BL2: Osuus osakkuusyhteisojen voitosta/tappiosta | BM2: Toimintakate | BN2: Verotulot | BO2: Valtionosuudet | BP2: Alv-takaisinperintä | BQ2: Käyttökate | BR2: Korkotuotot/-menot, netto | BS2: Muut rahoitustuotot/-menot, netto (sis Osinkotuotot) | BT2: Vuosikate | BU2: Suunnitelman mukaiset poistot ja arvonalet | BV2: Satu. erät | BX2: Tilikauden tulos | BY2: Vähemmistöosuudet | BZ2: Tilinpäätössiirrot | CA2: Tilikauden verot | CB2: Lask. verot | CC2: Tilikauden yli- tai alijäämä | CD2: Kumulat yli/alij | CE2: Toiminnan rahavirta | CF2: Investoinnit, netto | CG2: Saamisten muutos | CH2: Pitkäaikaisten lainojen vähennys | CI2: Toim ja inv rahavirta | CJ2: Verotulot | CK2: Kunnallisvero | CL2: Osuus yhteisöveron tuotosta | CM2: Kiinteistövero | CN2: Tuloveroprosentti 2016 | CO2: Yhden veroprosentin tuotto 2016 | CP2: Sijoitus vuosikatteen mukaan | CQ2: Asukasluku | CR2: Lainat e/asukas | CS2: Lainanhoitokate | CT2: Suhteellinen velkaantuneisuus-% | CU2: Rahoitusvarallisuus, e/as | CV2: Vuosikate | CW2: Suunnitelman mukaiset poistot | CX2: Tilikauden tulos | CY2: Omavaraisuusaste, % | CZ2: Rahavarat e/as | DA2: Kassan riittävyys, pv | DB2: Kassasta maksut, €/as | DC2: Henkilöstökulut | DD2: Toimintatuotot | DE2: Toimintakulut | DF2: Osuus osakkuusyhteisojen voitosta/tappiosta | DG2: Toimintakate | DH2: Verotulot | DI2: Valtionosuudet | DJ2: Alv-takaisinperintä | DK2: Käyttökate | DL2: Korkotuotot/-menot, netto | DM2: Muut rahoitustuotot/-menot, netto (sis Osinkotuotot) | DN2: Vuosikate | DO2: Suunnitelman mukaiset poistot ja arvonalet | DP2: Satu. erät | DQ2: Satu. kulut | DR2: Tilikauden tulos | DS2: Vähemmistöosuudet | DT2: Tilinpäätössiirrot | DU2: Tilikauden verot | DV2: Lask. verot | DW2: Tilikauden yli- tai alijäämä | DX2: Kumulat yli/alij | DY2: Toiminnan rahavirta | DZ2: Investoinnit, netto | EA2: Saamisten muutos | EB2: Pitkäaikaisten lainojen vähennys | EC2: Toim ja inv rahavirta | ED2: Verotulot | EE2: Takaukset muiden puolesta (jäljellä oleva pääoma) | EF2: Osuus yhteisöveron tuotosta | EG2: Kiinteistövero | EH2: Tuloveroprosentti 2017 | EI2: Yhden veroprosentin tuotto 2006 | EJ2: Sijoitus vuosikatteen mukaan | EK2: Palvelujen ostot 2015 | EL2: Palvelujen ostot 2016 | EM2: Palvelujen ostot 2017 | EN2: Harkvar2015 | EO2: Harkvar2016 | EP2: Harkvar2017 | EQ2: - Investointimenot | ER2: + Rahoitusos. investointimenoihin | ES2: + Investointihyödykk. luovutustulot | ET2: - Investointimenot | EU2: + Rahoitusosuudet investointimenoihin | EV2: + Investointihyödykkeiden luovutustulot | EW2: - Investointimenot | EX2: + Rahoitusosuudet investointimenoihin | EY2: + Investointihyödykkeiden luovutustulot | EZ2: Pitkäaikaisten lainojen lisäys | FA2: ± Lyhytaikaisten lainojen muutos | FB2: Pitkäaikaisten lainojen lisäys | FC2: ± Lyhytaikaisten lainojen muutos | FD2: Pitkäaikaisten lainojen lisäys | FE2: ± Lyhytaikaisten lainojen muutos | FF2: Lainakanta | FG2: josta pitkäaik | FH2: josta lyhytaik | FI2: Lainasaamiset | FJ2: Lainakanta | FK2: josta pitkäaik | FL2: josta lyhytaik | FM2: Lainasaamiset | FN2: Lainakanta | FO2: josta pitkäaik | FP2: josta lyhytaik | FQ2: Lainasaamiset | FR2: Takaukset muiden puolesta (jäljellä oleva pääoma) | FS2: Takaukset muiden puolesta (jäljellä oleva pääoma) | FT2: Takaukset muiden puolesta (jäljellä oleva pääoma) | FU2: Vuokravastuut
A3: 20 | B3: Akaa | C3: 16769 | E3: 1.183814721 | F3: 58.25771205 | G3: -4381.477727 | K3: 22.40466508 | L3: 382.8493053 | M3: 16.35674498 | N3: 8543.264357 | P3: 58889 | Q3: 142923 | R3: 96 | S3: -83938 | T3: 59399 | U3: 32904 | X3: -261 | Y3: 144 | Z3: 8248 | AA3: 7001 | AB3: 0 | AD3: 1247 | AE3: -71 | AF3: 1 | AG3: -84 | AH3: -57 | AI3: 1036 | AJ3: -6683 | AK3: 7470 | AM3: -839 | AN3: -6867 | AO3: 1442 | AT3: 21.25 | AV3: 255 | AW3: 16611 | AY3: 0.6902021336 | AZ3: 61.74350181 | BA3: -4767.322858 | BE3: 18.92003298 | BF3: 387.0326892 | BG3: 14.02369569 | BH3: 10073.44531 | BJ3: 61885 | BK3: 150217 | BL3: 9 | BM3: -88323 | BN3: 59625 | BO3: 32456 | BR3: -67 | BS3: 764 | BT3: 4455 | BU3: 7026 | BV3: 0 | BX3: -2571 | BY3: -87 | BZ3: 2 | CA3: -94 | CB3: -35 | CC3: -2785 | CD3: -9933 | CE3: 4350 | CG3: -1160 | CH3: -6662 | CI3: -4561 | CN3: 21.75 | CP3: 233 | CQ3: 16475 | CS3: 1.344847861 | CT3: 60.55128197 | CU3: -4926.676783 | CY3: 19.35800188 | CZ3: 430.2883156 | DA3: 13.81481809 | DB3: 10310.16692 | DD3: 64620 | DE3: 153015 | DF3: -4 | DG3: -88399 | DH3: 62993 | DI3: 33974 | DL3: -80 | DM3: 227 | DN3: 8715 | DO3: 8464 | DP3: 0 | DR3: 251 | DS3: -102 | DT3: 0 | DU3: 70 | DV3: -43 | DW3: 36 | DX3: -9892 | DY3: 7916 | EA3: -198 | EB3: -6369 | EC3: -1633 | EH3: 22.25 | EJ3: 112 | EQ3: -7344 | ER3: 97 | ES3: 1219 | ET3: -9405 | EU3: 130 | EV3: 364 | EW3: -9837 | EX3: 35 | EY3: 253 | EZ3: 1321 | FA3: 983 | FB3: 12126 | FC3: -139 | FD3: 3804 | FE3: 4960 | FF3: 65864 | FG3: 49356 | FH3: 16508 | FI3: 7271 | FJ3: 71138 | FK3: 54488 | FL3: 16650 | FM3: 7687 | FN3: 73531 | FO3: 52049 | FP3: 21482 | FQ3: 7682 | FR3: 5140 | FS3: 6892 | FT3: 11897 | FU3: 12541
A4: 5 | B4: Alajärvi | C4: 9831 | E4: 1.752173109 | F4: 48.64949207 | G4: -4045.06154 | K4: 35.9707684 | L4: 959.1089411 | M4: 32.13761451 | N4: 10892.99156 | P4: 54164 | Q4: 112513 | R4: 114 | S4: -58235 | T4: 29659 | U4: 37946 | X4: -346 | Y4: 83 | Z4: 9107 | AA4: 5188 | AB4: 0 | AD4: 3919 | AE4: -102 | AF4: 9 | AG4: -87 | AH4: -16 | AI4: 3723 | AJ4: 9052 | AK4: 8653 | AM4: -1173 | AN4: -5040 | AO4: -817 | AT4: 21.75 | AV4: 89 | AW4: 9700 | AY4: 0.9327116475 | AZ4: 52.87866095 | BA4: -4758.041237 | BE4: 33.05734858 | BF4: 914.6391753 | BG4: 24.19895531 | BH4: 13795.7732 | BJ4: 56110 | BK4: 116873 | BL4: 190 | BM4: -60573 | BN4: 28893 | BO4: 36755 | BR4: -343 | BS4: 4 | BT4: 4736 | BU4: 5876 | BV4: 0 | BX4: -1140 | BY4: -5 | BZ4: 25 | CA4: -50 | CB4: 0 | CC4: -1170 | CD4: 7456 | CE4: 4436 | CG4: 892 | CH4: -5104 | CI4: -6142 | CN4: 21.75 | CP4: 148 | CQ4: 9562 | CS4: 0.7812325451 | CT4: 51.26374266 | CU4: -5599.037858 | CY4: 31.60619305 | CZ4: 801.5059611 | DA4: 21.48013028 | DB4: 15766.26229 | DD4: 71516 | DE4: 133738 | DF4: 226 | DG4: -61996 | DH4: 29512 | DI4: 36500 | DL4: -377 | DM4: 164 | DN4: 3803 | DO4: 6114 | DP4: 0 | DR4: -2311 | DS4: 7 | DT4: -11 | DU4: 48 | DV4: -5 | DW4: -2368 | DX4: 4891 | DY4: 3486 | EA4: 338 | EB4: -4978 | EC4: -7070 | EH4: 21.75 | EJ4: 162 | EQ4: -10966 | ER4: 647 | ES4: 849 | ET4: -11309 | EU4: 579 | EV4: 152 | EW4: -11425 | EX4: 781 | EY4: 88 | EZ4: 6607 | FA4: 1439 | FB4: 7075 | FC4: 2000 | FD4: 9888 | FE4: 0 | FF4: 41635 | FG4: 33495 | FH4: 8140 | FI4: 17 | FJ4: 45721 | FK4: 35494 | FL4: 10227 | FM4: 115 | FN4: 50397 | FO4: 39206 | FP4: 11191 | FQ4: 0 | FR4: 1006 | FS4: 808 | FT4: 626 | FU4: 1338
A5: 9 | B5: Alavieska | C5: 2610 | E5: 1.54465593 | F5: 42.48554 | G5: -3465.900383 | K5: 37.48354591 | L5: 864.7509579 | M5: 27.28373187 | N5: 11568.58238 | P5: 14579 | Q5: 30594 | R5: 1 | S5: -16014 | T5: 7282 | U5: 9778 | X5: -45 | Y5: 9 | Z5: 1010 | AA5: 1059 | AB5: 0 | AD5: -49 | AE5: 0 | AF5: 0 | AG5: -1 | AH5: -1 | AI5: -51 | AJ5: 300 | AK5: 1037 | AM5: 727 | AN5: -638 | AO5: 142 | AT5: 21.5 | AV5: 276 | AW5: 2573 | AY5: 2.100740741 | AZ5: 40.65316706 | BA5: -3263.894287 | BE5: 38.78576603 | BF5: 1184.609405 | BG5: 33.89865627 | BH5: 12755.14963 | BJ5: 15045 | BK5: 30994 | BL5: 1 | BM5: -15948 | BN5: 7525 | BO5: 9826 | BR5: -29 | BS5: 15 | BT5: 1389 | BU5: 979 | BV5: 72 | BX5: 482 | BY5: -1 | BZ5: -1 | CA5: -1 | CB5: 1 | CC5: 480 | CD5: 926 | CE5: 1456 | CG5: 415 | CH5: -646 | CI5: 554 | CN5: 21.5 | CP5: 127 | CQ5: 2519 | CS5: 3.87311828 | CT5: 40.47134825 | CU5: -3265.184597 | CY5: 40.24111948 | CZ5: 1269.154426 | DA5: 32.95964923 | DB5: 13399.76181 | DD5: 15791 | DE5: 31650 | DF5: 1 | DG5: -15858 | DH5: 7960 | DI5: 9685 | DL5: -27 | DM5: 14 | DN5: 1774 | DO5: 1068 | DP5: 0 | DR5: 706 | DS5: 0 | DT5: 0 | DU5: 1 | DV5: 0 | DW5: 705 | DX5: 1631 | DY5: 1775 | EA5: -385 | EB5: -438 | EC5: 146 | EH5: 22 | EJ5: 56 | EQ5: -1100 | ER5: 201 | ES5: 4 | ET5: -1137 | EU5: 234 | EV5: 1 | EW5: -1628 | EX5: 18 | EY5: -19 | EZ5: 118 | FA5: -2000 | FB5: 95 | FC5: 1499 | FD5: 323 | FE5: 1000 | FF5: 8306 | FG5: 4767 | FH5: 3539 | FI5: 102 | FJ5: 9237 | FK5: 4309 | FL5: 4928 | FM5: 94 | FN5: 10120 | FO5: 1476 | FP5: 8644 | FQ5: 57 | FR5: 1172 | FS5: 1543 | FT5: 1708 | FU5: 237
A6: 10 | B6: Alavus | C6: 11713 | E6: 1.447011952 | F6: 58.44925189 | G6: -5011.696406 | K6: 38.53182351 | L6: 1515.410228 | M6: 47.79390068 | N6: 11573.12388 | P6: 70759 | Q6: 136082 | R6: 1545 | S6: -63778 | T6: 35110 | U6: 38629 | X6: -579 | Y6: 873 | Z6: 10255 | AA6: 6434 | AB6: 0 | AD6: 3821 | AE6: -31 | AF6: -4 | AG6: -18 | AH6: -30 | AI6: 3738 | AJ6: 20120 | AK6: 8996 | AM6: 1315 | AN6: -6889 | AO6: 1581 | AT6: 21.25 | AV6: 101 | AW6: 11544 | AY6: 0.3384476904 | AZ6: 59.98275778 | BA6: -5336.538462 | BE6: 38.20510675 | BF6: 1512.647263 | BG6: 37.07970214 | BH6: 14889.98614 | BJ6: 71741 | BK6: 137803 | BL6: 1547 | BM6: -64515 | BN6: 33798 | BO6: 38294 | BR6: -519 | BS6: 610 | BT6: 7668 | BU6: 6649 | BV6: 0 | BX6: 1019 | BY6: -4 | BZ6: 9 | CA6: -17 | CB6: -68 | CC6: 939 | CD6: 20657 | CE6: 6355 | CG6: 1916 | CH6: -23837 | CI6: -2613 | CN6: 21.25 | CP6: 86 | CQ6: 11468 | CS6: 0.9839514979 | CT6: 65.26118094 | CU6: -5163.236833 | CY6: 38.49983826 | CZ6: 1616.759679 | DA6: 39.88390156 | DB6: 13921.25916 | DD6: 72735 | DE6: 141054 | DF6: 562 | DG6: -67757 | DH6: 34552 | DI6: 38072 | DL6: -502 | DM6: 584 | DN6: 4949 | DO6: 7456 | DP6: 9142 | DR6: 6635 | DS6: 17 | DT6: 11 | DU6: 14 | DV6: -71 | DW6: 6578 | DX6: 25846 | DY6: 4316 | EA6: -8385 | EB6: -5039 | EC6: 1385 | EH6: 21.25 | EJ6: 153 | EQ6: -9360 | ER6: 768 | ES6: 1177 | ET6: -9478 | EU6: 139 | EV6: 371 | EW6: -13156 | EX6: 466 | EY6: 9759 | EZ6: 8780 | FA6: -1568 | FB6: 25419 | FC6: -996 | FD6: 9250 | FE6: 3039 | FF6: 70327 | FG6: 61433 | FH6: 8894 | FI6: 2876 | FJ6: 71092 | FK6: 64304 | FL6: 6788 | FM6: 2698 | FN6: 78561 | FO6: 67864 | FP6: 10697 | FQ6: 1957 | FR6: 1190 | FS6: 1995 | FT6: 1494 | FU6: 1932
A7: 16 | B7: Asikkala | C7: 8248 | E7: 8.879594423 | F7: 39.58465564 | G7: -3093.355965 | K7: 46.13514111 | L7: 557.8322017 | M7: 20.97921273 | N7: 9705.261882 | P7: 42592 | Q7: 82843 | R7: -3 | S7: -40254 | T7: 29700 | U7: 17513 | X7: -120 | Y7: 43 | Z7: 6882 | AA7: 4354 | AB7: 64 | AD7: 2592 | AE7: 0 | AF7: 0 | AG7: -2 | AH7: -43 | AI7: 2547 | AJ7: 9751 | AK7: 6503 | AM7: -158 | AN7: -665 | AO7: 3943 | AT7: 20.75 | AV7: 115 | AW7: 8149 | AY7: 6.135 | AZ7: 38.46864598 | BA7: -2786.845012 | BE7: 47.37370902 | BF7: 941.5879249 | BG7: 31.67863768 | BH7: 10848.93852 | BJ7: 43453 | BK7: 84756 | BL7: -6 | BM7: -41309 | BN7: 28838 | BO7: 17538 | BR7: -109 | BS7: -163 | BT7: 4795 | BU7: 4165 | BV7: 263 | BX7: 893 | BY7: 0 | BZ7: 0 | CA7: -13 | CB7: -59 | CC7: 821 | CD7: 10527 | CE7: 4897 | CG7: 1261 | CH7: -687 | CI7: 2672 | CN7: 20.75 | CP7: 118 | CQ7: 8083 | CS7: 3.431528662 | CT7: 34.1123204 | CU7: -2855.375479 | CY7: 49.38564279 | CZ7: 490.2882593 | DA7: 29.70466574 | DB7: 11664.35729 | DD7: 42608 | DE7: 88825 | DF7: 16 | DG7: -46201 | DH7: 29745 | DI7: 20631 | DL7: -93 | DM7: 124 | DN7: 4206 | DO7: 4111 | DP7: -266 | DR7: -171 | DS7: -2 | DT7: 0 | DU7: 3 | DV7: -28 | DW7: -204 | DX7: 10323 | DY7: 3682 | EA7: -503 | EB7: -1152 | EC7: -215 | EH7: 20.75 | EJ7: 115 | EQ7: -3984 | ER7: 196 | ES7: 1228 | ET7: -2610 | EU7: 106 | EV7: 279 | EW7: -3980 | EX7: 3 | EY7: 80 | EZ7: 326 | FA7: -3250 | FB7: 82 | FC7: -1150 | FD7: 12 | FE7: -2530 | FF7: 24863 | FG7: 9426 | FH7: 15437 | FI7: 388 | FJ7: 23108 | FK7: 8822 | FL7: 14286 | FM7: 344 | FN7: 19437 | FO7: 7683 | FP7: 11754 | FQ7: 350 | FR7: 12 | FS7: 12 | FT7: 11 | FU7: 15887
A8: 18 | B8: Askola | C8: 4990 | E8: 1.433070866 | F8: 71.39762168 | G8: -5016.032064 | K8: 16.12000287 | L8: 511.0220441 | M8: 25.01747124 | N8: 7455.711423 | P8: 15461 | Q8: 39934 | R8: -30 | S8: -24503 | T8: 18756 | U8: 7325 | X8: -172 | Y8: 242 | Z8: 1648 | AA8: 2120 | AB8: 0 | AD8: -472 | AE8: 0 | AF8: 123 | AG8: -3 | AH8: 0 | AI8: -352 | AJ8: -2503 | AK8: 1460 | AM8: -373 | AN8: -1098 | AO8: -2271 | AT8: 20.75 | AV8: 282 | AW8: 4958 | AY8: 0.5587871287 | AZ8: 80.76904728 | BA8: -5369.907221 | BE8: 16.29486142 | BF8: 1060.911658 | BG8: 40.30355194 | BH8: 9607.906414 | BJ8: 14418 | BK8: 41260 | BL8: -2 | BM8: -26844 | BN8: 18547 | BO8: 8957 | BR8: -216 | BS8: 243 | BT8: 687 | BU8: 2089 | BV8: 2228 | BX8: 826 | BY8: 0 | BZ8: 178 | CA8: -6 | CB8: 0 | CC8: 998 | CD8: -1633 | CE8: 2718 | CG8: 201 | CH8: -1400 | CI8: -1523 | CN8: 20.75 | CP8: 265 | CQ8: 4943 | CS8: 1.761904762 | CT8: 84.32040097 | CU8: -5149.099737 | CY8: 21.08963776 | CZ8: 1390.451143 | DA8: 41.54368806 | DB8: 9349.382966 | DD8: 14287 | DE8: 39474 | DF8: 3 | DG8: -25184 | DH8: 19707 | DI8: 8303 | DL8: -274 | DM8: 281 | DN8: 2833 | DO8: 2340 | DP8: 2496 | DR8: 2989 | DS8: -2 | DT8: 7 | DU8: 1 | DV8: 0 | DW8: 2993 | DX8: 1595 | DY8: 5184 | EA8: -1599 | EB8: -1489 | EC8: 835 | EH8: 21.5 | EJ8: 100 | EQ8: -4053 | ER8: 12 | ES8: 310 | ET8: -4701 | EU8: 21 | EV8: 439 | EW8: -4914 | EX8: 308 | EY8: 257 | EZ8: 2257 | FA8: 1738 | FB8: 7045 | FC8: -1916 | FD8: 5527 | FE8: -1757 | FF8: 24594 | FG8: 16477 | FH8: 8117 | FI8: 0 | FJ8: 28168 | FK8: 21682 | FL8: 6486 | FM8: 0 | FN8: 29815 | FO8: 25380 | FP8: 4435 | FQ8: 0 | FR8: 2000 | FS8: 2000 | FT8: 2000 | FU8: 345
A9: 19 | B9: Aura | C9: 3991 | E9: 2.955424727 | F9: 55.6105709 | G9: -3685.041343 | K9: 25.32033859 | L9: 588.3237284 | M9: 28.45068552 | N9: 7547.732398 | P9: 12669 | Q9: 30038 | R9: 1 | S9: -17368 | T9: 14873 | U9: 5984 | X9: -62 | Y9: 22 | Z9: 3449 | AA9: 1306 | AB9: 0 | AD9: 2143 | AE9: -24 | AF9: 0 | AG9: 0 | AH9: 0 | AI9: 2119 | AJ9: 1556 | AK9: 3453 | AM9: -224 | AN9: -1124 | AO9: 2452 | AT9: 21.75 | AV9: 103 | AW9: 3984 | AY9: 1.202362205 | AZ9: 56.5505855 | BA9: -3912.901606 | BE9: 25.06968042 | BF9: 261.2951807 | BG9: 10.90787736 | BH9: 8743.473896 | BJ9: 12003 | BK9: 31204 | BL9: 1 | BM9: -19200 | BN9: 14314 | BO9: 6390 | BR9: -52 | BS9: 23 | BT9: 1475 | BU9: 1297 | BV9: 0 | BX9: 178 | BY9: -41 | BZ9: -81 | CA9: 0 | CB9: -21 | CC9: 35 | CD9: 1642 | CE9: 1562 | CG9: -278 | CH9: -1218 | CI9: -850 | CN9: 21.75 | CP9: 189 | CQ9: 3941 | CS9: 1.369323915 | CT9: 58.6958477 | CU9: -3963.968536 | CY9: 25.48653106 | CZ9: 507.9928952 | DA9: 11.02946299 | DB9: 8741.436184 | DD9: 12253 | DE9: 32020 | DF9: 7 | DG9: -19760 | DH9: 14707 | DI9: 6395 | DL9: -50 | DM9: 15 | DN9: 1307 | DO9: 1309 | DP9: -1 | DR9: -3 | DS9: -46 | DT9: -107 | DU9: 0 | DV9: -26 | DW9: -182 | DX9: 1610 | DY9: 1331 | EA9: -87 | EB9: -941 | EC9: 121 | EH9: 21.75 | EJ9: 197 | EQ9: -1111 | ER9: 10 | ES9: 100 | ET9: -2336 | EU9: 16 | EV9: -92 | EW9: -1414 | EX9: 26 | EY9: 178 | EZ9: 197 | FA9: -593 | FB9: 225 | FC9: 464 | FD9: 5095 | FE9: -2855 | FF9: 14775 | FG9: 4567 | FH9: 10208 | FI9: 0 | FJ9: 14251 | FK9: 3750 | FL9: 10501 | FM9: 0 | FN9: 15560 | FO9: 7404 | FP9: 8156 | FQ9: 0 | FR9: 912 | FS9: 1020 | FT9: 657 | FU9: 1286
A10: 46 | B10: Enonkoski | C10: 1416 | E10: 9.048780488 | F10: 17.95425119 | G10: 960.4519774 | K10: 75.02968936 | L10: 2175.847458 | M10: 60.89592246 | N10: 13041.66667 | P10: 10316 | Q10: 19838 | R10: 0 | S10: -9522 | T10: 4854 | U10: 5683 | X10: -4 | Y10: 71 | Z10: 1082 | AA10: 787 | AB10: -16 | AD10: 279 | AE10: 0 | AF10: 0 | AG10: 0 | AH10: -36 | AI10: 243 | AJ10: 6840 | AK10: 1036 | AM10: -876 | AN10: -92 | AO10: -56 | AT10: 21 | AV10: 151 | AW10: 1405 | AY10: 7.717948718 | AZ10: 18.69898832 | BA10: 748.7544484 | BE10: 74.05974504 | BF10: 2365.836299 | BG10: 57.85142094 | BH10: 14926.69039 | BJ10: 10151 | BK10: 19928 | BL10: 0 | BM10: -9777 | BN10: 4481 | BO10: 5829 | BR10: -7 | BS10: 62 | BT10: 588 | BU10: 843 | BV10: 5 | BX10: -250 | BY10: 0 | BZ10: 1 | CA10: -1 | CB10: -8 | CC10: -258 | CD10: 6659 | CE10: 577 | CG10: 469 | CH10: -64 | CI10: -225 | CN10: 21 | CP10: 174 | CQ10: 1361 | CS10: 15.93150685 | CT10: 15.75672808 | CU10: 1111.682586 | CY10: 77.53552657 | CZ10: 2612.049963 | DA10: 59.33101863 | DB10: 15024.98163 | DD10: 10276 | DE10: 19669 | DF10: 0 | DG10: -9393 | DH10: 4713 | DI10: 5745 | DL10: -6 | DM10: 94 | DN10: 1153 | DO10: 877 | DP10: 0 | DR10: 276 | DS10: 0 | DT10: 0 | DU10: 0 | DV10: -4 | DW10: 272 | DX10: 6931 | DY10: 1104 | EA10: 328 | EB10: -63 | EC10: 438 | EH10: 21 | EJ10: 33 | EQ10: -1552 | ER10: 18 | ES10: 442 | ET10: -907 | EU10: 94 | EV10: 11 | EW10: -702 | EX10: 12 | EY10: 24 | EZ10: 14 | FA10: 0 | FB10: 9 | FC10: 52 | FD10: 16 | FE10: -231 | FF10: 1085 | FG10: 930 | FH10: 155 | FI10: 0 | FJ10: 1082 | FK10: 787 | FL10: 295 | FM10: 0 | FN10: 804 | FO10: 648 | FP10: 156 | FQ10: 0 | FR10: 109 | FS10: 108 | FT10: 108 | FU10: 449
A11: 47 | B11: Enontekiö | C11: 1893 | E11: 1.892241379 | F11: 81.73696239 | G11: -6499.735869 | K11: 36.44112346 | L11: 1033.280507 | M11: 44.9471166 | N11: 8390.913893 | P11: 4225 | Q11: 17496 | R11: 2 | S11: -13269 | T11: 6203 | U11: 8824 | X11: -157 | Y11: 421 | Z11: 2022 | AA11: 1177 | AB11: -22 | AD11: 823 | AE11: 0 | AF11: -11 | AG11: 0 | AH11: -3 | AI11: 809 | AJ11: 1400 | AK11: 1995 | AM11: 996 | AN11: -987 | AO11: 1231 | AT11: 21.25 | AV11: 59 | AW11: 1852 | AY11: 1.480417755 | AZ11: 65.11079282 | BA11: -6109.611231 | BE11: 38.77868822 | BF11: 1225.701944 | BG11: 33.21107904 | BH11: 13470.84233 | BJ11: 8772 | BK11: 22485 | BL11: -11 | BM11: -13724 | BN11: 6362 | BO11: 8604 | BR11: -121 | BS11: 443 | BT11: 1564 | BU11: 1111 | BV11: 0 | BX11: 453 | BY11: 0 | BZ11: 10 | CA11: -23 | CB11: -1 | CC11: 439 | CD11: 1933 | CE11: 1596 | CG11: 723 | CH11: -1012 | CI11: 852 | CN11: 21.25 | CP11: 41 | CQ11: 1838 | CS11: 1.165674603 | CT11: 64.78432037 | CU11: -6209.466812 | CY11: 39.99478021 | CZ11: 1076.16975 | DA11: 31.21068294 | DB11: 14443.41676 | DD11: 8571 | DE11: 22860 | DF11: -7 | DG11: -14296 | DH11: 6263 | DI11: 8789 | DL11: -77 | DM11: 401 | DN11: 1080 | DO11: 1024 | DP11: 0 | DR11: 56 | DS11: 0 | DT11: 1 | DU11: 30 | DV11: -4 | DW11: 23 | DX11: 2110 | DY11: 1087 | EA11: 231 | EB11: -913 | EC11: -584 | EH11: 21.25 | EJ11: 91 | EQ11: -2967 | ER11: 2153 | ES11: 50 | ET11: -1018 | EU11: 87 | EV11: 187 | EW11: -2409 | EX11: 492 | EY11: 246 | EZ11: 0 | FA11: -342 | FB11: 0 | FC11: 48 | FD11: 261 | FE11: 787 | FF11: 10397 | FG11: 8767 | FH11: 1630 | FI11: 116 | FJ11: 9399 | FK11: 7721 | FL11: 1678 | FM11: 136 | FN11: 9071 | FO11: 6633 | FP11: 2438 | FQ11: 35 | FR11: 5138 | FS11: 1161 | FT11: 324 | FU11: 323
A12: 49 | B12: Espoo | C12: 279044 | E12: 1.984179228 | F12: 147.2504652 | G12: -9164.676538 | K12: 40.76427186 | L12: 3871.382291 | M12: 214.2994746 | N12: 6593.83108 | P12: 1012445 | Q12: 2264850 | R12: 994 | S12: -1251411 | T12: 1490270 | U12: 84559 | X12: -43228 | Y12: 39111 | Z12: 319301 | AA12: 267979 | AB12: 1200 | AD12: 52522 | AE12: -463 | AF12: 17 | AG12: -390 | AH12: -773 | AI12: 50913 | AJ12: 600201 | AK12: 289704 | AM12: 22161 | AN12: -133610 | AO12: -231776 | AT12: 18 | AV12: 44 | AW12: 283632 | AY12: 1.771296126 | AZ12: 143.4887806 | BA12: -9498.684916 | BE12: 40.41422085 | BF12: 3541.032042 | BG12: 118.5001728 | BH12: 10906.96043 | BJ12: 1102801 | BK12: 2383893 | BL12: -1616 | BM12: -1282708 | BN12: 1501986 | BO12: 95314 | BR12: -35590 | BS12: 20923 | BT12: 299925 | BU12: 306013 | BV12: 0 | BX12: -6088 | BY12: 3973 | BZ12: 12237 | CA12: -622 | CB12: 2802 | CC12: 12302 | CD12: 604643 | CE12: 229225 | CG12: -1956 | CH12: -148680 | CI12: -151086 | CN12: 18 | CP12: 19 | CQ12: 289731 | CS12: 1.632158999 | CT12: 149.8354747 | CU12: -10314.11551 | CY12: 38.12346468 | CZ12: 3381.260549 | DA12: 107.7189558 | DB12: 11746.02304 | DD12: 1171298 | DE12: 2544378 | DF12: -1283 | DG12: -1374363 | DH12: 1521184 | DI12: 113469 | DL12: -34689 | DM12: 44470 | DN12: 270071 | DO12: 323458 | DP12: 0 | DR12: -53387 | DS12: 3766 | DT12: 15025 | DU12: 603 | DV12: 2899 | DW12: -32300 | DX12: 551120 | DY12: 183927 | EA12: -59706 | EB12: -147551 | EC12: -324600 | EH12: 18 | EJ12: 25 | EQ12: -616503 | ER12: 48410 | ES12: 46613 | ET12: -495489 | EU12: 36891 | EV12: 78287 | EW12: -661148 | EX12: 58030 | EY12: 94591 | EZ12: 374787 | FA12: 1824 | FB12: 219699 | FC12: 1933 | FD12: 449241 | FE12: -1583 | FF12: 3429679 | FG12: 3275274 | FH12: 154405 | FI12: 208539 | FJ12: 3502631 | FK12: 3329807 | FL12: 172824 | FM12: 208048 | FN12: 3802739 | FO12: 3607234 | FP12: 195505 | FQ12: 205140 | FR12: 50979 | FS12: 92306 | FT12: 94817 | FU12: 602654
A13: 50 | B13: Eura | C13: 11910 | E13: 1.819447722 | F13: 65.16809825 | G13: -4830.310663 | K13: 35.01046111 | L13: 448.9504618 | M13: 20.09736381 | N13: 8153.652393 | P13: 36426 | Q13: 99266 | R13: 0 | S13: -62840 | T13: 44397 | U13: 26168 | X13: -466 | Y13: -3 | Z13: 7256 | AA13: 5748 | AB13: 0 | AD13: 1508 | AE13: 30 | AF13: 0 | AG13: 0 | AH13: -4 | AI13: 1534 | AJ13: 5504 | AK13: 6875 | AM13: -463 | AN13: -3784 | AO13: 1115 | AT13: 20.5 | AV13: 219 | AW13: 11748 | AY13: 0.4716535433 | AZ13: 70.15753209 | BA13: -5271.790943 | BE13: 31.17634101 | BF13: 486.3806605 | BG13: 18.37898095 | BH13: 9659.346272 | BJ13: 36008 | BK13: 103147 | BL13: 0 | BM13: -67139 | BN13: 43565 | BO13: 25358 | BR13: -377 | BS13: 9 | BT13: 1416 | BU13: 5804 | BV13: 0 | BX13: -4388 | BY13: 36 | BZ13: 0 | CA13: 0 | CB13: 38 | CC13: -4314 | CD13: 1114 | CE13: 1138 | CG13: 877 | CH13: -3429 | CI13: -4519 | CN13: 20.5 | CP13: 272 | CQ13: 11632 | CS13: 0.550090525 | CT13: 76.19446221 | CU13: -6003.610729 | CY13: 26.79055778 | CZ13: 429.1609354 | DA13: 17.72392753 | DB13: 10116.23109 | DD13: 36328 | DE13: 104526 | DF13: 0 | DG13: -68198 | DH13: 43287 | DI13: 26709 | DL13: -340 | DM13: 22 | DN13: 1480 | DO13: 6065 | DP13: 3 | DR13: -4582 | DS13: 10 | DT13: 0 | DU13: 2 | DV13: 26 | DW13: -4548 | DX13: -3389 | DY13: 1283 | EA13: -216 | EB13: -2971 | EC13: -8008 | EH13: 20.5 | EJ13: 253 | EQ13: -6603 | ER13: 191 | ES13: 652 | ET13: -6341 | EU13: 81 | EV13: 603 | EW13: -9684 | EX13: 41 | EY13: 352 | EZ13: 334 | FA13: 1632 | FB13: 933 | FC13: 4000 | FD13: 5648 | FE13: 6000 | FF13: 52506 | FG13: 35316 | FH13: 17190 | FI13: 50 | FJ13: 54266 | FK13: 33394 | FL13: 20872 | FM13: 50 | FN13: 63193 | FO13: 36129 | FP13: 27064 | FQ13: 50 | FR13: 552 | FS13: 607 | FT13: 424 | FU13: 1865
A14: 51 | B14: Eurajoki | C14: 9521 | E14: 5.951488423 | F14: 33.44840853 | G14: -191.1563911 | K14: 74.53934416 | L14: 2540.804537 | M14: 108.9388911 | N14: 8512.971327 | P14: 30898 | Q14: 86250 | R14: 0 | S14: -55352 | T14: 51919 | U14: 13352 | X14: -92 | Y14: 836 | Z14: 10663 | AA14: 5641 | AB14: -2 | AD14: 5024 | AE14: 0 | AF14: 29 | AG14: -3 | AH14: -13 | AI14: 5037 | AJ14: 76253 | AK14: 10769 | AM14: -365 | AN14: -1681 | AO14: 3378 | AT14: 18 | AV14: 47 | AW14: 9454 | AY14: 2.988630491 | AZ14: 33.1982377 | BA14: 15.33742331 | BE14: 75.00310549 | BF14: 2765.17876 | BG14: 99.31233672 | BH14: 10162.78824 | BJ14: 31437 | BK14: 87039 | BL14: 0 | BM14: -55602 | BN14: 50340 | BO14: 11737 | BR14: -129 | BS14: -693 | BT14: 5653 | BU14: 5919 | BV14: 0 | BX14: -266 | BY14: 1 | BZ14: -52 | CA14: 0 | CB14: -7 | CC14: -324 | CD14: 75926 | CE14: 5702 | CG14: 1108 | CH14: -1805 | CI14: 1863 | CN14: 18 | CP14: 113 | CQ14: 9402 | CS14: 2.797501644 | CT14: 30.76287236 | CU14: -38.60880664 | CY14: 75.73123851 | CZ14: 2591.682621 | DA14: 95.43834205 | DB14: 10633.80132 | DD14: 32393 | DE14: 93103 | DF14: 0 | DG14: -60710 | DH14: 52060 | DI14: 11120 | DL14: -49 | DM14: 1785 | DN14: 4206 | DO14: 5684 | DP14: 0 | DR14: -1478 | DS14: 0 | DT14: -49 | DU14: 13 | DV14: -14 | DW14: -1554 | DX14: 74437 | DY14: 4127 | EA14: 385 | EB14: -1472 | EC14: -654 | EH14: 18 | EJ14: 143 | EQ14: -7916 | ER14: 39 | ES14: 486 | ET14: -5328 | EU14: 16 | EV14: 1473 | EW14: -4977 | EX14: 48 | EY14: 148 | EZ14: 568 | FA14: -763 | FB14: 660 | FC14: -379 | FD14: 402 | FE14: -448 | FF14: 17545 | FG14: 15617 | FH14: 1928 | FI14: 130 | FJ14: 16111 | FK14: 14279 | FL14: 1832 | FM14: 62 | FN14: 14768 | FO14: 12838 | FP14: 1930 | FQ14: 105 | FR14: 111 | FS14: 47 | FT14: 0 | FU14: 201
A15: 52 | B15: Evijärvi | C15: 2499 | E15: 2.2268431 | F15: 38.61535244 | G15: -228.0912365 | K15: 54.72741051 | L15: 3002.80112 | M15: 119.8354918 | N15: 9146.058423 | P15: 7148 | Q15: 23269 | R15: 0 | S15: -16121 | T15: 8224 | U15: 8533 | X15: 72 | Y15: 448 | Z15: 1156 | AA15: 888 | AB15: 0 | AD15: 268 | AE15: -7 | AF15: -28 | AG15: -8 | AH15: -2 | AI15: 223 | AJ15: 3481 | AK15: 1104 | AM15: -121 | AN15: -507 | AO15: 339 | AT15: 21.5 | AV15: 264 | AW15: 2473 | AY15: -0.4292682927 | AZ15: 42.64119942 | BA15: -877.8811161 | BE15: 49.3805152 | BF15: 2844.318641 | BG15: 97.55338552 | BH15: 10642.13506 | BJ15: 7570 | BK15: 24216 | BL15: 4 | BM15: -16642 | BN15: 7975 | BO15: 8800 | BR15: 21 | BS15: -270 | BT15: -116 | BU15: 940 | BV15: 0 | BX15: -1056 | BY15: -2 | BZ15: -25 | CA15: -2 | CB15: -1 | CC15: -1086 | CD15: 2289 | CE15: -188 | CG15: 41 | CH15: -177 | CI15: -1554 | CN15: 21.5 | CP15: 286 | CQ15: 2425 | CS15: 2.442307692 | CT15: 52.3722118 | CU15: -1726.185567 | CY15: 43.98469664 | CZ15: 3125.773196 | DA15: 92.29042668 | DB15: 11501.03093 | DD15: 7743 | DE15: 25616 | DF15: 1 | DG15: -17872 | DH15: 8046 | DI15: 9272 | DL15: 24 | DM15: 624 | DN15: 94 | DO15: 1115 | DP15: 0 | DR15: -1021 | DS15: 4 | DT15: -12 | DU15: 2 | DV15: 2 | DW15: -1029 | DX15: 1214 | DY15: 79 | EA15: -100 | EB15: -19 | EC15: -1866 | EH15: 21.5 | EJ15: 271 | EQ15: -976 | ER15: 52 | ES15: 159 | ET15: -1537 | EU15: 75 | EV15: 96 | EW15: -2124 | EX15: 160 | EY15: 19 | EZ15: 618 | FA15: 950 | FB15: 538 | FC15: 550 | FD15: 299 | FE15: 1000 | FF15: 7285 | FG15: 2021 | FH15: 5264 | FI15: 56 | FJ15: 8210 | FK15: 2398 | FL15: 5812 | FM15: 54 | FN15: 9505 | FO15: 2530 | FP15: 6975 | FQ15: 52 | FR15: 21 | FS15: 11 | FT15: 4 | FU15: 357
A16: 61 | B16: Forssa | C16: 17185 | E16: 2.180599094 | F16: 49.5358546 | G16: -3243.759092 | K16: 49.43690947 | L16: 1126.447483 | M16: 42.74530088 | N16: 9618.679081 | P16: 73061 | Q16: 166862 | R16: 143 | S16: -93658 | T16: 61074 | U16: 44796 | X16: -520 | Y16: 66 | Z16: 11758 | AA16: 10896 | AB16: 0 | AD16: 862 | AE16: 120 | AF16: 3 | AG16: -11 | AH16: -62 | AI16: 912 | AJ16: 25667 | AK16: 10166 | AM16: -3335 | AN16: -4979 | AO16: 3207 | AT16: 20.5 | AV16: 185 | AW16: 17028 | AY16: 1.305382527 | AZ16: 48.4945179 | BA16: -3143.528306 | BE16: 49.58494927 | BF16: 1288.93587 | BG16: 43.54359512 | BH16: 10804.38102 | BJ16: 74139 | BK16: 170963 | BL16: 0 | BM16: -96824 | BN16: 60239 | BO16: 44568 | BR16: -659 | BS16: 90 | BT16: 7414 | BU16: 13797 | BV16: 2000 | BX16: -4383 | BY16: 108 | BZ16: 0 | CA16: -38 | CB16: 51 | CC16: -4262 | CD16: 21404 | CE16: 6504 | CG16: 2230 | CH16: -5502 | CI16: 2011 | CN16: 20.5 | CP16: 167 | CQ16: 16901 | CS16: 0.6319581803 | CT16: 51.89233117 | CU16: -3215.016863 | CY16: 48.54268185 | CZ16: 1623.986746 | DA16: 41.09100422 | DB16: 11535.29377 | DD16: 75167 | DE16: 172163 | DF16: 0 | DG16: -96996 | DH16: 60261 | DI16: 45460 | DL16: -514 | DM16: 92 | DN16: 8303 | DO16: 9409 | DP16: 0 | DR16: -1106 | DS16: -11 | DT16: 4 | DU16: 11 | DV16: 200 | DW16: -924 | DX16: 22751 | DY16: 6738 | EA16: -780 | EB16: -13513 | EC16: -1108 | EH16: 20.5 | EJ16: 124 | EQ16: -7329 | ER16: 17 | ES16: 353 | ET16: -6742 | EU16: 43 | EV16: 2206 | EW16: -8562 | EX16: 439 | EY16: 277 | EZ16: 6072 | FA16: 4699 | FB16: 6913 | FC16: 949 | FD16: 10152 | FE16: 4165 | FF16: 65801 | FG16: 47833 | FH16: 17968 | FI16: 303 | FJ16: 68161 | FK16: 49096 | FL16: 19065 | FM16: 232 | FN16: 68965 | FO16: 46512 | FP16: 22453 | FQ16: 268 | FR16: 1000 | FS16: 954 | FT16: 131 | FU16: 2019
A17: 69 | B17: Haapajärvi | C17: 7251 | E17: 0.8400062073 | F17: 63.30487724 | G17: -4155.151014 | K17: 33.64601306 | L17: 2779.340781 | M17: 85.54999244 | N17: 11858.08854 | P17: 41518 | Q17: 85945 | R17: 28 | S17: -44399 | T17: 22647 | U17: 26501 | X17: -495 | Y17: 644 | Z17: 4898 | AA17: 3904 | AB17: -24 | AD17: 970 | AE17: -99 | AF17: -3 | AG17: -80 | AH17: -4 | AI17: 784 | AJ17: 5116 | AK17: 4695 | AM17: 129 | AN17: -5929 | AO17: -1596 | AT17: 22 | AV17: 188 | AW17: 7147 | AY17: 0.3967761017 | AZ17: 62.42469716 | BA17: -4110.116133 | BE17: 32.86513759 | BF17: 3005.876592 | BG17: 77.73509993 | BH17: 14113.89394 | BJ17: 42556 | BK17: 89443 | BL17: -77 | BM17: -46964 | BN17: 23059 | BO17: 26347 | BR17: -340 | BS17: 213 | BT17: 2315 | BU17: 4044 | BV17: 310 | BX17: -1419 | BY17: -74 | BZ17: -6 | CA17: -88 | CB17: 25 | CC17: -1562 | CD17: 4957 | CE17: 2306 | CG17: 1096 | CH17: -6394 | CI17: 921 | CN17: 22 | CP17: 205 | CQ17: 7010 | CS17: 0.5213055304 | CT17: 75.22720578 | CU17: -5595.577746 | CY17: 30.09719384 | CZ17: 3234.379458 | DA17: 71.60918646 | DB17: 15581.45506 | DD17: 42245 | DE17: 90080 | DF17: 17 | DG17: -47818 | DH17: 23480 | DI17: 25932 | DL17: -361 | DM17: 1825 | DN17: 3058 | DO17: 4278 | DP17: 0 | DR17: -1220 | DS17: -192 | DT17: -1 | DU17: 206 | DV17: 28 | DW17: -1591 | DX17: 3187 | DY17: 2597 | EA17: -951 | EB17: -6226 | EC17: -9126 | EH17: 22.5 | EJ17: 148 | EQ17: -7120 | ER17: 253 | ES17: 576 | ET17: -2995 | EU17: 70 | EV17: 1540 | EW17: -12295 | EX17: 188 | EY17: 384 | EZ17: 6361 | FA17: 1149 | FB17: 6373 | FC17: -894 | FD17: 14065 | FE17: 1970 | FF17: 43029 | FG17: 29755 | FH17: 13274 | FI17: 171 | FJ17: 42154 | FK17: 29564 | FL17: 12590 | FM17: 169 | FN17: 51953 | FO17: 38067 | FP17: 13886 | FQ17: 169 | FR17: 6867 | FS17: 6829 | FT17: 6567 | FU17: 2759
A18: 71 | B18: Haapavesi | C18: 6970 | E18: 1.471192242 | F18: 67.56119842 | G18: -4498.421808 | K18: 25.31431815 | L18: 1884.361549 | M18: 69.95957621 | N18: 9831.276901 | P18: 30893 | Q18: 70568 | R18: 2 | S18: -39673 | T18: 20643 | U18: 23997 | X18: -284 | Y18: 113 | Z18: 4796 | AA18: 3611 | AB18: 0 | AD18: 1185 | AE18: 2 | AF18: -1 | AG18: -118 | AH18: -27 | AI18: 1041 | AJ18: 214 | AK18: 4411 | AM18: 819 | AN18: -3144 | AO18: 2426 | AT18: 22 | AV18: 183 | AW18: 6854 | AY18: 0.5027519453 | AZ18: 66.6280972 | BA18: -4656.84272 | BE18: 24.53447445 | BF18: 1852.203093 | BG18: 55.42474552 | BH18: 12197.69478 | BJ18: 27937 | BK18: 72355 | BL18: 2 | BM18: -44416 | BN18: 20098 | BO18: 27154 | BR18: -328 | BS18: -232 | BT18: 2276 | BU18: 3641 | BV18: 302 | BX18: -1063 | BY18: 22 | BZ18: -7 | CA18: -85 | CB18: 45 | CC18: -1088 | CD18: -173 | CE18: 2364 | CG18: 1038 | CH18: -4896 | CI18: -849 | CN18: 22 | CP18: 202 | CQ18: 6758 | CS18: 0.9533617424 | CT18: 62.73809085 | CU18: -4723.438887 | CY18: 24.74684182 | CZ18: 2054.158035 | DA18: 53.45478981 | DB18: 12826.87186 | DD18: 33053 | DE18: 77883 | DF18: 2 | DG18: -44828 | DH18: 21242 | DI18: 27134 | DL18: -345 | DM18: 450 | DN18: 3653 | DO18: 3661 | DP18: 0 | DR18: -8 | DS18: 25 | DT18: -1 | DU18: 91 | DV18: -1 | DW18: -76 | DX18: -249 | DY18: 3532 | EA18: 183 | EB18: -3850 | EC18: 32 | EH18: 22 | EJ18: 105 | EQ18: -5797 | ER18: 127 | ES18: 3685 | ET18: -5182 | EU18: 48 | EV18: 1921 | EW18: -4315 | EX18: 581 | EY18: 234 | EZ18: 499 | FA18: 3487 | FB18: 9795 | FC18: -6028 | FD18: 2179 | FE18: 1942 | FF18: 38371 | FG18: 14065 | FH18: 24306 | FI18: 271 | FJ18: 37208 | FK18: 18903 | FL18: 18305 | FM18: 2 | FN18: 37478 | FO18: 18364 | FP18: 19114 | FQ18: 2 | FR18: 1147 | FS18: 420 | FT18: 238 | FU18: 1108
A19: 72 | B19: Hailuoto | C19: 967 | E19: 2.810096154 | F19: 52.75396825 | G19: -2125.129266 | K19: 57.59832313 | L19: 3656.670114 | M19: 112.8379087 | N19: 11828.33506 | P19: 5176 | Q19: 11532 | R19: 1 | S19: -6355 | T19: 3691 | U19: 3733 | X19: -15 | Y19: 91 | Z19: 1145 | AA19: 674 | AB19: 0 | AD19: 471 | AE19: 0 | AF19: 4 | AG19: -1 | AH19: -1 | AI19: 473 | AJ19: 7093 | AK19: 1061 | AM19: 329 | AN19: -392 | AO19: 692 | AT19: 20 | AV19: 36 | AW19: 974 | AY19: 0.5524126456 | AZ19: 52.61797027 | BA19: -2983.572895 | BE19: 57.32430144 | BF19: 2542.094456 | BG19: 62.37852015 | BH19: 14874.74333 | BJ19: 5181 | BK19: 12055 | BL19: 0 | BM19: -6874 | BN19: 3470 | BO19: 3725 | BR19: -16 | BS19: 5 | BT19: 310 | BU19: 681 | BV19: 88 | BX19: -283 | BY19: -1 | BZ19: -7 | CA19: 0 | CB19: -1 | CC19: -292 | CD19: 6799 | CE19: 200 | CG19: -75 | CH19: -579 | CI19: -860 | CN19: 20.5 | CP19: 206 | CQ19: 959 | CS19: 0.7315436242 | CT19: 58.67105369 | CU19: -5320.12513 | CY19: 53.95984999 | CZ19: 1162.669447 | DA19: 59.93730096 | DB19: 15716.37122 | DD19: 5157 | DE19: 12141 | DF19: 1 | DG19: -6983 | DH19: 3591 | DI19: 3713 | DL19: -13 | DM19: 0 | DN19: 308 | DO19: 692 | DP19: 0 | DR19: -384 | DS19: 0 | DT19: -1 | DU19: 1 | DV19: 0 | DW19: -386 | DX19: 6414 | DY19: 279 | EA19: 41 | EB19: -428 | EC19: -2189 | EH19: 20.5 | EJ19: 201 | EQ19: -511 | ER19: 5 | ES19: 137 | ET19: -1816 | EU19: 6 | EV19: 750 | EW19: -2480 | EX19: 0 | EY19: 12 | EZ19: 146 | FA19: 53 | FB19: 122 | FC19: -6 | FD19: 1301 | FE19: -17 | FF19: 3199 | FG19: 2863 | FH19: 336 | FI19: 1 | FJ19: 2726 | FK19: 2334 | FL19: 392 | FM19: 1 | FN19: 3581 | FO19: 3216 | FP19: 365 | FQ19: 1 | FR19: 18 | FS19: 18 | FT19: 0 | FU19: 156
A20: 74 | B20: Halsua | C20: 1171 | E20: 2.077445652 | F20: 103.683596 | G20: -12404.78224 | K20: 25.0999001 | L20: 1631.084543 | M20: 44.51787995 | N20: 13373.18531 | P20: 8650 | Q20: 15712 | R20: 75 | S20: -6987 | T20: 3712 | U20: 4768 | X20: -135 | Y20: 28 | Z20: 1386 | AA20: 844 | AB20: 0 | AD20: 542 | AE20: -2 | AF20: -7 | AG20: -4 | AH20: -3 | AI20: 526 | AJ20: 2010 | AK20: 1305 | AM20: 332 | AN20: -593 | AO20: 574 | AT20: 22 | AV20: 37 | AW20: 1165 | AY20: 1.324205915 | AZ20: 99.72038922 | BA20: -12215.45064 | BE20: 25.11244068 | BF20: 1889.270386 | BG20: 43.50509044 | BH20: 15850.64378 | BJ20: 9508 | BK20: 16803 | BL20: 52 | BM20: -7243 | BN20: 3411 | BO20: 4963 | BR20: -130 | BS20: 18 | BT20: 1020 | BU20: 833 | BV20: -53 | BX20: 186 | BY20: -3 | BZ20: -35 | CA20: -8 | CB20: -2 | CC20: 138 | CD20: 2074 | CE20: 635 | CG20: -7 | CH20: -776 | CI20: 220 | CN20: 22 | CP20: 30 | CQ20: 1127 | CS20: 0.7951388889 | CT20: 100.8643283 | CU20: -12891.748 | CY20: 24.04394152 | CZ20: 2078.083407 | DA20: 42.31131827 | DB20: 16847.38243 | DD20: 9293 | DE20: 17331 | DF20: 53 | DG20: -7985 | DH20: 3852 | DI20: 4788 | DL20: -125 | DM20: 25 | DN20: 555 | DO20: 841 | DP20: 0 | DR20: -286 | DS20: -2 | DT20: -3 | DU20: 6 | DV20: 0 | DW20: -297 | DX20: 1778 | DY20: 436 | EA20: 142 | EB20: -732 | EC20: -263 | EH20: 22 | EJ20: 123 | EQ20: -799 | ER20: 15 | ES20: 53 | ET20: -798 | EU20: 15 | EV20: 368 | EW20: -791 | EX20: 14 | EY20: 78 | EZ20: 1431 | FA20: -16 | FB20: 151 | FC20: 372 | FD20: 434 | FE20: 513 | FF20: 14372 | FG20: 10834 | FH20: 3538 | FI20: 103 | FJ20: 14180 | FK20: 10262 | FL20: 3918 | FM20: 103 | FN20: 14435 | FO20: 9916 | FP20: 4519 | FQ20: 103 | FR20: 804 | FS20: 1131 | FT20: 1100 | FU20: 5364
A21: 75 | B21: Hamina | C21: 20493 | E21: 1.354971713 | F21: 87.0613192 | G21: -7063.631484 | K21: 36.19456746 | L21: 1296.881862 | M21: 50.17562961 | N21: 9434.099449 | P21: 89565 | Q21: 189548 | R21: 652 | S21: -99331 | T21: 82237 | U21: 44101 | X21: -2182 | Y21: 1200 | Z21: 26025 | AA21: 19513 | AB21: 0 | AD21: 6512 | AE21: 54 | AF21: 0 | AG21: 0 | AH21: -97 | AI21: 6469 | AJ21: 17455 | AK21: 24681 | AM21: -3305 | AN21: -18621 | AO21: 11572 | AT21: 21 | AV21: 20 | AW21: 20286 | AY21: 0.9518827547 | AZ21: 89.89359494 | BA21: -7502.415459 | BE21: 36.6415039 | BF21: 1214.285714 | BG21: 35.22074061 | BH21: 12583.90023 | BJ21: 91213 | BK21: 198288 | BL21: 2247 | BM21: -104828 | BN21: 80921 | BO21: 44679 | BR21: -1970 | BS21: 1186 | BT21: 19988 | BU21: 15882 | BV21: 0 | BX21: 4106 | BY21: 51 | BZ21: 0 | CA21: 0 | CB21: -111 | CC21: 4046 | CD21: 23232 | CE21: 21321 | CG21: -1437 | CH21: -21101 | CI21: -7768 | CN21: 21 | CP21: 27 | CQ21: 20111 | CS21: 0.7091295117 | CT21: 78.16189984 | CU21: -7927.204018 | CY21: 37.22316511 | CZ21: 881.6070807 | DA21: 31.24885307 | DB21: 14306.79728 | DD21: 118933 | DE21: 232851 | DF21: 859 | DG21: -113059 | DH21: 85188 | DI21: 45626 | DL21: -1682 | DM21: 1227 | DN21: 17300 | DO21: 17437 | DP21: 0 | DR21: -137 | DS21: 41 | DT21: 0 | DU21: 0 | DV21: -139 | DW21: -235 | DX21: 22890 | DY21: 18130 | EA21: 21 | EB21: -25109 | EC21: -6940 | EH21: 21 | EJ21: 31 | EQ21: -19704 | ER21: 648 | ES21: 5947 | ET21: -33660 | EU21: 589 | EV21: 3982 | EW21: -27402 | EX21: 281 | EY21: 2051 | EZ21: 22362 | FA21: 0 | FB21: 22708 | FC21: 0 | FD21: 27404 | FE21: 3000 | FF21: 151906 | FG21: 133474 | FH21: 18432 | FI21: 720 | FJ21: 153512 | FK21: 131234 | FL21: 22278 | FM21: 714 | FN21: 158807 | FO21: 137706 | FP21: 21101 | FQ21: 1033 | FR21: 47950 | FS21: 43599 | FT21: 44206 | FU21: 26951
A22: 77 | B22: Hankasalmi | C22: 5019 | E22: 2.371804237 | F22: 52.50764828 | G22: -3854.353457 | K22: 41.86361711 | L22: 963.7377964 | M22: 39.05466089 | N22: 9006.973501 | P22: 15022 | Q22: 47579 | R22: 0 | S22: -32557 | T22: 15243 | U22: 20400 | X22: -40 | Y22: 99 | Z22: 3145 | AA22: 2342 | AB22: 2 | AD22: 805 | AE22: -12 | AF22: 5 | AG22: 0 | AH22: 1 | AI22: 799 | AJ22: 108 | AK22: 2860 | AM22: 968 | AN22: -1267 | AO22: -550 | AT22: 22 | AV22: 217 | AW22: 4939 | AY22: 1.242424242 | AZ22: 61.26255667 | BA22: -4508.402511 | BE22: 37.08371555 | BF22: 1074.10407 | BG22: 35.32924026 | BH22: 11096.98319 | BJ22: 15392 | BK22: 48514 | BL22: 0 | BM22: -33122 | BN22: 14524 | BO22: 20157 | BR22: -16 | BS22: 121 | BT22: 1664 | BU22: 2466 | BV22: 12 | BX22: -790 | BY22: 0 | BZ22: -52 | CA22: 0 | CB22: 18 | CC22: -824 | CD22: -1150 | CE22: 386 | CG22: 522 | CH22: -1320 | CI22: -2946 | CN22: 22 | CP22: 200 | CQ22: 4875 | CS22: 0.4953191489 | CT22: 65.61470576 | CU22: -5518.564103 | CY22: 34.64607876 | CZ22: 619.2820513 | DA22: 35.01555182 | DB22: 11343.38462 | DD22: 14039 | DE22: 48849 | DF22: 0 | DG22: -34810 | DH22: 15345 | DI22: 19794 | DL22: -16 | DM22: 172 | DN22: 485 | DO22: 2389 | DP22: 0 | DR22: -1904 | DS22: 0 | DT22: 0 | DU22: 0 | DV22: 12 | DW22: -1892 | DX22: -2962 | DY22: 544 | EA22: 756 | EB22: -1078 | EC22: -4628 | EH22: 22 | EJ22: 260 | EQ22: -3829 | ER22: 27 | ES22: 392 | ET22: -4795 | EU22: 2 | EV22: 1461 | EW22: -5205 | EX22: 3 | EY22: 30 | EZ22: 3990 | FA22: -762 | FB22: 2211 | FC22: 1618 | FD22: 7090 | FE22: -2608 | FF22: 19443 | FG22: 11137 | FH22: 8306 | FI22: 0 | FJ22: 21951 | FK22: 12196 | FL22: 9755 | FM22: 2 | FN22: 25356 | FO22: 17834 | FP22: 7522 | FQ22: 60 | FR22: 594 | FS22: 533 | FT22: 461 | FU22: 303
A23: 78 | B23: Hanko | C23: 8517 | E23: 13.80594243 | F23: 81.62708163 | G23: -8558.647411 | K23: 30.26177124 | L23: 791.593284 | M23: 31.49056242 | N23: 9175.179054 | P23: 54531 | Q23: 91458 | R23: 0 | S23: -36927 | T23: 39028 | U23: 12668 | X23: -1060 | Y23: 83 | Z23: 13792 | AA23: 5867 | AB23: 38 | AD23: 7963 | AE23: -3 | AF23: -2 | AG23: -595 | AH23: 55 | AI23: 7418 | AJ23: -472 | AK23: 11466 | AM23: -934 | AN23: 0 | AO23: -897 | AT23: 21.75 | AV23: 6 | AW23: 8379 | AY23: 2.084456129 | AZ23: 79.87744503 | BA23: -8746.747822 | BE23: 34.56800053 | BF23: 670.6050841 | BG23: 18.1501885 | BH23: 13485.8575 | BJ23: 56107 | BK23: 94461 | BL23: -5 | BM23: -38359 | BN23: 38575 | BO23: 12372 | BR23: -814 | BS23: 77 | BT23: 11851 | BU23: 5783 | BV23: -17 | BX23: 6051 | BY23: -5 | BZ23: -19 | CA23: -767 | CB23: -84 | CC23: 5176 | CD23: 7550 | CE23: 10316 | CG23: -171 | CH23: -5251 | CI23: -593 | CN23: 21.75 | CP23: 5 | CQ23: 8199 | CS23: 2.341325278 | CT23: 83.63115672 | CU23: -9563.605318 | CY23: 34.989126 | CZ23: 720.8196121 | DA23: 17.12122983 | DB23: 14610.19637 | DD23: 58826 | DE23: 98522 | DF23: 6 | DG23: -39690 | DH23: 39253 | DI23: 12613 | DL23: -850 | DM23: 195 | DN23: 11521 | DO23: 6330 | DP23: 0 | DR23: 5191 | DS23: -2 | DT23: 2 | DU23: 935 | DV23: -110 | DW23: 4146 | DX23: 11659 | DY23: 10576 | EA23: -4431 | EB23: -4416 | EC23: -4678 | EH23: 21.75 | EJ23: 6 | EQ23: -14496 | ER23: 16 | ES23: 2117 | ET23: -12093 | EU23: 29 | EV23: 1155 | EW23: -15853 | EX23: 11 | EY23: 588 | EZ23: 1590 | FA23: -3047 | FB23: 4512 | FC23: -829 | FD23: 9172 | FE23: 4744 | FF23: 73274 | FG23: 29849 | FH23: 43425 | FI23: 417 | FJ23: 71075 | FK23: 29422 | FL23: 41653 | FM23: 410 | FN23: 77806 | FO23: 32257 | FP23: 45549 | FQ23: 353 | FR23: 340 | FS23: 285 | FT23: 222 | FU23: 8722
A24: 79 | B24: Harjavalta | C24: 7151 | E24: 1.204069934 | F24: 44.62177643 | G24: -3317.018599 | K24: 43.86606085 | L24: 696.406097 | M24: 25.86589635 | N24: 9827.157041 | P24: 26103 | Q24: 70215 | R24: -34 | S24: -44146 | T24: 34747 | U24: 13524 | X24: -203 | Y24: 72 | Z24: 3994 | AA24: 3281 | AB24: 0 | AD24: 713 | AE24: -16 | AF24: 0 | AG24: -8 | AH24: -38 | AI24: 651 | AJ24: 8242 | AK24: 4009 | AM24: -50 | AN24: -3282 | AO24: 965 | AT24: 20.75 | AV24: 232 | AW24: 7018 | AY24: 0.2355611602 | AZ24: 48.31412836 | BA24: -3707.466515 | BE24: 39.95713716 | BF24: 628.384155 | BG24: 20.13774208 | BH24: 11389.56968 | BJ24: 26472 | BK24: 71917 | BL24: -34 | BM24: -45479 | BN24: 33349 | BO24: 12990 | BR24: -167 | BS24: 70 | BT24: 763 | BU24: 3338 | BV24: 0 | BX24: -2575 | BY24: -6 | BZ24: 0 | CA24: -8 | CB24: -16 | CC24: -2605 | CD24: 5657 | CE24: 808 | CG24: -261 | CH24: -3794 | CI24: -2396 | CN24: 20.75 | CP24: 274 | CQ24: 6931 | CS24: -0.0005918327086 | CT24: 51.86953279 | CU24: -4339.77781 | CY24: 34.39886135 | CZ24: 576.1073438 | DA24: 19.27678379 | DB24: 12047.61218 | DD24: 27182 | DE24: 73761 | DF24: -49 | DG24: -46628 | DH24: 34223 | DI24: 12330 | DL24: -130 | DM24: 68 | DN24: -137 | DO24: 3400 | DP24: 0 | DR24: -3537 | DS24: -12 | DT24: 0 | DU24: 14 | DV24: -23 | DW24: -3586 | DX24: 2086 | DY24: -264 | EA24: 574 | EB24: -4935 | EC24: -4119 | EH24: 21.5 | EJ24: 277 | EQ24: -3452 | ER24: 312 | ES24: 96 | ET24: -4028 | EU24: 71 | EV24: 753 | EW24: -4655 | EX24: 21 | EY24: 779 | EZ24: 5209 | FA24: -1786 | FB24: 6584 | FC24: -1500 | FD24: 4355 | FE24: 4000 | FF24: 23508 | FG24: 17197 | FH24: 6311 | FI24: 0 | FJ24: 24797 | FK24: 19146 | FL24: 5651 | FM24: 0 | FN24: 28217 | FO24: 18527 | FP24: 9690 | FQ24: 0 | FR24: 719 | FS24: 629 | FT24: 477 | FU24: 1795
A25: 81 | B25: Hartola | C25: 2882 | E25: 1.119013581 | F25: 90.57770253 | G25: -10119.70854 | K25: 18.68129382 | L25: 1082.581541 | M25: 29.91331757 | N25: 13209.57668 | P25: 19841 | Q25: 36166 | R25: 0 | S25: -16325 | T25: 9988 | U25: 9153 | X25: -287 | Y25: 300 | Z25: 2829 | AA25: 1885 | AB25: -233 | AD25: 711 | AE25: -37 | AF25: -230 | AG25: 0 | AH25: 0 | AI25: 444 | AJ25: 1867 | AK25: 2541 | AM25: 1243 | AN25: -2496 | AO25: 1821 | AT25: 21.5 | AV25: 74 | AW25: 2780 | AY25: 0.5520094563 | AZ25: 87.22534227 | BA25: -10361.8705 | BE25: 18.13074323 | BF25: 840.2877698 | BG25: 20.82657548 | BH25: 14726.61871 | BJ25: 19955 | BK25: 37292 | BL25: 0 | BM25: -17337 | BN25: 9796 | BO25: 8888 | BR25: -239 | BS25: 40 | BT25: 1148 | BU25: 1861 | BV25: 124 | BX25: -589 | BY25: -36 | BZ25: 18 | CA25: 0 | CB25: 0 | CC25: -607 | CD25: 1209 | CE25: 1359 | CG25: 473 | CH25: -2285 | CI25: 351 | CN25: 21.5 | CP25: 178 | CQ25: 2697 | CS25: 0.1514015645 | CT25: 81.47282595 | CU25: -9702.632555 | CY25: 16.82042704 | CZ25: 918.7986652 | DA25: 18.97031994 | DB25: 16665.18354 | DD25: 20524 | DE25: 37663 | DF25: 6 | DG25: -17133 | DH25: 9355 | DI25: 8632 | DL25: -219 | DM25: 58 | DN25: 693 | DO25: 1929 | DP25: -21 | DR25: -1257 | DS25: -38 | DT25: 9 | DU25: 0 | DV25: 0 | DW25: -1286 | DX25: -52 | DY25: 605 | EA25: -169 | EB25: -5900 | EC25: 3418 | EH25: 21.5 | EJ25: 223 | EQ25: -931 | ER25: 29 | ES25: 182 | ET25: -1103 | EU25: 19 | EV25: 76 | EW25: -1116 | EX25: 71 | EY25: 3858 | EZ25: 759 | FA25: -1160 | FB25: 25 | FC25: 564 | FD25: 1647 | FE25: 2021 | FF25: 29984 | FG25: 26592 | FH25: 3392 | FI25: 59 | FJ25: 28289 | FK25: 24649 | FL25: 3640 | FM25: 57 | FN25: 26820 | FO25: 21248 | FP25: 5572 | FQ25: 53 | FR25: 491 | FS25: 397 | FT25: 274 | FU25: 27583
A26: 82 | B26: Hattula | C26: 9610 | E26: 0.9676258993 | F26: 67.61771265 | G26: -4946.826223 | K26: 34.57804878 | L26: 304.2663892 | M26: 13.95640177 | N26: 7957.440166 | P26: 31306 | Q26: 74081 | R26: 0 | S26: -42775 | T26: 37510 | U26: 9659 | X26: -58 | Y26: -27 | Z26: 4309 | AA26: 3357 | AB26: 191 | AD26: 1143 | AE26: 0 | AF26: 2 | AG26: 0 | AH26: -35 | AI26: 1110 | AJ26: 8825 | AK26: 3833 | AM26: 47 | AN26: -4462 | AO26: 2640 | AT26: 20.5 | AV26: 266 | AW26: 9475 | AY26: 0.4331200714 | AZ26: 73.90346162 | BA26: -5182.269129 | BE26: 32.69055609 | BF26: 293.8258575 | BG26: 11.90259215 | BH26: 9010.343008 | BJ26: 24931 | BK26: 71771 | BL26: 0 | BM26: -46840 | BN26: 37627 | BO26: 11858 | BR26: -21 | BS26: 60 | BT26: 2684 | BU26: 3394 | BV26: 53 | BX26: -657 | BY26: 0 | BZ26: 0 | CA26: 0 | CB26: 7 | CC26: -650 | CD26: 7749 | CE26: 2708 | CG26: -510 | CH26: -6494 | CI26: -1588 | CN26: 20.5 | CP26: 225 | CQ26: 9422 | CS26: 0.348244863 | CT26: 81.39969401 | CU26: -5737.423052 | CY26: 29.09852714 | CZ26: 252.0696243 | DA26: 12.13992163 | DB26: 8883.888771 | DD26: 24788 | DE26: 72510 | DF26: 0 | DG26: -47722 | DH26: 36843 | DI26: 12228 | DL26: -11 | DM26: 76 | DN26: 1414 | DO26: 3746 | DP26: 84 | DR26: -2248 | DS26: -1 | DT26: 3 | DU26: 1 | DV26: 37 | DW26: -2210 | DX26: 5538 | DY26: 1113 | EA26: -579 | EB26: -4459 | EC26: -5105 | EH26: 20.5 | EJ26: 251 | EQ26: -2447 | ER26: 10 | ES26: 1244 | ET26: -6845 | EU26: 0 | EV26: 2549 | EW26: -6497 | EX26: 34 | EY26: 245 | EZ26: 10931 | FA26: -7199 | FB26: 2828 | FC26: 4293 | FD26: 8367 | FE26: 1468 | FF26: 44436 | FG26: 35782 | FH26: 8654 | FI26: 4147 | FJ26: 45063 | FK26: 31978 | FL26: 13085 | FM26: 4142 | FN26: 50441 | FO26: 35429 | FP26: 15012 | FQ26: 4137 | FR26: 1359 | FS26: 4571 | FT26: 8241 | FU26: 2804
A27: 86 | B27: Hausjärvi | C27: 8504 | E27: 0.6311010216 | F27: 48.25844577 | G27: -3209.783631 | K27: 38.30088111 | L27: 469.0733772 | M27: 22.05670267 | N27: 7762.347131 | P27: 22886 | Q27: 64775 | R27: 2 | S27: -41887 | T27: 32232 | U27: 13585 | X27: -326 | Y27: -49 | Z27: 3555 | AA27: 2774 | AB27: 138 | AD27: 919 | AE27: 4 | AF27: 1 | AG27: -11 | AH27: 0 | AI27: 913 | AJ27: 6568 | AK27: 3659 | AM27: 188 | AN27: -5830 | AO27: -415 | AT27: 21.5 | AV27: 271 | AW27: 8417 | AY27: 0.386077989 | AZ27: 46.50316293 | BA27: -3211.120352 | BE27: 38.44146512 | BF27: 307.9482001 | BG27: 12.74490786 | BH27: 8819.294285 | BJ27: 23068 | BK27: 65586 | BL27: 3 | BM27: -42515 | BN27: 31690 | BO27: 13375 | BR27: -249 | BS27: 45 | BT27: 2346 | BU27: 3128 | BV27: 0 | BX27: -782 | BY27: -1 | BZ27: 1 | CA27: -13 | CB27: 0 | CC27: -795 | CD27: 5416 | CE27: 2582 | CG27: -193 | CH27: -5946 | CI27: 583 | CN27: 21.5 | CP27: 238 | CQ27: 8260 | CS27: 0.638348551 | CT27: 49.48675688 | CU27: -3319.854722 | CY27: 36.28504631 | CZ27: 586.5617433 | DA27: 12.74353448 | DB27: 8987.893462 | DD27: 23063 | DE27: 65993 | DF27: 4 | DG27: -42926 | DH27: 32651 | DI27: 13454 | DL27: -224 | DM27: 31 | DN27: 2986 | DO27: 2929 | DP27: 0 | DR27: 57 | DS27: -1 | DT27: 2 | DU27: 11 | DV27: 0 | DW27: 47 | DX27: 5463 | DY27: 2293 | EA27: 102 | EB27: -4808 | EC27: -438 | EH27: 21.5 | EJ27: 178 | EQ27: -5035 | ER27: 96 | ES27: 865 | ET27: -2227 | EU27: 4 | EV27: 224 | EW27: -3206 | EX27: 0 | EY27: 475 | EZ27: 6172 | FA27: -800 | FB27: 430 | FC27: 3181 | FD27: 5951 | FE27: 1041 | FF27: 26501 | FG27: 20536 | FH27: 5965 | FI27: 159 | FJ27: 24166 | FK27: 16327 | FL27: 7839 | FM27: 142 | FN27: 26350 | FO27: 17851 | FP27: 8499 | FQ27: 124 | FR27: 3610 | FS27: 2810 | FT27: 2517 | FU27: 785
A28: 111 | B28: Heinola | C28: 19128 | E28: 1.351977401 | F28: 54.51156277 | G28: -595.9849435 | K28: 52.29065716 | L28: 4677.593057 | M28: 167.534384 | N28: 10190.87202 | P28: 99479 | Q28: 201269 | R28: 8 | S28: -101782 | T28: 69813 | U28: 42076 | X28: -744 | Y28: 4126 | Z28: 13489 | AA28: 9896 | AB28: 162 | AD28: 3755 | AE28: -3 | AF28: 146 | AG28: 0 | AH28: -70 | AI28: 3828 | AJ28: 25618 | AK28: 13607 | AM28: -2789 | AN28: -9751 | AO28: -1751 | AT28: 20.5 | AV28: 177 | AW28: 18889 | AY28: 1.358682798 | AZ28: 52.84661847 | BA28: -710.9958177 | BE28: 53.46004357 | BF28: 4586.373021 | BG28: 135.1080157 | BH28: 12390.28006 | BJ28: 105165 | BK28: 202938 | BL28: 0 | BM28: -97773 | BN28: 68917 | BO28: 42965 | BR28: -739 | BS28: 772 | BT28: 14142 | BU28: 8695 | BV28: 614 | BX28: 6061 | BY28: -1 | BZ28: 100 | CA28: -3 | CB28: -31 | CC28: 6126 | CD28: 31535 | CE28: 11290 | CG28: -282 | CH28: -10199 | CI28: -2547 | CN28: 20.5 | CP28: 63 | CQ28: 18667 | CS28: 1.253158057 | CT28: 59.95912541 | CU28: -1376.118284 | CY28: 50.71209957 | CZ28: 4722.129962 | DA28: 130.4456591 | DB28: 12985.75025 | DD28: 103929 | DE28: 207906 | DF28: -1 | DG28: -103978 | DH28: 68404 | DI28: 43449 | DL28: -634 | DM28: 4259 | DN28: 11500 | DO28: 9163 | DP28: -203 | DR28: 2134 | DS28: -1 | DT28: 81 | DU28: 1 | DV28: -15 | DW28: 2198 | DX28: 31760 | DY28: 10465 | EA28: -911 | EB28: -9035 | EC28: -13140 | EH28: 20.5 | EJ28: 83 | EQ28: -18900 | ER28: 1320 | ES28: 2222 | ET28: -18035 | EU28: 28 | EV28: 4170 | EW28: -24311 | EX28: 8 | EY28: 698 | EZ28: 22779 | FA28: -4010 | FB28: 8195 | FC28: 62 | FD28: 24025 | FE28: -1442 | FF28: 85052 | FG28: 66850 | FH28: 18202 | FI28: 1773 | FJ28: 83094 | FK28: 65285 | FL28: 17809 | FM28: 1773 | FN28: 96615 | FO28: 79004 | FP28: 17611 | FQ28: 1753 | FR28: 21 | FS28: 20 | FT28: 19 | FU28: 36283
A29: 90 | B29: Heinävesi | C29: 3455 | E29: 3.214750542 | F29: 63.10575511 | G29: -5071.201158 | K29: 27.4105613 | L29: 2299.855282 | M29: 77.12921841 | N29: 10883.64689 | P29: 16905 | Q29: 39957 | R29: 0 | S29: -23052 | T29: 12055 | U29: 13941 | X29: 117 | Y29: 346 | Z29: 3407 | AA29: 2451 | AB29: -198 | AD29: 758 | AE29: 2 | AF29: -16 | AG29: 0 | AH29: 10 | AI29: 754 | AJ29: 1849 | AK29: 3509 | AM29: -214 | AN29: -865 | AO29: 262 | AT29: 20.75 | AV29: 110 | AW29: 3329 | AY29: 0.801421092 | AZ29: 60.27019245 | BA29: -4835.686392 | BE29: 30.20671141 | BF29: 2228.597176 | BG29: 61.75732074 | BH29: 13171.52298 | BJ29: 16627 | BK29: 40008 | BL29: 0 | BM29: -23381 | BN29: 11515 | BO29: 13532 | BR29: 131 | BS29: 310 | BT29: 2107 | BU29: 1893 | BV29: 79 | BX29: 293 | BY29: 2 | BZ29: -10 | CA29: 0 | CB29: 1 | CC29: 286 | CD29: 2041 | CE29: 2004 | CG29: 24 | CH29: -2638 | CI29: 928 | CN29: 21 | CP29: 98 | CQ29: 3254 | CS29: 54.52631579 | CT29: 56.6271909 | CU29: -4696.681008 | CY29: 31.23071745 | CZ29: 2137.676706 | DA29: 64.32760832 | DB29: 12936.6933 | DD29: 16696 | DE29: 40621 | DF29: 0 | DG29: -23925 | DH29: 11954 | DI29: 13570 | DL29: 118 | DM29: 317 | DN29: 2034 | DO29: 2240 | DP29: 0 | DR29: -206 | DS29: 0 | DT29: 47 | DU29: 0 | DV29: 1 | DW29: -158 | DX29: 1821 | DY29: 1975 | EA29: 31 | EB29: 0 | EC29: 877 | EH29: 21 | EJ29: 82 | EQ29: -3779 | ER29: 33 | ES29: 499 | ET29: -1156 | EU29: 34 | EV29: 46 | EW29: -1131 | EX29: 10 | EY29: 23 | EZ29: 2381 | FA29: 2127 | FB29: 0 | FC29: 798 | FD29: 6050 | FE29: -6969 | FF29: 23378 | FG29: 5526 | FH29: 17852 | FI29: 0 | FJ29: 21270 | FK29: 4557 | FL29: 16713 | FM29: 0 | FN29: 20052 | FO29: 4405 | FP29: 15647 | FQ29: 0 | FR29: 0 | FS29: 0 | FT29: 0 | FU29: 664
A30: 91 | B30: Helsinki | C30: 643272 | E30: 3.509177835 | F30: 89.17479081 | G30: -6375.679339 | K30: 61.44521722 | L30: 2382.259759 | M30: 121.6089481 | N30: 7150.171312 | P30: 3368014 | Q30: 5549282 | R30: 23333 | S30: -2157935 | T30: 3380795 | U30: 220442 | X30: -51809 | Y30: 1171 | Z30: 1392664 | AA30: 709312 | AB30: 2493 | AD30: 685844 | AE30: 1289 | AF30: -15738 | AG30: -12602 | AH30: -10463 | AI30: 648330 | AJ30: 4770587 | AK30: 1193637 | AM30: -23272 | AN30: -347200 | AO30: 171265 | AT30: 18.5 | AV30: 2 | AW30: 648042 | AY30: 3.86669318 | AZ30: 87.44808177 | BA30: -6435.747992 | BE30: 62.31249088 | BF30: 2328.42933 | BG30: 69.8428701 | BH30: 12168.41038 | BJ30: 3551633 | BK30: 5797476 | BL30: 14523 | BM30: -2231320 | BN30: 3416582 | BO30: 197861 | BR30: -40875 | BS30: 15758 | BT30: 1358006 | BU30: 780501 | BV30: -18391 | BX30: 559114 | BY30: 1312 | BZ30: 2050 | CA30: -15145 | CB30: -18959 | CC30: 528372 | CD30: 5249606 | CE30: 1166306 | CG30: -5963 | CH30: -305620 | CI30: -34525 | CN30: 18 | CP30: 2 | CQ30: 653835 | CS30: 3.144041285 | CT30: 88.58312234 | CU30: -6893.324768 | CY30: 62.96670268 | CZ30: 2286.963836 | DA30: 62.89581263 | DB30: 13392.73211 | DD30: 3739674 | DE30: 6076785 | DF30: 16817 | DG30: -2320294 | DH30: 3493732 | DI30: 233329 | DL30: -37221 | DM30: 7504 | DN30: 1377050 | DO30: 834836 | DP30: -50 | DR30: 542164 | DS30: 95 | DT30: 1522 | DU30: 24319 | DV30: -15729 | DW30: 503733 | DX30: 5724455 | DY30: 1215682 | EA30: -24832 | EB30: -396983 | EC30: -333123 | EH30: 18 | EJ30: 3 | EQ30: -1385994 | ER30: 33379 | ES30: 330243 | ET30: -1718766 | EU30: 11511 | EV30: 506424 | EW30: -2210554 | EX30: 16603 | EY30: 645146 | EZ30: 417793 | FA30: -26229 | FB30: 366423 | FC30: -891 | FD30: 566813 | FE30: 17610 | FF30: 4984749 | FG30: 4716499 | FH30: 268250 | FI30: 480390 | FJ30: 4983823 | FK30: 4654445 | FL30: 329378 | FM30: 478189 | FN30: 5171263 | FO30: 4855341 | FP30: 315922 | FQ30: 474043 | FR30: 316055 | FS30: 297163 | FT30: 281297 | FU30: 598214
A31: 97 | B31: Hirvensalmi | C31: 2236 | E31: 2.46911958 | F31: 45.31962331 | G31: -1069.767442 | K31: 45.92717718 | L31: 4306.797853 | M31: 124.6480372 | N31: 12611.35957 | P31: 15101 | Q31: 28513 | R31: 0 | S31: -13412 | T31: 7602 | U31: 7348 | X31: -101 | Y31: 335 | Z31: 1772 | AA31: 1252 | AB31: 1 | AD31: 521 | AE31: -5 | AF31: 10 | AG31: 0 | AH31: -1 | AI31: 525 | AJ31: 3417 | AK31: 1690 | AM31: -266 | AN31: -654 | AO31: 774 | AT31: 20 | AV31: 135 | AW31: 2152 | AY31: 3.363888889 | AZ31: 47.20971216 | BA31: -577.1375465 | BE31: 46.2694465 | BF31: 5256.505576 | BG31: 133.8112523 | BH31: 14338.28996 | BJ31: 15911 | BK31: 28468 | BL31: 5 | BM31: -12552 | BN31: 7616 | BO31: 7115 | BR31: -95 | BS31: 236 | BT31: 2320 | BU31: 1561 | BV31: 6 | BX31: 765 | BY31: -1 | BZ31: 0 | CA31: 0 | CB31: -5 | CC31: 759 | CD31: 4299 | CE31: 2137 | CG31: -315 | CH31: -618 | CI31: 879 | CN31: 20 | CP31: 16 | CQ31: 2136 | CS31: 2.123529412 | CT31: 49.10381486 | CU31: -254.6816479 | CY31: 47.24022198 | CZ31: 5916.198502 | DA31: 127.3957787 | DB31: 15171.81648 | DD31: 16178 | DE31: 29763 | DF31: 9 | DG31: -13576 | DH31: 7809 | DI31: 6866 | DL31: -73 | DM31: 341 | DN31: 1367 | DO31: 1203 | DP31: 953 | DR31: 1117 | DS31: 0 | DT31: 0 | DU31: 0 | DV31: -5 | DW31: 1112 | DX31: 5377 | DY31: 1330 | EA31: -57 | EB31: -603 | EC31: 1037 | EH31: 20 | EJ31: 78 | EQ31: -1093 | ER31: 24 | ES31: 153 | ET31: -1667 | EU31: 73 | EV31: 336 | EW31: -1892 | EX31: 37 | EY31: 1562 | EZ31: 895 | FA31: 335 | FB31: 993 | FC31: -397 | FD31: 964 | FE31: -152 | FF31: 8258 | FG31: 6457 | FH31: 1801 | FI31: 0 | FJ31: 8236 | FK31: 6839 | FL31: 1397 | FM31: 0 | FN31: 8444 | FO31: 7160 | FP31: 1284 | FQ31: 0 | FR31: 814 | FS31: 734 | FT31: 672 | FU31: 918
A32: 98 | B32: Hollola | C32: 23782 | E32: 8.940217391 | F32: 48.86981974 | G32: -3149.693045 | K32: 43.98048856 | L32: 1010.25986 | M32: 44.57242042 | N32: 8272.937516 | P32: 96659 | Q32: 211063 | R32: -22 | S32: -114426 | T32: 91982 | U32: 41632 | X32: -849 | Y32: 545 | Z32: 18884 | AA32: 14390 | AB32: 152 | AD32: 4646 | AE32: 194 | AF32: -1 | AG32: 0 | AH32: 68 | AI32: 4907 | AJ32: 23158 | AK32: 18487 | AM32: 1247 | AN32: -1352 | AO32: 3528 | AT32: 21 | AV32: 133 | AW32: 23602 | AY32: 6.574035454 | AZ32: 44.2702093 | BA32: -2953.732735 | BE32: 46.19073405 | BF32: 814.3801373 | BG32: 30.50010651 | BH32: 9745.826625 | BJ32: 96626 | BK32: 215890 | BL32: 6 | BM32: -119258 | BN32: 89740 | BO32: 41487 | BR32: -806 | BS32: 613 | BT32: 11776 | BU32: 13660 | BV32: 69 | BX32: -1815 | BY32: -2 | BZ32: -1 | CA32: -4 | CB32: -45 | CC32: -1867 | CD32: 21484 | CE32: 10306 | CG32: 1665 | CH32: -1085 | CI32: 5132 | CN32: 21 | CP32: 142 | CQ32: 23410 | CS32: 0.857249373 | CT32: 40.43294746 | CU32: -2877.402819 | CY32: 48.45525139 | CZ32: 669.4574968 | DA32: 27.88054428 | DB32: 10748.95344 | DD32: 98475 | DE32: 222567 | DF32: 40 | DG32: -124052 | DH32: 92308 | DI32: 43056 | DL32: -818 | DM32: 1324 | DN32: 11818 | DO32: 12065 | DP32: 585 | DR32: 338 | DS32: -28 | DT32: 0 | DU32: 12 | DV32: -43 | DW32: 255 | DX32: 23013 | DY32: 12156 | EA32: 415 | EB32: -13924 | EC32: 864 | EH32: 21 | EJ32: 117 | EQ32: -18275 | ER32: 5 | ES32: 3311 | ET32: -12018 | EU32: 0 | EV32: 6844 | EW32: -13802 | EX32: 0 | EY32: 2510 | EZ32: 5761 | FA32: -9040 | FB32: 208 | FC32: -8749 | FD32: 1580 | FE32: 5838 | FF32: 75251 | FG32: 65624 | FH32: 9627 | FI32: 1576 | FJ32: 65624 | FK32: 56536 | FL32: 9088 | FM32: 1713 | FN32: 59118 | FO32: 44093 | FP32: 15025 | FQ32: 1557 | FR32: 227 | FS32: 140 | FT32: 991 | FU32: 62606
A33: 99 | B33: Honkajoki | C33: 1707 | E33: 1.518617021 | F33: 35.11875309 | G33: -3541.300527 | K33: 27.44916821 | L33: 585.2372583 | M33: 15.34271649 | N33: 13922.67135 | P33: 13630 | Q33: 23688 | R33: 0 | S33: -10058 | T33: 5972 | U33: 4650 | X33: -45 | Y33: 6 | Z33: 525 | AA33: 481 | AB33: 0 | AD33: 44 | AE33: 0 | AF33: 4 | AG33: 0 | AH33: 0 | AI33: 48 | AJ33: -1494 | AK33: 533 | AM33: 32 | AN33: -330 | AO33: 236 | AT33: 22 | AV33: 284 | AW33: 1666 | AY33: -1.562659847 | AZ33: 40.13645306 | BA33: -4245.498199 | BE33: 18.52410901 | BF33: 780.3121248 | BG33: 18.70245556 | BH33: 15228.69148 | BJ33: 13851 | BK33: 24515 | BL33: 0 | BM33: -10664 | BN33: 5268 | BO33: 4772 | BR33: -36 | BS33: 11 | BT33: -649 | BU33: 445 | BV33: 0 | BX33: -1094 | BY33: 0 | BZ33: -7 | CA33: 0 | CB33: 0 | CC33: -1101 | CD33: -2552 | CE33: -624 | CG33: 257 | CH33: -353 | CI33: -1068 | CN33: 22 | CP33: 294 | CQ33: 1620 | CS33: 2.550649351 | CT33: 38.5602479 | CU33: -3991.975309 | CY33: 21.60483999 | CZ33: 1240.123457 | DA33: 18.89158737 | DB33: 15504.32099 | DD33: 14130 | DE33: 24199 | DF33: 0 | DG33: -10069 | DH33: 5846 | DI33: 5195 | DL33: -34 | DM33: 9 | DN33: 947 | DO33: 442 | DP33: 0 | DR33: 505 | DS33: 0 | DT33: -4 | DU33: 0 | DV33: 1 | DW33: 502 | DX33: -2048 | DY33: 548 | EA33: -15 | EB33: -350 | EC33: 588 | EH33: 22.5 | EJ33: 92 | EQ33: -303 | ER33: 4 | ES33: 2 | ET33: -461 | EU33: 8 | EV33: 9 | EW33: -530 | EX33: 5 | EY33: 565 | EZ33: 46 | FA33: 660 | FB33: 128 | FC33: 0 | FD33: 2078 | FE33: 0 | FF33: 5057 | FG33: 3701 | FH33: 1356 | FI33: 0 | FJ33: 4831 | FK33: 3481 | FL33: 1350 | FM33: 0 | FN33: 6559 | FO33: 5083 | FP33: 1476 | FQ33: 0 | FR33: 1520 | FS33: 1359 | FT33: 1229 | FU33: 1804
A34: 102 | B34: Huittinen | C34: 10207 | E34: 1.338978635 | F34: 48.6813833 | G34: -2762.613892 | K34: 50.01056859 | L34: 916.3319291 | M34: 41.82300983 | N34: 7997.060841 | P34: 24736 | Q34: 83637 | R34: 266 | S34: -58635 | T34: 33980 | U34: 29710 | X34: -229 | Y34: 79 | Z34: 4905 | AA34: 4583 | AB34: 0 | AD34: 322 | AE34: -25 | AF34: 0 | AG34: -41 | AH34: -25 | AI34: 231 | AJ34: 10861 | AK34: 4489 | AM34: -20 | AN34: -3604 | AO34: -823 | AT34: 20.75 | AV34: 260 | AW34: 10091 | AY34: 0.364763062 | AZ34: 54.28499277 | BA34: -3295.808146 | BE34: 45.82097288 | BF34: 872.6588049 | BG34: 33.03279447 | BH34: 9642.55277 | BJ34: 24387 | BK34: 86066 | BL34: 128 | BM34: -61551 | BN34: 32665 | BO34: 30066 | BR34: -224 | BS34: 316 | BT34: 1272 | BU34: 4576 | BV34: -5 | BX34: -3309 | BY34: -6 | BZ34: 0 | CA34: -17 | CB34: -22 | CC34: -3354 | CD34: 7513 | CE34: 508 | CG34: 270 | CH34: -3886 | CI34: -5407 | CN34: 20.75 | CP34: 270 | CQ34: 10044 | CS34: 0.3739005932 | CT34: 54.02455039 | CU34: -3526.483473 | CY34: 43.8846269 | CZ34: 665.1732378 | DA34: 33.74265138 | DB34: 9483.870968 | DD34: 24003 | DE34: 85796 | DF34: -1 | DG34: -61794 | DH34: 33622 | DI34: 29950 | DL34: -222 | DM34: 48 | DN34: 1604 | DO34: 5325 | DP34: -2 | DR34: -3723 | DS34: -12 | DT34: 24 | DU34: 19 | DV34: 0 | DW34: -3730 | DX34: 3817 | DY34: 1425 | EA34: 16 | EB34: -4665 | EC34: -2375 | EH34: 21 | EJ34: 247 | EQ34: -5894 | ER34: 304 | ES34: 278 | ET34: -7071 | EU34: 416 | EV34: 740 | EW34: -4505 | EX34: 450 | EY34: 255 | EZ34: 5547 | FA34: 17 | FB34: 6159 | FC34: -10 | FD34: 6738 | FE34: 0 | FF34: 28572 | FG34: 24882 | FH34: 3690 | FI34: 0 | FJ34: 30680 | FK34: 26339 | FL34: 4341 | FM34: 0 | FN34: 32748 | FO34: 28365 | FP34: 4383 | FQ34: 0 | FR34: 300 | FS34: 300 | FT34: 300 | FU34: 4224
A35: 103 | B35: Humppila | C35: 2290 | E35: 1.133462282 | F35: 42.5686173 | G35: -3069.432314 | K35: 39.31691819 | L35: 312.6637555 | M35: 11.79917829 | N35: 9672.052402 | P35: 8848 | Q35: 21998 | R35: 0 | S35: -13150 | T35: 7652 | U35: 6672 | X35: -63 | Y35: -6 | Z35: 1105 | AA35: 763 | AB35: 5 | AD35: 347 | AE35: 0 | AF35: 0 | AG35: -33 | AH35: -6 | AI35: 308 | AJ35: -573 | AK35: 1063 | AM35: -564 | AN35: -967 | AO35: 286 | AT35: 22 | AV35: 257 | AW35: 2235 | AY35: 0.4623893805 | AZ35: 51.25519314 | BA35: -3637.583893 | BE35: 35.97697999 | BF35: 473.3780761 | BG35: 15.06123245 | BH35: 11472.03579 | BJ35: 8938 | BK35: 22208 | BL35: 0 | BM35: -13270 | BN35: 7252 | BO35: 6436 | BR35: -50 | BS35: -4 | BT35: 364 | BU35: 822 | BV35: 664 | BX35: 206 | BY35: 0 | BZ35: 0 | CA35: -29 | CB35: -8 | CC35: 169 | CD35: -444 | CE35: 954 | CG35: -229 | CH35: -850 | CI35: -1368 | CN35: 22 | CP35: 257 | CQ35: 2184 | CS35: 0.9087136929 | CT35: 47.17331682 | CU35: -3226.190476 | CY35: 38.2231405 | CZ35: 633.2417582 | DA35: 16.75003226 | DB35: 10646.06227 | DD35: 8521 | DE35: 21730 | DF35: 0 | DG35: -13209 | DH35: 7768 | DI35: 6317 | DL35: -53 | DM35: -3 | DN35: 820 | DO35: 826 | DP35: 2 | DR35: -4 | DS35: 0 | DT35: 1 | DU35: 21 | DV35: 5 | DW35: -19 | DX35: -350 | DY35: 802 | EA35: 248 | EB35: -908 | EC35: 1315 | EH35: 22 | EJ35: 171 | EQ35: -895 | ER35: 45 | ES35: 73 | ET35: -2510 | EU35: 105 | EV35: 83 | EW35: -549 | EX35: 53 | EY35: 1009 | EZ35: 3128 | FA35: -1462 | FB35: 2049 | FC35: 200 | FD35: 38 | FE35: 8 | FF35: 7500 | FG35: 6073 | FH35: 1427 | FI35: 8 | FJ35: 8936 | FK35: 7127 | FL35: 1809 | FM35: 8 | FN35: 8090 | FO35: 6148 | FP35: 1942 | FQ35: 8 | FR35: 0 | FS35: 0 | FT35: 3 | FU35: 87
A36: 105 | B36: Hyrynsalmi | C36: 2326 | E36: 3.074433657 | F36: 36.78349712 | G36: -4039.982803 | K36: 42.57039893 | L36: 1037.403267 | M36: 27.11235955 | N36: 13966.03611 | P36: 16914 | Q36: 32982 | R36: 0 | S36: -16068 | T36: 7838 | U36: 11169 | X36: -45 | Y36: -93 | Z36: 2801 | AA36: 1272 | AB36: 0 | AD36: 1529 | AE36: 0 | AF36: 3 | AG36: 0 | AH36: -25 | AI36: 1507 | AJ36: -1654 | AK36: 2823 | AM36: -53 | AN36: -878 | AO36: 1328 | AT36: 21.75 | AV36: 32 | AW36: 2287 | AY36: 2.036158192 | AZ36: 43.72963054 | BA36: -4502.842151 | BE36: 38.08314347 | BF36: 1517.271535 | BG36: 32.80877629 | BH36: 16879.75514 | BJ36: 17513 | BK36: 34689 | BL36: 0 | BM36: -17176 | BN36: 7657 | BO36: 11343 | BR36: -40 | BS36: -26 | BT36: 1758 | BU36: 1707 | BV36: -1 | BX36: 50 | BY36: 0 | BZ36: 3 | CA36: 0 | CB36: -12 | CC36: 41 | CD36: -1613 | CE36: 1972 | CG36: -802 | CH36: -841 | CI36: -919 | CN36: 21.75 | CP36: 56 | CQ36: 2271 | CS36: 2.158361019 | CT36: 44.66974721 | CU36: -4888.154998 | CY36: 38.89268626 | CZ36: 1542.932629 | DA36: 32.97362735 | DB36: 16913.69441 | DD36: 17700 | DE36: 34833 | DF36: 0 | DG36: -17133 | DH36: 8086 | DI36: 11004 | DL36: -57 | DM36: -10 | DN36: 1890 | DO36: 1259 | DP36: 0 | DR36: 631 | DS36: -6 | DT36: 5 | DU36: 0 | DV36: -13 | DW36: 617 | DX36: -1019 | DY36: 1785 | EA36: 369 | EB36: -844 | EC36: -788 | EH36: 21.75 | EJ36: 35 | EQ36: -1535 | ER36: 15 | ES36: 25 | ET36: -2988 | EU36: 59 | EV36: 38 | EW36: -2632 | EX36: 34 | EY36: 25 | EZ36: 1367 | FA36: -500 | FB36: 2230 | FC36: 478 | FD36: 1993 | FE36: -500 | FF36: 9162 | FG36: 6383 | FH36: 2779 | FI36: 0 | FJ36: 11029 | FK36: 7769 | FL36: 3260 | FM36: 0 | FN36: 11678 | FO36: 8984 | FP36: 2694 | FQ36: 0 | FR36: 2917 | FS36: 2907 | FT36: 2689 | FU36: 413
A37: 106 | B37: Hyvinkää | C37: 46739 | E37: 2.333458465 | F37: 73.28428957 | G37: -5056.740623 | K37: 40.012266 | L37: 1101.949122 | M37: 54.22505798 | N37: 7417.445816 | P37: 177245 | Q37: 383035 | R37: 236 | S37: -205554 | T37: 197736 | U37: 51169 | X37: -3224 | Y37: 119 | Z37: 40246 | AA37: 30538 | AB37: 238 | AD37: 9946 | AE37: -82 | AF37: -237 | AG37: -200 | AH37: -572 | AI37: 8855 | AJ37: 56526 | AK37: 32481 | AM37: -2299 | AN37: -15381 | AO37: -12554 | AT37: 19.75 | AV37: 106 | AW37: 46504 | AY37: 1.75005381 | AZ37: 60.00102543 | BA37: -5679.898503 | BE37: 37.79051338 | BF37: 1112.829004 | BG37: 30.76307899 | BH37: 13203.57389 | BJ37: 315013 | BK37: 533029 | BL37: -71 | BM37: -218087 | BN37: 198798 | BO37: 51806 | BR37: -2977 | BS37: -34 | BT37: 29506 | BU37: 31206 | BV37: 0 | BX37: -1700 | BY37: -62 | BZ37: -19 | CA37: -216 | CB37: -65 | CC37: -2062 | CD37: 54416 | CE37: 21640 | CG37: 963 | CH37: -15567 | CI37: -27270 | CN37: 19.75 | CP37: 97 | CQ37: 46470 | CS37: 0.8863032878 | CT37: 74.76690774 | CU37: -6619.109103 | CY37: 32.21094067 | CZ37: 1315.536906 | DA37: 31.25303404 | DB37: 13006.08995 | DD37: 289935 | DE37: 522902 | DF37: 124 | DG37: -232843 | DH37: 198284 | DI37: 52983 | DL37: -3293 | DM37: -88 | DN37: 15043 | DO37: 32570 | DP37: 0 | DR37: -17527 | DS37: -643 | DT37: 0 | DU37: 407 | DV37: -238 | DW37: -18815 | DX37: 35601 | DY37: 11039 | EA37: -12429 | EB37: -17398 | EC37: -42651 | EH37: 19.75 | EJ37: 198 | EQ37: -55528 | ER37: 787 | ES37: 9706 | ET37: -61875 | EU37: 1043 | EV37: 11922 | EW37: -60209 | EX37: 73 | EY37: 6446 | EZ37: 26636 | FA37: 0 | FB37: 40302 | FC37: -1634 | FD37: 53097 | FE37: 6186 | FF37: 236489 | FG37: 220708 | FH37: 15781 | FI37: 2006 | FJ37: 259590 | FK37: 242417 | FL37: 17173 | FM37: 1974 | FN37: 301476 | FO37: 272906 | FP37: 28570 | FQ37: 1942 | FR37: 5700 | FS37: 5581 | FT37: 2688 | FU37: 53394
A38: 108 | B38: Hämeenkyrö | C38: 10599 | E38: 2.199082816 | F38: 78.24421965 | G38: -5617.794132 | K38: 32.25015648 | L38: 1046.796868 | M38: 48.83244905 | N38: 7824.323049 | P38: 36936 | Q38: 89241 | R38: 56 | S38: -52249 | T38: 38179 | U38: 21765 | X38: -410 | Y38: 388 | Z38: 7673 | AA38: 6635 | AB38: 0 | AD38: 1038 | AE38: -96 | AF38: 9 | AG38: -62 | AH38: -59 | AI38: 830 | AJ38: 5670 | AK38: 7525 | AM38: -689 | AN38: -3228 | AO38: -1987 | AT38: 22 | AV38: 168 | AW38: 10510 | AY38: 2.29941127 | AZ38: 83.01581687 | BA38: -6160.513796 | BE38: 30.59954241 | BF38: 1141.484301 | BG38: 40.34592846 | BH38: 10326.73644 | BJ38: 40010 | BK38: 91156 | BL38: 7 | BM38: -51139 | BN38: 37360 | BO38: 21575 | BR38: -363 | BS38: 367 | BT38: 7800 | BU38: 6895 | BV38: 0 | BX38: 905 | BY38: -87 | BZ38: 1 | CA38: -67 | CB38: -43 | CC38: 709 | CD38: 5974 | CE38: 7606 | CG38: -227 | CH38: -3165 | CI38: -4929 | CN38: 22 | CP38: 65 | CQ38: 10404 | CS38: 0.2721359631 | CT38: 82.30332848 | CU38: -6229.527105 | CY38: 30.9952347 | CZ38: 1195.597847 | DA38: 36.03070968 | DB38: 11968.56978 | DD38: 37807 | DE38: 93335 | DF38: 30 | DG38: -55498 | DH38: 37812 | DI38: 23976 | DL38: -379 | DM38: 170 | DN38: 6081 | DO38: 7207 | DP38: 0 | DR38: -1126 | DS38: -78 | DT38: 0 | DU38: 58 | DV38: -53 | DW38: -1315 | DX38: 4926 | DY38: 5666 | EA38: 669 | EB38: -23426 | EC38: -369 | EH38: 22 | EJ38: 93 | EQ38: -10296 | ER38: 234 | ES38: 550 | ET38: -13636 | EU38: 490 | EV38: 611 | EW38: -7111 | EX38: 975 | EY38: 101 | EZ38: 7425 | FA38: -1015 | FB38: 4386 | FC38: 4104 | FD38: 2124 | FE38: 21280 | FF38: 61756 | FG38: 46520 | FH38: 15236 | FI38: 29 | FJ38: 67089 | FK38: 47620 | FL38: 19469 | FM38: 27 | FN38: 67088 | FO38: 26175 | FP38: 40913 | FQ38: 24 | FR38: 84 | FS38: 84 | FT38: 0 | FU38: 4640
A39: 109 | B39: Hämeenlinna | C39: 67662 | E39: 0.9044351464 | F39: 86.30282338 | G39: -5342.319175 | K39: 39.11525054 | L39: 1796.370193 | M39: 77.8426033 | N39: 8423.088292 | P39: 222299 | Q39: 566706 | R39: 800 | S39: -343607 | T39: 278641 | U39: 113537 | X39: -10331 | Y39: 5012 | Z39: 43252 | AA39: 42380 | AB39: 1471 | AD39: 2343 | AE39: 168 | AF39: 2 | AG39: -12 | AH39: 82 | AI39: 2583 | AJ39: 8011 | AK39: 43191 | AM39: -6929 | AN39: -48962 | AO39: -3066 | AT39: 20.75 | AV39: 212 | AW39: 67532 | AY39: 0.8543748904 | AZ39: 86.05664243 | BA39: -5422.629272 | BE39: 38.07328659 | BF39: 1859.11864 | BG39: 65.53576127 | BH39: 10354.32091 | BJ39: 229427 | BK39: 577780 | BL39: 590 | BM39: -347763 | BN39: 278719 | BO39: 113720 | BR39: -9301 | BS39: 3456 | BT39: 38831 | BU39: 50268 | BV39: 0 | BX39: -11437 | BY39: -162 | BZ39: 7469 | CA39: -106 | CB39: -77 | CC39: -4313 | CD39: 3715 | CE39: 30936 | CG39: -2512 | CH39: -47136 | CI39: -11262 | CN39: 20.75 | CP39: 123 | CQ39: 67633 | CS39: 0.5250479809 | CT39: 92.97811108 | CU39: -5934.144574 | CY39: 37.40453643 | CZ39: 1978.220691 | DA39: 62.33388106 | DB39: 10869.93036 | DD39: 226363 | DE39: 588799 | DF39: 885 | DG39: -361551 | DH39: 281063 | DI39: 113162 | DL39: -8974 | DM39: 6893 | DN39: 30593 | DO39: 45777 | DP39: 0 | DR39: -15184 | DS39: -466 | DT39: -204 | DU39: 230 | DV39: 94 | DW39: -15990 | DX39: -14769 | DY39: 23939 | EA39: 2647 | EB39: -66971 | EC39: -36325 | EH39: 20.75 | EJ39: 139 | EQ39: -57216 | ER39: 635 | ES39: 10324 | ET39: -61347 | EU39: 272 | EV39: 18877 | EW39: -69189 | EX39: 661 | EY39: 8264 | EZ39: 25181 | FA39: 27306 | FB39: 64307 | FC39: -4102 | FD39: 87935 | FE39: 18114 | FF39: 426284 | FG39: 358090 | FH39: 68194 | FI39: 1202 | FJ39: 432523 | FK39: 362552 | FL39: 69971 | FM39: 1213 | FN39: 471602 | FO39: 382626 | FP39: 88976 | FQ39: 947 | FR39: 18820 | FS39: 17963 | FT39: 16701 | FU39: 77561
A40: 139 | B40: Ii | C40: 9966 | E40: 1.051624983 | F40: 64.8454084 | G40: -5848.284166 | K40: 35.28961202 | L40: 1141.8824 | M40: 39.64664783 | N40: 10512.54264 | P40: 59869 | Q40: 111519 | R40: 4 | S40: -51646 | T40: 31639 | U40: 27677 | X40: -565 | Y40: 167 | Z40: 7272 | AA40: 5869 | AB40: 0 | AD40: 1403 | AE40: -9 | AF40: 42 | AG40: -4 | AH40: -120 | AI40: 1312 | AJ40: 14529 | AK40: 6754 | AM40: 1274 | AN40: -6886 | AO40: -5421 | AT40: 21.25 | AV40: 164 | AW40: 9862 | AY40: 0.5606060606 | AZ40: 66.05822213 | BA40: -6586.595011 | BE40: 33.58154625 | BF40: 820.4218211 | BG40: 21.06895961 | BH40: 14213.03995 | BJ40: 60810 | BK40: 118217 | BL40: 3 | BM40: -57404 | BN40: 32091 | BO40: 30145 | BR40: -631 | BS40: 205 | BT40: 4406 | BU40: 6056 | BV40: 486 | BX40: -1164 | BY40: -7 | BZ40: -52 | CA40: -6 | CB40: -53 | CC40: -1282 | CD40: 13144 | CE40: 3782 | CG40: -23 | CH40: -8379 | CI40: -7047 | CN40: 21.25 | CP40: 162 | CQ40: 9844 | CS40: 0.5292900021 | CT40: 68.28422743 | CU40: -7192.401463 | CY40: 31.12300035 | CZ40: 773.5676554 | DA40: 20.28822572 | DB40: 14786.97684 | DD40: 64618 | DE40: 124010 | DF40: 4 | DG40: -59388 | DH40: 33886 | DI40: 30435 | DL40: -481 | DM40: 143 | DN40: 4595 | DO40: 6895 | DP40: 0 | DR40: -2300 | DS40: -6 | DT40: -6 | DU40: 5 | DV40: -59 | DW40: -2376 | DX40: 11308 | DY40: 5047 | EA40: -510 | EB40: -9143 | EC40: -5594 | EH40: 21.25 | EJ40: 134 | EQ40: -14238 | ER40: 222 | ES40: 1841 | ET40: -12859 | EU40: 316 | EV40: 1714 | EW40: -11821 | EX40: 652 | EY40: 528 | EZ40: 12549 | FA40: 1588 | FB40: 14523 | FC40: -2432 | FD40: 13170 | FE40: 982 | FF40: 52711 | FG40: 33611 | FH40: 19100 | FI40: 225 | FJ40: 57005 | FK40: 40347 | FL40: 16658 | FM40: 298 | FN40: 62913 | FO40: 45277 | FP40: 17636 | FQ40: 298 | FR40: 714 | FS40: 571 | FT40: 428 | FU40: 13301
A41: 140 | B41: Iisalmi | C41: 21639 | E41: 1.852766431 | F41: 50.26634513 | G41: -3883.774666 | K41: 44.62681669 | L41: 1582.281991 | M41: 54.91938248 | N41: 10516.01275 | P41: 120731 | Q41: 242112 | R41: 653 | S41: -120728 | T41: 75009 | U41: 64261 | X41: -416 | Y41: 1268 | Z41: 19394 | AA41: 14003 | AB41: -15 | AD41: 5376 | AE41: -41 | AF41: -25 | AG41: -17 | AH41: -224 | AI41: 5069 | AJ41: 32377 | AK41: 18930 | AM41: 914 | AN41: -10208 | AO41: -6264 | AT41: 20.5 | AV41: 96 | AW41: 21472 | AY41: 1.180191824 | AZ41: 55.25592692 | BA41: -3969.821162 | BE41: 42.94388665 | BF41: 2118.945604 | BG41: 59.05259228 | BH41: 13097.05663 | BJ41: 118486 | BK41: 243970 | BL41: 571 | BM41: -124913 | BN41: 74684 | BO41: 67041 | BR41: -547 | BS41: 426 | BT41: 16691 | BU41: 15532 | BV41: 2327 | BX41: 3486 | BY41: -9 | BZ41: 400 | CA41: -11 | CB41: -202 | CC41: 3664 | CD41: 36042 | CE41: 15187 | CG41: -631 | CH41: -14042 | CI41: -2069 | CN41: 20.5 | CP41: 54 | CQ41: 21368 | CS41: 1.174624727 | CT41: 52.56803986 | CU41: -4123.174841 | CY41: 44.23761818 | CZ41: 1754.02471 | DA41: 59.99338897 | DB41: 12954.41782 | DD41: 117005 | DE41: 246335 | DF41: 719 | DG41: -128611 | DH41: 76487 | DI41: 66025 | DL41: -706 | DM41: 1573 | DN41: 14768 | DO41: 13421 | DP41: 0 | DR41: 1347 | DS41: -33 | DT41: -21 | DU41: 15 | DV41: -180 | DW41: 1098 | DX41: 36877 | DY41: 13290 | EA41: 2440 | EB41: -12453 | EC41: -1933 | EH41: 20.5 | EJ41: 63 | EQ41: -26205 | ER41: 458 | ES41: 553 | ET41: -21369 | EU41: 235 | EV41: 3878 | EW41: -16688 | EX41: 513 | EY41: 952 | EZ41: 16159 | FA41: 953 | FB41: 26744 | FC41: -1529 | FD41: 4656 | FE41: -220 | FF41: 98358 | FG41: 83036 | FH41: 15322 | FI41: 0 | FJ41: 109138 | FK41: 95345 | FL41: 13793 | FM41: 0 | FN41: 101054 | FO41: 87476 | FP41: 13578 | FQ41: 0 | FR41: 3258 | FS41: 3360 | FT41: 2731 | FU41: 9587
A42: 142 | B42: Iitti | C42: 6820 | E42: 1.100979653 | F42: 45.76598998 | G42: -3017.595308 | K42: 43.10183914 | L42: 975.9530792 | M42: 37.4884654 | N42: 9502.199413 | P42: 27351 | Q42: 63863 | R42: 0 | S42: -36512 | T42: 24167 | U42: 15180 | X42: -220 | Y42: 83 | Z42: 2698 | AA42: 3068 | AB42: 0 | AD42: -370 | AE42: 0 | AF42: 0 | AG42: 0 | AH42: 0 | AI42: -370 | AJ42: 316 | AK42: 2676 | AM42: -909 | AN42: -2430 | AO42: 1234 | AT42: 20.25 | AV42: 275 | AW42: 6765 | AY42: 0.9592875318 | AZ42: 46.51900161 | BA42: -2939.837398 | BE42: 42.04749514 | BF42: 1188.765706 | BG42: 42.70875467 | BH42: 10159.49741 | BJ42: 28376 | BK42: 64468 | BL42: 0 | BM42: -36092 | BN42: 23237 | BO42: 14934 | BR42: -175 | BS42: 176 | BT42: 2080 | BU42: 2918 | BV42: 230 | BX42: -608 | BY42: 0 | BZ42: 0 | CA42: 0 | CB42: 0 | CC42: -608 | CD42: -290 | CE42: 2239 | CG42: 262 | CH42: -2176 | CI42: 879 | CN42: 20.75 | CP42: 213 | CQ42: 6711 | CS42: 0.0705532863 | CT42: 47.33072253 | CU42: -3258.381761 | CY42: 38.00315114 | CZ42: 1096.706899 | DA42: 39.75418828 | DB42: 11002.38415 | DD42: 29147 | DE42: 68597 | DF42: 9 | DG42: -39441 | DH42: 24311 | DI42: 15231 | DL42: -149 | DM42: 76 | DN42: 28 | DO42: 2732 | DP42: 0 | DR42: -2704 | DS42: -1 | DT42: 0 | DU42: 0 | DV42: 0 | DW42: -2705 | DX42: -2995 | DY42: 37 | EA42: -256 | EB42: -2531 | EC42: -2000 | EH42: 20.75 | EJ42: 274 | EQ42: -1754 | ER42: 214 | ES42: 98 | ET42: -1864 | EU42: 286 | EV42: 218 | EW42: -2529 | EX42: 202 | EY42: 290 | EZ42: 1655 | FA42: 0 | FB42: 1801 | FC42: 0 | FD42: 1737 | FE42: 2 | FF42: 20664 | FG42: 18468 | FH42: 2196 | FI42: 30 | FJ42: 20291 | FK42: 17759 | FL42: 2532 | FM42: 30 | FN42: 19499 | FO42: 16907 | FP42: 2592 | FQ42: 24 | FR42: 1219 | FS42: 956 | FT42: 681 | FU42: 10031
A43: 143 | B43: Ikaalinen | C43: 7119 | E43: 2.075112669 | F43: 71.39059644 | G43: -6286.557101 | K43: 30.33273056 | L43: 930.0463548 | M43: 34.82677869 | N43: 9747.295969 | P43: 30047 | Q43: 74520 | R43: 55 | S43: -44418 | T43: 25271 | U43: 22929 | X43: -197 | Y43: 356 | Z43: 3941 | AA43: 3574 | AB43: 0 | AD43: 367 | AE43: -64 | AF43: -8 | AG43: -71 | AH43: 5 | AI43: 229 | AJ43: 3114 | AK43: 3801 | AM43: 2173 | AN43: -1794 | AO43: -2761 | AT43: 21.25 | AV43: 236 | AW43: 7003 | AY43: 0.8903256705 | AZ43: 74.27735532 | BA43: -6894.616593 | BE43: 27.90992275 | BF43: 1106.811367 | BG43: 30.72553406 | BH43: 13148.22219 | BJ43: 32840 | BK43: 79419 | BL43: 11 | BM43: -46568 | BN43: 24715 | BO43: 25162 | BR43: -279 | BS43: 403 | BT43: 3433 | BU43: 3423 | BV43: 0 | BX43: 10 | BY43: -58 | BZ43: 842 | CA43: -82 | CB43: 1 | CC43: -129 | CD43: 2678 | CE43: 3496 | CG43: 1391 | CH43: -3891 | CI43: -3864 | CN43: 21.25 | CP43: 146 | CQ43: 6942 | CS43: 0.8762833676 | CT43: 74.61767864 | CU43: -7150.96514 | CY43: 27.78079403 | CZ43: 1214.34745 | DA43: 31.69486114 | DB43: 12858.11005 | DD43: 34218 | DE43: 80609 | DF43: 32 | DG43: -46359 | DH43: 24327 | DI43: 25285 | DL43: -362 | DM43: 153 | DN43: 3044 | DO43: 4118 | DP43: 0 | DR43: -1074 | DS43: -103 | DT43: 0 | DU43: 58 | DV43: -26 | DW43: -1261 | DX43: 1450 | DY43: 2620 | EA43: 3020 | EB43: -3526 | EC43: -1794 | EH43: 21.75 | EJ43: 147 | EQ43: -7259 | ER43: 26 | ES43: 671 | ET43: -7556 | EU43: 90 | EV43: 106 | EW43: -4633 | EX43: 22 | EY43: 197 | EZ43: 12219 | FA43: -10197 | FB43: 11239 | FC43: -5798 | FD43: 279 | FE43: 3305 | FF43: 42644 | FG43: 27968 | FH43: 14676 | FI43: 27 | FJ43: 45751 | FK43: 36761 | FL43: 8990 | FM43: 25 | FN43: 47691 | FO43: 35210 | FP43: 12481 | FQ43: 22 | FR43: 577 | FS43: 315 | FT43: 0 | FU43: 7185
A44: 145 | B44: Ilmajoki | C44: 12205 | E44: 1.137695312 | F44: 66.08570194 | G44: -5772.470299 | K44: 32.22150335 | L44: 697.5010242 | M44: 25.70945722 | N44: 9902.498976 | P44: 61655 | Q44: 122728 | R44: 0 | S44: -61073 | T44: 38942 | U44: 29015 | X44: -802 | Y44: 95 | Z44: 6177 | AA44: 5027 | AB44: 0 | AD44: 1150 | AE44: -20 | AF44: -61 | AG44: -5 | AH44: -6 | AI44: 1058 | AJ44: 9718 | AK44: 6084 | AM44: 1006 | AN44: -5331 | AO44: -11 | AT44: 20.25 | AV44: 251 | AW44: 12187 | AY44: 0.7401349417 | AZ44: 67.45409021 | BA44: -6057.19209 | BE44: 30.30698839 | BF44: 640.846804 | BG44: 20.30276268 | BH44: 11521.04702 | BJ44: 63378 | BK44: 127870 | BL44: 13 | BM44: -64479 | BN44: 39149 | BO44: 28873 | BR44: -612 | BS44: 54 | BT44: 2984 | BU44: 5049 | BV44: 0 | BX44: -2065 | BY44: -3 | BZ44: 13 | CA44: -9 | CB44: -4 | CC44: -2068 | CD44: 7630 | CE44: 2359 | CG44: 609 | CH44: -4256 | CI44: -5201 | CN44: 20.75 | CP44: 241 | CQ44: 12269 | CS44: 0.1385209137 | CT44: 70.4968875 | CU44: -6598.255767 | CY44: 26.21377089 | CZ44: 580.5689135 | DA44: 18.82486958 | DB44: 12342.4892 | DD44: 64587 | DE44: 133705 | DF44: 5 | DG44: -69113 | DH44: 40904 | DI44: 29288 | DL44: -571 | DM44: 246 | DN44: 754 | DO44: 5497 | DP44: 0 | DR44: -4743 | DS44: 24 | DT44: 0 | DU44: 1 | DV44: 9 | DW44: -4711 | DX44: 2282 | DY44: 194 | EA44: 1068 | EB44: -9013 | EC44: -6876 | EH44: 20.75 | EJ44: 267 | EQ44: -8075 | ER44: 321 | ES44: 1659 | ET44: -7458 | EU44: 19 | EV44: -121 | EW44: -7907 | EX44: 10 | EY44: 827 | EZ44: 3216 | FA44: 2661 | FB44: 7096 | FC44: -364 | FD44: 15218 | FE44: -555 | FF44: 68362 | FG44: 58124 | FH44: 10238 | FI44: 118 | FJ44: 69346 | FK44: 58779 | FL44: 10567 | FM44: 117 | FN44: 74986 | FO44: 64975 | FP44: 10011 | FQ44: 126 | FR44: 6254 | FS44: 6075 | FT44: 5369 | FU44: 3955
A45: 146 | B45: Ilomantsi | C45: 5128 | E45: 2.191629956 | F45: 39.67797116 | G45: -3652.4961 | K45: 43.46448816 | L45: 1555.967239 | M45: 45.54722322 | N45: 12468.99376 | P45: 31722 | Q45: 70039 | R45: 4 | S45: -38313 | T45: 18359 | U45: 23577 | X45: -241 | Y45: 337 | Z45: 3719 | AA45: 3541 | AB45: -157 | AD45: 21 | AE45: 38 | AF45: -28 | AG45: -11 | AH45: 2 | AI45: 22 | AJ45: 2484 | AK45: 3673 | AM45: 2245 | AN45: -1555 | AO45: -3893 | AT45: 20.75 | AV45: 167 | AW45: 4973 | AY45: 0.6392884179 | AZ45: 38.71472697 | BA45: -3818.017293 | BE45: 42.91764335 | BF45: 1153.830686 | BG45: 27.72677928 | BH45: 15189.2218 | BJ45: 33211 | BK45: 70208 | BL45: -1 | BM45: -36998 | BN45: 17060 | BO45: 21278 | BR45: -175 | BS45: 307 | BT45: 1472 | BU45: 3250 | BV45: 0 | BX45: -1778 | BY45: 43 | BZ45: 0 | CA45: -2 | CB45: -12 | CC45: -1749 | CD45: 761 | CE45: 1538 | CG45: -459 | CH45: -2425 | CI45: -779 | CN45: 20.75 | CP45: 220 | CQ45: 4857 | CS45: 0.644772118 | CT45: 37.26393684 | CU45: -4098.002882 | CY45: 42.8677014 | CZ45: 968.0872967 | DA45: 26.92719114 | DB45: 16013.79452 | DD45: 33862 | DE45: 71178 | DF45: -6 | DG45: -37322 | DH45: 17289 | DI45: 21552 | DL45: -173 | DM45: 343 | DN45: 1689 | DO45: 3214 | DP45: 0 | DR45: -1525 | DS45: 31 | DT45: -3 | DU45: 41 | DV45: -18 | DW45: -1556 | DX45: -775 | DY45: 1430 | EA45: 490 | EB45: -2749 | EC45: 602 | EH45: 21 | EJ45: 186 | EQ45: -7938 | ER45: 17 | ES45: 355 | ET45: -2407 | EU45: 18 | EV45: 72 | EW45: -3498 | EX45: 1 | EY45: 2669 | EZ45: 3923 | FA45: -771 | FB45: 505 | FC45: 434 | FD45: 2165 | FE45: 340 | FF45: 21383 | FG45: 18931 | FH45: 2452 | FI45: 315 | FJ45: 19475 | FK45: 17013 | FL45: 2462 | FM45: 0 | FN45: 19230 | FO45: 16605 | FP45: 2625 | FQ45: 0 | FR45: 1159 | FS45: 1051 | FT45: 911 | FU45: 1016
A46: 153 | B46: Imatra | C46: 27269 | E46: 1.418109847 | F46: 77.71674798 | G46: -7712.750743 | K46: 34.28905325 | L46: 498.294767 | M46: 17.8946229 | N46: 10163.81239 | P46: 148086 | Q46: 288149 | R46: -6 | S46: -140069 | T46: 105590 | U46: 65658 | X46: -2326 | Y46: 212 | Z46: 29065 | AA46: 23575 | AB46: 854 | AD46: 6344 | AE46: -65 | AF46: 747 | AG46: -374 | AH46: -81 | AI46: 6571 | AJ46: 52223 | AK46: 33672 | AM46: 1201 | AN46: -19770 | AO46: -2680 | AT46: 20 | AV46: 61 | AW46: 26932 | AY46: 0.749921544 | AZ46: 116.5497721 | BA46: -8425.88742 | BE46: 30.86629307 | BF46: 777.1795633 | BG46: 26.01106859 | BH46: 10905.76266 | BJ46: 73954 | BK46: 224402 | BL46: 162 | BM46: -150286 | BN46: 102066 | BO46: 67070 | BR46: -2233 | BS46: 193 | BT46: 16810 | BU46: 19038 | BV46: 0 | BX46: -2228 | BY46: 0 | BZ46: 407 | CA46: -397 | CB46: -297 | CC46: -2496 | CD46: 51266 | CE46: 18043 | CG46: -7379 | CH46: -23118 | CI46: -21965 | CN46: 20 | CP46: 102 | CQ46: 26508 | CS46: 0.606511151 | CT46: 89.49981639 | CU46: -8950.052814 | CY46: 30.17017998 | CZ46: 755.2059756 | DA46: 19.71957008 | DB46: 14615.32368 | DD46: 150394 | DE46: 298368 | DF46: 141 | DG46: -147833 | DH46: 105975 | DI46: 67692 | DL46: -2170 | DM46: 63 | DN46: 23727 | DO46: 25761 | DP46: 1683 | DR46: -351 | DS46: 24 | DT46: 1350 | DU46: 493 | DV46: 1 | DW46: 531 | DX46: 49021 | DY46: 23481 | EA46: 5572 | EB46: -40612 | EC46: -19098 | EH46: 20 | EJ46: 29 | EQ46: -41820 | ER46: 463 | ES46: 5005 | ET46: -46664 | EU46: 395 | EV46: 6261 | EW46: -45927 | EX46: 610 | EY46: 2738 | EZ46: 26785 | FA46: -2370 | FB46: 42800 | FC46: -2371 | FD46: 54830 | FE46: 6093 | FF46: 200492 | FG46: 181585 | FH46: 18907 | FI46: 1161 | FJ46: 219774 | FK46: 201047 | FL46: 18727 | FM46: 994 | FN46: 238414 | FO46: 213423 | FP46: 24991 | FQ46: 0 | FR46: 4335 | FS46: 2567 | FT46: 4124 | FU46: 29816
A47: 148 | B47: Inari | C47: 6869 | E47: 3.410298103 | F47: 78.21384984 | G47: -6460.911341 | K47: 48.48212567 | L47: 2073.664289 | M47: 73.34499542 | N47: 10319.55161 | P47: 38359 | Q47: 76083 | R47: -2 | S47: -37726 | T47: 26677 | U47: 23456 | X47: -741 | Y47: 127 | Z47: 11793 | AA47: 5689 | AB47: 1 | AD47: 6105 | AE47: -234 | AF47: -18 | AG47: -343 | AH47: -260 | AI47: 5250 | AJ47: 23370 | AK47: 10887 | AM47: -1037 | AN47: -2899 | AO47: 2147 | AT47: 19 | AV47: 5 | AW47: 6930 | AY47: 2.460552486 | AZ47: 74.83841029 | BA47: -6235.353535 | BE47: 50.0458625 | BF47: 2168.975469 | BG47: 58.37498936 | BH47: 13561.90476 | BJ47: 39087 | BK47: 79381 | BL47: 4 | BM47: -40290 | BN47: 27992 | BO47: 23428 | BR47: -667 | BS47: -65 | BT47: 10398 | BU47: 5562 | BV47: -4 | BX47: 4832 | BY47: -207 | BZ47: 44 | CA47: -320 | CB47: -360 | CC47: 3989 | CD47: 26271 | CE47: 9903 | CG47: 1097 | CH47: -3789 | CI47: 1402 | CN47: 19 | CP47: 4 | CQ47: 6907 | CS47: 2.736510791 | CT47: 80.89848725 | CU47: -7675.401766 | CY47: 50.12910116 | CZ47: 1570.146228 | DA47: 52.99302611 | DB47: 14988.99667 | DD47: 38486 | DE47: 80608 | DF47: 1 | DG47: -42121 | DH47: 27653 | DI47: 23367 | DL47: -446 | DM47: 108 | DN47: 8561 | DO47: 5760 | DP47: 0 | DR47: 2801 | DS47: -225 | DT47: 8 | DU47: 529 | DV47: -49 | DW47: 2006 | DX47: 27685 | DY47: 7336 | EA47: 943 | EB47: -2768 | EC47: -9730 | EH47: 19 | EJ47: 9 | EQ47: -10713 | ER47: 1057 | ES47: 916 | ET47: -9678 | EU47: 467 | EV47: 710 | EW47: -18278 | EX47: 99 | EY47: 1113 | EZ47: 1257 | FA47: 448 | FB47: 2474 | FC47: -265 | FD47: 7324 | FE47: 439 | FF47: 43499 | FG47: 37760 | FH47: 5739 | FI47: 241 | FJ47: 41708 | FK47: 36299 | FL47: 5409 | FM47: 241 | FN47: 45618 | FO47: 39579 | FP47: 6039 | FQ47: 241 | FR47: 22153 | FS47: 39215 | FT47: 41721 | FU47: 787
A48: 149 | B48: Inkoo | C48: 5481 | E48: 1.08168028 | F48: 47.89735977 | G48: -3251.049079 | K48: 40.26430114 | L48: 543.8788542 | M48: 24.26982959 | N48: 8179.529283 | P48: 15299 | Q48: 44385 | R48: 0 | S48: -29086 | T48: 25578 | U48: 6278 | X48: -140 | Y48: 10 | Z48: 2640 | AA48: 2176 | AB48: 0 | AD48: 464 | AE48: 0 | AF48: 2 | AG48: 0 | AH48: 0 | AI48: 466 | AJ48: 7667 | AK48: 2362 | AM48: 53 | AN48: -2430 | AO48: 535 | AT48: 20.75 | AV48: 258 | AW48: 5403 | AY48: 1.318952234 | AZ48: 48.84876394 | BA48: -3266.518601 | BE48: 39.79782118 | BF48: 864.3346289 | BG48: 33.12185454 | BH48: 9524.893578 | BJ48: 16424 | BK48: 46096 | BL48: -3 | BM48: -29675 | BN48: 25976 | BO48: 7112 | BR48: -127 | BS48: 11 | BT48: 3297 | BU48: 2533 | BV48: 0 | BX48: 764 | BY48: 0 | BZ48: -2 | CA48: 0 | CB48: 0 | CC48: 762 | CD48: 8429 | CE48: 3134 | CG48: 17 | CH48: -2469 | CI48: 490 | CN48: 20.75 | CP48: 108 | CQ48: 5386 | CS48: 0.4613555291 | CT48: 48.31745513 | CU48: -3657.630895 | CY48: 38.82795122 | CZ48: 420.3490531 | DA48: 31.88756898 | DB48: 9924.80505 | DD48: 15921 | DE48: 47765 | DF48: 3 | DG48: -31841 | DH48: 25953 | DI48: 7040 | DL48: -116 | DM48: 11 | DN48: 1047 | DO48: 2095 | DP48: 0 | DR48: -1048 | DS48: 0 | DT48: 0 | DU48: 0 | DV48: 0 | DW48: -1048 | DX48: 7381 | DY48: 932 | EA48: 197 | EB48: -2406 | EC48: -1929 | EH48: 20.75 | EJ48: 240 | EQ48: -2175 | ER48: 8 | ES48: 340 | ET48: -2720 | EU48: 28 | EV48: 48 | EW48: -2964 | EX48: 14 | EY48: 89 | EZ48: 2993 | FA48: -1013 | FB48: 4088 | FC48: 25 | FD48: 809 | FE48: 1284 | FF48: 16695 | FG48: 14237 | FH48: 2458 | FI48: 0 | FJ48: 18304 | FK48: 15881 | FL48: 2423 | FM48: 0 | FN48: 17991 | FO48: 14385 | FP48: 3606 | FQ48: 134 | FR48: 443 | FS48: 397 | FT48: 351 | FU48: 2634
A49: 151 | B49: Isojoki | C49: 2032 | E49: 4.014888337 | F49: 21.3057235 | G49: -1215.059055 | K49: 63.66039806 | L49: 1274.606299 | M49: 31.41637034 | N49: 14808.56299 | P49: 16348 | Q49: 30446 | R49: 133 | S49: -13965 | T49: 6512 | U49: 9061 | X49: -45 | Y49: 9 | Z49: 1572 | AA49: 856 | AB49: 0 | AD49: 716 | AE49: -6 | AF49: 2 | AG49: 0 | AH49: -1 | AI49: 711 | AJ49: 2113 | AK49: 1412 | AM49: 512 | AN49: -357 | AO49: 800 | AT49: 22 | AV49: 144 | AW49: 1976 | AY49: 0.9194029851 | AZ49: 26.45626402 | BA49: -1535.425101 | BE49: 57.207777 | BF49: 1632.591093 | BG49: 35.74759404 | BH49: 16669.53441 | BJ49: 16393 | BK49: 30729 | BL49: 129 | BM49: -14207 | BN49: 6172 | BO49: 8645 | BR49: -49 | BS49: 6 | BT49: 567 | BU49: 892 | BV49: 0 | BX49: -325 | BY49: 0 | BZ49: 2 | CA49: 0 | CB49: -1 | CC49: -324 | CD49: 1414 | CE49: 479 | CG49: -241 | CH49: -621 | CI49: -726 | CN49: 22 | CP49: 223 | CQ49: 1951 | CS49: 1.510050251 | CT49: 27.01907078 | CU49: -1899.538698 | CY49: 56.47663462 | CZ49: 1266.017427 | DA49: 36.36131962 | DB49: 16593.02922 | DD49: 16586 | DE49: 30841 | DF49: 180 | DG49: -14075 | DH49: 6099 | DI49: 8567 | DL49: -51 | DM49: 10 | DN49: 550 | DO49: 853 | DP49: -21 | DR49: -324 | DS49: 3 | DT49: 0 | DU49: 0 | DV49: 2 | DW49: -319 | DX49: 930 | DY49: 366 | EA49: -297 | EB49: -347 | EC49: -667 | EH49: 22 | EJ49: 214 | EQ49: -777 | ER49: 20 | ES49: 145 | ET49: -1518 | EU49: 49 | EV49: 264 | EW49: -1113 | EX49: 28 | EY49: 52 | EZ49: 472 | FA49: -89 | FB49: 745 | FC49: 214 | FD49: 568 | FE49: 191 | FF49: 3508 | FG49: 3080 | FH49: 428 | FI49: 161 | FJ49: 3847 | FK49: 3386 | FL49: 461 | FM49: 4 | FN49: 4258 | FO49: 3656 | FP49: 602 | FQ49: 0 | FR49: 324 | FS49: 398 | FT49: 322 | FU49: 1607
A50: 152 | B50: Isokyrö | C50: 4673 | E50: 2.909733124 | F50: 39.40162272 | G50: -2109.137599 | K50: 58.74058763 | L50: 926.8136101 | M50: 44.37001796 | N50: 7624.224267 | P50: 13217 | Q50: 37748 | R50: -7 | S50: -24538 | T50: 15063 | U50: 13132 | X50: -151 | Y50: 42 | Z50: 3548 | AA50: 1886 | AB50: 142 | AD50: 1804 | AE50: -10 | AF50: -37 | AG50: 0 | AH50: 0 | AI50: 1757 | AJ50: 12604 | AK50: 3631 | AM50: 43 | AN50: -1115 | AO50: 660 | AT50: 21.5 | AV50: 152 | AW50: 4601 | AY50: 2.863636364 | AZ50: 42.01660216 | BA50: -2099.760922 | BE50: 58.50819672 | BF50: 1151.488807 | BG50: 46.37560554 | BH50: 9062.812432 | BJ50: 13048 | BK50: 37479 | BL50: 5 | BM50: -24426 | BN50: 14646 | BO50: 13385 | BR50: -144 | BS50: 41 | BT50: 3502 | BU50: 1963 | BV50: 0 | BX50: 1539 | BY50: -1 | BZ50: 57 | CA50: 0 | CB50: 0 | CC50: 1595 | CD50: 13710 | CE50: 3476 | CG50: -95 | CH50: -1124 | CI50: 609 | CN50: 21.5 | CP50: 58 | CQ50: 4522 | CS50: 2.045745654 | CT50: 48.12701444 | CU50: -3093.984962 | CY50: 54.76863299 | CZ50: 962.406015 | DA50: 40.33982102 | DB50: 10600.84034 | DD50: 13035 | DE50: 39748 | DF50: 1 | DG50: -26712 | DH50: 15214 | DI50: 13636 | DL50: -137 | DM50: 93 | DN50: 2094 | DO50: 2213 | DP50: 0 | DR50: -119 | DS50: 7 | DT50: 6 | DU50: 0 | DV50: 0 | DW50: -106 | DX50: 13465 | DY50: 2082 | EA50: 576 | EB50: -951 | EC50: -4191 | EH50: 21.5 | EJ50: 135 | EQ50: -3414 | ER50: 0 | ES50: 443 | ET50: -2914 | EU50: 3 | EV50: 44 | EW50: -7010 | EX50: 616 | EY50: 121 | EZ50: 874 | FA50: -206 | FB50: 954 | FC50: -3 | FD50: 3183 | FE50: 254 | FF50: 9694 | FG50: 8327 | FH50: 1367 | FI50: 6 | FJ50: 9520 | FK50: 8249 | FL50: 1271 | FM50: 3 | FN50: 12005 | FO50: 10308 | FP50: 1697 | FQ50: 71 | FR50: 661 | FS50: 662 | FT50: 617 | FU50: 365
A51: 165 | B51: Janakkala | C51: 16607 | E51: 0.8055278055 | F51: 65.14520985 | G51: -3869.693503 | K51: 37.86932053 | L51: 963.3889324 | M51: 44.79896741 | N51: 7849.220208 | P51: 43023 | Q51: 123571 | R51: 0 | S51: -80548 | T51: 64611 | U51: 27894 | X51: -637 | Y51: 121 | Z51: 11441 | AA51: 7908 | AB51: 292 | AD51: 3825 | AE51: -7 | AF51: 4 | AG51: -79 | AH51: -10 | AI51: 3733 | AJ51: 7147 | AK51: 11548 | AM51: 608 | AN51: -14361 | AO51: 4423 | AT51: 21 | AV51: 182 | AW51: 16447 | AY51: 0.5884319366 | AZ51: 67.71880017 | BA51: -4106.098377 | BE51: 36.68134736 | BF51: 859.6096553 | BG51: 34.71653559 | BH51: 9037.696844 | BJ51: 44691 | BK51: 127061 | BL51: 0 | BM51: -82370 | BN51: 63114 | BO51: 26747 | BR51: -612 | BS51: 64 | BT51: 6943 | BU51: 7938 | BV51: 80 | BX51: -915 | BY51: 0 | BZ51: 1 | CA51: -30 | CB51: 94 | CC51: -850 | CD51: 6209 | CE51: 6646 | CG51: -1013 | CH51: -12237 | CI51: -775 | CN51: 21 | CP51: 173 | CQ51: 16413 | CS51: 0.4757877126 | CT51: 69.29998385 | CU51: -4543.959057 | CY51: 33.34212902 | CZ51: 599.4638396 | DA51: 33.78487908 | DB51: 9306.159751 | DD51: 45775 | DE51: 131246 | DF51: 0 | DG51: -85471 | DH51: 62622 | DI51: 27857 | DL51: -578 | DM51: 98 | DN51: 4528 | DO51: 9143 | DP51: 128 | DR51: -4487 | DS51: -2 | DT51: 5 | DU51: 28 | DV51: 99 | DW51: -4413 | DX51: 1744 | DY51: 2499 | EA51: -1130 | EB51: -10168 | EC51: -7286 | EH51: 21 | EJ51: 218 | EQ51: -8306 | ER51: 354 | ES51: 827 | ET51: -8597 | EU51: 221 | EV51: 955 | EW51: -10648 | EX51: 306 | EY51: 557 | EZ51: 11094 | FA51: -434 | FB51: 9196 | FC51: -14 | FD51: 13911 | FE51: 344 | FF51: 70271 | FG51: 59920 | FH51: 10351 | FI51: 77 | FJ51: 69815 | FK51: 59576 | FL51: 10239 | FM51: 70 | FN51: 73332 | FO51: 62039 | FP51: 11293 | FQ51: 62 | FR51: 2755 | FS51: 22 | FT51: 39 | FU51: 7782
A52: 167 | B52: Joensuu | C52: 76067 | E52: 0.7617256728 | F52: 72.9549688 | G52: -5062.366072 | K52: 38.1955755 | L52: 2107.510484 | M52: 89.03579607 | N52: 8639.686066 | P52: 356517 | Q52: 737618 | R52: -83 | S52: -381184 | T52: 262380 | U52: 186922 | X52: -4324 | Y52: 5247 | Z52: 69041 | AA52: 57334 | AB52: -2729 | AD52: 8978 | AE52: -240 | AF52: -681 | AG52: -435 | AH52: -867 | AI52: 6755 | AJ52: 73685 | AK52: 65824 | AM52: -2808 | AN52: -92166 | AO52: -14888 | AT52: 20.5 | AV52: 91 | AW52: 76551 | AY52: 1.120301502 | AZ52: 76.48777321 | BA52: -5606.510692 | BE52: 36.45860535 | BF52: 1934.305234 | BG52: 60.01528514 | BH52: 11764.0266 | BJ52: 379627 | BK52: 750242 | BL52: -87 | BM52: -370702 | BN52: 260636 | BO52: 163791 | BR52: -4105 | BS52: 2043 | BT52: 51663 | BU52: 61289 | BV52: 0 | BX52: -9626 | BY52: -265 | BZ52: -513 | CA52: -620 | CB52: -733 | CC52: -11757 | CD52: 61624 | CE52: 47890 | CG52: 4747 | CH52: -45630 | CI52: -42165 | CN52: 20.5 | CP52: 80 | CQ52: 76850 | CS52: 0.9721990001 | CT52: 79.79082223 | CU52: -6083.591412 | CY52: 35.05816439 | CZ52: 1906.61028 | DA52: 58.11117288 | DB52: 12102.22511 | DD52: 359679 | DE52: 768676 | DF52: 78 | DG52: -408919 | DH52: 268565 | DI52: 194788 | DL52: -4149 | DM52: 4428 | DN52: 54713 | DO52: 66092 | DP52: 0 | DR52: -11379 | DS52: 105 | DT52: 244 | DU52: 326 | DV52: 748 | DW52: -10608 | DX52: 50015 | DY52: 50679 | EA52: -4912 | EB52: -56409 | EC52: -40956 | EH52: 20.5 | EJ52: 54 | EQ52: -178434 | ER52: 5028 | ES52: 92694 | ET52: -98703 | EU52: 2494 | EV52: 6154 | EW52: -99924 | EX52: 1461 | EY52: 6828 | EZ52: 131284 | FA52: 24916 | FB52: 99197 | FC52: -32559 | FD52: 101491 | FE52: -760 | FF52: 486034 | FG52: 399680 | FH52: 86354 | FI52: 5984 | FJ52: 507042 | FK52: 447082 | FL52: 59960 | FM52: 3352 | FN52: 551390 | FO52: 487761 | FP52: 63629 | FQ52: 2980 | FR52: 1531 | FS52: 2313 | FT52: 14021 | FU52: 115002
A53: 169 | B53: Jokioinen | C53: 5286 | E53: 1.560142712 | F53: 46.31053036 | G53: -4060.726447 | K53: 41.00821297 | L53: 161.5588347 | M53: 5.689176857 | N53: 10365.1154 | P53: 27261 | Q53: 54272 | R53: -4 | S53: -27015 | T53: 18647 | U53: 11336 | X53: -152 | Y53: 33 | Z53: 2849 | AA53: 2538 | AB53: 27 | AD53: 338 | AE53: 0 | AF53: 1 | AG53: 0 | AH53: 0 | AI53: 339 | AJ53: 6754 | AK53: 2911 | AM53: 397 | AN53: -1808 | AO53: 1561 | AT53: 20.5 | AV53: 238 | AW53: 5195 | AY53: 1.171428571 | AZ53: 43.48429878 | BA53: -3829.836381 | BE53: 42.46872943 | BF53: 181.7131858 | BG53: 5.911641074 | BH53: 11219.44177 | BJ53: 27694 | BK53: 55287 | BL53: -14 | BM53: -27607 | BN53: 18793 | BO53: 11120 | BR53: -179 | BS53: 30 | BT53: 2157 | BU53: 2974 | BV53: 7 | BX53: -810 | BY53: -1 | BZ53: 0 | CA53: -1 | CB53: 0 | CC53: -812 | CD53: 6092 | CE53: 2086 | CG53: 422 | CH53: -1815 | CI53: 1492 | CN53: 21.25 | CP53: 175 | CQ53: 5133 | CS53: 0.817522849 | CT53: 45.3063956 | CU53: -3599.259692 | CY53: 43.64887524 | CZ53: 251.7046561 | DA53: 5.995580226 | DB53: 11195.98675 | DD53: 25120 | DE53: 52729 | DF53: -3 | DG53: -27612 | DH53: 19094 | DI53: 11074 | DL53: -182 | DM53: 38 | DN53: 2412 | DO53: 2395 | DP53: -33 | DR53: -16 | DS53: 1 | DT53: 1 | DU53: 1 | DV53: 0 | DW53: -15 | DX53: 6528 | DY53: 2234 | EA53: -965 | EB53: -2991 | EC53: 816 | EH53: 21.25 | EJ53: 130 | EQ53: -1431 | ER53: 24 | ES53: 57 | ET53: -955 | EU53: 28 | EV53: 333 | EW53: -1517 | EX53: 53 | EY53: 46 | EZ53: 1004 | FA53: -200 | FB53: 93 | FC53: -600 | FD53: 2312 | FE53: 1343 | FF53: 21130 | FG53: 13948 | FH53: 7182 | FI53: 8 | FJ53: 18755 | FK53: 12345 | FL53: 6410 | FM53: 8 | FN53: 19217 | FO53: 11740 | FP53: 7477 | FQ53: 7 | FR53: 1917 | FS53: 1720 | FT53: 1619 | FU53: 426
A54: 171 | B54: Joroinen | C54: 4917 | E54: 0.869168357 | F54: 62.16888791 | G54: -2393.329266 | K54: 31.12899371 | L54: 3751.677852 | M54: 130.02636 | N54: 10531.4216 | P54: 24452 | Q54: 51864 | R54: -15 | S54: -27427 | T54: 17376 | U54: 12421 | X54: -139 | Y54: 129 | Z54: 2360 | AA54: 1968 | AB54: 0 | AD54: 392 | AE54: -10 | AF54: 0 | AG54: 0 | AH54: 0 | AI54: 382 | AJ54: 496 | AK54: 2317 | AM54: 490 | AN54: -2747 | AO54: -109 | AT54: 20.75 | AV54: 262 | AW54: 4812 | AY54: -0.04253810705 | AZ54: 70.54417438 | BA54: -4043.848712 | BE54: 26.41725739 | BF54: 2981.296758 | BG54: 81.97200958 | BH54: 13274.93766 | BJ54: 25026 | BK54: 53568 | BL54: 6 | BM54: -28536 | BN54: 16171 | BO54: 12205 | BR54: -52 | BS54: -122 | BT54: -334 | BU54: 1468 | BV54: 0 | BX54: -1802 | BY54: -2 | BZ54: -4 | CA54: 0 | CB54: 0 | CC54: -1808 | CD54: -1304 | CE54: -323 | CG54: -479 | CH54: -2607 | CI54: -7643 | CN54: 20.75 | CP54: 287 | CQ54: 4767 | CS54: 0.4300331026 | CT54: 74.22206056 | CU54: -5321.795679 | CY54: 24.43999636 | CZ54: 2543.7382 | DA54: 81.12870489 | DB54: 13539.54269 | DD54: 25692 | DE54: 53934 | DF54: 19 | DG54: -28223 | DH54: 16940 | DI54: 12353 | DL54: -93 | DM54: 213 | DN54: 1190 | DO54: 1611 | DP54: 0 | DR54: -421 | DS54: 0 | DT54: 5 | DU54: 0 | DV54: 0 | DW54: -416 | DX54: -1766 | DY54: 1201 | EA54: 866 | EB54: -3084 | EC54: -5833 | EH54: 21.25 | EJ54: 228 | EQ54: -3133 | ER54: 232 | ES54: 475 | ET54: -7290 | EU54: 59 | EV54: -89 | EW54: -7177 | EX54: 123 | EY54: 20 | EZ54: 5035 | FA54: 543 | FB54: 6298 | FC54: -642 | FD54: 6245 | FE54: -247 | FF54: 27827 | FG54: 23498 | FH54: 4329 | FI54: 159 | FJ54: 31179 | FK54: 27007 | FL54: 4172 | FM54: 159 | FN54: 34394 | FO54: 29895 | FP54: 4499 | FQ54: 161 | FR54: 910 | FS54: 701 | FT54: 578 | FU54: 1344
A55: 172 | B55: Joutsa | C55: 4567 | E55: 0.7872028177 | F55: 66.00747566 | G55: -4942.850887 | K55: 25.54658441 | L55: 914.6047734 | M55: 37.39159759 | N55: 8927.961463 | P55: 13962 | Q55: 43415 | R55: 1 | S55: -29452 | T55: 15492 | U55: 16562 | X55: -143 | Y55: 77 | Z55: 2536 | AA55: 2272 | AB55: -1037 | AD55: -773 | AE55: 11 | AF55: 5 | AG55: -6 | AH55: 9 | AI55: -754 | AJ55: 2581 | AK55: 1461 | AM55: -725 | AN55: -3261 | AO55: -4214 | AT55: 21 | AV55: 233 | AW55: 4467 | AY55: 0.9842442147 | AZ55: 70.05916895 | BA55: -5397.58227 | BE55: 24.62106795 | BF55: 792.4781733 | BG55: 26.6362943 | BH55: 10859.41348 | BJ55: 13567 | BK55: 42727 | BL55: -21 | BM55: -29181 | BN55: 14830 | BO55: 16221 | BR55: -157 | BS55: 125 | BT55: 1838 | BU55: 2251 | BV55: 100 | BX55: -313 | BY55: 20 | BZ55: 0 | CA55: 2 | CB55: 3 | CC55: -288 | CD55: 2276 | CE55: 2072 | CG55: 14 | CH55: -1870 | CI55: -1597 | CN55: 21 | CP55: 179 | CQ55: 4377 | CS55: 0.6878745966 | CT55: 72.45002677 | CU55: -6246.515878 | CY55: 24.07874922 | CZ55: 654.3294494 | DA55: 25.43904552 | DB55: 11604.29518 | DD55: 13110 | DE55: 43624 | DF55: 109 | DG55: -30405 | DH55: 15502 | DI55: 16212 | DL55: -146 | DM55: 179 | DN55: 1342 | DO55: 2166 | DP55: 0 | DR55: -824 | DS55: 40 | DT55: 0 | DU55: 3 | DV55: 4 | DW55: -783 | DX55: 1506 | DY55: 1266 | EA55: 1330 | EB55: -2019 | EC55: -3363 | EH55: 21 | EJ55: 208 | EQ55: -6081 | ER55: 26 | ES55: 380 | ET55: -3723 | EU55: 2 | EV55: 52 | EW55: -4980 | EX55: 55 | EY55: 296 | EZ55: 9023 | FA55: -1165 | FB55: 1896 | FC55: -461 | FD55: 2762 | FE55: 2301 | FF55: 23572 | FG55: 18250 | FH55: 5322 | FI55: 70 | FJ55: 23137 | FK55: 18097 | FL55: 5040 | FM55: 70 | FN55: 26163 | FO55: 18800 | FP55: 7363 | FQ55: 70 | FR55: 1220 | FS55: 574 | FT55: 472 | FU55: 198
A56: 176 | B56: Juuka | C56: 4817 | E56: 3.575122292 | F56: 27.39372157 | G56: -1424.538094 | K56: 58.21493101 | L56: 1965.538717 | M56: 57.90777171 | N56: 12389.03882 | P56: 34359 | Q56: 66595 | R56: 0 | S56: -32236 | T56: 14781 | U56: 22088 | X56: -16 | Y56: 390 | Z56: 5007 | AA56: 3287 | AB56: -553 | AD56: 1167 | AE56: -2 | AF56: -904 | AG56: -25 | AH56: -1 | AI56: 235 | AJ56: 11179 | AK56: 4567 | AM56: -387 | AN56: -1322 | AO56: -2304 | AT56: 20.75 | AV56: 66 | AW56: 4709 | AY56: 1.76864357 | AZ56: 27.1488847 | BA56: -1254.618815 | BE56: 58.51214846 | BF56: 2236.780633 | BG56: 53.86553739 | BH56: 15156.72117 | BJ56: 35715 | BK56: 66898 | BL56: 0 | BM56: -31183 | BN56: 13654 | BO56: 20074 | BR56: 9 | BS56: 371 | BT56: 2925 | BU56: 2784 | BV56: 0 | BX56: 141 | BY56: 0 | BZ56: -247 | CA56: -39 | CB56: -4 | CC56: -149 | CD56: 11272 | CE56: 3240 | CG56: 770 | CH56: -1616 | CI56: 724 | CN56: 20.75 | CP56: 103 | CQ56: 4606 | CS56: 1.478530781 | CT56: 26.8269818 | CU56: -1561.22449 | CY56: 58.73761085 | CZ56: 1949.848024 | DA56: 52.30034557 | DB56: 15957.88102 | DD56: 36206 | DE56: 68085 | DF56: 0 | DG56: -31879 | DH56: 13878 | DI56: 20319 | DL56: -23 | DM56: 481 | DN56: 2776 | DO56: 2755 | DP56: -165 | DR56: -144 | DS56: -3 | DT56: 251 | DU56: 21 | DV56: -3 | DW56: 80 | DX56: 10927 | DY56: 2116 | EA56: -302 | EB56: -1851 | EC56: -1098 | EH56: 20.75 | EJ56: 88 | EQ56: -8352 | ER56: 24 | ES56: 1457 | ET56: -2771 | EU56: 49 | EV56: 206 | EW56: -3466 | EX56: 2 | EY56: 250 | EZ56: 9297 | FA56: -4222 | FB56: 0 | FC56: -4 | FD56: 1120 | FE56: 558 | FF56: 12659 | FG56: 11422 | FH56: 1237 | FI56: 3058 | FJ56: 11039 | FK56: 9806 | FL56: 1233 | FM56: 2770 | FN56: 10866 | FO56: 9066 | FP56: 1800 | FQ56: 2770 | FR56: 989 | FS56: 835 | FT56: 425 | FU56: 1468
A57: 177 | B57: Juupajoki | C57: 1904 | E57: -8.674418605 | F57: 44.93394446 | G57: -3321.953782 | K57: 51.87732239 | L57: 601.8907563 | M57: 27.05102503 | N57: 8121.323529 | P57: 7086 | Q57: 17134 | R57: 12 | S57: -10036 | T57: 7174 | U57: 4285 | X57: -43 | Y57: 62 | Z57: 1442 | AA57: 803 | AB57: -2 | AD57: 637 | AE57: 72 | AF57: 1 | AG57: 0 | AH57: 0 | AI57: 710 | AJ57: 2823 | AK57: 1262 | AM57: -42 | AN57: 222 | AO57: 79 | AT57: 21 | AV57: 153 | AW57: 1884 | AY57: 68.33333333 | AZ57: 48.74396135 | BA57: -3532.377919 | BE57: 49.70891417 | BF57: 632.1656051 | BG57: 22.7539911 | BH57: 10140.65817 | BJ57: 7480 | BK57: 17860 | BL57: 24 | BM57: -10356 | BN57: 6911 | BO57: 4239 | BR57: -38 | BS57: 1 | BT57: 757 | BU57: 831 | BV57: 0 | BX57: -74 | BY57: 71 | BZ57: -1 | CA57: 0 | CB57: 0 | CC57: -4 | CD57: 2704 | CE57: 765 | CG57: -373 | CH57: 51 | CI57: -334 | CN57: 21 | CP57: 181 | CQ57: 1844 | CS57: 5.355731225 | CT57: 48.64836926 | CU57: -3680.585683 | CY57: 50.28085545 | CZ57: 822.6681128 | DA57: 22.08020114 | DB57: 10676.78959 | DD57: 7775 | DE57: 18029 | DF57: 31 | DG57: -10223 | DH57: 7159 | DI57: 4413 | DL57: -60 | DM57: -1 | DN57: 1288 | DO57: 825 | DP57: 0 | DR57: 463 | DS57: 72 | DT57: 10 | DU57: 9 | DV57: -1 | DW57: 535 | DX57: 3124 | DY57: 1178 | EA57: 124 | EB57: -186 | EC57: -131 | EH57: 21 | EJ57: 61 | EQ57: -1611 | ER57: 192 | ES57: 236 | ET57: -1224 | EU57: 128 | EV57: -3 | EW57: -1320 | EX57: 1 | EY57: 10 | EZ57: 0 | FA57: -554 | FB57: 0 | FC57: 262 | FD57: 955 | FE57: -406 | FF57: 6060 | FG57: 4865 | FH57: 1195 | FI57: 55 | FJ57: 6405 | FK57: 4912 | FL57: 1493 | FM57: 52 | FN57: 6763 | FO57: 5634 | FP57: 1129 | FQ57: 30 | FR57: 397 | FS57: 299 | FT57: 287 | FU57: 621
A58: 178 | B58: Juva | C58: 6334 | E58: 1.421455939 | F58: 55.83263598 | G58: -4813.703821 | K58: 52.1622094 | L58: 835.9646353 | M58: 29.91988544 | N58: 10198.13704 | P58: 30684 | Q58: 66970 | R58: 216 | S58: -36070 | T58: 19236 | U58: 21780 | X58: -227 | Y58: 597 | Z58: 5316 | AA58: 4198 | AB58: 3 | AD58: 1121 | AE58: -11 | AF58: -33 | AG58: 0 | AH58: 0 | AI58: 1077 | AJ58: 3944 | AK58: 5100 | AM58: -574 | AN58: -3666 | AO58: 125 | AT58: 19.75 | AV58: 112 | AW58: 6225 | AY58: 1.095776521 | AZ58: 55.97182285 | BA58: -5449.638554 | BE58: 51.80181221 | BF58: 243.0522088 | BG58: 7.050776263 | BH58: 12582.16867 | BJ58: 31710 | BK58: 70030 | BL58: 153 | BM58: -38167 | BN58: 19425 | BO58: 21548 | BR58: -192 | BS58: 484 | BT58: 3098 | BU58: 2731 | BV58: -115 | BX58: 252 | BY58: -1 | BZ58: -18 | CA58: 0 | CB58: 0 | CC58: 233 | CD58: 3993 | CE58: 2705 | CG58: -883 | CH58: -2810 | CI58: -3421 | CN58: 20.75 | CP58: 143 | CQ58: 6116 | CS58: 0.6814580032 | CT58: 57.82800141 | CU58: -5938.848921 | CY58: 50.16860505 | CZ58: 301.3407456 | DA58: 6.886620693 | DB58: 13111.6743 | DD58: 32631 | DE58: 72191 | DF58: 67 | DG58: -39493 | DH58: 19755 | DI58: 21196 | DL58: -235 | DM58: 687 | DN58: 1910 | DO58: 2896 | DP58: 11 | DR58: -975 | DS58: 0 | DT58: 4 | DU58: 0 | DV58: 0 | DW58: -971 | DX58: 2863 | DY58: 2711 | EA58: 1053 | EB58: -2915 | EC58: -2398 | EH58: 20.75 | EJ58: 206 | EQ58: -5286 | ER58: 60 | ES58: 251 | ET58: -6290 | EU58: 33 | EV58: 131 | EW58: -5870 | EX58: 264 | EY58: 497 | EZ58: 6858 | FA58: -209 | FB58: 1063 | FC58: 843 | FD58: 4540 | FE58: -149 | FF58: 31771 | FG58: 19893 | FH58: 11878 | FI58: 160 | FJ58: 31903 | FK58: 19226 | FL58: 12677 | FM58: 160 | FN58: 34413 | FO58: 21620 | FP58: 12793 | FQ58: 161 | FR58: 1420 | FS58: 1366 | FT58: 1323 | FU58: 1814
A59: 179 | B59: Jyväskylä | C59: 140188 | E59: 1.342847992 | F59: 96.97265574 | G59: -8016.192541 | K59: 27.64431522 | L59: 452.5209005 | M59: 21.18653497 | N59: 7795.995378 | P59: 555518 | Q59: 1157049 | R59: 489 | S59: -601042 | T59: 514407 | U59: 263554 | X59: -16285 | Y59: -1674 | Z59: 158960 | AA59: 117804 | AB59: 0 | AD59: 41156 | AE59: -127 | AF59: 138 | AG59: -4198 | AH59: -1455 | AI59: 35514 | AJ59: 40775 | AK59: 137949 | AM59: 11302 | AN59: -114002 | AO59: 6752 | AT59: 20 | AV59: 46 | AW59: 141305 | AY59: 1.04030403 | AZ59: 102.1018826 | BA59: -8679.523018 | BE59: 26.19191956 | BF59: 262.0997134 | BG59: 8.565184829 | BH59: 11169.21553 | BJ59: 570959 | BK59: 1203046 | BL59: 935 | BM59: -631152 | BN59: 510190 | BO59: 266167 | BR59: -15292 | BS59: -296 | BT59: 129617 | BU59: 114136 | BV59: 0 | BX59: 15481 | BY59: -637 | BZ59: -498 | CA59: -2413 | CB59: -2174 | CC59: 9759 | CD59: 33107 | CE59: 109171 | CG59: -5600 | CH59: -123975 | CI59: -100981 | CN59: 20 | CP59: 31 | CQ59: 142400 | CS59: 1.2700358 | CT59: 113.1272559 | CU59: -9465.021067 | CY59: 24.45916228 | CZ59: 330.2668539 | DA59: 8.946396958 | DB59: 10611.06039 | DD59: 525287 | DE59: 1202071 | DF59: -659 | DG59: -677443 | DH59: 518222 | DI59: 265546 | DL59: -14634 | DM59: -632 | DN59: 91059 | DO59: 115464 | DP59: 0 | DR59: -24405 | DS59: -424 | DT59: 80 | DU59: 3207 | DV59: -904 | DW59: -28860 | DX59: 4247 | DY59: 77873 | EA59: 26475 | EB59: -68430 | EC59: -127003 | EH59: 20 | EJ59: 79 | EQ59: -197578 | ER59: 1488 | ES59: 64893 | ET59: -233394 | EU59: 1776 | EV59: 21466 | EW59: -223676 | EX59: 1353 | EY59: 17447 | EZ59: 49747 | FA59: 33476 | FB59: 171824 | FC59: 14737 | FD59: 122639 | FE59: 62142 | FF59: 1035466 | FG59: 876846 | FH59: 158620 | FI59: 5567 | FJ59: 1099603 | FK59: 980473 | FL59: 119130 | FM59: 2652 | FN59: 1215954 | FO59: 1039498 | FP59: 176456 | FQ59: 1598 | FR59: 6350 | FS59: 7045 | FT59: 5961 | FU59: 112070
A60: 181 | B60: Jämijärvi | C60: 1867 | E60: 0.5774011299 | F60: 46.90582092 | G60: -4114.622389 | K60: 9.017074296 | L60: 484.7348688 | M60: 15.95002414 | N60: 11092.66202 | P60: 8896 | Q60: 20177 | R60: 0 | S60: -11281 | T60: 5694 | U60: 6094 | X60: -57 | Y60: 4 | Z60: 454 | AA60: 560 | AB60: 0 | AD60: -106 | AE60: 0 | AF60: 0 | AG60: 0 | AH60: 0 | AI60: -106 | AJ60: -2798 | AK60: 459 | AM60: 45 | AN60: -828 | AO60: 126 | AT60: 22.5 | AV60: 287 | AW60: 1809 | AY60: 0.8700787402 | AZ60: 43.6614324 | BA60: -3845.218353 | BE60: 15.34531521 | BF60: 365.9480376 | BG60: 11.07784706 | BH60: 12057.49033 | BJ60: 9347 | BK60: 20040 | BL60: 0 | BM60: -10693 | BN60: 5760 | BO60: 5781 | BR60: -47 | BS60: 36 | BT60: 837 | BU60: 553 | BV60: 407 | BX60: 691 | BY60: 0 | BZ60: 0 | CA60: 0 | CB60: 0 | CC60: 691 | CD60: -2092 | CE60: 751 | CG60: -387 | CH60: -969 | CI60: 704 | CN60: 22.5 | CP60: 157 | CQ60: 1739 | CS60: 0.9170454545 | CT60: 44.87925178 | CU60: -3651.523864 | CY60: 16.0680691 | CZ60: 964.347326 | DA60: 10.97607024 | DB60: 12640.023 | DD60: 9675 | DE60: 20707 | DF60: 0 | DG60: -11032 | DH60: 6130 | DI60: 5686 | DL60: -41 | DM60: 23 | DN60: 766 | DO60: 565 | DP60: 0 | DR60: 201 | DS60: 0 | DT60: -14 | DU60: 0 | DV60: 0 | DW60: 187 | DX60: -1813 | DY60: 501 | EA60: -159 | EB60: -839 | EC60: 727 | EH60: 22.5 | EJ60: 145 | EQ60: -359 | ER60: 4 | ES60: 22 | ET60: -649 | EU60: 32 | EV60: 570 | EW60: -395 | EX60: 40 | EY60: 581 | EZ60: 1296 | FA60: -207 | FB60: 249 | FC60: -416 | FD60: 991 | FE60: 296 | FF60: 7074 | FG60: 5332 | FH60: 1742 | FI60: 50 | FJ60: 6120 | FK60: 4828 | FL60: 1292 | FM60: 50 | FN60: 6612 | FO60: 4600 | FP60: 2012 | FQ60: 124 | FR60: 1950 | FS60: 1841 | FT60: 1827 | FU60: 34
A61: 182 | B61: Jämsä | C61: 20877 | E61: 1.668816388 | F61: 47.51579628 | G61: -3335.153518 | K61: 50.47266506 | L61: 842.4582076 | M61: 33.86589998 | N61: 9079.848637 | P61: 63810 | Q61: 195533 | R61: 1453 | S61: -130270 | T61: 85413 | U61: 57946 | X61: -802 | Y61: 76 | Z61: 12363 | AA61: 15968 | AB61: 33 | AD61: -3605 | AE61: -10 | AF61: 2267 | AG61: -26 | AH61: 0 | AI61: -1374 | AJ61: 11080 | AK61: 10828 | AM61: -493 | AN61: -7074 | AO61: -1968 | AT61: 21 | AV61: 224 | AW61: 20607 | AY61: 1.40657232 | AZ61: 47.07519151 | BA61: -3112.388994 | BE61: 50.63072183 | BF61: 903.6249818 | BG61: 31.49651746 | BH61: 10471.73291 | BJ61: 66909 | BK61: 196655 | BL61: -165 | BM61: -129911 | BN61: 84038 | BO61: 57135 | BR61: -722 | BS61: 448 | BT61: 10988 | BU61: 13515 | BV61: 2360 | BX61: -167 | BY61: -25 | BZ61: -123 | CA61: -29 | CB61: 0 | CC61: -344 | CD61: 11343 | CE61: 11049 | CG61: -4151 | CH61: -7598 | CI61: 6051 | CN61: 21 | CP61: 129 | CQ61: 20182 | CS61: 1.420205522 | CT61: 44.63276027 | CU61: -3192.646913 | CY61: 51.63419329 | CZ61: 642.7014171 | DA61: 31.1343741 | DB61: 10816.61877 | DD61: 67520 | DE61: 198223 | DF61: 189 | DG61: -130514 | DH61: 84863 | DI61: 57017 | DL61: -647 | DM61: 86 | DN61: 10805 | DO61: 13054 | DP61: 0 | DR61: -2249 | DS61: -37 | DT61: 1 | DU61: 21 | DV61: -3 | DW61: -2309 | DX61: 8867 | DY61: 10393 | EA61: -858 | EB61: -7411 | EC61: -787 | EH61: 21 | EJ61: 109 | EQ61: -14092 | ER61: 481 | ES61: 815 | ET61: -10644 | EU61: 501 | EV61: 5145 | EW61: -11848 | EX61: 148 | EY61: 520 | EZ61: 13354 | FA61: -4 | FB61: 5434 | FC61: -17 | FD61: 1180 | FE61: 896 | FF61: 71787 | FG61: 64362 | FH61: 7425 | FI61: 390 | FJ61: 69605 | FK61: 62178 | FL61: 7427 | FM61: 521 | FN61: 64271 | FO61: 55463 | FP61: 8808 | FQ61: 438 | FR61: 2831 | FS61: 2582 | FT61: 2441 | FU61: 20827
A62: 186 | B62: Järvenpää | C62: 42572 | E62: 3.567933297 | F62: 103.2395939 | G62: -7624.565442 | K62: 28.83567059 | L62: 327.1399042 | M62: 18.02435582 | N62: 6624.70638 | P62: 127885 | Q62: 320599 | R62: 533 | S62: -192181 | T62: 181045 | U62: 36638 | X62: -34 | Y62: -704 | Z62: 24764 | AA62: 33397 | AB62: 57 | AD62: -8576 | AE62: 18 | AF62: -42 | AG62: -245 | AH62: 924 | AI62: -7921 | AJ62: 36104 | AK62: 16951 | AM62: -2966 | AN62: -5977 | AO62: -17967 | AT62: 19.75 | AV62: 225 | AW62: 43410 | AY62: 3.128400796 | AZ62: 83.64780779 | BA62: -8676.295784 | BE62: 25.26252412 | BF62: 282.7228749 | BG62: 8.141789227 | BH62: 12674.59111 | BJ62: 260125 | BK62: 457858 | BL62: 258 | BM62: -197475 | BN62: 186872 | BO62: 39476 | BR62: -1072 | BS62: -933 | BT62: 26868 | BU62: 34919 | BV62: 0 | BX62: -8051 | BY62: 27 | BZ62: -14 | CA62: -215 | CB62: -108 | CC62: -8361 | CD62: 29844 | CE62: 15149 | CG62: 236 | CH62: -7623 | CI62: -52045 | CN62: 19.75 | CP62: 104 | CQ62: 43711 | CS62: 0.4391271633 | CT62: 101.9836019 | CU62: -9963.167166 | CY62: 17.48806868 | CZ62: 297.659628 | DA62: 8.383216674 | DB62: 12269.63465 | DD62: 234340 | DE62: 460857 | DF62: -1224 | DG62: -227741 | DH62: 192689 | DI62: 41563 | DL62: -2395 | DM62: -855 | DN62: 3261 | DO62: 33838 | DP62: 0 | DR62: -30577 | DS62: 15 | DT62: 0 | DU62: 167 | DV62: -286 | DW62: -31015 | DX62: -6112 | DY62: -589 | EA62: -11407 | EB62: -10715 | EC62: -53856 | EH62: 19.75 | EJ62: 265 | EQ62: -47031 | ER62: 479 | ES62: 11634 | ET62: -81978 | EU62: 1163 | EV62: 13621 | EW62: -60894 | EX62: 784 | EY62: 6843 | EZ62: 17167 | FA62: 8397 | FB62: 13025 | FC62: 36316 | FD62: 188651 | FE62: -119930 | FF62: 299420 | FG62: 204956 | FH62: 94464 | FI62: 4 | FJ62: 340857 | FK62: 210057 | FL62: 130800 | FM62: 4 | FN62: 399104 | FO62: 382054 | FP62: 17050 | FQ62: 4 | FR62: 8932 | FS62: 8596 | FT62: 8174 | FU62: 25928
A63: 202 | B63: Kaarina | C63: 33099 | E63: 5.787088765 | F63: 66.19908771 | G63: -3975.648811 | K63: 38.19464884 | L63: 738.5419499 | M63: 42.79012162 | N63: 6299.767365 | P63: 82653 | Q63: 236306 | R63: 10 | S63: -153643 | T63: 137266 | U63: 33728 | X63: -614 | Y63: 653 | Z63: 17390 | AA63: 13520 | AB63: 1 | AD63: 3871 | AE63: -8 | AF63: 0 | AG63: -4 | AH63: -3 | AI63: 3856 | AJ63: 29136 | AK63: 13919 | AM63: 271 | AN63: -1966 | AO63: -12645 | AT63: 19.75 | AV63: 246 | AW63: 33458 | AY63: 2.811791383 | AZ63: 68.25394344 | BA63: -4296.252017 | BE63: 36.59072883 | BF63: 512.5231634 | BG63: 22.83255571 | BH63: 8193.167553 | BJ63: 83798 | BK63: 246041 | BL63: 6 | BM63: -162237 | BN63: 139346 | BO63: 32724 | BR63: -1385 | BS63: 861 | BT63: 9309 | BU63: 13062 | BV63: 0 | BX63: -3753 | BY63: 3 | BZ63: 0 | CA63: -1 | CB63: 0 | CC63: -3751 | CD63: 25166 | CE63: 6898 | CG63: -1872 | CH63: -2118 | CI63: -12885 | CN63: 19.75 | CP63: 229 | CQ63: 33937 | CS63: 1.582294045 | CT63: 71.51102376 | CU63: -4500.36833 | CY63: 32.60125956 | CZ63: 697.439373 | DA63: 22.20668221 | DB63: 8305.183133 | DD63: 92043 | DE63: 258564 | DF63: 43 | DG63: -166478 | DH63: 145290 | DI63: 28275 | DL63: -2736 | DM63: 1770 | DN63: 6121 | DO63: 16111 | DP63: 0 | DR63: -9990 | DS63: 12 | DT63: 0 | DU63: 0 | DV63: -4 | DW63: -9982 | DX63: 15092 | DY63: 2080 | EA63: 207 | EB63: -2806 | EC63: -10509 | EH63: 19.75 | EJ63: 242 | EQ63: -31031 | ER63: 146 | ES63: 4321 | ET63: -24077 | EU63: 179 | EV63: 4115 | EW63: -17570 | EX63: 27 | EY63: 4954 | EZ63: 9971 | FA63: 4180 | FB63: 3300 | FC63: 1963 | FD63: 50081 | FE63: -35461 | FF63: 118530 | FG63: 45377 | FH63: 73153 | FI63: 1620 | FJ63: 121676 | FK63: 47993 | FL63: 73683 | FM63: 1620 | FN63: 133537 | FO63: 94636 | FP63: 38901 | FQ63: 1620 | FR63: 19802 | FS63: 23254 | FT63: 22211 | FU63: 9925
A64: 204 | B64: Kaavi | C64: 3048 | E64: 1.002779708 | F64: 56.53402079 | G64: -5958.661417 | K64: 30.67287158 | L64: 381.5616798 | M64: 12.03626517 | N64: 11570.86614 | P64: 14106 | Q64: 35250 | R64: 44 | S64: -21100 | T64: 9034 | U64: 13323 | X64: -300 | Y64: 180 | Z64: 1137 | AA64: 1676 | AB64: 0 | AD64: -539 | AE64: -14 | AF64: 3 | AG64: -5 | AH64: -3 | AI64: -558 | AJ64: 666 | AK64: 1154 | AM64: 380 | AN64: -1133 | AO64: -180 | AT64: 21.25 | AV64: 278 | AW64: 2990 | AY64: 0.8033744322 | AZ64: 55.77662281 | BA64: -5632.107023 | BE64: 29.13748379 | BF64: 764.548495 | BG64: 21.48606891 | BH64: 12987.95987 | BJ64: 14264 | BK64: 35986 | BL64: 89 | BM64: -21633 | BN64: 9191 | BO64: 13487 | BR64: -286 | BS64: 189 | BT64: 948 | BU64: 1508 | BV64: -50 | BX64: -610 | BY64: -2 | BZ64: 4 | CA64: -1 | CB64: -1 | CC64: -610 | CD64: 35 | CE64: 993 | CG64: -191 | CH64: -1251 | CI64: 995 | CN64: 21.75 | CP64: 208 | CQ64: 2893 | CS64: 1.015503876 | CT64: 55.86250239 | CU64: -5530.591082 | CY64: 29.27493438 | CZ64: 762.1845835 | DA64: 21.65109762 | DB64: 13321.11994 | DD64: 14061 | DE64: 35004 | DF64: 46 | DG64: -20897 | DH64: 9415 | DI64: 13121 | DL64: -229 | DM64: 187 | DN64: 1597 | DO64: 1746 | DP64: 0 | DR64: -149 | DS64: -14 | DT64: 3 | DU64: 5 | DV64: -3 | DW64: -168 | DX64: -104 | DY64: 1320 | EA64: -761 | EB64: -1569 | EC64: 350 | EH64: 22 | EJ64: 103 | EQ64: -1443 | ER64: 28 | ES64: 81 | ET64: -1276 | EU64: 75 | EV64: 1203 | EW64: -1724 | EX64: 19 | EY64: 735 | EZ64: 1287 | FA64: -2 | FB64: 843 | FC64: 6 | FD64: 778 | FE64: 888 | FF64: 17209 | FG64: 15404 | FH64: 1805 | FI64: 0 | FJ64: 16584 | FK64: 14825 | FL64: 1759 | FM64: 0 | FN64: 16683 | FO64: 14062 | FP64: 2621 | FQ64: 0 | FR64: 96 | FS64: 84 | FT64: 522 | FU64: 950
A65: 205 | B65: Kajaani | C65: 37239 | E65: 1.660599647 | F65: 90.6026967 | G65: -11648.05714 | K65: 30.98642848 | L65: 563.6832353 | M65: 16.86387778 | N65: 12200.30076 | P65: 300207 | Q65: 501841 | R65: 372 | S65: -201262 | T65: 137906 | U65: 115897 | X65: -2188 | Y65: -5623 | Z65: 44730 | AA65: 40492 | AB65: 0 | AD65: 4238 | AE65: -436 | AF65: 58 | AG65: -787 | AH65: -1212 | AI65: 1861 | AJ65: 83131 | AK65: 44851 | AM65: 7130 | AN65: -26002 | AO65: -8810 | AT65: 21 | AV65: 33 | AW65: 36973 | AY65: 1.394505297 | AZ65: 101.4902333 | BA65: -12825.95407 | BE65: 27.7577518 | BF65: 703.8920293 | BG65: 14.78748428 | BH65: 17374.19198 | BJ65: 298911 | BK65: 514215 | BL65: 791 | BM65: -214513 | BN65: 134861 | BO65: 116209 | BR65: -2174 | BS65: -5684 | BT65: 28699 | BU65: 37698 | BV65: 0 | BX65: -8999 | BY65: -225 | BZ65: -286 | CA65: -780 | CB65: -493 | CC65: -10783 | CD65: 72348 | CE65: 28993 | CG65: -14121 | CH65: -19911 | CI65: -36591 | CN65: 21 | CP65: 55 | CQ65: 36709 | CS65: 0.1114081483 | CT65: 138.3197328 | CU65: -12381.62304 | CY65: 26.08182791 | CZ65: 6940.831949 | DA65: 12.2342193 | DB65: 21151.18908 | DD65: 312784 | DE65: 537316 | DF65: 398 | DG65: -224134 | DH65: 137646 | DI65: 116706 | DL65: -2369 | DM65: -14932 | DN65: 12917 | DO65: 45208 | DP65: 115597 | DR65: 83306 | DS65: 2428 | DT65: 125 | DU65: 672 | DV65: -1290 | DW65: 83897 | DX65: 131446 | DY65: 16942 | EA65: -17222 | EB65: -136234 | EC65: 70469 | EH65: 21 | EJ65: 183 | EQ65: -82955 | ER65: 884 | ES65: 28410 | ET65: -99694 | EU65: 1480 | EV65: 32630 | EW65: -84951 | EX65: 850 | EY65: 137628 | EZ65: 37315 | FA65: -2380 | FB65: 58008 | FC65: 3684 | FD65: 372507 | FE65: -20867 | FF65: 336027 | FG65: 287055 | FH65: 48972 | FI65: 212 | FJ65: 383759 | FK65: 310035 | FL65: 73724 | FM65: 198 | FN65: 599164 | FO65: 541008 | FP65: 58156 | FQ65: 0 | FR65: 2462 | FS65: 1503 | FT65: 1598 | FU65: 14657
A66: 208 | B66: Kalajoki | C66: 12516 | E66: 1.987313599 | F66: 76.51147068 | G66: -3861.697028 | K66: 46.11153533 | L66: 2098.993289 | M66: 99.27440729 | N66: 7717.321828 | P66: 37969 | Q66: 102797 | R66: 49 | S66: -64779 | T66: 38599 | U66: 34367 | X66: -403 | Y66: 674 | Z66: 8458 | AA66: 8322 | AB66: 906 | AD66: 1042 | AE66: -65 | AF66: 6 | AG66: -53 | AH66: 36 | AI66: 966 | AJ66: 21970 | AK66: 8156 | AM66: 755 | AN66: -4022 | AO66: -411 | AT66: 20 | AV66: 187 | AW66: 12387 | AY66: 1.534333186 | AZ66: 82.9704797 | BA66: -4582.384758 | BE66: 43.35886375 | BF66: 2234.600791 | BG66: 75.80261549 | BH66: 10759.90958 | BJ66: 39888 | BK66: 104096 | BL66: 136 | BM66: -64072 | BN66: 38850 | BO66: 35082 | BR66: -372 | BS66: 474 | BT66: 9962 | BU66: 9926 | BV66: 146 | BX66: 182 | BY66: -89 | BZ66: 10 | CA66: -54 | CB66: 59 | CC66: 108 | CD66: 22174 | CE66: 8567 | CG66: 825 | CH66: -6328 | CI66: -8480 | CN66: 20 | CP66: 48 | CQ66: 12373 | CS66: 1.803480641 | CT66: 83.47197414 | CU66: -4976.319405 | CY66: 43.14082627 | CZ66: 2188.313263 | DA66: 77.82048418 | DB66: 10492.76651 | DD66: 40244 | DE66: 109189 | DF66: 113 | DG66: -68832 | DH66: 41412 | DI66: 35914 | DL66: -285 | DM66: 645 | DN66: 8854 | DO66: 8802 | DP66: 0 | DR66: 52 | DS66: -105 | DT66: 17 | DU66: 27 | DV66: 68 | DW66: 5 | DX66: 22405 | DY66: 8489 | EA66: 1366 | EB66: -4745 | EC66: -4467 | EH66: 21 | EJ66: 52 | EQ66: -11598 | ER66: 877 | ES66: 2154 | ET66: -21918 | EU66: 2038 | EV66: 2833 | EW66: -15413 | EX66: 1420 | EY66: 1037 | EZ66: 9175 | FA66: 154 | FB66: 15287 | FC66: 25 | FD66: 9272 | FE66: -2190 | FF66: 59412 | FG66: 38641 | FH66: 20771 | FI66: 1466 | FJ66: 68437 | FK66: 46541 | FL66: 21896 | FM66: 1411 | FN66: 70809 | FO66: 50629 | FP66: 20180 | FQ66: 1306 | FR66: 4962 | FS66: 3869 | FT66: 3163 | FU66: 4311
A67: 211 | B67: Kangasala | C67: 31437 | E67: 1.450691325 | F67: 53.43021719 | G67: -2426.66285 | K67: 47.71407383 | L67: 1747.813086 | M67: 81.04457286 | N67: 7871.616248 | P67: 109187 | Q67: 245528 | R67: 172 | S67: -136169 | T67: 128741 | U67: 38279 | X67: -1339 | Y67: 2389 | Z67: 31901 | AA67: 17812 | AB67: 0 | AD67: 14089 | AE67: -124 | AF67: 1 | AG67: -360 | AH67: 701 | AI67: 14307 | AJ67: 72926 | AK67: 31176 | AM67: -1882 | AN67: -21568 | AO67: 11425 | AT67: 21 | AV67: 69 | AW67: 31676 | AY67: 1.097847657 | AZ67: 56.85117707 | BA67: -2961.358757 | BE67: 44.89314074 | BF67: 1383.792145 | BG67: 51.19661634 | BH67: 9865.576462 | BJ67: 116161 | BK67: 265051 | BL67: 29 | BM67: -148861 | BN67: 125174 | BO67: 37493 | BR67: -1135 | BS67: 480 | BT67: 13151 | BU67: 17607 | BV67: 0 | BX67: -4456 | BY67: -211 | BZ67: 1 | CA67: -375 | CB67: -79 | CC67: -5120 | CD67: 67806 | CE67: 11638 | CG67: -4516 | CH67: -11869 | CI67: -17929 | CN67: 21 | CP67: 176 | CQ67: 31868 | CS67: 1.502206177 | CT67: 67.09801152 | CU67: -3674.87762 | CY67: 41.03211505 | CZ67: 1926.980043 | DA67: 48.77296658 | DB67: 10293.42915 | DD67: 119381 | DE67: 269358 | DF67: 138 | DG67: -149839 | DH67: 130861 | DI67: 38622 | DL67: -1140 | DM67: 2726 | DN67: 21230 | DO67: 18767 | DP67: 0 | DR67: 2463 | DS67: -141 | DT67: 0 | DU67: 324 | DV67: -121 | DW67: 1877 | DX67: 69100 | DY67: 18488 | EA67: 5562 | EB67: -13718 | EC67: -21650 | EH67: 21 | EJ67: 68 | EQ67: -21472 | ER67: 155 | ES67: 1566 | ET67: -31635 | EU67: 20 | EV67: 2048 | EW67: -43978 | EX67: 0 | EY67: 3840 | EZ67: 5878 | FA67: 7871 | FB67: 13385 | FC67: -1445 | FD67: 49647 | FE67: 277 | FF67: 101312 | FG67: 87939 | FH67: 13373 | FI67: 133 | FJ67: 101383 | FK67: 88906 | FL67: 12477 | FM67: 116 | FN67: 137589 | FO67: 121799 | FP67: 15790 | FQ67: 100 | FR67: 8487 | FS67: 36111 | FT67: 34108 | FU67: 15089
A68: 213 | B68: Kangasniemi | C68: 5549 | E68: 1.697214735 | F68: 59.51312323 | G68: -4843.575419 | K68: 32.46091879 | L68: 480.9875653 | M68: 17.17079404 | N68: 10224.36475 | P68: 24133 | Q68: 57883 | R68: -5 | S68: -33755 | T68: 18685 | U68: 18676 | X68: -229 | Y68: 145 | Z68: 3522 | AA68: 2607 | AB68: 3 | AD68: 918 | AE68: 6 | AF68: -6 | AG68: 0 | AH68: 0 | AI68: 918 | AJ68: -213 | AK68: 3720 | AM68: 602 | AN68: -1970 | AO68: 209 | AT68: 20.75 | AV68: 214 | AW68: 5452 | AY68: 0.8533576976 | AZ68: 61.28947927 | BA68: -5268.341893 | BE68: 31.23270663 | BF68: 323.5509905 | BG68: 9.849924274 | BH68: 11989.54512 | BJ68: 25024 | BK68: 59547 | BL68: 5 | BM68: -34518 | BN68: 18063 | BO68: 18116 | BR68: -170 | BS68: 184 | BT68: 1675 | BU68: 2585 | BV68: 15 | BX68: -895 | BY68: 9 | BZ68: 8 | CA68: 0 | CB68: 0 | CC68: -878 | CD68: -907 | CE68: 1582 | CG68: -29 | CH68: -1996 | CI68: -1919 | CN68: 20.75 | CP68: 214 | CQ68: 5356 | CS68: 0.6167899087 | CT68: 61.04026205 | CU68: -5386.48245 | CY68: 29.09383954 | CZ68: 578.9768484 | DA68: 9.579966969 | DB68: 12548.35698 | DD68: 26002 | DE68: 61757 | DF68: 17 | DG68: -35738 | DH68: 18514 | DI68: 18372 | DL68: -191 | DM68: 245 | DN68: 1202 | DO68: 2691 | DP68: 0 | DR68: -1489 | DS68: 19 | DT68: 0 | DU68: 0 | DV68: 0 | DW68: -1470 | DX68: -2417 | DY68: 1235 | EA68: 572 | EB68: -2083 | EC68: -1479 | EH68: 20.75 | EJ68: 232 | EQ68: -3436 | ER68: -289 | ES68: 214 | ET68: -3629 | EU68: 110 | EV68: 18 | EW68: -3149 | EX68: 30 | EY68: 405 | EZ68: 6653 | FA68: -3400 | FB68: 1777 | FC68: 409 | FD68: 1721 | FE68: 1839 | FF68: 30220 | FG68: 19243 | FH68: 10977 | FI68: 704 | FJ68: 30405 | FK68: 18932 | FL68: 11473 | FM68: 600 | FN68: 30813 | FO68: 18513 | FP68: 12300 | FQ68: 496 | FR68: 2271 | FS68: 1709 | FT68: 1630 | FU68: 215
A69: 214 | B69: Kankaanpää | C69: 11585 | E69: 1.182819383 | F69: 75.78528154 | G69: -7207.596029 | K69: 24.06746032 | L69: 577.211912 | M69: 20.00881263 | N69: 10529.47777 | P69: 67466 | Q69: 126957 | R69: 23 | S69: -59468 | T69: 39869 | U69: 28508 | X69: -424 | Y69: 735 | Z69: 9220 | AA69: 8672 | AB69: 0 | AD69: 548 | AE69: -553 | AF69: -1 | AG69: 0 | AH69: -139 | AI69: -145 | AJ69: 9952 | AK69: 10307 | AM69: -757 | AN69: -7726 | AO69: -849 | AT69: 21.5 | AV69: 131 | AW69: 11471 | AY69: 0.8129102845 | AZ69: 77.74969509 | BA69: -7641.879522 | BE69: 20.92429185 | BF69: 469.6190393 | BG69: 13.06065175 | BH69: 13124.22631 | BJ69: 67714 | BK69: 129320 | BL69: 20 | BM69: -61586 | BN69: 39779 | BO69: 28613 | BR69: -428 | BS69: 606 | BT69: 6984 | BU69: 9583 | BV69: 0 | BX69: -2599 | BY69: -632 | BZ69: -1 | CA69: 0 | CB69: -200 | CC69: -3432 | CD69: 6400 | CE69: 7580 | CG69: 108 | CH69: -8694 | CI69: -3475 | CN69: 21.5 | CP69: 109 | CQ69: 11286 | CS69: 0.6255877529 | CT69: 81.23967982 | CU69: -8283.537126 | CY69: 23.19244604 | CZ69: 524.189261 | DA69: 13.07575697 | DB69: 13326.42212 | DD69: 66892 | DE69: 129802 | DF69: -57 | DG69: -62967 | DH69: 39426 | DI69: 28733 | DL69: -374 | DM69: 500 | DN69: 5318 | DO69: 8985 | DP69: 0 | DR69: -3667 | DS69: -541 | DT69: 2 | DU69: 17 | DV69: -82 | DW69: -4305 | DX69: 1132 | DY69: 5620 | EA69: 2444 | EB69: -8742 | EC69: -5561 | EH69: 21.5 | EJ69: 129 | EQ69: -13216 | ER69: 848 | ES69: 1212 | ET69: -12055 | EU69: 670 | EV69: 330 | EW69: -11428 | EX69: 173 | EY69: 74 | EZ69: 10265 | FA69: -690 | FB69: 9740 | FC69: 158 | FD69: 14450 | FE69: -549 | FF69: 67725 | FG69: 56048 | FH69: 11677 | FI69: 0 | FJ69: 73033 | FK69: 60519 | FL69: 12514 | FM69: 0 | FN69: 78249 | FO69: 64771 | FP69: 13478 | FQ69: 0 | FR69: 1734 | FS69: 1644 | FT69: 1565 | FU69: 13626
A70: 216 | B70: Kannonkoski | C70: 1408 | E70: 1.363775902 | F70: 53.30988168 | G70: -4813.210227 | K70: 52.61415603 | L70: 2925.426136 | M70: 70.4481983 | N70: 15156.96023 | P70: 14824 | Q70: 23332 | R70: 0 | S70: -8508 | T70: 4229 | U70: 5963 | X70: 4 | Y70: 73 | Z70: 1761 | AA70: 1587 | AB70: 320 | AD70: 494 | AE70: 9 | AF70: 4 | AG70: 0 | AH70: 0 | AI70: 507 | AJ70: 11862 | AK70: 2081 | AM70: -4 | AN70: -1287 | AO70: -855 | AT70: 21 | AV70: 23 | AW70: 1353 | AY70: 0.8322981366 | AZ70: 59.35455735 | BA70: -6055.432373 | BE70: 49.77155633 | BF70: 3169.253511 | BG70: 55.34174888 | BH70: 20902.43902 | BJ70: 15267 | BK70: 24123 | BL70: 0 | BM70: -8856 | BN70: 4049 | BO70: 5907 | BR70: -5 | BS70: 92 | BT70: 1187 | BU70: 1292 | BV70: 18 | BX70: -87 | BY70: 8 | BZ70: 1 | CA70: 0 | CB70: 0 | CC70: -78 | CD70: 11798 | CE70: 1216 | CG70: 94 | CH70: -1430 | CI70: -1438 | CN70: 21 | CP70: 36 | CQ70: 1339 | CS70: -1.137573005 | CT70: 62.84009728 | CU70: -7273.338312 | CY70: 39.32192649 | CZ70: 4031.366692 | DA70: 49.27649392 | DB70: 23720.68708 | DD70: 16283 | DE70: 25702 | DF70: -1 | DG70: -9420 | DH70: 4304 | DI70: 5729 | DL70: -7 | DM70: -2375 | DN70: -1769 | DO70: 1341 | DP70: -134 | DR70: -3244 | DS70: 10 | DT70: 1 | DU70: 0 | DV70: 0 | DW70: -3233 | DX70: 8567 | DY70: 481 | EA70: 1158 | EB70: -1525 | EC70: -1574 | EH70: 21 | EJ70: 293 | EQ70: -3298 | ER70: 22 | ES70: 340 | ET70: -2656 | EU70: 2 | EV70: 0 | EW70: -2087 | EX70: 14 | EY70: 18 | EZ70: 2382 | FA70: -818 | FB70: 2430 | FC70: 179 | FD70: 3545 | FE70: -500 | FF70: 10558 | FG70: 8088 | FH70: 2470 | FI70: 49 | FJ70: 11737 | FK70: 9053 | FL70: 2684 | FM70: 62 | FN70: 13258 | FO70: 11200 | FP70: 2058 | FQ70: 49 | FR70: 2783 | FS70: 2642 | FT70: 2455 | FU70: 245
A71: 217 | B71: Kannus | C71: 5520 | E71: 3.202172097 | F71: 64.57659889 | G71: -5499.818841 | K71: 36.94748772 | L71: 1338.586957 | M71: 45.00525648 | N71: 10856.15942 | P71: 35050 | Q71: 62747 | R71: 312 | S71: -27385 | T71: 17621 | U71: 13531 | X71: -119 | Y71: 33 | Z71: 3681 | AA71: 3155 | AB71: 0 | AD71: 526 | AE71: -36 | AF71: -27 | AG71: -54 | AH71: 0 | AI71: 409 | AJ71: 12434 | AK71: 3419 | AM71: -77 | AN71: -1045 | AO71: -464 | AT71: 20.5 | AV71: 196 | AW71: 5502 | AY71: 2.859117841 | AZ71: 62.21512369 | BA71: -5334.78735 | BE71: 36.58007767 | BF71: 1748.636859 | BG71: 49.37453426 | BH71: 12926.75391 | BJ71: 38693 | BK71: 65720 | BL71: 227 | BM71: -26800 | BN71: 17779 | BO71: 13339 | BR71: -116 | BS71: 0 | BT71: 4202 | BU71: 3147 | BV71: 0 | BX71: 1055 | BY71: -150 | BZ71: -271 | CA71: -144 | CB71: 0 | CC71: 490 | CD71: 12872 | CE71: 3209 | CG71: 523 | CH71: -1378 | CI71: 808 | CN71: 21.5 | CP71: 57 | CQ71: 5464 | CS71: 1.87804878 | CT71: 62.6214294 | CU71: -5558.565154 | CY71: 37.00773242 | CZ71: 1539.348463 | DA71: 48.95330034 | DB71: 13128.66032 | DD71: 37672 | DE71: 66838 | DF71: 232 | DG71: -28934 | DH71: 17802 | DI71: 13702 | DL71: -125 | DM71: 21 | DN71: 2466 | DO71: 3204 | DP71: 0 | DR71: -738 | DS71: -33 | DT71: -10 | DU71: 31 | DV71: 0 | DW71: -812 | DX71: 12038 | DY71: 2263 | EA71: -31 | EB71: -1242 | EC71: -1094 | EH71: 21.5 | EJ71: 140 | EQ71: -4034 | ER71: 43 | ES71: 108 | ET71: -3806 | EU71: 44 | EV71: 1361 | EW71: -3456 | EX71: 0 | EY71: 99 | EZ71: 5447 | FA71: 1242 | FB71: 655 | FC71: 1059 | FD71: 1331 | FE71: 361 | FF71: 28275 | FG71: 12330 | FH71: 15945 | FI71: 50 | FJ71: 28644 | FK71: 11639 | FL71: 17005 | FM71: 49 | FN71: 29127 | FO71: 11464 | FP71: 17663 | FQ71: 47 | FR71: 1353 | FS71: 1265 | FT71: 1155 | FU71: 308
A72: 218 | B72: Karijoki | C72: 1329 | E72: 2.8767507 | F72: 27.67041835 | G72: -920.2407825 | K72: 51.8708484 | L72: 2211.437171 | M72: 61.18725759 | N72: 13191.87359 | P72: 9610 | Q72: 17813 | R72: 0 | S72: -8203 | T72: 4243 | U72: 4983 | X72: -38 | Y72: 4 | Z72: 989 | AA72: 459 | AB72: 0 | AD72: 530 | AE72: -2 | AF72: 0 | AG72: 0 | AH72: -4 | AI72: 524 | AJ72: 1659 | AK72: 933 | AM72: 16 | AN72: -319 | AO72: 419 | AT72: 22 | AV72: 156 | AW72: 1274 | AY72: 0.7418478261 | AZ72: 28.81938932 | BA72: -1902.66876 | BE72: 49.09168443 | BF72: 1427.786499 | BG72: 32.38865311 | BH72: 16090.26688 | BJ72: 9985 | BK72: 18628 | BL72: 1 | BM72: -8642 | BN72: 4032 | BO72: 4880 | BR72: -37 | BS72: 3 | BT72: 236 | BU72: 451 | BV72: 0 | BX72: -215 | BY72: 0 | BZ72: 1 | CA72: 0 | CB72: 0 | CC72: -214 | CD72: 1246 | CE72: 255 | CG72: -173 | CH72: -331 | CI72: -1209 | CN72: 22 | CP72: 253 | CQ72: 1245 | CS72: -0.6703296703 | CT72: 31.77703668 | CU72: -2829.718876 | CY72: 43.32840108 | CZ72: 910.8433735 | DA72: 32.64023401 | DB72: 16338.15261 | DD72: 9957 | DE72: 19143 | DF72: 0 | DG72: -9186 | DH72: 3838 | DI72: 5096 | DL72: -36 | DM72: 8 | DN72: -280 | DO72: 496 | DP72: -4 | DR72: -780 | DS72: 2 | DT72: 0 | DU72: 0 | DV72: 1 | DW72: -777 | DX72: 451 | DY72: -284 | EA72: -120 | EB72: -328 | EC72: -1075 | EH72: 22 | EJ72: 284 | EQ72: -643 | ER72: 4 | ES72: 125 | ET72: -1497 | EU72: 0 | EV72: 33 | EW72: -830 | EX72: 27 | EY72: 12 | EZ72: 245 | FA72: -46 | FB72: 397 | FC72: -1 | FD72: 624 | FE72: 65 | FF72: 2969 | FG72: 2586 | FH72: 383 | FI72: 1 | FJ72: 3034 | FK72: 2676 | FL72: 358 | FM72: 1 | FN72: 3396 | FO72: 2951 | FP72: 445 | FQ72: 0 | FR72: 88 | FS72: 88 | FT72: 76 | FU72: 486
A73: 224 | B73: Karkkila | C73: 8900 | E73: 0.7804726368 | F73: 71.23639825 | G73: -6956.629213 | K73: 13.399492 | L73: 614.1573034 | M73: 21.02307692 | N73: 10662.92135 | P73: 50714 | Q73: 97193 | R73: 0 | S73: -46479 | T73: 31553 | U73: 19650 | X73: -617 | Y73: 263 | Z73: 4370 | AA73: 4082 | AB73: 21 | AD73: 309 | AE73: 3 | AF73: 3 | AG73: 0 | AH73: 0 | AI73: 315 | AJ73: 2745 | AK73: 3771 | AM73: 175 | AN73: -5782 | AO73: -4064 | AT73: 20.75 | AV73: 256 | AW73: 8778 | AY73: 0.206377827 | AZ73: 71.48552808 | BA73: -7005.696058 | BE73: 12.13705536 | BF73: 897.6987924 | BG73: 23.36968003 | BH73: 14020.73365 | BJ73: 53575 | BK73: 100388 | BL73: -6 | BM73: -46819 | BN73: 30716 | BO73: 20049 | BR73: -549 | BS73: 24 | BT73: 3421 | BU73: 4326 | BV73: 0 | BX73: -905 | BY73: -9 | BZ73: 0 | CA73: -2 | CB73: 0 | CC73: -916 | CD73: 1808 | CE73: 2542 | CG73: 10 | CH73: -18826 | CI73: 511 | CN73: 20.75 | CP73: 186 | CQ73: 8714 | CS73: 0.08051462959 | CT73: 72.46748675 | CU73: -7550.95249 | CY73: 8.18072512 | CZ73: 789.4193252 | DA73: 22.70857513 | DB73: 14534.88639 | DD73: 56672 | DE73: 106822 | DF73: 7 | DG73: -50143 | DH73: 30775 | DI73: 20509 | DL73: -508 | DM73: 17 | DN73: 650 | DO73: 4068 | DP73: 0 | DR73: -3418 | DS73: 29 | DT73: 0 | DU73: 1 | DV73: -1 | DW73: -3391 | DX73: -1524 | DY73: 406 | EA73: -341 | EB73: -13943 | EC73: -4418 | EH73: 20.75 | EJ73: 266 | EQ73: -8595 | ER73: 22 | ES73: 738 | ET73: -3161 | EU73: 54 | EV73: 1076 | EW73: -5244 | EX73: 55 | EY73: 365 | EZ73: 735 | FA73: 6850 | FB73: 35350 | FC73: -16520 | FD73: 10885 | FE73: 5965 | FF73: 62977 | FG73: 34019 | FH73: 28958 | FI73: 3 | FJ73: 62980 | FK73: 43622 | FL73: 19358 | FM73: 3 | FN73: 65888 | FO73: 44851 | FP73: 21037 | FQ73: 3 | FR73: 52 | FS73: 49 | FT73: 173 | FU73: 5392
A74: 226 | B74: Karstula | C74: 4146 | E74: 4.792429792 | F74: 49.62879459 | G74: -3524.119633 | K74: 38.20570644 | L74: 2864.688857 | M74: 77.74439124 | N74: 13449.34877 | P74: 33982 | Q74: 58196 | R74: 0 | S74: -24214 | T74: 12130 | U74: 15983 | X74: 45 | Y74: -54 | Z74: 3890 | AA74: 2810 | AB74: 0 | AD74: 1080 | AE74: -68 | AF74: 183 | AG74: -45 | AH74: -28 | AI74: 1122 | AJ74: 5119 | AK74: 3820 | AM74: -309 | AN74: -784 | AO74: 355 | AT74: 20 | AV74: 85 | AW74: 4031 | AY74: 3.679218968 | AZ74: 53.99664161 | BA74: -3874.720913 | BE74: 34.39261719 | BF74: 3186.05805 | BG74: 72.1095096 | BH74: 16127.01563 | BJ74: 33843 | BK74: 58799 | BL74: 0 | BM74: -24956 | BN74: 12013 | BO74: 15483 | BR74: 25 | BS74: 16 | BT74: 2581 | BU74: 2604 | BV74: 0 | BX74: -23 | BY74: -89 | BZ74: 0 | CA74: -58 | CB74: 14 | CC74: -156 | CD74: 3514 | CE74: 2637 | CG74: -330 | CH74: -660 | CI74: -1468 | CN74: 21 | CP74: 95 | CQ74: 3949 | CS74: -4.524617997 | CT74: 55.2306233 | CU74: -4572.803241 | CY74: 24.50280126 | CZ74: 3245.885034 | DA74: 67.14975292 | DB74: 17679.15928 | DD74: 34343 | DE74: 64933 | DF74: 0 | DG74: -30590 | DH74: 12538 | DI74: 15320 | DL74: 16 | DM74: -3 | DN74: -2719 | DO74: 2628 | DP74: 0 | DR74: -5347 | DS74: -10 | DT74: 0 | DU74: 24 | DV74: 5 | DW74: -5376 | DX74: -1854 | DY74: 1509 | EA74: 1593 | EB74: -535 | EC74: -2540 | EH74: 21.5 | EJ74: 289 | EQ74: -3752 | ER74: 242 | ES74: 45 | ET74: -5420 | EU74: 636 | EV74: 679 | EW74: -4261 | EX74: 0 | EY74: 212 | EZ74: 3062 | FA74: -645 | FB74: 2210 | FC74: 655 | FD74: 3809 | FE74: -1006 | FF74: 22341 | FG74: 8374 | FH74: 13967 | FI74: 279 | FJ74: 24222 | FK74: 9997 | FL74: 14225 | FM74: 270 | FN74: 26490 | FO74: 12988 | FP74: 13502 | FQ74: 262 | FR74: 5150 | FS74: 5033 | FT74: 5646 | FU74: 3756
A75: 230 | B75: Karvia | C75: 2403 | E75: 4.092050209 | F75: 58.86609393 | G75: -5824.386184 | K75: 46.75363752 | L75: 1656.679151 | M75: 49.50143081 | N75: 12215.56388 | P75: 21599 | Q75: 34103 | R75: -2 | S75: -12506 | T75: 6712 | U75: 8588 | X75: -72 | Y75: 129 | Z75: 2851 | AA75: 2331 | AB75: 0 | AD75: 520 | AE75: -233 | AF75: 0 | AG75: -2 | AH75: -69 | AI75: 216 | AJ75: 13318 | AK75: 2624 | AM75: -72 | AN75: -634 | AO75: -1937 | AT75: 19.75 | AV75: 35 | AW75: 2390 | AY75: 2.274271845 | AZ75: 59.34881428 | BA75: -5952.719665 | BE75: 44.80150814 | BF75: 1449.372385 | BG75: 33.48677067 | BH75: 15797.90795 | BJ75: 21936 | BK75: 34722 | BL75: -11 | BM75: -12797 | BN75: 6397 | BO75: 8185 | BR75: -88 | BS75: 80 | BT75: 1777 | BU75: 2482 | BV75: 0 | BX75: -705 | BY75: -265 | BZ75: 0 | CA75: -2 | CB75: -68 | CC75: -1040 | CD75: 12455 | CE75: 1375 | CG75: -353 | CH75: -727 | CI75: -332 | CN75: 20.5 | CP75: 64 | CQ75: 2342 | CS75: 1.513677812 | CT75: 54.5146202 | CU75: -6214.346712 | CY75: 52.78031634 | CZ75: 988.471392 | DA75: 33.3252504 | DB75: 16199.82921 | DD75: 21505 | DE75: 35107 | DF75: -11 | DG75: -13613 | DH75: 6799 | DI75: 8255 | DL75: -80 | DM75: 41 | DN75: 1402 | DO75: 2563 | DP75: 0 | DR75: -1161 | DS75: -225 | DT75: 0 | DU75: 12 | DV75: -29 | DW75: -1427 | DX75: 11183 | DY75: 1517 | EA75: 920 | EB75: -895 | EC75: -207 | EH75: 20.5 | EJ75: 90 | EQ75: -5508 | ER75: 456 | ES75: 491 | ET75: -2199 | EU75: 194 | EV75: 298 | EW75: -1839 | EX75: 9 | EY75: 106 | EZ75: 3871 | FA75: -210 | FB75: 197 | FC75: 61 | FD75: 120 | FE75: -742 | FF75: 10693 | FG75: 8673 | FH75: 2020 | FI75: 1 | FJ75: 10224 | FK75: 7980 | FL75: 2244 | FM75: 0 | FN75: 8706 | FO75: 7200 | FP75: 1506 | FQ75: 0 | FR75: 268 | FS75: 313 | FT75: 261 | FU75: 618
A76: 231 | B76: Kaskinen | C76: 1274 | E76: 1.475675676 | F76: 67.64048408 | G76: -5776.295133 | K76: 58.12180337 | L76: 332.0251177 | M76: 15.12786596 | N76: 8010.989011 | P76: 4118 | Q76: 11886 | R76: 0 | S76: -7768 | T76: 6638 | U76: 2217 | X76: -57 | Y76: 4 | Z76: 1034 | AA76: 1111 | AB76: 0 | AD76: -77 | AE76: 0 | AF76: 21 | AG76: 0 | AH76: -47 | AI76: -103 | AJ76: 5809 | AK76: 987 | AM76: -332 | AN76: -682 | AO76: -1415 | AT76: 22 | AV76: 126 | AW76: 1262 | AY76: 0.990512334 | AZ76: 65.80611562 | BA76: -6018.22504 | BE76: 54.76456261 | BF76: 170.3645008 | BG76: 5.462930734 | BH76: 11382.72583 | BJ76: 4865 | BK76: 12922 | BL76: 0 | BM76: -8057 | BN76: 6663 | BO76: 1913 | BR76: -55 | BS76: 1 | BT76: 465 | BU76: 1940 | BV76: 0 | BX76: -1475 | BY76: 0 | BZ76: -8 | CA76: 0 | CB76: -18 | CC76: -1501 | CD76: 4329 | CE76: -142 | CG76: -100 | CH76: -470 | CI76: -250 | CN76: 22 | CP76: 191 | CQ76: 1246 | CS76: -0.1855541719 | CT76: 73.08258172 | CU76: -7662.921348 | CY76: 45.25734944 | CZ76: 317.0144462 | DA76: 6.084551462 | DB76: 16032.10273 | DD76: 7441 | DE76: 16081 | DF76: 0 | DG76: -8640 | DH76: 6360 | DI76: 1832 | DL76: -74 | DM76: 0 | DN76: -522 | DO76: 1397 | DP76: -3 | DR76: -1922 | DS76: 0 | DT76: 0 | DU76: 35 | DV76: 6 | DW76: -1951 | DX76: 4763 | DY76: -619 | EA76: -254 | EB76: -2334 | EC76: -1765 | EH76: 22 | EJ76: 287 | EQ76: -2430 | ER76: 27 | ES76: 1 | ET76: -909 | EU76: 33 | EV76: 768 | EW76: -1480 | EX76: 14 | EY76: 320 | EZ76: 1635 | FA76: 204 | FB76: 345 | FC76: 86 | FD76: 355 | FE76: 2840 | FF76: 5469 | FG76: 5409 | FH76: 60 | FI76: 0 | FJ76: 5444 | FK76: 2898 | FL76: 2546 | FM76: 0 | FN76: 7840 | FO76: 1946 | FP76: 5894 | FQ76: 1 | FR76: 0 | FS76: 0 | FT76: 0 | FU76: 167
A77: 232 | B77: Kauhajoki | C77: 13610 | E77: 1.425147493 | F77: 67.87767753 | G77: -6036.884644 | K77: 26.99063019 | L77: 1869.066863 | M77: 56.81112865 | N77: 12008.37619 | P77: 83982 | Q77: 163501 | R77: 157 | S77: -79362 | T77: 45865 | U77: 43727 | X77: -1118 | Y77: 1348 | Z77: 10460 | AA77: 8016 | AB77: 0 | AD77: 2444 | AE77: 18 | AF77: -14 | AG77: 0 | AH77: -37 | AI77: 2411 | AJ77: 153 | AK77: 9929 | AM77: 6571 | AN77: -7001 | AO77: 2975 | AT77: 22 | AV77: 149 | AW77: 13375 | AY77: 0.9494488788 | AZ77: 69.24914814 | BA77: -6345.196262 | BE77: 25.50820349 | BF77: 1763.28972 | BG77: 46.62636767 | BH77: 13803.36449 | BJ77: 84479 | BK77: 166629 | BL77: 214 | BM77: -81936 | BN77: 44521 | BO77: 43857 | BR77: -961 | BS77: 993 | BT77: 6474 | BU77: 8076 | BV77: 0 | BX77: -1602 | BY77: -25 | BZ77: -54 | CA77: 0 | CB77: -7 | CC77: -1688 | CD77: -2381 | CE77: 6148 | CG77: 3436 | CH77: -6873 | CI77: -2674 | CN77: 22 | CP77: 150 | CQ77: 13184 | CS77: 1.688600654 | CT77: 77.20018034 | CU77: -6755.006068 | CY77: 26.17968684 | CZ77: 2712.151092 | DA77: 42.88170886 | DB77: 15226.18325 | DD77: 87691 | DE77: 171610 | DF77: 192 | DG77: -83727 | DH77: 44798 | DI77: 44951 | DL77: -999 | DM77: 9984 | DN77: 15007 | DO77: 8843 | DP77: -80 | DR77: 6084 | DS77: 2 | DT77: -65 | DU77: 0 | DV77: 47 | DW77: 6068 | DX77: 3425 | DY77: 14130 | EA77: 4248 | EB77: -8477 | EC77: -4370 | EH77: 22 | EJ77: 11 | EQ77: -8452 | ER77: 300 | ES77: 1198 | ET77: -9594 | EU77: -6 | EV77: 778 | EW77: -19391 | EX77: 30 | EY77: 861 | EZ77: 16634 | FA77: -7158 | FB77: 8266 | FC77: -1010 | FD77: 20627 | FE77: 2809 | FF77: 93095 | FG77: 82478 | FH77: 10617 | FI77: 117 | FJ77: 93478 | FK77: 83830 | FL77: 9648 | FM77: 258 | FN77: 108445 | FO77: 95295 | FP77: 13150 | FQ77: 228 | FR77: 2861 | FS77: 2740 | FT77: 2620 | FU77: 6874
A78: 233 | B78: Kauhava | C78: 16278 | E78: 1.255061952 | F78: 60.12860894 | G78: -5707.02789 | K78: 32.51083057 | L78: 1937.891633 | M78: 55.03367333 | N78: 12852.6846 | P78: 117673 | Q78: 212526 | R78: 27 | S78: -94826 | T78: 55113 | U78: 56125 | X78: -943 | Y78: 45 | Z78: 15514 | AA78: 11844 | AB78: 0 | AD78: 3670 | AE78: -46 | AF78: 629 | AG78: -194 | AH78: -35 | AI78: 4024 | AJ78: 25744 | AK78: 14783 | AM78: 1223 | AN78: -12138 | AO78: 2387 | AT78: 21.75 | AV78: 81 | AW78: 16022 | AY78: 0.3638136089 | AZ78: 68.22771765 | BA78: -6833.478966 | BE78: 27.98031394 | BF78: 1889.714143 | BG78: 42.46407245 | BH78: 16243.04082 | BJ78: 119536 | BK78: 218741 | BL78: 53 | BM78: -99152 | BN78: 52045 | BO78: 54506 | BR78: -1112 | BS78: 44 | BT78: 6331 | BU78: 11590 | BV78: 0 | BX78: -5259 | BY78: -13 | BZ78: 646 | CA78: -128 | CB78: -28 | CC78: -4782 | CD78: 20042 | CE78: 6333 | CG78: 4016 | CH78: -19383 | CI78: -16041 | CN78: 21.75 | CP78: 184 | CQ78: 15726 | CS78: 0.4620445344 | CT78: 85.08806363 | CU78: -7749.968206 | CY78: 24.39941734 | CZ78: 1781.635508 | DA78: 51.29233999 | DB78: 13843.44398 | DD78: 82398 | DE78: 187279 | DF78: 34 | DG78: -104847 | DH78: 53598 | DI78: 57614 | DL78: -821 | DM78: -89 | DN78: 5455 | DO78: 14478 | DP78: 0 | DR78: -9023 | DS78: 148 | DT78: 1888 | DU78: 130 | DV78: 17 | DW78: -7100 | DX78: 10841 | DY78: 5378 | EA78: 11005 | EB78: -12896 | EC78: -11436 | EH78: 21.75 | EJ78: 187 | EQ78: -13949 | ER78: 0 | ES78: 1553 | ET78: -23477 | EU78: 306 | EV78: 797 | EW78: -18915 | EX78: 403 | EY78: 1698 | EZ78: 10004 | FA78: -823 | FB78: 25049 | FC78: 74 | FD78: 25441 | FE78: -10025 | FF78: 108413 | FG78: 93198 | FH78: 15215 | FI78: 26 | FJ78: 121585 | FK78: 102392 | FL78: 19193 | FM78: 13 | FN78: 132962 | FO78: 116820 | FP78: 16142 | FQ78: 0 | FR78: 5018 | FS78: 4876 | FT78: 4198 | FU78: 8026
A79: 235 | B79: Kauniainen | C79: 9624 | E79: 13.0181668 | F79: 33.26746687 | G79: -2047.277639 | K79: 73.2852974 | L79: 1258.000831 | M79: 57.94114176 | N79: 7924.771405 | P79: 40332 | Q79: 93315 | R79: 1 | S79: -52982 | T79: 69270 | U79: -796 | X79: -108 | Y79: 47 | Z79: 15431 | AA79: 9319 | AB79: 45 | AD79: 6157 | AE79: -8 | AF79: 83 | AG79: -5 | AH79: 18 | AI79: 6245 | AJ79: 49060 | AK79: 14333 | AM79: -584 | AN79: -877 | AO79: -2427 | AT79: 17 | AV79: 7 | AW79: 9615 | AY79: 11.30412371 | AZ79: 32.54137159 | BA79: -1984.295372 | BE79: 74.24800273 | BF79: 1232.969319 | BG79: 39.36137794 | BH79: 11433.38534 | BJ79: 42147 | BK79: 96141 | BL79: -5 | BM79: -53999 | BN79: 69149 | BO79: -2284 | BR79: -90 | BS79: 54 | BT79: 12830 | BU79: 9199 | BV79: 0 | BX79: 3631 | BY79: 0 | BZ79: -246 | CA79: -7 | CB79: -61 | CC79: 3317 | CD79: 51762 | CE79: 10876 | CG79: -210 | CH79: -836 | CI79: 429 | CN79: 17 | CP79: 6 | CQ79: 9797 | CS79: 7.351666667 | CT79: 37.07308183 | CU79: -2534.959682 | CY79: 71.41967277 | CZ79: 1031.438195 | DA79: 37.13616353 | DB79: 11894.35541 | DD79: 44611 | DE79: 101214 | DF79: 6 | DG79: -56597 | DH79: 66993 | DI79: -1864 | DL79: -85 | DM79: 53 | DN79: 8500 | DO79: 9705 | DP79: 0 | DR79: -1205 | DS79: -3 | DT79: -286 | DU79: 8 | DV79: -72 | DW79: -1574 | DX79: 50406 | DY79: 5811 | EA79: -1124 | EB79: -878 | EC79: -5495 | EH79: 17 | EJ79: 30 | EQ79: -18348 | ER79: 240 | ES79: 1348 | ET79: -12506 | EU79: 22 | EV79: 2037 | EW79: -14056 | EX79: 14 | EY79: 2736 | EZ79: 915 | FA79: 1922 | FB79: 260 | FC79: -1791 | FD79: 1610 | FE79: 2485 | FF79: 21859 | FG79: 19041 | FH79: 2818 | FI79: 4710 | FJ79: 19470 | FK79: 18392 | FL79: 1078 | FM79: 4684 | FN79: 22681 | FO79: 19101 | FP79: 3580 | FQ79: 4618 | FR79: 2598 | FS79: 2394 | FT79: 2162 | FU79: 4429
A80: 236 | B80: Kaustinen | C80: 4309 | E80: 0.6456487754 | F80: 106.6618327 | G80: -11458.57508 | K80: 21.88024622 | L80: 1236.945927 | M80: 37.3156229 | N80: 12099.09492 | P80: 28898 | Q80: 51486 | R80: 172 | S80: -22416 | T80: 13983 | U80: 12284 | X80: -263 | Y80: -170 | Z80: 3418 | AA80: 3351 | AB80: -12 | AD80: 55 | AE80: 0 | AF80: 0 | AG80: 0 | AH80: 0 | AI80: 55 | AJ80: 4606 | AK80: 3266 | AM80: 426 | AN80: -5458 | AO80: -1906 | AT80: 21.5 | AV80: 134 | AW80: 4273 | AY80: 0.8326456937 | AZ80: 104.6223108 | BA80: -11886.02855 | BE80: 20.56877124 | BF80: 1476.480225 | BG80: 35.33613123 | BH80: 15251.11163 | BJ80: 31162 | BK80: 55132 | BL80: 120 | BM80: -23850 | BN80: 14057 | BO80: 12977 | BR80: -263 | BS80: -50 | BT80: 2871 | BU80: 3261 | BV80: -1 | BX80: -391 | BY80: 8 | BZ80: -76 | CA80: 0 | CB80: 0 | CC80: -459 | CD80: 3906 | CE80: 2085 | CG80: 436 | CH80: -3520 | CI80: -1457 | CN80: 21.5 | CP80: 83 | CQ80: 4261 | CS80: 0.4127775261 | CT80: 113.6018292 | CU80: -12491.43394 | CY80: 19.00250696 | CZ80: 1320.11265 | DA80: 36.72703349 | DB80: 14714.85567 | DD80: 28529 | DE80: 53879 | DF80: 121 | DG80: -25229 | DH80: 13851 | DI80: 13164 | DL80: -349 | DM80: 8 | DN80: 1445 | DO80: 3318 | DP80: 0 | DR80: -1873 | DS80: -21 | DT80: 4 | DU80: 0 | DV80: 0 | DW80: -1890 | DX80: 2487 | DY80: 1090 | EA80: 321 | EB80: -4037 | EC80: -3057 | EH80: 21.5 | EJ80: 188 | EQ80: -5327 | ER80: 49 | ES80: 106 | ET80: -6061 | EU80: 49 | EV80: 2470 | EW80: -4357 | EX80: 15 | EY80: 195 | EZ80: 10223 | FA80: 93 | FB80: 4999 | FC80: -9 | FD80: 2264 | FE80: 3075 | FF80: 47846 | FG80: 40259 | FH80: 7587 | FI80: 22 | FJ80: 49632 | FK80: 41788 | FL80: 7844 | FM80: 22 | FN80: 50818 | FO80: 40575 | FP80: 10243 | FQ80: 281 | FR80: 2349 | FS80: 1631 | FT80: 1480 | FU80: 1168
A81: 239 | B81: Keitele | C81: 2309 | E81: 1.031561462 | F81: 69.58837583 | G81: -6640.537029 | K81: 32.84501357 | L81: 281.507146 | M81: 9.673013414 | N81: 10622.34734 | P81: 10079 | Q81: 25038 | R81: 14 | S81: -14945 | T81: 7315 | U81: 8139 | X81: -82 | Y81: 109 | Z81: 536 | AA81: 1036 | AB81: 0 | AD81: -500 | AE81: -8 | AF81: 3 | AG81: -3 | AH81: -2 | AI81: -510 | AJ81: 986 | AK81: 535 | AM81: -52 | AN81: -517 | AO81: -548 | AT81: 20.5 | AV81: 289 | AW81: 2244 | AY81: 0.6413043478 | AZ81: 78.283594 | BA81: -7068.181818 | BE81: 27.01046544 | BF81: 907.7540107 | BG81: 27.40527092 | BH81: 12090.01783 | BJ81: 10247 | BK81: 24712 | BL81: 22 | BM81: -14443 | BN81: 6874 | BO81: 7943 | BR81: -84 | BS81: 213 | BT81: 503 | BU81: 1150 | BV81: -26 | BX81: -673 | BY81: 1 | BZ81: 5 | CA81: 0 | CB81: -1 | CC81: -668 | CD81: -1456 | CE81: 487 | CG81: 54 | CH81: -833 | CI81: -862 | CN81: 20.5 | CP81: 244 | CQ81: 2202 | CS81: 6.868131868 | CT81: 77.61071303 | CU81: -7253.405995 | CY81: 30.65145703 | CZ81: 852.8610354 | DA81: 27.61755845 | DB81: 11907.81108 | DD81: 9713 | DE81: 23896 | DF81: 16 | DG81: -14167 | DH81: 7134 | DI81: 8692 | DL81: -106 | DM81: 209 | DN81: 1762 | DO81: 1192 | DP81: -181 | DR81: 389 | DS81: -9 | DT81: 1 | DU81: 3 | DV81: -8 | DW81: 370 | DX81: -1014 | DY81: 1634 | EA81: -193 | EB81: -160 | EC81: -239 | EH81: 20.5 | EJ81: 40 | EQ81: -1168 | ER81: 30 | ES81: 55 | ET81: -1454 | EU81: 10 | EV81: 95 | EW81: -2006 | EX81: 81 | EY81: 52 | EZ81: 162 | FA81: 798 | FB81: 3992 | FC81: -1250 | FD81: 336 | FE81: -281 | FF81: 17768 | FG81: 8965 | FH81: 8803 | FI81: 0 | FJ81: 19621 | FK81: 12024 | FL81: 7597 | FM81: 3 | FN81: 19909 | FO81: 11945 | FP81: 7964 | FQ81: 0 | FR81: 1441 | FS81: 1673 | FT81: 911 | FU81: 726
A82: 240 | B82: Kemi | C82: 21256 | E82: 1.176225885 | F82: 66.32167279 | G82: -5908.637561 | K82: 30.66217786 | L82: 782.5084682 | M82: 27.02530237 | N82: 10568.45126 | P82: 105205 | Q82: 220500 | R82: 173 | S82: -115122 | T82: 87280 | U82: 50128 | X82: -1892 | Y82: 289 | Z82: 20683 | AA82: 13783 | AB82: -60 | AD82: 6840 | AE82: -46 | AF82: -33 | AG82: -1185 | AH82: -135 | AI82: 5441 | AJ82: 4667 | AK82: 19155 | AM82: -554 | AN82: -17294 | AO82: 10059 | AT82: 21.25 | AV82: 75 | AW82: 21021 | AY82: 0.3532867416 | AZ82: 72.08347475 | BA82: -6611.245897 | BE82: 27.44361478 | BF82: 824.4136816 | BG82: 21.9571926 | BH82: 13704.43842 | BJ82: 111044 | BK82: 231676 | BL82: 132 | BM82: -120500 | BN82: 85711 | BO82: 44851 | BR82: -1435 | BS82: 331 | BT82: 8958 | BU82: 13615 | BV82: 35 | BX82: -4622 | BY82: -26 | BZ82: -54 | CA82: -1219 | CB82: -79 | CC82: -6000 | CD82: -1332 | CE82: 7902 | CG82: 998 | CH82: -28113 | CI82: -13395 | CN82: 21.75 | CP82: 171 | CQ82: 20707 | CS82: 0.5878848616 | CT82: 78.83856529 | CU82: -7059.931424 | CY82: 25.02835875 | CZ82: 969.6720916 | DA82: 23.18515681 | DB82: 13176.17231 | DD82: 107533 | DE82: 233851 | DF82: 67 | DG82: -126251 | DH82: 86080 | DI82: 44093 | DL82: -1118 | DM82: 6510 | DN82: 9314 | DO82: 12453 | DP82: 0 | DR82: -3139 | DS82: -6 | DT82: 3014 | DU82: 613 | DV82: 12 | DW82: -732 | DX82: -2970 | DY82: 9090 | EA82: -147 | EB82: -16716 | EC82: -10551 | EH82: 21.75 | EJ82: 141 | EQ82: -15116 | ER82: 415 | ES82: 5605 | ET82: -26743 | EU82: 174 | EV82: 5272 | EW82: -21034 | EX82: 417 | EY82: 976 | EZ82: 10606 | FA82: -388 | FB82: 25612 | FC82: 12569 | FD82: 19419 | FE82: 7084 | FF82: 120540 | FG82: 81611 | FH82: 38929 | FI82: 0 | FJ82: 135345 | FK82: 90400 | FL82: 44945 | FM82: 0 | FN82: 149221 | FO82: 93810 | FP82: 55411 | FQ82: 0 | FR82: 6501 | FS82: 5293 | FT82: 5737 | FU82: 2617
A83: 320 | B83: Kemijärvi | C83: 7534 | E83: 1.061226879 | F83: 100.3299875 | G83: -11526.14813 | K83: 29.14181636 | L83: 1484.868596 | M83: 41.31887314 | N83: 13116.93655 | P83: 50571 | Q83: 101010 | R83: 0 | S83: -50439 | T83: 29153 | U83: 29068 | X83: -1016 | Y83: 1182 | Z83: 7948 | AA83: 6922 | AB83: 9 | AD83: 1035 | AE83: -397 | AF83: 61 | AG83: 0 | AH83: -416 | AI83: 283 | AJ83: 7243 | AK83: 7997 | AM83: -169 | AN83: -7425 | AO83: -4100 | AT83: 21 | AV83: 64 | AW83: 7370 | AY83: 0.551152899 | AZ83: 94.46148246 | BA83: -11293.75848 | BE83: 30.10338524 | BF83: 1557.123474 | BG83: 32.93112259 | BH83: 17258.7517 | BJ83: 51891 | BK83: 101202 | BL83: 0 | BM83: -49311 | BN83: 29446 | BO83: 28548 | BR83: -984 | BS83: 1066 | BT83: 8765 | BU83: 7171 | BV83: 0 | BX83: 1594 | BY83: -316 | BZ83: 57 | CA83: 0 | CB83: -485 | CC83: 850 | CD83: 7513 | CE83: 7980 | CG83: 1498 | CH83: -16785 | CI83: 3681 | CN83: 21.5 | CP83: 13 | CQ83: 7274 | CS83: 0.9649249249 | CT83: 94.86394681 | CU83: -11646.54935 | CY83: 34.6276261 | CZ83: 1420.40143 | DA83: 34.09443499 | DB83: 16889.88177 | DD83: 53104 | DE83: 103613 | DF83: 0 | DG83: -50509 | DH83: 28497 | DI83: 28503 | DL83: -630 | DM83: 1372 | DN83: 7233 | DO83: 7196 | DP83: 0 | DR83: 37 | DS83: -373 | DT83: 24 | DU83: 0 | DV83: -491 | DW83: -803 | DX83: 6836 | DY83: 6532 | EA83: -135 | EB83: -7525 | EC83: -1407 | EH83: 21.5 | EJ83: 22 | EQ83: -12082 | ER83: 190 | ES83: -205 | ET83: -7226 | EU83: 164 | EV83: 2763 | EW83: -9978 | EX83: 1673 | EY83: 366 | EZ83: 7698 | FA83: 4138 | FB83: 15771 | FC83: -3956 | FD83: 11539 | FE83: -3045 | FF83: 71662 | FG83: 57803 | FH83: 13859 | FI83: 740 | FJ83: 66238 | FK83: 56972 | FL83: 9266 | FM83: 736 | FN83: 67127 | FO83: 59602 | FP83: 7525 | FQ83: 429 | FR83: 8725 | FS83: 8552 | FT83: 7148 | FU83: 2020
A84: 241 | B84: Keminmaa | C84: 8296 | E84: 1.373975904 | F84: 60.85487185 | G84: -3739.513018 | K84: 40.64318607 | L84: 1112.584378 | M84: 48.9786869 | N84: 8291.224687 | P84: 26511 | Q84: 68392 | R84: 0 | S84: -41881 | T84: 34762 | U84: 12703 | X84: -377 | Y84: 115 | Z84: 5322 | AA84: 4048 | AB84: -430 | AD84: 849 | AE84: 0 | AF84: 6 | AG84: 0 | AH84: -101 | AI84: 754 | AJ84: 5626 | AK84: 4976 | AM84: 433 | AN84: -3770 | AO84: 1417 | AT84: 21.25 | AV84: 211 | AW84: 8147 | AY84: 0.7520036638 | AZ84: 55.31829386 | BA84: -3025.162637 | BE84: 42.3531438 | BF84: 1154.289923 | BG84: 43.19678836 | BH84: 9753.406162 | BJ84: 27442 | BK84: 71492 | BL84: 0 | BM84: -44050 | BN84: 34796 | BO84: 12410 | BR84: -309 | BS84: 123 | BT84: 2970 | BU84: 4057 | BV84: 713 | BX84: -374 | BY84: 0 | BZ84: 5 | CA84: 0 | CB84: -165 | CC84: -534 | CD84: 5459 | CE84: 3099 | CG84: -2082 | CH84: -4053 | CI84: 6638 | CN84: 21.25 | CP84: 195 | CQ84: 8079 | CS84: 1.102764155 | CT84: 53.16526045 | CU84: -2920.906053 | CY84: 42.12799626 | CZ84: 1538.804307 | DA84: 40.60208898 | DB84: 10464.04258 | DD84: 30254 | DE84: 74348 | DF84: 0 | DG84: -44094 | DH84: 35804 | DI84: 13114 | DL84: -272 | DM84: 120 | DN84: 4672 | DO84: 3826 | DP84: 3 | DR84: 849 | DS84: 0 | DT84: -67 | DU84: 0 | DV84: -276 | DW84: 506 | DX84: 5338 | DY84: 4762 | EA84: 1789 | EB84: -4211 | EC84: -780 | EH84: 21.25 | EJ84: 97 | EQ84: -3796 | ER84: 60 | ES84: 177 | ET84: -3591 | EU84: 133 | EV84: 6997 | EW84: -5682 | EX84: 131 | EY84: 9 | EZ84: 2500 | FA84: 3 | FB84: 15 | FC84: 599 | FD84: 5062 | FE84: 849 | FF84: 29237 | FG84: 25348 | FH84: 3889 | FI84: 18 | FJ84: 26012 | FK84: 21198 | FL84: 4814 | FM84: 82 | FN84: 27666 | FO84: 22579 | FP84: 5087 | FQ84: 59 | FR84: 955 | FS84: 433 | FT84: 330 | FU84: 280
A85: 322 | B85: Kemiönsaari | C85: 6793 | E85: 1.874660745 | F85: 63.67671136 | G85: -5150.301781 | K85: 45.13779114 | L85: 1112.468718 | M85: 44.03705537 | N85: 9220.668335 | P85: 28373 | Q85: 66346 | R85: 4 | S85: -37969 | T85: 23382 | U85: 22148 | X85: -472 | Y85: 39 | Z85: 7128 | AA85: 5106 | AB85: -62 | AD85: 2022 | AE85: -15 | AF85: 0 | AG85: -62 | AH85: -37 | AI85: 1908 | AJ85: 20132 | AK85: 5950 | AM85: -354 | AN85: -3583 | AO85: 18 | AT85: 19.75 | AV85: 65 | AW85: 6724 | AY85: 0.6190366444 | AZ85: 60.43503407 | BA85: -5183.521713 | BE85: 45.52468581 | BF85: 577.1861987 | BG85: 18.83780154 | BH85: 11183.52171 | BJ85: 27424 | BK85: 68266 | BL85: 2 | BM85: -40840 | BN85: 22262 | BO85: 21205 | BR85: -453 | BS85: 60 | BT85: 2234 | BU85: 5149 | BV85: 0 | BX85: -2915 | BY85: -2 | BZ85: -214 | CA85: -59 | CB85: 27 | CC85: -3163 | CD85: 17302 | CE85: 1841 | CG85: 553 | CH85: -3887 | CI85: 87 | CN85: 19.75 | CP85: 201 | CQ85: 6640 | CS85: 0.8355134985 | CT85: 60.56677679 | CU85: -5195.933735 | CY85: 44.77966227 | CZ85: 712.0481928 | DA85: 18.9598335 | DB85: 11252.10843 | DD85: 27481 | DE85: 68792 | DF85: 16 | DG85: -41295 | DH85: 22657 | DI85: 21601 | DL85: -366 | DM85: 39 | DN85: 2636 | DO85: 5154 | DP85: 0 | DR85: -2518 | DS85: -6 | DT85: 211 | DU85: 45 | DV85: -54 | DW85: -2412 | DX85: 14770 | DY85: 2541 | EA85: -34 | EB85: -3227 | EC85: 441 | EH85: 19.75 | EJ85: 164 | EQ85: -7858 | ER85: 285 | ES85: 1641 | ET85: -2496 | EU85: 198 | EV85: 544 | EW85: -2234 | EX85: 44 | EY85: 90 | EZ85: 4691 | FA85: 1102 | FB85: 693 | FC85: -1928 | FD85: 350 | FE85: 3654 | FF85: 36308 | FG85: 30840 | FH85: 5468 | FI85: 1 | FJ85: 31218 | FK85: 28271 | FL85: 2947 | FM85: 1 | FN85: 32081 | FO85: 25633 | FP85: 6448 | FQ85: 1 | FR85: 1711 | FS85: 1406 | FT85: 1193 | FU85: 5032
A86: 244 | B86: Kempele | C86: 17535 | E86: 1.446848042 | F86: 64.23865018 | G86: -3545.993727 | K86: 42.93059979 | L86: 794.582264 | M86: 48.62734505 | N86: 5964.185914 | P86: 34369 | Q86: 119201 | R86: 85 | S86: -84747 | T86: 67244 | U86: 28301 | X86: -851 | Y86: 100 | Z86: 10047 | AA86: 8222 | AB86: 0 | AD86: 1825 | AE86: 6 | AF86: 76 | AG86: -2 | AH86: 22 | AI86: 1927 | AJ86: 21414 | AK86: 6672 | AM86: -937 | AN86: -6680 | AO86: -11001 | AT86: 20.5 | AV86: 226 | AW86: 17923 | AY86: 1.098953886 | AZ86: 70.34093784 | BA86: -4018.356302 | BE86: 40.73581209 | BF86: 839.1452324 | BG86: 35.37478091 | BH86: 8658.371924 | BJ86: 37141 | BK86: 124080 | BL86: -32 | BM86: -86971 | BN86: 68585 | BO86: 28668 | BR86: -795 | BS86: -2 | BT86: 9485 | BU86: 7897 | BV86: 453 | BX86: 2041 | BY86: -15 | BZ86: -109 | CA86: -2 | CB86: -31 | CC86: 1884 | CD86: 23761 | CE86: 5194 | CG86: 56 | CH86: -8558 | CI86: -10345 | CN86: 20.5 | CP86: 131 | CQ86: 18355 | CS86: 0.6603025937 | CT86: 77.28497063 | CU86: -4729.501498 | CY86: 37.17569022 | CZ86: 623.6447834 | DA86: 33.96105021 | DB86: 8806.537728 | DD86: 37179 | DE86: 132292 | DF86: 23 | DG86: -95090 | DH86: 71188 | DI86: 29370 | DL86: -752 | DM86: 17 | DN86: 4733 | DO86: 7698 | DP86: 0 | DR86: -2965 | DS86: -1 | DT86: -3 | DU86: 6 | DV86: -59 | DW86: -3034 | DX86: 20727 | DY86: 1071 | EA86: -721 | EB86: -7562 | EC86: -14740 | EH86: 20.5 | EJ86: 222 | EQ86: -22209 | ER86: 528 | ES86: 4008 | ET86: -21605 | EU86: 281 | EV86: 5785 | EW86: -20986 | EX86: 492 | EY86: 4683 | EZ86: 13748 | FA86: 0 | FB86: 18673 | FC86: -78 | FD86: 17051 | FE86: -88 | FF86: 61107 | FG86: 53598 | FH86: 7509 | FI86: 29 | FJ86: 71092 | FK86: 63512 | FL86: 7580 | FM86: 3 | FN86: 80493 | FO86: 72602 | FP86: 7891 | FQ86: 3 | FR86: 1054 | FS86: 867 | FT86: 734 | FU86: 16787
A87: 245 | B87: Kerava | C87: 35554 | E87: 2.156226029 | F87: 73.80521906 | G87: -6214.350003 | K87: 53.50204719 | L87: 641.531192 | M87: 28.49300277 | N87: 8218.118918 | P87: 178172 | Q87: 327844 | R87: 28 | S87: -149644 | T87: 156322 | U87: 34423 | X87: -772 | Y87: 932 | Z87: 41261 | AA87: 29517 | AB87: 134 | AD87: 11878 | AE87: -172 | AF87: 39 | AG87: -362 | AH87: -523 | AI87: 10860 | AJ87: 137647 | AK87: 38574 | AM87: -1758 | AN87: -18651 | AO87: -8646 | AT87: 19.25 | AV87: 41 | AW87: 36254 | AY87: 1.621773563 | AZ87: 75.5574621 | BA87: -6364.732167 | BE87: 53.0266474 | BF87: 648.6732498 | BG87: 21.23360239 | BH87: 11150.52132 | BJ87: 182884 | BK87: 338222 | BL87: 59 | BM87: -155279 | BN87: 151935 | BO87: 35834 | BR87: -782 | BS87: 551 | BT87: 32259 | BU87: 30748 | BV87: 0 | BX87: 1511 | BY87: 60 | BZ87: -10 | CA87: -19 | CB87: -68 | CC87: 1474 | CD87: 139430 | CE87: 27934 | CG87: 2694 | CH87: -19540 | CI87: -9501 | CN87: 19.25 | CP87: 34 | CQ87: 36756 | CS87: 1.36874815 | CT87: 77.24748397 | CU87: -6679.64414 | CY87: 53.0050478 | CZ87: 696.076831 | DA87: 19.2316163 | DB87: 12143.13309 | DD87: 189064 | DE87: 357082 | DF87: 330 | DG87: -167688 | DH87: 156821 | DI87: 37655 | DL87: -1546 | DM87: 828 | DN87: 26070 | DO87: 34923 | DP87: 14166 | DR87: 5313 | DS87: 28 | DT87: -1 | DU87: 19 | DV87: -274 | DW87: 5047 | DX87: 144477 | DY87: 37481 | EA87: 573 | EB87: -18594 | EC87: -16507 | EH87: 19.25 | EJ87: 55 | EQ87: -56048 | ER87: 43 | ES87: 8785 | ET87: -44837 | EU87: 84 | EV87: 7318 | EW87: -68577 | EX87: 215 | EY87: 14374 | EZ87: 27781 | FA87: -521 | FB87: 21700 | FC87: -9 | FD87: 29099 | FE87: 1752 | FF87: 177664 | FG87: 147148 | FH87: 30516 | FI87: 219 | FJ87: 179815 | FK87: 150801 | FL87: 29014 | FM87: 80 | FN87: 191426 | FO87: 148850 | FP87: 42576 | FQ87: 87 | FR87: 3263 | FS87: 5664 | FT87: 6631 | FU87: 27661
A88: 249 | B88: Keuruu | C88: 9919 | E88: 1.982530761 | F88: 111.3418598 | G88: -11661.55862 | K88: 27.92760296 | L88: 605.5045872 | M88: 22.72193949 | N88: 9726.686158 | P88: 52407 | Q88: 105050 | R88: 125 | S88: -52518 | T88: 33735 | U88: 31687 | X88: -615 | Y88: 111 | Z88: 12400 | AA88: 9916 | AB88: 0 | AD88: 2484 | AE88: -219 | AF88: 11 | AG88: -38 | AH88: -94 | AI88: 2144 | AJ88: 13623 | AK88: 12173 | AM88: -186 | AN88: -5932 | AO88: -2664 | AT88: 20.5 | AV88: 25 | AW88: 9762 | AY88: 1.961674827 | AZ88: 112.1778132 | BA88: -12138.80352 | BE88: 27.25627943 | BF88: 679.7787339 | BG88: 18.6899287 | BH88: 13275.55829 | BJ88: 55436 | BK88: 109333 | BL88: 217 | BM88: -53680 | BN88: 34185 | BO88: 31000 | BR88: -628 | BS88: 70 | BT88: 10947 | BU88: 10153 | BV88: 0 | BX88: 794 | BY88: -379 | BZ88: -1 | CA88: -80 | CB88: -155 | CC88: 179 | CD88: 14074 | CE88: 10350 | CG88: -570 | CH88: -5251 | CI88: -2617 | CN88: 21.5 | CP88: 15 | CQ88: 9605 | CS88: 0.9294055898 | CT88: 120.318364 | CU88: -13375.32535 | CY88: 27.090873 | CZ88: 599.6876627 | DA88: 17.78494624 | DB88: 14136.3873 | DD88: 53344 | DE88: 111365 | DF88: 252 | DG88: -57769 | DH88: 33607 | DI88: 31090 | DL88: -579 | DM88: 107 | DN88: 6456 | DO88: 10045 | DP88: 0 | DR88: -3589 | DS88: -93 | DT88: 1 | DU88: 6 | DV88: -9 | DW88: -3696 | DX88: 10512 | DY88: 6702 | EA88: 2961 | EB88: -6994 | EC88: -9862 | EH88: 21.5 | EJ88: 66 | EQ88: -15195 | ER88: 60 | ES88: 298 | ET88: -14242 | EU88: 41 | EV88: 1234 | EW88: -16752 | EX88: 8 | EY88: 180 | EZ88: 13737 | FA88: -2724 | FB88: 4660 | FC88: 2398 | FD88: 11132 | FE88: 3267 | FF88: 100404 | FG88: 58711 | FH88: 41693 | FI88: 0 | FJ88: 102233 | FK88: 59095 | FL88: 43138 | FM88: 0 | FN88: 110156 | FO88: 62995 | FP88: 47161 | FQ88: 0 | FR88: 863 | FS88: 675 | FT88: 638 | FU88: 1707
A89: 250 | B89: Kihniö | C89: 1967 | E89: 1.305764411 | F89: 66.5046787 | G89: -4394.001017 | K89: 33.24375435 | L89: 1341.128622 | M89: 54.96460783 | N89: 8905.948144 | P89: 5798 | Q89: 18419 | R89: 12 | S89: -12609 | T89: 5880 | U89: 7665 | X89: -143 | Y89: 103 | Z89: 896 | AA89: 1017 | AB89: 0 | AD89: -121 | AE89: -16 | AF89: 0 | AG89: -10 | AH89: -4 | AI89: -151 | AJ89: -428 | AK89: 954 | AM89: -454 | AN89: -652 | AO89: -651 | AT89: 21.5 | AV89: 265 | AW89: 1910 | AY89: 1.231343284 | AZ89: 63.91138046 | BA89: -4667.539267 | BE89: 32.99805806 | BF89: 1492.146597 | BG89: 48.64845906 | BH89: 11195.28796 | BJ89: 6900 | BK89: 19089 | BL89: 1 | BM89: -12188 | BN89: 5774 | BO89: 7457 | BR89: -141 | BS89: 109 | BT89: 1011 | BU89: 894 | BV89: 0 | BX89: 117 | BY89: -16 | BZ89: 0 | CA89: -11 | CB89: -1 | CC89: 89 | CD89: -424 | CE89: 692 | CG89: 497 | CH89: -794 | CI89: -244 | CN89: 21.5 | CP89: 130 | CQ89: 1865 | CS89: 0.8663043478 | CT89: 62.76088253 | CU89: -5233.243968 | CY89: 33.26337343 | CZ89: 1003.753351 | DA89: 47.79601623 | DB89: 11628.95442 | DD89: 6765 | DE89: 19285 | DF89: -3 | DG89: -12523 | DH89: 5713 | DI89: 7646 | DL89: -138 | DM89: -42 | DN89: 656 | DO89: 873 | DP89: 0 | DR89: -217 | DS89: -15 | DT89: 0 | DU89: 9 | DV89: -1 | DW89: -242 | DX89: -666 | DY89: 592 | EA89: 122 | EB89: -779 | EC89: -822 | EH89: 21.5 | EJ89: 184 | EQ89: -1738 | ER89: 2 | ES89: 131 | ET89: -1317 | EU89: 32 | EV89: 349 | EW89: -1424 | EX89: 2 | EY89: 8 | EZ89: 2250 | FA89: 1 | FB89: 586 | FC89: -7 | FD89: 499 | FE89: 1 | FF89: 10723 | FG89: 9981 | FH89: 742 | FI89: 7 | FJ89: 10566 | FK89: 9797 | FL89: 769 | FM89: 23 | FN89: 10285 | FO89: 9528 | FP89: 757 | FQ89: 34 | FR89: 3219 | FS89: 3208 | FT89: 3150 | FU89: 2104
A90: 256 | B90: Kinnula | C90: 1656 | E90: 17.77272727 | F90: 56.92932575 | G90: -1676.328502 | K90: 56.94985298 | L90: 2371.376812 | M90: 89.56789352 | N90: 9663.647343 | P90: 6144 | Q90: 17047 | R90: 0 | S90: -10903 | T90: 4778 | U90: 7543 | X90: 84 | Y90: 56 | Z90: 1558 | AA90: 990 | AB90: 0 | AD90: 568 | AE90: 0 | AF90: 2 | AG90: 0 | AH90: 0 | AI90: 570 | AJ90: 7397 | AK90: 1577 | AM90: -344 | AN90: -82 | AO90: 587 | AT90: 20.5 | AV90: 84 | AW90: 1615 | AY90: -1.885057471 | AZ90: 68.29742242 | BA90: -3432.817337 | BE90: 51.5714342 | BF90: 1585.758514 | BG90: 45.59162074 | BH90: 12695.35604 | BJ90: 5903 | BK90: 17749 | BL90: -29 | BM90: -11875 | BN90: 4599 | BO90: 6995 | BR90: 74 | BS90: 38 | BT90: -169 | BU90: 1042 | BV90: 0 | BX90: -1211 | BY90: 0 | BZ90: 0 | CA90: 0 | CB90: 0 | CC90: -1211 | CD90: 6144 | CE90: -169 | CG90: 0 | CH90: -82 | CI90: -2740 | CN90: 20.5 | CP90: 288 | CQ90: 1620 | CS90: -3.662790698 | CT90: 71.93822306 | CU90: -4857.407407 | CY90: 47.54105074 | CZ90: 1243.209877 | DA90: 46.3236533 | DB90: 12456.17284 | DD90: 6148 | DE90: 17942 | DF90: -25 | DG90: -11819 | DH90: 4432 | DI90: 6967 | DL90: 58 | DM90: 40 | DN90: -322 | DO90: 1078 | DP90: 0 | DR90: -1400 | DS90: -5 | DT90: 0 | DU90: 0 | DV90: 0 | DW90: -1405 | DX90: 3240 | DY90: -236 | EA90: 1125 | EB90: -79 | EC90: -2212 | EH90: 21 | EJ90: 283 | EQ90: -1137 | ER90: 1 | ES90: 146 | ET90: -2610 | EU90: 22 | EV90: 17 | EW90: -2144 | EX90: 13 | EY90: 155 | EZ90: 993 | FA90: -413 | FB90: 1015 | FC90: 287 | FD90: 1489 | FE90: -222 | FF90: 7980 | FG90: 1975 | FH90: 6005 | FI90: 0 | FJ90: 9199 | FK90: 2898 | FL90: 6301 | FM90: 0 | FN90: 10388 | FO90: 4299 | FP90: 6089 | FQ90: 0 | FR90: 223 | FS90: 161 | FT90: 160 | FU90: 220
A91: 257 | B91: Kirkkonummi | C91: 39170 | E91: 1.329113205 | F91: 65.42409149 | G91: -4458.948175 | K91: 28.52149129 | L91: 711.3607353 | M91: 34.36199434 | N91: 7556.216492 | P91: 112139 | Q91: 307827 | R91: -55 | S91: -195743 | T91: 189712 | U91: 29021 | X91: -1664 | Y91: 352 | Z91: 21678 | AA91: 20514 | AB91: 150 | AD91: 1314 | AE91: 52 | AF91: 83 | AG91: 0 | AH91: -136 | AI91: 1313 | AJ91: 26943 | AK91: 20326 | AM91: -1642 | AN91: -15881 | AO91: -7959 | AT91: 19.5 | AV91: 237 | AW91: 39262 | AY91: 1.140510949 | AZ91: 69.9926088 | BA91: -4872.67587 | BE91: 25.78152591 | BF91: 801.5383832 | BG91: 30.91255766 | BH91: 9464.163823 | BJ91: 120214 | BK91: 319679 | BL91: -59 | BM91: -199524 | BN91: 189339 | BO91: 28687 | BR91: -1542 | BS91: 175 | BT91: 17135 | BU91: 21656 | BV91: -190 | BX91: -4711 | BY91: 57 | BZ91: 48 | CA91: -4 | CB91: -49 | CC91: -4659 | CD91: 22294 | CE91: 12692 | CG91: -85 | CH91: -14825 | CI91: -17434 | CN91: 19.5 | CP91: 166 | CQ91: 39586 | CS91: 0.1915636754 | CT91: 87.23853243 | CU91: -6425.933411 | CY91: 17.27645567 | CZ91: 693.4017077 | DA91: 26.92561937 | DB91: 10776.61294 | DD91: 126520 | DE91: 342125 | DF91: -487 | DG91: -216092 | DH91: 189925 | DI91: 29487 | DL91: -1735 | DM91: 178 | DN91: 1763 | DO91: 23685 | DP91: 0 | DR91: -21922 | DS91: 53 | DT91: -23 | DU91: 3 | DV91: 5 | DW91: -21890 | DX91: 405 | DY91: -1663 | EA91: -5999 | EB91: -16808 | EC91: -62436 | EH91: 19.75 | EJ91: 270 | EQ91: -29756 | ER91: -295 | ES91: 1766 | ET91: -35037 | EU91: 66 | EV91: 4845 | EW91: -65399 | EX91: 13 | EY91: 4613 | EZ91: 11506 | FA91: 3178 | FB91: 35881 | FC91: -8575 | FD91: 72022 | FE91: 3928 | FF91: 162359 | FG91: 99868 | FH91: 62491 | FI91: 962 | FJ91: 174841 | FK91: 118909 | FL91: 55932 | FM91: 882 | FN91: 233982 | FO91: 167207 | FP91: 66775 | FQ91: 882 | FR91: 4736 | FS91: 5845 | FT91: 30592 | FU91: 55375
A92: 260 | B92: Kitee | C92: 10486 | E92: 1.079648306 | F92: 29.98150463 | G92: -2075.910738 | K92: 52.87946211 | L92: 1354.377265 | M92: 42.318236 | N92: 11681.6708 | P92: 62385 | Q92: 124759 | R92: 0 | S92: -62374 | T92: 34203 | U92: 40203 | X92: -274 | Y92: 449 | Z92: 12207 | AA92: 5796 | AB92: 533 | AD92: 6944 | AE92: -31 | AF92: -55 | AG92: -67 | AH92: -94 | AI92: 6697 | AJ92: 20997 | AK92: 12629 | AM92: 1013 | AN92: -11283 | AO92: 9785 | AT92: 21.5 | AV92: 40 | AW92: 10358 | AY92: 1.299654577 | AZ92: 27.65965428 | BA92: -1744.641823 | BE92: 55.89707715 | BF92: 1392.546824 | BG92: 38.33209558 | BH92: 13259.89573 | BJ92: 61656 | BK92: 126206 | BL92: 1 | BM92: -64549 | BN92: 32042 | BO92: 39590 | BR92: -197 | BS92: 412 | BT92: 7298 | BU92: 4819 | BV92: 20 | BX92: 2499 | BY92: -23 | BZ92: 1 | CA92: -77 | CB92: -73 | CC92: 2327 | CD92: 23324 | CE92: 8101 | CG92: 669 | CH92: -5563 | CI92: 3176 | CN92: 21.5 | CP92: 74 | CQ92: 10136 | CS92: 1.46906374 | CT92: 26.58840803 | CU92: -1652.821626 | CY92: 56.86102298 | CZ92: 1336.7206 | DA92: 37.98994105 | DB92: 13672.35596 | DD92: 63022 | DE92: 129044 | DF92: 0 | DG92: -66022 | DH92: 32118 | DI92: 39712 | DL92: -166 | DM92: 443 | DN92: 6085 | DO92: 5601 | DP92: 0 | DR92: 484 | DS92: -29 | DT92: -6 | DU92: 54 | DV92: 82 | DW92: 477 | DX92: 23529 | DY92: 5999 | EA92: -1181 | EB92: -4076 | EC92: 1513 | EH92: 21 | EJ92: 89 | EQ92: -14176 | ER92: 23 | ES92: 11309 | ET92: -5143 | EU92: 72 | EV92: 146 | EW92: -4986 | EX92: 321 | EY92: 179 | EZ92: 8194 | FA92: -1410 | FB92: 0 | FC92: -8 | FD92: 2135 | FE92: 1010 | FF92: 25747 | FG92: 21012 | FH92: 4735 | FI92: 962 | FJ92: 20176 | FK92: 17519 | FL92: 2657 | FM92: 530 | FN92: 19544 | FO92: 16337 | FP92: 3207 | FQ92: 791 | FR92: 2015 | FS92: 1911 | FT92: 1789 | FU92: 3021
A93: 261 | B93: Kittilä | C93: 6421 | E93: 1.894275923 | F93: 75.50117657 | G93: -9788.662202 | K93: 41.07615491 | L93: 945.0241395 | M93: 26.08033159 | N93: 13225.82152 | P93: 49471 | Q93: 83698 | R93: 0 | S93: -34227 | T93: 29144 | U93: 20402 | X93: -878 | Y93: -411 | Z93: 14030 | AA93: 8419 | AB93: -55 | AD93: 5556 | AE93: 584 | AF93: 891 | AG93: -529 | AH93: -84 | AI93: 6418 | AJ93: 44152 | AK93: 13488 | AM93: -533 | AN93: -6984 | AO93: 5767 | AT93: 20.25 | AV93: 1 | AW93: 6436 | AY93: 1.610940521 | AZ93: 67.4533718 | BA93: -8761.342449 | BE93: 43.58366856 | BF93: 1219.546302 | BG93: 26.96159348 | BH93: 16509.94406 | BJ93: 51079 | BK93: 90616 | BL93: 1248 | BM93: -38289 | BN93: 28580 | BO93: 23980 | BR93: -667 | BS93: -107 | BT93: 13497 | BU93: 8502 | BV93: 0 | BX93: 4995 | BY93: -671 | BZ93: 662 | CA93: -386 | CB93: -46 | CC93: 4554 | CD93: 48182 | CE93: 10262 | CG93: 513 | CH93: -8125 | CI93: 5993 | CN93: 20.25 | CP93: 1 | CQ93: 6453 | CS93: 3.521164021 | CT93: 71.82444578 | CU93: -9609.174028 | CY93: 48.90523872 | CZ93: 1385.867039 | DA93: 24.13571302 | DB93: 18394.39021 | DD93: 50433 | DE93: 91942 | DF93: 1199 | DG93: -40310 | DH93: 30553 | DI93: 25830 | DL93: -758 | DM93: -109 | DN93: 15206 | DO93: 8606 | DP93: 0 | DR93: 6600 | DS93: -827 | DT93: 911 | DU93: 504 | DV93: -30 | DW93: 6150 | DX93: 52782 | DY93: 13197 | EA93: 433 | EB93: -3770 | EC93: -6416 | EH93: 20.25 | EJ93: 1 | EQ93: -7950 | ER93: 139 | ES93: 90 | ET93: -6021 | EU93: 67 | EV93: 1685 | EW93: -20862 | EX93: 79 | EY93: 1170 | EZ93: 1841 | FA93: -892 | FB93: 139 | FC93: 755 | FD93: 9782 | FE93: -262 | FF93: 50840 | FG93: 42935 | FH93: 7905 | FI93: 423 | FJ93: 43992 | FK93: 35506 | FL93: 8486 | FM93: 367 | FN93: 49841 | FO93: 41617 | FP93: 8224 | FQ93: 234 | FR93: 4438 | FS93: 3269 | FT93: 17104 | FU93: 2242
A94: 263 | B94: Kiuruvesi | C94: 8283 | E94: 1.494010739 | F94: 62.80201421 | G94: -6173.246408 | K94: 34.89015195 | L94: 1308.825305 | M94: 40.49578869 | N94: 11796.81275 | P94: 47164 | Q94: 100169 | R94: 118 | S94: -52887 | T94: 24349 | U94: 34732 | X94: -503 | Y94: 1020 | Z94: 6711 | AA94: 6436 | AB94: 1 | AD94: 276 | AE94: -13 | AF94: 9 | AG94: -9 | AH94: -51 | AI94: 212 | AJ94: 2622 | AK94: 6685 | AM94: -954 | AN94: -4319 | AO94: -171 | AT94: 20.75 | AV94: 128 | AW94: 8153 | AY94: 0.8648382005 | AZ94: 65.96114145 | BA94: -6414.939286 | BE94: 33.12334599 | BF94: 1451.244941 | BG94: 38.54862896 | BH94: 13741.19956 | BJ94: 46447 | BK94: 100170 | BL94: 154 | BM94: -53569 | BN94: 22913 | BO94: 34298 | BR94: -531 | BS94: 735 | BT94: 3846 | BU94: 5634 | BV94: 140 | BX94: -1648 | BY94: -2 | BZ94: 9 | CA94: -4 | CB94: -66 | CC94: -1711 | CD94: 887 | CE94: 3213 | CG94: 418 | CH94: -4531 | CI94: -1530 | CN94: 20.75 | CP94: 155 | CQ94: 7998 | CS94: 0.7399328859 | CT94: 67.41953375 | CU94: -6716.429107 | CY94: 31.54341236 | CZ94: 1473.743436 | DA94: 38.14043857 | DB94: 14157.41435 | DD94: 47223 | DE94: 101847 | DF94: 166 | DG94: -54458 | DH94: 23413 | DI94: 33942 | DL94: -489 | DM94: 1058 | DN94: 3466 | DO94: 5705 | DP94: 419 | DR94: -1820 | DS94: -23 | DT94: 6 | DU94: 9 | DV94: -67 | DW94: -1913 | DX94: -812 | DY94: 3584 | EA94: -756 | EB94: -4861 | EC94: -1509 | EH94: 20.75 | EJ94: 150 | EQ94: -7498 | ER94: 533 | ES94: 109 | ET94: -6402 | EU94: 463 | EV94: 1196 | EW94: -5780 | EX94: 478 | EY94: 209 | EZ94: 5544 | FA94: 718 | FB94: 3251 | FC94: 1426 | FD94: 6132 | FE94: 14 | FF94: 56500 | FG94: 38396 | FH94: 18104 | FI94: 99 | FJ94: 56328 | FK94: 36398 | FL94: 19930 | FM94: 92 | FN94: 57614 | FO94: 38046 | FP94: 19568 | FQ94: 57 | FR94: 315 | FS94: 22 | FT94: 22 | FU94: 7233
A95: 265 | B95: Kivijärvi | C95: 1132 | E95: 2.529045643 | F95: 51.4521757 | G95: -4864.840989 | K95: 38.71599816 | L95: 2347.173145 | M95: 54.87184565 | N95: 15613.0742 | P95: 10431 | Q95: 18291 | R95: 0 | S95: -7860 | T95: 3516 | U95: 5541 | X95: -57 | Y95: 12 | Z95: 1152 | AA95: 1369 | AB95: 0 | AD95: -217 | AE95: 0 | AF95: 1 | AG95: 0 | AH95: -1 | AI95: -217 | AJ95: 2060 | AK95: 1151 | AM95: -375 | AN95: -415 | AO95: 60 | AT95: 21 | AV95: 68 | AW95: 1103 | AY95: 1.766129032 | AZ95: 57.3389209 | BA95: -6138.712602 | BE95: 35.36681716 | BF95: 2259.292838 | BG95: 43.66892314 | BH95: 18883.95286 | BJ95: 10488 | BK95: 18683 | BL95: 0 | BM95: -8195 | BN95: 3489 | BO95: 5113 | BR95: -40 | BS95: -195 | BT95: 172 | BU95: 1106 | BV95: 0 | BX95: -934 | BY95: 0 | BZ95: 0 | CA95: 0 | CB95: -1 | CC95: -935 | CD95: 1610 | CE95: 183 | CG95: 179 | CH95: -77 | CI95: -1581 | CN95: 21.5 | CP95: 259 | CQ95: 1096 | CS95: -16.56122449 | CT95: 59.27383388 | CU95: -7398.722628 | CY95: 22.73600839 | CZ95: 1885.948905 | DA95: 40.54109467 | DB95: 20470.80292 | DD95: 10550 | DE95: 18983 | DF95: 0 | DG95: -8433 | DH95: 3571 | DI95: 4938 | DL95: -33 | DM95: -1705 | DN95: -1662 | DO95: 924 | DP95: 0 | DR95: -2586 | DS95: 0 | DT95: 0 | DU95: 0 | DV95: -2 | DW95: -2588 | DX95: -1007 | DY95: 185 | EA95: 561 | EB95: -59 | EC95: -1328 | EH95: 21.5 | EJ95: 295 | EQ95: -1112 | ER95: 1 | ES95: 20 | ET95: -1814 | EU95: 50 | EV95: 0 | EW95: -1642 | EX95: 102 | EY95: 27 | EZ95: 977 | FA95: -357 | FB95: 600 | FC95: 302 | FD95: 1106 | FE95: -309 | FF95: 7771 | FG95: 7345 | FH95: 426 | FI95: 60 | FJ95: 8596 | FK95: 7868 | FL95: 728 | FM95: 48 | FN95: 9332 | FO95: 8915 | FP95: 417 | FQ95: 49 | FR95: 2867 | FS95: 2837 | FT95: 2793 | FU95: 747
A96: 271 | B96: Kokemäki | C96: 7381 | E96: 0.8301602262 | F96: 62.32752915 | G96: -5268.933749 | K96: 22.98319711 | L96: 606.963826 | M96: 21.54811164 | N96: 10281.2627 | P96: 31895 | Q96: 74205 | R96: 15 | S96: -42295 | T96: 26780 | U96: 19889 | X96: -266 | Y96: 20 | Z96: 4128 | AA96: 3484 | AB96: 0 | AD96: 644 | AE96: 0 | AF96: 25 | AG96: 0 | AH96: -24 | AI96: 645 | AJ96: 1069 | AK96: 4166 | AM96: 1315 | AN96: -5029 | AO96: 585 | AT96: 21.75 | AV96: 231 | AW96: 7226 | AY96: 1.206762029 | AZ96: 62.34146841 | BA96: -5404.788265 | BE96: 22.72510353 | BF96: 557.7082757 | BG96: 18.04049745 | BH96: 11283.69776 | BJ96: 32223 | BK96: 74380 | BL96: -14 | BM96: -42171 | BN96: 25747 | BO96: 20169 | BR96: -202 | BS96: -50 | BT96: 3493 | BU96: 3618 | BV96: -455 | BX96: -580 | BY96: 3 | BZ96: 0 | CA96: -66 | CB96: 0 | CC96: -643 | CD96: 452 | CE96: 3206 | CG96: 609 | CH96: -2857 | CI96: -404 | CN96: 21.75 | CP96: 151 | CQ96: 7103 | CS96: 0.8037811515 | CT96: 60.76396253 | CU96: -5691.820358 | CY96: 22.51840372 | CZ96: 377.7277207 | DA96: 17.41939089 | DB96: 11968.04167 | DD96: 33369 | DE96: 77264 | DF96: -7 | DG96: -43902 | DH96: 25814 | DI96: 20978 | DL96: -172 | DM96: -96 | DN96: 2622 | DO96: 3785 | DP96: 93 | DR96: -1070 | DS96: 0 | DT96: 5 | DU96: 82 | DV96: 0 | DW96: -1147 | DX96: 212 | DY96: 2540 | EA96: 687 | EB96: -3307 | EC96: -1427 | EH96: 21.75 | EJ96: 174 | EQ96: -3662 | ER96: 70 | ES96: 11 | ET96: -3963 | EU96: 202 | EV96: 151 | EW96: -4103 | EX96: 41 | EY96: 95 | EZ96: 3259 | FA96: -793 | FB96: 768 | FC96: 935 | FD96: 3645 | FE96: -467 | FF96: 35522 | FG96: 19169 | FH96: 16353 | FI96: 15 | FJ96: 34262 | FK96: 15742 | FL96: 18520 | FM96: 0 | FN96: 34360 | FO96: 15947 | FP96: 18413 | FQ96: 0 | FR96: 950 | FS96: 375 | FT96: 250 | FU96: 1275
A97: 272 | B97: Kokkola | C97: 47723 | E97: 1.177165489 | F97: 93.32409665 | G97: -8445.717998 | K97: 30.9486327 | L97: 2274.836033 | M97: 73.178494 | N97: 11346.43673 | P97: 327002 | Q97: 537772 | R97: 520 | S97: -210250 | T97: 190238 | U97: 86873 | X97: -4148 | Y97: 1650 | Z97: 64363 | AA97: 42548 | AB97: 25022 | AD97: 46837 | AE97: -325 | AF97: -1261 | AG97: -2222 | AH97: -1119 | AI97: 41910 | AJ97: 98572 | AK97: 82558 | AM97: 12381 | AN97: -53985 | AO97: 28551 | AT97: 21.75 | AV97: 15 | AW97: 47657 | AY97: 0.5351559667 | AZ97: 85.19323723 | BA97: -8381.077281 | BE97: 32.46068392 | BF97: 1498.751495 | BG97: 36.77473185 | BH97: 14875.54819 | BJ97: 332872 | BK97: 555741 | BL97: -20 | BM97: -222889 | BN97: 186811 | BO97: 87938 | BR97: -3812 | BS97: -863 | BT97: 47185 | BU97: 41215 | BV97: -21 | BX97: 5949 | BY97: -354 | BZ97: -1389 | CA97: -1886 | CB97: -237 | CC97: 2083 | CD97: 100604 | CE97: 50439 | CG97: 4900 | CH97: -92055 | CI97: 5446 | CN97: 21.75 | CP97: 25 | CQ97: 47681 | CS97: 0.8156912056 | CT97: 85.3039756 | CU97: -8930.496424 | CY97: 31.59131392 | CZ97: 1426.710849 | DA97: 36.87563437 | DB97: 14835.88851 | DD97: 352361 | DE97: 592247 | DF97: 659 | DG97: -239227 | DH97: 193832 | DI97: 89006 | DL97: -4288 | DM97: -1182 | DN97: 38141 | DO97: 40763 | DP97: -347 | DR97: -2969 | DS97: -212 | DT97: -175 | DU97: 1946 | DV97: -129 | DW97: -5431 | DX97: 94512 | DY97: 32612 | EA97: -1155 | EB97: -47815 | EC97: -23478 | EH97: 21.75 | EJ97: 41 | EQ97: -55797 | ER97: 1833 | ES97: -43 | ET97: -53816 | EU97: 1895 | EV97: 6928 | EW97: -59559 | EX97: 395 | EY97: 3074 | EZ97: 56613 | FA97: -5586 | FB97: 66092 | FC97: -18109 | FD97: 70300 | FE97: -8184 | FF97: 452664 | FG97: 388908 | FH97: 63756 | FI97: 821 | FJ97: 408593 | FK97: 353097 | FL97: 55496 | FM97: 821 | FN97: 422894 | FO97: 354312 | FP97: 68582 | FQ97: 797 | FR97: 2221 | FS97: 1730 | FT97: 1650 | FU97: 63502
B98: KOKO MAA (Manner-Suomi) | C98: 5483641 | E98: 1.885379184 | F98: 78.71552436 | G98: -6016.301578 | K98: 43.38546408 | L98: 1378.654803 | M98: 59 | N98: 8537.36377 | P98: 24592758 | Q98: 50642020 | R98: 81899 | S98: -25967363 | T98: 22391744 | U98: 9701332 | X98: -371567 | Y98: 156115 | Z98: 5910261 | AA98: 4145979 | AB98: 94051 | AD98: 1848434 | AE98: -39026 | AF98: -9836 | AG98: -78795 | AH98: -48094 | AI98: 1672683 | AJ98: 12313216 | AK98: 5404397 | AM98: -72292 | AN98: -2923408 | AO98: -422223 | AT98: 19.92 | AV98: - | AW98: 5488130 | AY98: 1.526367982 | AZ98: 80.75610324 | BA98: -6400.727752 | BE98: 42.44390773 | BF98: 1343.538692 | BG98: 41.77203475 | BH98: 11739.71116 | BJ98: 25943563 | BK98: 52927942 | BL98: 66311 | BM98: -26918068 | BN98: 22270468 | BO98: 9617527 | BR98: -334759 | BS98: 102912 | BT98: 4738081 | BU98: 4281198 | BV98: -9816 | BX98: 447119 | BY98: -26068 | BZ98: 17985 | CA98: -84766 | CB98: -64631 | CC98: 288815 | CD98: 12553814 | CE98: 4083711 | CG98: -120148 | CH98: -2961293 | CI98: -2153549 | CN98: 19.87 | CP98: - | CQ98: 5495408 | CS98: 1.35695111 | CT98: 84.44733037 | CU98: -6908.850808 | CY98: 41.85903726 | CZ98: 1415 | DA98: 39.9955649 | DB98: 12284.03351 | DD98: 26773679 | DE98: 54871181 | DF98: 70720 | DG98: -28026782 | DH98: 22852554 | DI98: 9778488 | DL98: -331984 | DM98: 204608 | DN98: 4476884 | DO98: 4468739 | DP98: 339728 | DR98: 347873 | DS98: -36500 | DT98: 24483 | DU98: 103368 | DV98: -54303 | DW98: 178184 | DX98: 12670810 | DY98: 3883616 | EA98: -198386 | EB98: -3191200 | EC98: -2947830 | EH98: 19.9 | EJ98: - | EQ98: -7342003 | ER98: 215662 | ES98: 1299721 | ET98: -7989989 | EU98: 167734 | EV98: 1584995 | EW98: -8899552 | EX98: 189104 | EY98: 1879002 | EZ98: 3784026 | FA98: 43211 | FB98: 4325546 | FC98: 64935 | FD98: 5848370 | FE98: 541869 | FF98: 34624959 | FG98: 29283914 | FH98: 5341045 | FI98: 1196148 | FJ98: 35989235 | FK98: 30314309 | FL98: 5674926 | FM98: 1170334 | FN98: 39046656 | FO98: 32611444 | FP98: 6435212 | FQ98: 1087580 | FR98: 1498550 | FS98: 1508183 | FT98: 1443994 | FU98: 6170415
A99: 273 | B99: Kolari | C99: 3854 | E99: 3.986008837 | F99: 54.11192791 | G99: -4275.298391 | K99: 49.29919137 | L99: 997.4052932 | M99: 43.20298066 | N99: 8426.569798 | P99: 13684 | Q99: 36769 | R99: 0 | S99: -23085 | T99: 14085 | U99: 14401 | X99: -137 | Y99: 5 | Z99: 5269 | AA99: 3140 | AB99: 182 | AD99: 1748 | AE99: -6 | AF99: -29 | AG99: -5 | AH99: -9 | AI99: 1699 | AJ99: 12271 | AK99: 5416 | AM99: -71 | AN99: -1214 | AO99: -226 | AT99: 20 | AV99: 13 | AW99: 3834 | AY99: 1.885675554 | AZ99: 50.48599069 | BA99: -3642.149191 | BE99: 51.86850643 | BF99: 1508.607199 | BG99: 47.68073718 | BH99: 11548.5133 | BJ99: 14698 | BK99: 39667 | BL99: 0 | BM99: -24969 | BN99: 14808 | BO99: 14322 | BR99: -121 | BS99: 7 | BT99: 4047 | BU99: 2943 | BV99: 0 | BX99: 1104 | BY99: -6 | BZ99: 13 | CA99: -5 | CB99: 19 | CC99: 1125 | CD99: 14090 | CE99: 4044 | CG99: 261 | CH99: -2087 | CI99: 2424 | CN99: 20 | CP99: 20 | CQ99: 3846 | CS99: 3.636065574 | CT99: 59.94019612 | CU99: -2849.453978 | CY99: 49.24105529 | CZ99: 3590.483619 | DA99: 47.43220472 | DB99: 11572.80291 | DD99: 15744 | DE99: 41059 | DF99: 0 | DG99: -25315 | DH99: 15064 | DI99: 14674 | DL99: -79 | DM99: 9 | DN99: 4353 | DO99: 2931 | DP99: 0 | DR99: 1422 | DS99: -19 | DT99: 1 | DU99: 10 | DV99: -48 | DW99: 1346 | DX99: 19733 | DY99: 4258 | EA99: -152 | EB99: -1137 | EC99: 2391 | EH99: 20 | EJ99: 13 | EQ99: -6267 | ER99: 133 | ES99: 492 | ET99: -2020 | EU99: 89 | EV99: 311 | EW99: -2211 | EX99: 29 | EY99: 315 | EZ99: 1744 | FA99: 74 | FB99: 234 | FC99: 2 | FD99: 5887 | FE99: -12 | FF99: 11012 | FG99: 9879 | FH99: 1133 | FI99: 601 | FJ99: 9885 | FK99: 8750 | FL99: 1135 | FM99: 493 | FN99: 14340 | FO99: 13440 | FP99: 900 | FQ99: 335 | FR99: 5191 | FS99: 4714 | FT99: 4390 | FU99: 327
A100: 275 | B100: Konnevesi | C100: 2748 | E100: 0.2067158847 | F100: 116.9926695 | G100: -9582.24163 | K100: 26.52878729 | L100: 1199.053857 | M100: 45.35999849 | N100: 9648.471616 | P100: 8854 | Q100: 26500 | R100: 0 | S100: -17646 | T100: 8793 | U100: 9500 | X100: 10 | Y100: -19 | Z100: 638 | AA100: 1814 | AB100: 0 | AD100: -1176 | AE100: 0 | AF100: -65 | AG100: -21 | AH100: 1 | AI100: -1261 | AJ100: 2680 | AK100: 616 | AM100: -254 | AN100: -3969 | AO100: -3409 | AT100: 21.5 | AV100: 288 | AW100: 2698 | AY100: 0.2306501548 | AZ100: 123.0602238 | BA100: -10540.4003 | BE100: 23.66749517 | BF100: 915.1223128 | BG100: 28.2662631 | BH100: 11816.90141 | BJ100: 8530 | BK100: 26317 | BL100: 0 | BM100: -17787 | BN100: 8897 | BO100: 9290 | BR100: 22 | BS100: -51 | BT100: 371 | BU100: 1881 | BV100: 0 | BX100: -1510 | BY100: 0 | BZ100: -1 | CA100: -42 | CB100: 2 | CC100: -1551 | CD100: 1395 | CE100: 318 | CG100: 125 | CH100: -2359 | CI100: -2044 | CN100: 22 | CP100: 267 | CQ100: 2627 | CS100: -1.411419632 | CT100: 129.4079524 | CU100: -11497.52569 | CY100: 10.79693325 | CZ100: 993.9094024 | DA100: 25.24346467 | DB100: 13149.21964 | DD100: 8378 | DE100: 30037 | DF100: 0 | DG100: -21659 | DH100: 8806 | DI100: 9047 | DL100: -195 | DM100: 158 | DN100: -3843 | DO100: 1715 | DP100: 0 | DR100: -5558 | DS100: 0 | DT100: 0 | DU100: 27 | DV100: 4 | DW100: -5581 | DX100: -4283 | DY100: -30 | EA100: 826 | EB100: -2323 | EC100: -1756 | EH100: 22 | EJ100: 294 | EQ100: -4208 | ER100: 15 | ES100: 168 | ET100: -2919 | EU100: 180 | EV100: 377 | EW100: -1892 | EX100: 28 | EY100: 138 | EZ100: 7570 | FA100: -177 | FB100: 2944 | FC100: 353 | FD100: 2820 | FE100: 656 | FF100: 27023 | FG100: 24847 | FH100: 2176 | FI100: 0 | FJ100: 27962 | FK100: 25448 | FL100: 2514 | FM100: 0 | FN100: 29208 | FO100: 26024 | FP100: 3184 | FQ100: 0 | FR100: 7262 | FS100: 6746 | FT100: 6463 | FU100: 292
A101: 276 | B101: Kontiolahti | C101: 14830 | E101: 0.9238207801 | F101: 55.90042005 | G101: -3826.298045 | K101: 38.90605585 | L101: 692.9197572 | M101: 33.69543539 | N101: 7505.933918 | P101: 54081 | Q101: 121479 | R101: 18 | S101: -67380 | T101: 50752 | U101: 24913 | X101: -1004 | Y101: 297 | Z101: 7578 | AA101: 6116 | AB101: 418 | AD101: 1880 | AE101: -4 | AF101: 38 | AG101: 0 | AH101: -1 | AI101: 1913 | AJ101: 25920 | AK101: 7509 | AM101: -1454 | AN101: -8286 | AO101: -7693 | AT101: 20.5 | AV101: 248 | AW101: 14849 | AY101: 0.3085707825 | AZ101: 65.98292485 | BA101: -4614.452152 | BE101: 33.66781766 | BF101: 620.6478551 | BG101: 22.61678724 | BH101: 10016.29739 | BJ101: 52941 | BK101: 124287 | BL101: 1 | BM101: -71345 | BN101: 49315 | BO101: 24595 | BR101: -700 | BS101: 136 | BT101: 2001 | BU101: 5978 | BV101: 36 | BX101: -3941 | BY101: 1 | BZ101: 66 | CA101: -30 | CB101: -5 | CC101: -3909 | CD101: 21864 | CE101: 1919 | CG101: -456 | CH101: -8116 | CI101: -12661 | CN101: 20.5 | CP101: 269 | CQ101: 14821 | CS101: 0.8527436189 | CT101: 65.04090266 | CU101: -4876.189191 | CY101: 33.10682499 | CZ101: 532.4202146 | DA101: 23.0747702 | DB101: 9836.043452 | DD101: 53386 | DE101: 124254 | DF101: 16 | DG101: -70852 | DH101: 52704 | DI101: 26053 | DL101: -755 | DM101: 304 | DN101: 7454 | DO101: 7684 | DP101: 0 | DR101: -230 | DS101: -6 | DT101: 168 | DU101: 7 | DV101: 9 | DW101: -66 | DX101: 21496 | DY101: 6740 | EA101: 178 | EB101: -8879 | EC101: -4402 | EH101: 20.5 | EJ101: 118 | EQ101: -19485 | ER101: 218 | ES101: 4065 | ET101: -15365 | EU101: 470 | EV101: 315 | EW101: -11777 | EX101: 78 | EY101: 557 | EZ101: 8306 | FA101: -535 | FB101: 11325 | FC101: 6394 | FD101: 12807 | FE101: -1212 | FF101: 59344 | FG101: 51378 | FH101: 7966 | FI101: 834 | FJ101: 68948 | FK101: 54416 | FL101: 14532 | FM101: -1 | FN101: 71664 | FO101: 58280 | FP101: 13384 | FQ101: 20 | FR101: 1453 | FS101: 1352 | FT101: 1053 | FU101: 10190
A102: 280 | B102: Korsnäs | C102: 2154 | E102: 4.147126437 | F102: 26.33196721 | G102: -1805.942433 | K102: 64.4752644 | L102: 405.2924791 | M102: 17.406588 | N102: 8498.607242 | P102: 7558 | Q102: 19680 | R102: -3 | S102: -12125 | T102: 7090 | U102: 6824 | X102: -56 | Y102: 15 | Z102: 1748 | AA102: 1256 | AB102: -2 | AD102: 512 | AE102: 0 | AF102: 0 | AG102: 0 | AH102: 0 | AI102: 512 | AJ102: 9341 | AK102: 1727 | AM102: 116 | AN102: -379 | AO102: 27 | AT102: 21 | AV102: 127 | AW102: 2122 | AY102: 0.3651794374 | AZ102: 29.28290672 | BA102: -2037.700283 | BE102: 62.44827855 | BF102: 373.7040528 | BG102: 12.31628441 | BH102: 11074.92931 | BJ102: 7689 | BK102: 20112 | BL102: -2 | BM102: -12425 | BN102: 6638 | BO102: 6535 | BR102: -53 | BS102: 5 | BT102: 700 | BU102: 1342 | BV102: 0 | BX102: -642 | BY102: 0 | BZ102: 0 | CA102: 0 | CB102: 0 | CC102: -642 | CD102: 8699 | CE102: 658 | CG102: -101 | CH102: -2009 | CI102: -455 | CN102: 21 | CP102: 203 | CQ102: 2077 | CS102: 3.766949153 | CT102: 36.8297618 | CU102: -2585.941261 | CY102: 56.71248143 | CZ102: 730.3803563 | DA102: 12.85165616 | DB102: 10843.52431 | DD102: 7834 | DE102: 20861 | DF102: -3 | DG102: -13030 | DH102: 6917 | DI102: 6995 | DL102: -46 | DM102: 7 | DN102: 843 | DO102: 1585 | DP102: 0 | DR102: -742 | DS102: 0 | DT102: 0 | DU102: 0 | DV102: 0 | DW102: -742 | DX102: 7946 | DY102: 856 | EA102: -133 | EB102: -190 | EC102: -472 | EH102: 21.5 | EJ102: 158 | EQ102: -1820 | ER102: 70 | ES102: 50 | ET102: -1311 | EU102: 139 | EV102: 59 | EW102: -1415 | EX102: 61 | EY102: 26 | EZ102: 30 | FA102: 54 | FB102: 457 | FC102: 1209 | FD102: 1055 | FE102: 598 | FF102: 3540 | FG102: 2580 | FH102: 960 | FI102: 1 | FJ102: 3213 | FK102: 2672 | FL102: 541 | FM102: 1 | FN102: 5069 | FO102: 2353 | FP102: 2716 | FQ102: 1 | FR102: 1250 | FS102: 1250 | FT102: 998 | FU102: 28
A103: 284 | B103: Koski tl | C103: 2359 | E103: 10.62566845 | F103: 23.64407471 | G103: -743.1114879 | K103: 66.17196824 | L103: 962.6960577 | M103: 39.94771084 | N103: 8796.100042 | P103: 9690 | Q103: 22564 | R103: 1 | S103: -12873 | T103: 7435 | U103: 7397 | X103: -22 | Y103: 21 | Z103: 1958 | AA103: 1064 | AB103: 0 | AD103: 894 | AE103: 0 | AF103: 65 | AG103: 0 | AH103: 0 | AI103: 959 | AJ103: 5381 | AK103: 2011 | AM103: -522 | AN103: -158 | AO103: 100 | AT103: 19.5 | AV103: 117 | AW103: 2340 | AY103: 14.68 | AZ103: 25.81545511 | BA103: -1167.948718 | BE103: 63.35364238 | BF103: 966.6666667 | BG103: 32.69303873 | BH103: 10792.30769 | BJ103: 9779 | BK103: 23670 | BL103: 14 | BM103: -13877 | BN103: 6709 | BO103: 7517 | BR103: -25 | BS103: 18 | BT103: 342 | BU103: 1138 | BV103: 0 | BX103: -796 | BY103: -1 | BZ103: 47 | CA103: -1 | CB103: 0 | CC103: -751 | CD103: 4589 | CE103: 361 | CG103: 570 | CH103: 0 | CI103: -1104 | CN103: 19.5 | CP103: 262 | CQ103: 2308 | CS103: 6.45323741 | CT103: 23.74366254 | CU103: -1270.797227 | CY103: 66.04567308 | CZ103: 584.9220104 | DA103: 32.58208366 | DB103: 10979.20277 | DD103: 10108 | DE103: 23783 | DF103: 5 | DG103: -13670 | DH103: 6966 | DI103: 7581 | DL103: -24 | DM103: 20 | DN103: 873 | DO103: 1147 | DP103: 0 | DR103: -274 | DS103: 0 | DT103: 75 | DU103: 0 | DV103: 0 | DW103: -199 | DX103: 4358 | DY103: 840 | EA103: -347 | EB103: -115 | EC103: -463 | EH103: 19.5 | EJ103: 169 | EQ103: -2002 | ER103: 53 | ES103: 38 | ET103: -1553 | EU103: 63 | EV103: 25 | EW103: -1415 | EX103: 56 | EY103: 56 | EZ103: 102 | FA103: -119 | FB103: 87 | FC103: 224 | FD103: 0 | FE103: 224 | FF103: 1515 | FG103: 1286 | FH103: 229 | FI103: 10 | FJ103: 1443 | FK103: 1354 | FL103: 89 | FM103: 11 | FN103: 1362 | FO103: 1201 | FP103: 161 | FQ103: 11 | FR103: 157 | FS103: 154 | FT103: 152 | FU103: 75
A104: 285 | B104: Kotka | C104: 53539 | E104: 1.596956281 | F104: 106.9003661 | G104: -8958.609612 | K104: 31.71472343 | L104: 2438.372028 | M104: 95.47418491 | N104: 9321.952222 | P104: 283620 | Q104: 530822 | R104: 1172 | S104: -246030 | T104: 214777 | U104: 120860 | X104: -6760 | Y104: -3193 | Z104: 79654 | AA104: 64407 | AB104: 48218 | AD104: 63465 | AE104: -2700 | AF104: 0 | AG104: -3058 | AH104: -212 | AI104: 57495 | AJ104: 15728 | AK104: 123442 | AM104: 3652 | AN104: -47293 | AO104: 84513 | AT104: 21.5 | AV104: 9 | AW104: 52883 | AY104: 0.8038859245 | AZ104: 105.6219854 | BA104: -9272.242498 | BE104: 31.77268906 | BF104: 2460.734073 | BG104: 61.88559758 | BH104: 14513.35968 | BJ104: 299862 | BK104: 561357 | BL104: 304 | BM104: -261191 | BN104: 211083 | BO104: 128242 | BR104: -5292 | BS104: -3108 | BT104: 69734 | BU104: 59107 | BV104: 8402 | BX104: 19029 | BY104: -3087 | BZ104: 0 | CA104: -3403 | CB104: -93 | CC104: 12446 | CD104: 28173 | CE104: 63929 | CG104: -3707 | CH104: -88074 | CI104: -17811 | CN104: 21.5 | CP104: 7 | CQ104: 52126 | CS104: 1.87406678 | CT104: 88.59829652 | CU104: -9808.099605 | CY104: 38.26390488 | CZ104: 1800.042205 | DA104: 58.60650155 | DB104: 15547.96071 | DD104: 404715 | DE104: 665464 | DF104: 97 | DG104: -260652 | DH104: 216663 | DI104: 128852 | DL104: -4515 | DM104: -3162 | DN104: 77186 | DO104: 62966 | DP104: 568 | DR104: 14788 | DS104: -4320 | DT104: 0 | DU104: 3551 | DV104: -194 | DW104: 6723 | DX104: 50093 | DY104: 70794 | EA104: -4957 | EB104: -39019 | EC104: -10927 | EH104: 21.5 | EJ104: 5 | EQ104: -89381 | ER104: 1826 | ES104: 48626 | ET104: -109379 | EU104: 458 | EV104: 27181 | EW104: -97812 | EX104: 2009 | EY104: 14082 | EZ104: 47796 | FA104: -31279 | FB104: 19232 | FC104: 65661 | FD104: 37302 | FE104: -10056 | FF104: 560306 | FG104: 399671 | FH104: 160635 | FI104: 1210 | FJ104: 557126 | FK104: 328021 | FL104: 229105 | FM104: 1069 | FN104: 545353 | FO104: 321569 | FP104: 223784 | FQ104: 935 | FR104: 317 | FS104: 198 | FT104: 277 | FU104: 184402
A105: 286 | B105: Kouvola | C105: 84196 | E105: 1.434412423 | F105: 62.21817701 | G105: -4278.077343 | K105: 41.55451846 | L105: 825.6330467 | M105: 35.08557415 | N105: 8589.172882 | P105: 295120 | Q105: 743319 | R105: 1968 | S105: -446231 | T105: 336659 | U105: 169167 | X105: -4920 | Y105: 2125 | Z105: 56800 | AA105: 44774 | AB105: 0 | AD105: 12026 | AE105: 9 | AF105: 0 | AG105: -2649 | AH105: -522 | AI105: 8864 | AJ105: 36695 | AK105: 51109 | AM105: -1869 | AN105: -37973 | AO105: -7046 | AT105: 20.75 | AV105: 190 | AW105: 83177 | AY105: 0.5864036487 | AZ105: 67.65224616 | BA105: -4874.592736 | BE105: 37.91048741 | BF105: 875.6627433 | BG105: 29.00368209 | BH105: 11019.87328 | BJ105: 313098 | BK105: 787091 | BL105: 4371 | BM105: -469622 | BN105: 329566 | BO105: 170969 | BR105: -4539 | BS105: -35 | BT105: 26339 | BU105: 42700 | BV105: 0 | BX105: -16361 | BY105: -37 | BZ105: 5 | CA105: -2328 | CB105: -101 | CC105: -18822 | CD105: 51931 | CE105: 18909 | CG105: -3461 | CH105: -48375 | CI105: -47303 | CN105: 20.75 | CP105: 209 | CQ105: 82113 | CS105: 0.7985167173 | CT105: 69.02166737 | CU105: -5719.630266 | CY105: 32.97409306 | CZ105: 1268.495853 | DA105: 24.61819938 | DB105: 13151.18191 | DD105: 452012 | DE105: 937026 | DF105: 4946 | DG105: -480068 | DH105: 336516 | DI105: 173241 | DL105: -4666 | DM105: 2772 | DN105: 27795 | DO105: 40721 | DP105: 0 | DR105: -12926 | DS105: -100 | DT105: 92 | DU105: 2944 | DV105: 131 | DW105: -15747 | DX105: 40119 | DY105: 19386 | EA105: -17745 | EB105: -36081 | EC105: -60893 | EH105: 20.75 | EJ105: 189 | EQ105: -63890 | ER105: 957 | ES105: 4778 | ET105: -74197 | EU105: 1102 | EV105: 6883 | EW105: -101600 | EX105: 5655 | EY105: 15666 | EZ105: 41800 | FA105: 9309 | FB105: 67854 | FC105: 7441 | FD105: 113461 | FE105: 38064 | FF105: 346723 | FG105: 306603 | FH105: 40120 | FI105: 5419 | FJ105: 367644 | FK105: 324031 | FL105: 43613 | FM105: 5419 | FN105: 489089 | FO105: 399608 | FP105: 89481 | FQ105: 5421 | FR105: 16429 | FS105: 12449 | FT105: 10779 | FU105: 20470
A106: 287 | B106: Kristiinankaupunki | C106: 6638 | E106: 3.388282026 | F106: 58.9684173 | G106: -4616.752034 | K106: 41.17466222 | L106: 338.3549262 | M106: 17.22899416 | N106: 7168.122929 | P106: 16952 | Q106: 54919 | R106: 0 | S106: -37967 | T106: 24097 | U106: 20662 | X106: -512 | Y106: 31 | Z106: 6311 | AA106: 3176 | AB106: 40 | AD106: 3175 | AE106: 0 | AF106: -35 | AG106: 0 | AH106: -4 | AI106: 3136 | AJ106: 10654 | AK106: 4762 | AM106: -317 | AN106: -1501 | AO106: -3022 | AT106: 21.5 | AV106: 82 | AW106: 6596 | AY106: 0.5653203137 | AZ106: 72.8677398 | BA106: -5430.260764 | BE106: 34.690725 | BF106: 1073.226198 | BG106: 32.94237267 | BH106: 11891.29776 | BJ106: 22922 | BK106: 62871 | BL106: 0 | BM106: -39949 | BN106: 23469 | BO106: 20205 | BR106: -484 | BS106: 95 | BT106: 3336 | BU106: 3313 | BV106: 0 | BX106: 23 | BY106: 0 | BZ106: 20 | CA106: 0 | CB106: -3 | CC106: 40 | CD106: 10681 | CE106: 2764 | CG106: -2044 | CH106: -6274 | CI106: -4090 | CN106: 21.5 | CP106: 140 | CQ106: 6486 | CS106: 0.3355756001 | CT106: 72.03467677 | CU106: -6333.64169 | CY106: 31.0229329 | CZ106: 671.4461918 | DA106: 29.77300474 | DB106: 12881.28276 | DD106: 24309 | DE106: 67543 | DF106: -5 | DG106: -43239 | DH106: 24649 | DI106: 20714 | DL106: -466 | DM106: 70 | DN106: 1728 | DO106: 3931 | DP106: -6 | DR106: -2209 | DS106: -2 | DT106: 5 | DU106: 11 | DV106: -16 | DW106: -2233 | DX106: 8569 | DY106: 2953 | EA106: 1264 | EB106: -6074 | EC106: -5081 | EH106: 21.5 | EJ106: 220 | EQ106: -9419 | ER106: 0 | ES106: 1635 | ET106: -8776 | EU106: 1303 | EV106: 619 | EW106: -9406 | EX106: 697 | EY106: 675 | EZ106: 0 | FA106: 23 | FB106: 15621 | FC106: 92 | FD106: 4919 | FE106: 2050 | FF106: 26451 | FG106: 21902 | FH106: 4549 | FI106: 3 | FJ106: 37013 | FK106: 32071 | FL106: 4942 | FM106: 3 | FN106: 38045 | FO106: 30402 | FP106: 7643 | FQ106: 3 | FR106: 1100 | FS106: 1100 | FT106: 1100 | FU106: 779
A107: 288 | B107: Kruunupyy | C107: 6531 | E107: 1.189412738 | F107: 58.61467919 | G107: -4452.304394 | K107: 28.35425805 | L107: 654.7236258 | M107: 26.6001977 | N107: 8983.92283 | P107: 24300 | Q107: 59838 | R107: 29 | S107: -35509 | T107: 22757 | U107: 16625 | X107: -375 | Y107: 431 | Z107: 3929 | AA107: 2460 | AB107: 22 | AD107: 1491 | AE107: 1 | AF107: 114 | AG107: -14 | AH107: -3 | AI107: 1589 | AJ107: 8868 | AK107: 3887 | AM107: -1024 | AN107: -3242 | AO107: -712 | AT107: 21.25 | AV107: 220 | AW107: 6509 | AY107: 0.8703097457 | AZ107: 53.00239593 | BA107: -4422.184667 | BE107: 29.25933202 | BF107: 580.8880012 | BG107: 19.59985514 | BH107: 10817.63712 | BJ107: 26832 | BK107: 63498 | BL107: 24 | BM107: -36642 | BN107: 23584 | BO107: 16364 | BR107: -346 | BS107: 144 | BT107: 3104 | BU107: 2821 | BV107: -2 | BX107: 281 | BY107: 0 | BZ107: -81 | CA107: -12 | CB107: -55 | CC107: 133 | CD107: 8720 | CE107: 3133 | CG107: 1143 | CH107: -3619 | CI107: 321 | CN107: 22 | CP107: 154 | CQ107: 6428 | CS107: 0.7644563519 | CT107: 59.26114269 | CU107: -4898.8799 | CY107: 27.78018252 | CZ107: 727.7535781 | DA107: 18.54676791 | DB107: 11575.91786 | DD107: 26781 | DE107: 63636 | DF107: 16 | DG107: -36839 | DH107: 24129 | DI107: 15950 | DL107: -307 | DM107: 175 | DN107: 3108 | DO107: 2537 | DP107: 0 | DR107: 571 | DS107: 0 | DT107: -20 | DU107: 48 | DV107: -27 | DW107: 476 | DX107: 9174 | DY107: 2438 | EA107: -624 | EB107: -4163 | EC107: -2623 | EH107: 22 | EJ107: 126 | EQ107: -4801 | ER107: 153 | ES107: 49 | ET107: -2928 | EU107: 67 | EV107: 49 | EW107: -6239 | EX107: 260 | EY107: 918 | EZ107: 3307 | FA107: 1679 | FB107: 4572 | FC107: -1738 | FD107: 6844 | FE107: 656 | FF107: 26247 | FG107: 18091 | FH107: 8156 | FI107: 9 | FJ107: 25266 | FK107: 18590 | FL107: 6676 | FM107: 9 | FN107: 28618 | FO107: 20871 | FP107: 7747 | FQ107: 9 | FR107: 6569 | FS107: 6418 | FT107: 6274 | FU107: 87
A108: 290 | B108: Kuhmo | C108: 8499 | E108: 1.500976774 | F108: 57.8461237 | G108: -3219.437581 | K108: 38.8399189 | L108: 3767.855042 | M108: 128.7764557 | N108: 10679.4917 | P108: 50942 | Q108: 106694 | R108: 2 | S108: -55750 | T108: 29097 | U108: 32233 | X108: -138 | Y108: 1249 | Z108: 6691 | AA108: 5095 | AB108: 0 | AD108: 1596 | AE108: -159 | AF108: 12 | AG108: 0 | AH108: -147 | AI108: 1302 | AJ108: 8637 | AK108: 7438 | AM108: -902 | AN108: -4383 | AO108: -12795 | AT108: 21.5 | AV108: 138 | AW108: 8329 | AY108: 0.6280074028 | AZ108: 65.10972346 | BA108: -4252.73142 | BE108: 34.65567378 | BF108: 3589.866731 | BG108: 86.09373398 | BH108: 15219.47413 | BJ108: 52066 | BK108: 108580 | BL108: 0 | BM108: -56514 | BN108: 27788 | BO108: 32246 | BR108: -223 | BS108: -487 | BT108: 2810 | BU108: 4882 | BV108: -3 | BX108: -2075 | BY108: -238 | BZ108: 12 | CA108: 0 | CB108: -135 | CC108: -2436 | CD108: 6201 | CE108: 3271 | CG108: -2107 | CH108: -4619 | CI108: -8198 | CN108: 21.5 | CP108: 199 | CQ108: 8190 | CS108: 1.251279769 | CT108: 70.5241576 | CU108: -4785.714286 | CY108: 35.52930019 | CZ108: 4015.384615 | DA108: 88.3841656 | DB108: 15076.67888 | DD108: 51830 | DE108: 107746 | DF108: 0 | DG108: -55916 | DH108: 28258 | DI108: 32092 | DL108: -266 | DM108: 1173 | DN108: 5341 | DO108: 5515 | DP108: 0 | DR108: -174 | DS108: -200 | DT108: 16 | DU108: 0 | DV108: -161 | DW108: -519 | DX108: 5639 | DY108: 4791 | EA108: 1343 | EB108: -4212 | EC108: -4398 | EH108: 21.5 | EJ108: 70 | EQ108: -20934 | ER108: 160 | ES108: 541 | ET108: -11986 | EU108: 348 | EV108: 169 | EW108: -10252 | EX108: 276 | EY108: 787 | EZ108: 21025 | FA108: -186 | FB108: 13979 | FC108: -4266 | FD108: 12467 | FE108: -1468 | FF108: 50402 | FG108: 40077 | FH108: 10325 | FI108: 201 | FJ108: 55585 | FK108: 49804 | FL108: 5781 | FM108: 50 | FN108: 62329 | FO108: 57596 | FP108: 4733 | FQ108: 0 | FR108: 885 | FS108: 695 | FT108: 552 | FU108: 818
A109: 291 | B109: Kuhmoinen | C109: 2252 | E109: 2.399190283 | F109: 44.27408588 | G109: -1855.683837 | K109: 63.07245215 | L109: 2075.488455 | M109: 91.85430464 | N109: 8247.335702 | P109: 4784 | Q109: 20319 | R109: 4 | S109: -15531 | T109: 8067 | U109: 10368 | X109: 63 | Y109: -46 | Z109: 2921 | AA109: 1785 | AB109: 4 | AD109: 1140 | AE109: -40 | AF109: -2 | AG109: -3 | AH109: -1 | AI109: 1094 | AJ109: 5535 | AK109: 2938 | AM109: -720 | AN109: -1193 | AO109: -90 | AT109: 20.75 | AV109: 19 | AW109: 2238 | AY109: 3.972222222 | AZ109: 46.64687391 | BA109: -2273.458445 | BE109: 62.33770524 | BF109: 2117.068811 | BG109: 71.32010887 | BH109: 10834.67382 | BJ109: 5042 | BK109: 21400 | BL109: 0 | BM109: -16358 | BN109: 8040 | BO109: 9822 | BR109: 49 | BS109: -16 | BT109: 1537 | BU109: 1576 | BV109: 0 | BX109: -39 | BY109: 19 | BZ109: 47 | CA109: -3 | CB109: -8 | CC109: 16 | CD109: 5504 | CE109: 1546 | CG109: 673 | CH109: -360 | CI109: -678 | CN109: 20.75 | CP109: 79 | CQ109: 2206 | CS109: 2.915178571 | CT109: 49.09696651 | CU109: -2562.556664 | CY109: 60.82080963 | CZ109: 1843.608341 | DA109: 71.85075185 | DB109: 10912.96464 | DD109: 5279 | DE109: 21729 | DF109: 2 | DG109: -16448 | DH109: 8139 | DI109: 9394 | DL109: 47 | DM109: 156 | DN109: 1288 | DO109: 1677 | DP109: -5 | DR109: -394 | DS109: -4 | DT109: 47 | DU109: 3 | DV109: -11 | DW109: -365 | DX109: 5122 | DY109: 1255 | EA109: -681 | EB109: -430 | EC109: -589 | EH109: 20.75 | EJ109: 95 | EQ109: -3093 | ER109: 40 | ES109: 25 | ET109: -2326 | EU109: 14 | EV109: 88 | EW109: -1855 | EX109: 3 | EY109: 8 | EZ109: 189 | FA109: 298 | FB109: 176 | FC109: -314 | FD109: 141 | FE109: 2071 | FF109: 7596 | FG109: 6795 | FH109: 801 | FI109: 59 | FJ109: 7167 | FK109: 4991 | FL109: 2176 | FM109: 56 | FN109: 8310 | FO109: 4690 | FP109: 3620 | FQ109: 52 | FR109: 345 | FS109: 318 | FT109: 318 | FU109: 18
A110: 297 | B110: Kuopio | C110: 118209 | E110: 1.148742783 | F110: 89.75450531 | G110: -7984.282077 | K110: 26.3079332 | L110: 1338.248357 | M110: 52.92365176 | N110: 9229.53413 | P110: 614581 | Q110: 1170587 | R110: 1068 | S110: -554938 | T110: 452739 | U110: 258004 | X110: -13717 | Y110: 1787 | Z110: 143875 | AA110: 103555 | AB110: 0 | AD110: 40320 | AE110: -2623 | AF110: 23 | AG110: -2434 | AH110: -2510 | AI110: 32776 | AJ110: 2177 | AK110: 135955 | AM110: -22130 | AN110: -123419 | AO110: -24494 | AT110: 20.5 | AV110: 28 | AW110: 118664 | AY110: 1.254984134 | AZ110: 90.33345919 | BA110: -8121.721836 | BE110: 25.92494869 | BF110: 1449.344367 | BG110: 39.71356984 | BH110: 13320.65327 | BJ110: 662764 | BK110: 1232300 | BL110: 952 | BM110: -568584 | BN110: 441274 | BO110: 257328 | BR110: -12075 | BS110: 5265 | BT110: 123208 | BU110: 106063 | BV110: 1379 | BX110: 18524 | BY110: -989 | BZ110: -961 | CA110: -1549 | CB110: -5087 | CC110: 9938 | CD110: 10875 | CE110: 96424 | CG110: -1648 | CH110: -95646 | CI110: -25599 | CN110: 20.5 | CP110: 22 | CQ110: 119282 | CS110: 1.308068553 | CT110: 96.63335567 | CU110: -8823.686726 | CY110: 26.6985237 | CZ110: 1825.522711 | DA110: 38.42242834 | DB110: 13696.94505 | DD110: 683752 | DE110: 1281632 | DF110: 333 | DG110: -597547 | DH110: 464000 | DI110: 265495 | DL110: -10987 | DM110: 3758 | DN110: 124719 | DO110: 116077 | DP110: 0 | DR110: 8642 | DS110: -2694 | DT110: -95 | DU110: 3003 | DV110: -4420 | DW110: -1570 | DX110: 10746 | DY110: 101266 | EA110: -2069 | EB110: -92597 | EC110: -77983 | EH110: 20.5 | EJ110: 16 | EQ110: -218638 | ER110: 2399 | ES110: 55790 | ET110: -238526 | EU110: 2632 | EV110: 113871 | EW110: -247356 | EX110: 2768 | EY110: 65339 | EZ110: 84002 | FA110: 42570 | FB110: 121417 | FC110: -24014 | FD110: 212516 | FE110: 262 | FF110: 947219 | FG110: 839892 | FH110: 107327 | FI110: 510 | FJ110: 955659 | FK110: 868669 | FL110: 86990 | FM110: 502 | FN110: 1075929 | FO110: 984837 | FP110: 91092 | FQ110: 502 | FR110: 11789 | FS110: 10653 | FT110: 9609 | FU110: 188151
A111: 300 | B111: Kuortane | C111: 3637 | E111: 8.852071006 | F111: 35.42817433 | G111: -3846.851801 | K111: 46.24104235 | L111: 795.4357987 | M111: 20.35870592 | N111: 14260.92934 | P111: 30555 | Q111: 52970 | R111: -22 | S111: -22437 | T111: 11305 | U111: 14262 | X111: -58 | Y111: -152 | Z111: 2920 | AA111: 2244 | AB111: 0 | AD111: 676 | AE111: -11 | AF111: -94 | AG111: 0 | AH111: 0 | AI111: 571 | AJ111: 3195 | AK111: 2745 | AM111: -464 | AN111: -266 | AO111: 906 | AT111: 21 | AV111: 130 | AW111: 3572 | AY111: 4.705544933 | AZ111: 36.7685045 | BA111: -4178.331467 | BE111: 45.61927418 | BF111: 798.712206 | BG111: 18.04726088 | BH111: 16153.69541 | BJ111: 31144 | BK111: 53821 | BL111: -13 | BM111: -22690 | BN111: 10776 | BO111: 14215 | BR111: -57 | BS111: 122 | BT111: 2366 | BU111: 1964 | BV111: 0 | BX111: 402 | BY111: -2 | BZ111: -8 | CA111: 0 | CB111: 0 | CC111: 392 | CD111: 3484 | CE111: 2332 | CG111: 203 | CH111: -428 | CI111: -835 | CN111: 21 | CP111: 88 | CQ111: 3551 | CS111: 2.348897536 | CT111: 44.33740892 | CU111: -5245.001408 | CY111: 40.45013564 | CZ111: 983.384962 | DA111: 16.79507758 | DB111: 17368.91017 | DD111: 31490 | DE111: 54906 | DF111: -13 | DG111: -23429 | DH111: 11113 | DI111: 14076 | DL111: -141 | DM111: 23 | DN111: 1642 | DO111: 2158 | DP111: 0 | DR111: -516 | DS111: 7 | DT111: 41 | DU111: 0 | DV111: 0 | DW111: -468 | DX111: 3068 | DY111: 1634 | EA111: -120 | EB111: -602 | EC111: -4032 | EH111: 21 | EJ111: 136 | EQ111: -2819 | ER111: 188 | ES111: 792 | ET111: -3292 | EU111: 32 | EV111: 93 | EW111: -5937 | EX111: 205 | EY111: 66 | EZ111: 1206 | FA111: -1236 | FB111: 5933 | FC111: -5087 | FD111: 2100 | FE111: 1914 | FF111: 15071 | FG111: 7827 | FH111: 7244 | FI111: 1570 | FJ111: 15534 | FK111: 13008 | FL111: 2526 | FM111: 1549 | FN111: 18597 | FO111: 14180 | FP111: 4417 | FQ111: 1542 | FR111: 1982 | FS111: 1570 | FT111: 1462 | FU111: 2706
A112: 301 | B112: Kurikka | C112: 21203 | E112: 1.488301048 | F112: 76.89394945 | G112: -4908.362024 | K112: 39.50105159 | L112: 2719.002028 | M112: 99.84443949 | N112: 9939.819837 | P112: 91921 | Q112: 213779 | R112: -6 | S112: -121864 | T112: 66489 | U112: 67652 | X112: -1148 | Y112: 8935 | Z112: 20064 | AA112: 14373 | AB112: 0 | AD112: 5691 | AE112: 49 | AF112: -95 | AG112: 0 | AH112: -14 | AI112: 5631 | AJ112: 19953 | AK112: 19742 | AM112: 3152 | AN112: -13031 | AO112: 4379 | AT112: 21 | AV112: 83 | AW112: 20952 | AY112: 1.086107412 | AZ112: 77.99454322 | BA112: -5060.710195 | BE112: 39.16061143 | BF112: 2665.759832 | BG112: 80.94894815 | BH112: 12019.95036 | BJ112: 92967 | BK112: 216865 | BL112: 24 | BM112: -123874 | BN112: 63772 | BO112: 67569 | BR112: -1026 | BS112: 9491 | BT112: 15932 | BU112: 14631 | BV112: 0 | BX112: 1301 | BY112: 48 | BZ112: -40 | CA112: -190 | CB112: -39 | CC112: 1080 | CD112: 22823 | CE112: 15608 | CG112: 2014 | CH112: -14574 | CI112: -2012 | CN112: 21 | CP112: 59 | CQ112: 20678 | CS112: 0.7581292034 | CT112: 78.3212132 | CU112: -5264.822517 | CY112: 36.59342864 | CZ112: 2635.216172 | DA112: 79.71218436 | DB112: 12368.41087 | DD112: 93292 | DE112: 224243 | DF112: 17 | DG112: -130934 | DH112: 64910 | DI112: 67318 | DL112: -1041 | DM112: 10817 | DN112: 11070 | DO112: 23222 | DP112: -6 | DR112: -12158 | DS112: 309 | DT112: -280 | DU112: 171 | DV112: 47 | DW112: -12253 | DX112: 10327 | DY112: 10562 | EA112: 2384 | EB112: -14990 | EC112: -2172 | EH112: 21 | EJ112: 110 | EQ112: -18027 | ER112: 189 | ES112: 2475 | ET112: -18920 | EU112: 63 | EV112: 1237 | EW112: -15095 | EX112: 130 | EY112: 2231 | EZ112: 16573 | FA112: 2176 | FB112: 5193 | FC112: 6715 | FD112: 18093 | FE112: -692 | FF112: 137520 | FG112: 116224 | FH112: 21296 | FI112: 332 | FJ112: 134854 | FK112: 106738 | FL112: 28116 | FM112: 104 | FN112: 137265 | FO112: 108740 | FP112: 28525 | FQ112: 10 | FR112: 17611 | FS112: 15584 | FT112: 14215 | FU112: 7285
A113: 304 | B113: Kustavi | C113: 923 | E113: 2.419483101 | F113: 49.2319641 | G113: -3921.993499 | K113: 56.64952241 | L113: 1191.76598 | M113: 41.25989107 | N113: 10542.79523 | P113: 5195 | Q113: 10376 | R113: 1 | S113: -5180 | T113: 4026 | U113: 2367 | X113: -58 | Y113: 4 | Z113: 1159 | AA113: 524 | AB113: 0 | AD113: 635 | AE113: 0 | AF113: 30 | AG113: 0 | AH113: 0 | AI113: 665 | AJ113: 3432 | AK113: 1175 | AM113: -7 | AN113: -445 | AO113: 39 | AT113: 19 | AV113: 22 | AW113: 926 | AY113: 1.813333333 | AZ113: 44.85600133 | BA113: -3317.4946 | BE113: 58.96115362 | BF113: 1579.913607 | BG113: 44.53669725 | BH113: 12948.16415 | BJ113: 5242 | BK113: 11053 | BL113: 0 | BM113: -5811 | BN113: 4469 | BO113: 2303 | BR113: -53 | BS113: -9 | BT113: 899 | BU113: 588 | BV113: 0 | BX113: 311 | BY113: 0 | BZ113: 21 | CA113: 0 | CB113: 0 | CC113: 332 | CD113: 3761 | CE113: 901 | CG113: 114 | CH113: -472 | CI113: 533 | CN113: 18.75 | CP113: 28 | CQ113: 949 | CS113: 1.310139165 | CT113: 51.55107188 | CU113: -3713.382508 | CY113: 56.066713 | CZ113: 1778.714436 | DA113: 41.55367232 | DB113: 13615.38462 | DD113: 5180 | DE113: 11240 | DF113: 3 | DG113: -6057 | DH113: 4583 | DI113: 2132 | DL113: -50 | DM113: 1 | DN113: 609 | DO113: 586 | DP113: 0 | DR113: 23 | DS113: 0 | DT113: 23 | DU113: 0 | DV113: 0 | DW113: 46 | DX113: 3810 | DY113: 606 | EA113: -73 | EB113: -453 | EC113: -455 | EH113: 18.5 | EJ113: 76 | EQ113: -1148 | ER113: 5 | ES113: 7 | ET113: -390 | EU113: 18 | EV113: 4 | EW113: -1171 | EX113: 52 | EY113: 58 | EZ113: 495 | FA113: -2 | FB113: 103 | FC113: -4 | FD113: 785 | FE113: 41 | FF113: 4408 | FG113: 3940 | FH113: 468 | FI113: 0 | FJ113: 4012 | FK113: 3647 | FL113: 365 | FM113: 0 | FN113: 4399 | FO113: 3914 | FP113: 485 | FQ113: 0 | FR113: 1358 | FS113: 1484 | FT113: 1325 | FU113: 839
A114: 305 | B114: Kuusamo | C114: 15386 | E114: 1.763862748 | F114: 50.62492333 | G114: -2223.969843 | K114: 52.20180454 | L114: 2023.527882 | M114: 85.76471121 | N114: 8611.789939 | P114: 47965 | Q114: 135460 | R114: 2 | S114: -87493 | T114: 52586 | U114: 46187 | X114: -894 | Y114: 883 | Z114: 11269 | AA114: 9222 | AB114: 0 | AD114: 2047 | AE114: -39 | AF114: 414 | AG114: -46 | AH114: -66 | AI114: 2310 | AJ114: 21081 | AK114: 11152 | AM114: 420 | AN114: -5993 | AO114: 2430 | AT114: 20 | AV114: 163 | AW114: 15207 | AY114: 0.5417534861 | AZ114: 56.97106038 | BA114: -2112.382455 | BE114: 49.86128876 | BF114: 2405.668442 | BG114: 82.22873277 | BH114: 10678.3718 | BJ114: 48008 | BK114: 137406 | BL114: 4 | BM114: -89394 | BN114: 51130 | BO114: 44886 | BR114: -716 | BS114: 113 | BT114: 6019 | BU114: 7343 | BV114: 511 | BX114: -813 | BY114: -8 | BZ114: 412 | CA114: -21 | CB114: -92 | CC114: -522 | CD114: 21569 | CE114: 5752 | CG114: -3332 | CH114: -11737 | CI114: -3692 | CN114: 20 | CP114: 183 | CQ114: 15134 | CS114: 0.9076144522 | CT114: 51.93641795 | CU114: -2351.06383 | CY114: 51.82249529 | CZ114: 1951.235628 | DA114: 83.45236086 | DB114: 10572.55187 | DD114: 49253 | DE114: 141442 | DF114: 5 | DG114: -92184 | DH114: 52485 | DI114: 45725 | DL114: -603 | DM114: 1671 | DN114: 7094 | DO114: 7698 | DP114: 0 | DR114: -604 | DS114: -11 | DT114: 474 | DU114: 46 | DV114: -45 | DW114: -232 | DX114: 21275 | DY114: 6840 | EA114: 1868 | EB114: -7879 | EC114: -2753 | EH114: 20 | EJ114: 131 | EQ114: -9976 | ER114: 580 | ES114: 674 | ET114: -11481 | EU114: 843 | EV114: 1194 | EW114: -9825 | EX114: 45 | EY114: 187 | EZ114: 1049 | FA114: -450 | FB114: 16369 | FC114: 95 | FD114: 2314 | FE114: 174 | FF114: 55375 | FG114: 49041 | FH114: 6334 | FI114: 546 | FJ114: 60037 | FK114: 52016 | FL114: 8021 | FM114: 544 | FN114: 54630 | FO114: 47095 | FP114: 7535 | FQ114: 528 | FR114: 2506 | FS114: 2189 | FT114: 1855 | FU114: 2582
A115: 312 | B115: Kyyjärvi | C115: 1352 | E115: 1.621527778 | F115: 93.21027986 | G115: -7004.43787 | K115: 18.40561108 | L115: 4744.822485 | M115: 136.5610055 | N115: 12681.95266 | P115: 9627 | Q115: 17810 | R115: 0 | S115: -8183 | T115: 4319 | U115: 4420 | X115: -7 | Y115: 350 | Z115: 899 | AA115: 954 | AB115: 0 | AD115: -55 | AE115: 48 | AF115: 2 | AG115: 0 | AH115: 0 | AI115: -5 | AJ115: -1539 | AK115: 898 | AM115: -144 | AN115: -541 | AO115: -261 | AT115: 21 | AV115: 198 | AW115: 1343 | AY115: 0.8137755102 | AZ115: 103.7884243 | BA115: -8068.503351 | BE115: 18.02380747 | BF115: 4903.201787 | BG115: 117.376813 | BH115: 15247.20774 | BJ115: 9522 | BK115: 18191 | BL115: 0 | BM115: -8669 | BN115: 4384 | BO115: 4149 | BR115: -11 | BS115: 445 | BT115: 298 | BU115: 2383 | BV115: 0 | BX115: -2085 | BY115: 492 | BZ115: 0 | CA115: 0 | CB115: 0 | CC115: -1593 | CD115: -1867 | CE115: 304 | CG115: -157 | CH115: -371 | CI115: -1378 | CN115: 21.75 | CP115: 245 | CQ115: 1313 | CS115: -4.13372093 | CT115: 99.99467717 | CU115: -8412.795126 | CY115: 8.627535606 | CZ115: 5382.330541 | DA115: 108.0333064 | DB115: 16944.40213 | DD115: 10030 | DE115: 20690 | DF115: 0 | DG115: -10660 | DH115: 4415 | DI115: 4342 | DL115: -11 | DM115: 473 | DN115: -1441 | DO115: 1223 | DP115: 196 | DR115: -2468 | DS115: 38 | DT115: 0 | DU115: 0 | DV115: 0 | DW115: -2430 | DX115: -4186 | DY115: 236 | EA115: 749 | EB115: -325 | EC115: -301 | EH115: 21.75 | EJ115: 291 | EQ115: -1245 | ER115: 71 | ES115: 15 | ET115: -1758 | EU115: 33 | EV115: 43 | EW115: -1247 | EX115: 0 | EY115: 710 | EZ115: 820 | FA115: 119 | FB115: 760 | FC115: 1147 | FD115: 1140 | FE115: -386 | FF115: 14982 | FG115: 4564 | FH115: 10418 | FI115: 66 | FJ115: 16518 | FK115: 5004 | FL115: 11514 | FM115: 65 | FN115: 16990 | FO115: 5914 | FP115: 11076 | FQ115: 65 | FR115: 2406 | FS115: 2352 | FT115: 2318 | FU115: 3953
A116: 316 | B116: Kärkölä | C116: 4508 | E116: 3.120076849 | F116: 31.72158237 | G116: -1950.754215 | K116: 42.23808223 | L116: 734.2502218 | M116: 25.72502342 | N116: 10417.92369 | P116: 25035 | Q116: 46680 | R116: 1 | S116: -21644 | T116: 16687 | U116: 8203 | X116: -155 | Y116: 1 | Z116: 3092 | AA116: 1587 | AB116: 20 | AD116: 1525 | AE116: -9 | AF116: 0 | AG116: 0 | AH116: 0 | AI116: 1516 | AJ116: 1861 | AK116: 3040 | AM116: -1794 | AN116: -885 | AO116: 2515 | AT116: 21.75 | AV116: 184 | AW116: 4451 | AY116: 1.062275449 | AZ116: 32.63086754 | BA116: -2017.973489 | BE116: 40.90830119 | BF116: 902.7184902 | BG116: 29.32788065 | BH116: 11234.7787 | BJ116: 25304 | BK116: 47952 | BL116: -2 | BM116: -22650 | BN116: 15663 | BO116: 7861 | BR116: -142 | BS116: 11 | BT116: 743 | BU116: 1482 | BV116: 173 | BX116: -566 | BY116: -4 | BZ116: 0 | CA116: -1 | CB116: -2 | CC116: -573 | CD116: 1275 | CE116: 901 | CG116: 800 | CH116: -691 | CI116: -228 | CN116: 21.75 | CP116: 255 | CQ116: 4368 | CS116: 1.309927361 | CT116: 51.33844164 | CU116: -3235.119048 | CY116: 30.18783777 | CZ116: 2002.06044 | DA116: 25.99517876 | DB116: 12915.97985 | DD116: 25747 | DE116: 49311 | DF116: 8 | DG116: -23556 | DH116: 15837 | DI116: 8661 | DL116: -131 | DM116: 137 | DN116: 948 | DO116: 1508 | DP116: -26 | DR116: -586 | DS116: -8 | DT116: 0 | DU116: 7 | DV116: 0 | DW116: -601 | DX116: 921 | DY116: 696 | EA116: 13 | EB116: -692 | EC116: -5325 | EH116: 22 | EJ116: 235 | EQ116: -830 | ER116: 24 | ES116: 281 | ET116: -1188 | EU116: 6 | EV116: 53 | EW116: -6253 | EX116: 2 | EY116: 230 | EZ116: 303 | FA116: 0 | FB116: 26 | FC116: 0 | FD116: 8 | FE116: 10003 | FF116: 9986 | FG116: 9295 | FH116: 691 | FI116: 49 | FJ116: 9321 | FK116: 8629 | FL116: 692 | FM116: 49 | FN116: 18638 | FO116: 8076 | FP116: 10562 | FQ116: 43 | FR116: 1095 | FS116: 863 | FT116: 822 | FU116: 15713
A117: 317 | B117: Kärsämäki | C117: 2611 | E117: 1.053362979 | F117: 61.3801951 | G117: -4292.991191 | K117: 31.57866864 | L117: 4392.186902 | M117: 108.8130394 | N117: 14733.05247 | P117: 22453 | Q117: 39888 | R117: 1 | S117: -17434 | T117: 6835 | U117: 12025 | X117: -132 | Y117: 458 | Z117: 1752 | AA117: 1898 | AB117: 0 | AD117: -146 | AE117: -1 | AF117: 277 | AG117: -6 | AH117: -2 | AI117: 122 | AJ117: 5051 | AK117: 1760 | AM117: 1176 | AN117: -1656 | AO117: -1254 | AT117: 21.5 | AV117: 191 | AW117: 2613 | AY117: 1.054011536 | AZ117: 68.25468342 | BA117: -4100.650593 | BE117: 29.76564561 | BF117: 4514.734022 | BG117: 96.83589709 | BH117: 17017.22158 | BJ117: 22956 | BK117: 40419 | BL117: 1 | BM117: -17462 | BN117: 6977 | BO117: 12237 | BR117: -76 | BS117: 235 | BT117: 1911 | BU117: 1528 | BV117: 189 | BX117: 572 | BY117: -1 | BZ117: -5 | CA117: -4 | CB117: -1 | CC117: 561 | CD117: 5675 | CE117: 1821 | CG117: -3591 | CH117: -1808 | CI117: 889 | CN117: 21.5 | CP117: 67 | CQ117: 2576 | CS117: 1.732550554 | CT117: 64.95252971 | CU117: -4612.57764 | CY117: 32.58787532 | CZ117: 4681.677019 | DA117: 90.93243358 | DB117: 18293.47826 | DD117: 21843 | DE117: 38943 | DF117: 1 | DG117: -17099 | DH117: 7458 | DI117: 11672 | DL117: -108 | DM117: 614 | DN117: 2537 | DO117: 1824 | DP117: 0 | DR117: 713 | DS117: 0 | DT117: -1 | DU117: 6 | DV117: -1 | DW117: 705 | DX117: 6633 | DY117: 2517 | EA117: 3570 | EB117: -1414 | EC117: -3390 | EH117: 21.5 | EJ117: 23 | EQ117: -3341 | ER117: 11 | ES117: 316 | ET117: -1661 | EU117: 174 | EV117: 555 | EW117: -6095 | EX117: 166 | EY117: 22 | EZ117: 1209 | FA117: 2201 | FB117: 251 | FC117: 553 | FD117: 3601 | FE117: 842 | FF117: 20282 | FG117: 15175 | FH117: 5107 | FI117: 102 | FJ117: 19560 | FK117: 13657 | FL117: 5903 | FM117: 92 | FN117: 20990 | FO117: 14434 | FP117: 6556 | FQ117: 101 | FR117: 2733 | FS117: 2620 | FT117: 2008 | FU117: 435
A118: 398 | B118: Lahti | C118: 119573 | E118: 1.960145084 | F118: 102.4004743 | G118: -8998.109941 | K118: 30.74332289 | L118: 1326.394755 | M118: 56.30039884 | N118: 8599.123548 | P118: 610585 | Q118: 1134068 | R118: 156 | S118: -523327 | T118: 448384 | U118: 253230 | X118: -20701 | Y118: 1576 | Z118: 159162 | AA118: 118319 | AB118: 1047 | AD118: 41890 | AE118: -1048 | AF118: -138 | AG118: -5764 | AH118: -1862 | AI118: 33078 | AJ118: 162740 | AK118: 144444 | AM118: -5424 | AN118: -70483 | AO118: -72152 | AT118: 20.25 | AV118: 17 | AW118: 119951 | AY118: 1.739247366 | AZ118: 107.7171199 | BA118: -9820.093205 | BE118: 30.35301193 | BF118: 1199.122975 | BG118: 34.54674788 | BH118: 12669.20659 | BJ118: 630995 | BK118: 1145546 | BL118: -11 | BM118: -514562 | BN118: 460249 | BO118: 225413 | BR118: -17345 | BS118: 1125 | BT118: 154880 | BU118: 127681 | BV118: 3106 | BX118: 30305 | BY118: -43 | BZ118: -122 | CA118: -6640 | CB118: -3619 | CC118: 19881 | CD118: 182621 | CE118: 128155 | CG118: 10732 | CH118: -80939 | CI118: -100698 | CN118: 20.75 | CP118: 9 | CQ118: 119823 | CS118: 1.704147979 | CT118: 109.9309633 | CU118: -10623.91194 | CY118: 30.25594983 | CZ118: 652.2704322 | DA118: 34.5375208 | DB118: 12686.12871 | DD118: 616971 | DE118: 1177824 | DF118: -9 | DG118: -560862 | DH118: 471650 | DI118: 229519 | DL118: -19610 | DM118: 2811 | DN118: 123508 | DO118: 117359 | DP118: -414 | DR118: 5735 | DS118: -894 | DT118: -3 | DU118: 5493 | DV118: -2397 | DW118: -3052 | DX118: 176963 | DY118: 113629 | EA118: -1459 | EB118: -64161 | EC118: -97853 | EH118: 20.75 | EJ118: 17 | EQ118: -211894 | ER118: 530 | ES118: -5232 | ET118: -272918 | EU118: 653 | EV118: 43412 | EW118: -253956 | EX118: 628 | EY118: 41846 | EZ118: 174022 | FA118: 21942 | FB118: 171747 | FC118: -27422 | FD118: 95691 | FE118: 16 | FF118: 1098025 | FG118: 993239 | FH118: 104786 | FI118: 24203 | FJ118: 1161404 | FK118: 1097740 | FL118: 63664 | FM118: 23791 | FN118: 1192951 | FO118: 1130329 | FP118: 62622 | FQ118: 23246 | FR118: 2104 | FS118: 0 | FT118: 0 | FU118: 84444
A119: 399 | B119: Laihia | C119: 8051 | E119: 1.065986611 | F119: 72.48521641 | G119: -5020.37014 | K119: 28.6646497 | L119: 356.353248 | M119: 18.94774459 | N119: 6864.613092 | P119: 18597 | Q119: 60277 | R119: 0 | S119: -41680 | T119: 29946 | U119: 15041 | X119: -260 | Y119: 34 | Z119: 3081 | AA119: 2931 | AB119: 0 | AD119: 150 | AE119: 21 | AF119: -34 | AG119: 0 | AH119: -38 | AI119: 99 | AJ119: -336 | AK119: 3100 | AM119: 0 | AN119: -2874 | AO119: -4817 | AT119: 21.75 | AV119: 277 | AW119: 8058 | AY119: 0.4951984635 | AZ119: 81.03203585 | BA119: -5371.556217 | BE119: 24.95247013 | BF119: 340.7793497 | BG119: 14.13966283 | BH119: 8796.847853 | BJ119: 18535 | BK119: 61225 | BL119: 0 | BM119: -42690 | BN119: 29126 | BO119: 15050 | BR119: -243 | BS119: 59 | BT119: 1302 | BU119: 3075 | BV119: 0 | BX119: -1773 | BY119: 20 | BZ119: 0 | CA119: 0 | CB119: -12 | CC119: -1765 | CD119: -2078 | CE119: 1077 | CG119: -1984 | CH119: -2879 | CI119: -2799 | CN119: 21.75 | CP119: 258 | CQ119: 8017 | CS119: 0.7491049298 | CT119: 81.62308108 | CU119: -5608.082824 | CY119: 24.55683511 | CZ119: 539.7280778 | DA119: 14.18047283 | DB119: 8816.390171 | DD119: 18570 | DE119: 62208 | DF119: 0 | DG119: -43638 | DH119: 30654 | DI119: 15591 | DL119: -234 | DM119: 112 | DN119: 2485 | DO119: 3188 | DP119: 0 | DR119: -703 | DS119: 26 | DT119: 0 | DU119: 0 | DV119: -58 | DW119: -735 | DX119: -2864 | DY119: 2140 | EA119: 1168 | EB119: -3396 | EC119: -2378 | EH119: 21.75 | EJ119: 207 | EQ119: -8208 | ER119: 65 | ES119: 226 | ET119: -6481 | EU119: 233 | EV119: 2372 | EW119: -4784 | EX119: 60 | EY119: 206 | EZ119: 8125 | FA119: -1679 | FB119: 6505 | FC119: 1816 | FD119: 4142 | FE119: 1535 | FF119: 35436 | FG119: 25026 | FH119: 10410 | FI119: 4 | FJ119: 40881 | FK119: 28465 | FL119: 12416 | FM119: 2 | FN119: 43163 | FO119: 28868 | FP119: 14295 | FQ119: 36 | FR119: 603 | FS119: 23 | FT119: 22 | FU119: 554
A120: 400 | B120: Laitila | C120: 8610 | E120: 8.27064803 | F120: 55.07475593 | G120: -4232.404181 | K120: 44.27017401 | L120: 506.039489 | M120: 20.66082472 | N120: 8939.837398 | P120: 38145 | Q120: 81498 | R120: 12 | S120: -43341 | T120: 29232 | U120: 20509 | X120: -188 | Y120: 103 | Z120: 6315 | AA120: 6583 | AB120: -1 | AD120: -268 | AE120: -98 | AF120: -294 | AG120: -33 | AH120: -14 | AI120: -707 | AJ120: 8617 | AK120: 5232 | AM120: 378 | AN120: -593 | AO120: 484 | AT120: 20.75 | AV120: 162 | AW120: 8647 | AY120: 4.985815603 | AZ120: 68.70440137 | BA120: -5372.961721 | BE120: 38.78365858 | BF120: 708.338152 | BG120: 23.64414667 | BH120: 10934.77507 | BJ120: 38494 | BK120: 83775 | BL120: 23 | BM120: -45258 | BN120: 29006 | BO120: 20359 | BR120: -181 | BS120: 57 | BT120: 3983 | BU120: 4746 | BV120: 0 | BX120: -763 | BY120: -107 | BZ120: 0 | CA120: -40 | CB120: 9 | CC120: -901 | CD120: 8207 | CE120: 2739 | CG120: -173 | CH120: -611 | CI120: -3767 | CN120: 20.5 | CP120: 158 | CQ120: 8588 | CS120: 0.918441141 | CT120: 71.74160437 | CU120: -6004.774103 | CY120: 37.43043589 | CZ120: 584.5365626 | DA120: 22.99150529 | DB120: 11322.42664 | DD120: 39072 | DE120: 87243 | DF120: -72 | DG120: -48243 | DH120: 30346 | DI120: 20212 | DL120: -243 | DM120: -35 | DN120: 2037 | DO120: 4917 | DP120: 0 | DR120: -2880 | DS120: -103 | DT120: 0 | DU120: 43 | DV120: 60 | DW120: -2966 | DX120: 5194 | DY120: 1968 | EA120: 65 | EB120: -2240 | EC120: -5275 | EH120: 20.75 | EJ120: 231 | EQ120: -5269 | ER120: -573 | ES120: 1094 | ET120: -9903 | EU120: 2175 | EV120: 1222 | EW120: -7429 | EX120: 21 | EY120: 165 | EZ120: 187 | FA120: -1337 | FB120: 10059 | FC120: -1438 | FD120: 33 | FE120: 5759 | FF120: 31673 | FG120: 16691 | FH120: 14982 | FI120: 328 | FJ120: 35307 | FK120: 20432 | FL120: 14875 | FM120: 389 | FN120: 47681 | FO120: 26969 | FP120: 20712 | FQ120: 434 | FR120: 2247 | FS120: 2030 | FT120: 1682 | FU120: 422
A121: 407 | B121: Lapinjärvi | C121: 2706 | E121: 0.7283236994 | F121: 71.15671935 | G121: -5644.124169 | K121: 29.23689501 | L121: 574.2793792 | M121: 23.36408947 | N121: 8971.544715 | P121: 9643 | Q121: 25315 | R121: 1 | S121: -15671 | T121: 8630 | U121: 7161 | X121: -107 | Y121: 756 | Z121: 769 | AA121: 1697 | AB121: 0 | AD121: -928 | AE121: 0 | AF121: 1 | AG121: 0 | AH121: 0 | AI121: -927 | AJ121: -1348 | AK121: 742 | AM121: -228 | AN121: -1098 | AO121: -1433 | AT121: 20.5 | AV121: 285 | AW121: 2665 | AY121: 0.6123215627 | AZ121: 82.24217294 | BA121: -7038.649156 | BE121: 23.56705718 | BF121: 482.1763602 | BG121: 14.67675314 | BH121: 11991.36961 | BJ121: 10533 | BK121: 26313 | BL121: -2 | BM121: -15782 | BN121: 8438 | BO121: 7316 | BR121: -111 | BS121: 839 | BT121: 700 | BU121: 1525 | BV121: 0 | BX121: -825 | BY121: 0 | BZ121: -1 | CA121: 0 | CB121: -1 | CC121: -827 | CD121: -2173 | CE121: 562 | CG121: -302 | CH121: -1216 | CI121: -3598 | CN121: 20.5 | CP121: 237 | CQ121: 2606 | CS121: 0.6553222303 | CT121: 88.34640326 | CU121: -7712.202609 | CY121: 20.26944895 | CZ121: 684.9577897 | DA121: 15.08652578 | DB121: 11929.77744 | DD121: 10402 | DE121: 26443 | DF121: 2 | DG121: -16039 | DH121: 8820 | DI121: 7302 | DL121: -115 | DM121: 820 | DN121: 788 | DO121: 1502 | DP121: 0 | DR121: -714 | DS121: -3 | DT121: 0 | DU121: 0 | DV121: 0 | DW121: -717 | DX121: -2890 | DY121: 801 | EA121: 26 | EB121: -1264 | EC121: -1367 | EH121: 20.5 | EJ121: 209 | EQ121: -2304 | ER121: 98 | ES121: 31 | ET121: -4277 | EU121: 6 | EV121: 111 | EW121: -3224 | EX121: 28 | EY121: 1028 | EZ121: 1139 | FA121: 2015 | FB121: 4211 | FC121: 21 | FD121: 2990 | FE121: 140 | FF121: 14685 | FG121: 10147 | FH121: 4538 | FI121: 0 | FJ121: 17716 | FK121: 13442 | FL121: 4274 | FM121: 0 | FN121: 19582 | FO121: 15168 | FP121: 4414 | FQ121: 0 | FR121: 242 | FS121: 204 | FT121: 165 | FU121: 1323
A122: 402 | B122: Lapinlahti | C122: 9692 | E122: 1.5109847 | F122: 70.92766147 | G122: -6203.157243 | K122: 34.15341798 | L122: 370.5117623 | M122: 14.43343868 | N122: 9369.686339 | P122: 35963 | Q122: 91828 | R122: 115 | S122: -55750 | T122: 29275 | U122: 33354 | X122: -567 | Y122: 798 | Z122: 7110 | AA122: 5962 | AB122: -3 | AD122: 1145 | AE122: 66 | AF122: 1 | AG122: -24 | AH122: -3 | AI122: 1185 | AJ122: 126 | AK122: 6589 | AM122: 1146 | AN122: -4505 | AO122: 1407 | AT122: 20.25 | AV122: 161 | AW122: 9617 | AY122: 0.7802491103 | AZ122: 70.65219634 | BA122: -6065.301029 | BE122: 34.26874838 | BF122: 490.3816159 | BG122: 16.43487975 | BH122: 10890.81834 | BJ122: 35029 | BK122: 91782 | BL122: 130 | BM122: -56623 | BN122: 29062 | BO122: 32843 | BR122: -537 | BS122: 842 | BT122: 5587 | BU122: 6029 | BV122: -116 | BX122: -558 | BY122: 65 | BZ122: 10 | CA122: -27 | CB122: 27 | CC122: -483 | CD122: -276 | CE122: 5389 | CG122: 777 | CH122: -7316 | CI122: 804 | CN122: 21.25 | CP122: 120 | CQ122: 9485 | CS122: 1.15 | CT122: 70.89836799 | CU122: -6367.105957 | CY122: 34.0439068 | CZ122: 451.6605166 | DA122: 16.09089889 | DB122: 11278.43964 | DD122: 35638 | DE122: 93365 | DF122: 179 | DG122: -57548 | DH122: 30072 | DI122: 32635 | DL122: -507 | DM122: 890 | DN122: 5542 | DO122: 6125 | DP122: 0 | DR122: -583 | DS122: 22 | DT122: 1 | DU122: 42 | DV122: -36 | DW122: -638 | DX122: -891 | DY122: 5513 | EA122: 399 | EB122: -4750 | EC122: -2433 | EH122: 21.25 | EJ122: 94 | EQ122: -6179 | ER122: 453 | ES122: 544 | ET122: -5003 | EU122: 90 | EV122: 328 | EW122: -8285 | EX122: 139 | EY122: 200 | EZ122: 2419 | FA122: 38 | FB122: 3890 | FC122: 882 | FD122: 5568 | FE122: 543 | FF122: 57754 | FG122: 49773 | FH122: 7981 | FI122: 907 | FJ122: 54782 | FK122: 48552 | FL122: 6230 | FM122: 454 | FN122: 56152 | FO122: 48829 | FP122: 7323 | FQ122: 0 | FR122: 3116 | FS122: 3314 | FT122: 2867 | FU122: 1490
A123: 403 | B123: Lappajärvi | C123: 3140 | E123: 1.811206897 | F123: 61.93466028 | G123: -5572.611465 | K123: 41.46893147 | L123: 1234.394904 | M123: 41.13812155 | N123: 10952.2293 | P123: 16092 | Q123: 36262 | R123: -90 | S123: -20260 | T123: 9906 | U123: 12386 | X123: -143 | Y123: 62 | Z123: 1951 | AA123: 1945 | AB123: 0 | AD123: 6 | AE123: 8 | AF123: 2 | AG123: -3 | AH123: -7 | AI123: 6 | AJ123: 2912 | AK123: 1911 | AM123: 133 | AN123: -1010 | AO123: -667 | AT123: 21 | AV123: 218 | AW123: 3078 | AY123: 0.3957627119 | AZ123: 61.41014072 | BA123: -3948.34308 | BE123: 39.75709532 | BF123: 1912.280702 | BG123: 45.33711777 | BH123: 15395.38661 | BJ123: 19343 | BK123: 38647 | BL123: -67 | BM123: -19371 | BN123: 9318 | BO123: 12342 | BR123: -81 | BS123: 37 | BT123: 2245 | BU123: 2513 | BV123: 0 | BX123: -268 | BY123: 42 | BZ123: 4 | CA123: -7 | CB123: -1 | CC123: -230 | CD123: 2541 | CE123: 409 | CG123: -4115 | CH123: -5810 | CI123: 5201 | CN123: 21 | CP123: 69 | CQ123: 2996 | CS123: 1.538569425 | CT123: 54.49427187 | CU123: -5093.457944 | CY123: 51.06623706 | CZ123: 749.6662216 | DA123: 51.19116234 | DB123: 13203.60481 | DD123: 13414 | DE123: 34769 | DF123: -33 | DG123: -21388 | DH123: 9693 | DI123: 12594 | DL123: -81 | DM123: 194 | DN123: 1012 | DO123: 1759 | DP123: 0 | DR123: -747 | DS123: 19 | DT123: -3 | DU123: 0 | DV123: 8 | DW123: -723 | DX123: 1768 | DY123: 1055 | EA123: 5051 | EB123: -628 | EC123: -2599 | EH123: 21.5 | EJ123: 191 | EQ123: -3056 | ER123: 183 | ES123: 295 | ET123: -2781 | EU123: 202 | EV123: 7371 | EW123: -4049 | EX123: 252 | EY123: 143 | EZ123: 1127 | FA123: 583 | FB123: 1424 | FC123: 749 | FD123: 726 | FE123: -467 | FF123: 18416 | FG123: 10008 | FH123: 8408 | FI123: 5 | FJ123: 15246 | FK123: 6092 | FL123: 9154 | FM123: 3 | FN123: 14995 | FO123: 5709 | FP123: 9286 | FQ123: 0 | FR123: 647 | FS123: 801 | FT123: 5208 | FU123: 11
A124: 405 | B124: Lappeenranta | C124: 72909 | E124: 1.320369449 | F124: 88.7632341 | G124: -8124.264494 | K124: 29.54424469 | L124: 586.6628263 | M124: 22.78669562 | N124: 9397.234909 | P124: 365675 | Q124: 683920 | R124: -31 | S124: -318276 | T124: 291499 | U124: 117435 | X124: -5924 | Y124: -632 | Z124: 84102 | AA124: 61837 | AB124: 0 | AD124: 22265 | AE124: -602 | AF124: 812 | AG124: -3399 | AH124: -2524 | AI124: 16552 | AJ124: 80222 | AK124: 79845 | AM124: 1155 | AN124: -62215 | AO124: 22973 | AT124: 21 | AV124: 42 | AW124: 72699 | AY124: 1.129636054 | AZ124: 83.31866762 | BA124: -7853.326731 | BE124: 30.9482917 | BF124: 687.9186784 | BG124: 21.50174626 | BH124: 11677.67094 | BJ124: 386828 | BK124: 716530 | BL124: -260 | BM124: -329962 | BN124: 288085 | BO124: 120593 | BR124: -4616 | BS124: -696 | BT124: 73404 | BU124: 54595 | BV124: 0 | BX124: 18809 | BY124: -668 | BZ124: 96 | CA124: -2761 | CB124: -2140 | CC124: 13336 | CD124: 88902 | CE124: 67041 | CG124: 11444 | CH124: -64435 | CI124: 18122 | CN124: 21 | CP124: 23 | CQ124: 72634 | CS124: 0.7453502484 | CT124: 91.15751506 | CU124: -8057.727786 | CY124: 31.44020222 | CZ124: 818.2531597 | DA124: 20.9266159 | DB124: 12009.34824 | DD124: 343788 | DE124: 689707 | DF124: 176 | DG124: -345743 | DH124: 292734 | DI124: 124237 | DL124: -4521 | DM124: 500 | DN124: 67207 | DO124: 58744 | DP124: 3875 | DR124: 12338 | DS124: -183 | DT124: 104 | DU124: 2211 | DV124: -2030 | DW124: 8018 | DX124: 97571 | DY124: 55293 | EA124: -6325 | EB124: -91756 | EC124: -15552 | EH124: 21 | EJ124: 26 | EQ124: -78830 | ER124: 1719 | ES124: 20239 | ET124: -62187 | EU124: 1913 | EV124: 11355 | EW124: -85976 | EX124: 2127 | EY124: 13004 | EZ124: 53383 | FA124: -8566 | FB124: 43745 | FC124: -4037 | FD124: 95856 | FE124: 19326 | FF124: 500519 | FG124: 412577 | FH124: 87942 | FI124: 11258 | FJ124: 479933 | FK124: 363444 | FL124: 116489 | FM124: 10885 | FN124: 495935 | FO124: 403227 | FP124: 92708 | FQ124: 10830 | FR124: 17250 | FS124: 15748 | FT124: 14336 | FU124: 61497
A125: 408 | B125: Lapua | C125: 14494 | E125: 1.196691015 | F125: 92.67201364 | G125: -7032.427211 | K125: 28.38072893 | L125: 842.7625224 | M125: 39.11869478 | N125: 7863.460742 | P125: 43993 | Q125: 118217 | R125: 34 | S125: -74190 | T125: 48687 | U125: 38734 | X125: -1034 | Y125: 334 | Z125: 12531 | AA125: 8802 | AB125: 0 | AD125: 3729 | AE125: -35 | AF125: 58 | AG125: -47 | AH125: -82 | AI125: 3623 | AJ125: 18249 | AK125: 11487 | AM125: -443 | AN125: -10296 | AO125: -1694 | AT125: 21 | AV125: 102 | AW125: 14427 | AY125: 0.3483400219 | AZ125: 102.0020874 | BA125: -7792.056561 | BE125: 25.87381782 | BF125: 973.6604977 | BG125: 29.9921322 | BH125: 11849.31032 | BJ125: 47633 | BK125: 122288 | BL125: 19 | BM125: -74636 | BN125: 47777 | BO125: 35853 | BR125: -916 | BS125: 513 | BT125: 8591 | BU125: 9146 | BV125: 0 | BX125: -555 | BY125: -4 | BZ125: 237 | CA125: -3 | CB125: -122 | CC125: -447 | CD125: 16520 | CE125: 8087 | CG125: 234 | CH125: -26453 | CI125: -10370 | CN125: 21.5 | CP125: 115 | CQ125: 14278 | CS125: 0.5550998251 | CT125: 108.7101394 | CU125: -8869.729654 | CY125: 23.8657462 | CZ125: 879.3248354 | DA125: 30.7981631 | DB125: 11659.61619 | DD125: 48069 | DE125: 126102 | DF125: 14 | DG125: -78019 | DH125: 49872 | DI125: 36810 | DL125: -975 | DM125: 497 | DN125: 8185 | DO125: 9580 | DP125: 0 | DR125: -1395 | DS125: 23 | DT125: 0 | DU125: -1 | DV125: -10 | DW125: -1381 | DX125: 14946 | DY125: 7427 | EA125: 138 | EB125: -15561 | EC125: -13758 | EH125: 21.5 | EJ125: 99 | EQ125: -15702 | ER125: 412 | ES125: 2109 | ET125: -21140 | EU125: 212 | EV125: 2471 | EW125: -23728 | EX125: 86 | EY125: 2457 | EZ125: 11886 | FA125: 375 | FB125: 35348 | FC125: 47 | FD125: 23883 | FE125: 2861 | FF125: 92343 | FG125: 67581 | FH125: 24762 | FI125: 19 | FJ125: 101285 | FK125: 75332 | FL125: 25953 | FM125: 9 | FN125: 112469 | FO125: 82629 | FP125: 29840 | FQ125: 0 | FR125: 2249 | FS125: 1230 | FT125: 1244 | FU125: 7308
A126: 410 | B126: Laukaa | C126: 18978 | E126: 4.694740854 | F126: 93.17925952 | G126: -6780.693435 | K126: 19.09833449 | L126: 352.6715144 | M126: 19.44184029 | N126: 6621.034882 | P126: 44331 | Q126: 144285 | R126: 0 | S126: -99954 | T126: 67930 | U126: 44071 | X126: -61 | Y126: 215 | Z126: 12201 | AA126: 8993 | AB126: 0 | AD126: 3208 | AE126: 0 | AF126: -201 | AG126: -17 | AH126: -87 | AI126: 2903 | AJ126: -886 | AK126: 12013 | AM126: -1566 | AN126: -2506 | AO126: -8026 | AT126: 21.5 | AV126: 210 | AW126: 18927 | AY126: 2.567614126 | AZ126: 102.8988164 | BA126: -7428.752576 | BE126: 16.67918266 | BF126: 301.4212501 | BG126: 12.36395537 | BH126: 8898.346278 | BJ126: 42889 | BK126: 147556 | BL126: 0 | BM126: -104667 | BN126: 66130 | BO126: 43733 | BR126: -131 | BS126: 729 | BT126: 5794 | BU126: 9245 | BV126: 0 | BX126: -3451 | BY126: 0 | BZ126: 86 | CA126: -15 | CB126: -40 | CC126: -3420 | CD126: -3820 | CE126: 5663 | CG126: 75 | CH126: -2154 | CI126: -11509 | CN126: 21.5 | CP126: 215 | CQ126: 18903 | CS126: 2.756200084 | CT126: 108.2989956 | CU126: -7955.932921 | CY126: 14.05122801 | CZ126: 598.7409406 | DA126: 13.17077219 | DB126: 8925.355764 | DD126: 42665 | DE126: 149102 | DF126: 0 | DG126: -106437 | DH126: 67580 | DI126: 45075 | DL126: -153 | DM126: 308 | DN126: 6373 | DO126: 10269 | DP126: 0 | DR126: -3896 | DS126: 0 | DT126: -304 | DU126: 15 | DV126: -182 | DW126: -4397 | DX126: -7842 | DY126: 5160 | EA126: 4942 | EB126: -2195 | EC126: -10230 | EH126: 21.5 | EJ126: 192 | EQ126: -21436 | ER126: 717 | ES126: 680 | ET126: -18147 | EU126: 24 | EV126: 951 | EW126: -17162 | EX126: 58 | EY126: 1714 | EZ126: 12780 | FA126: -4977 | FB126: 5637 | FC126: 5700 | FD126: -964 | FE126: 18813 | FF126: 118285 | FG126: 49865 | FH126: 68420 | FI126: 237 | FJ126: 128124 | FK126: 54004 | FL126: 74120 | FM126: 234 | FN126: 144610 | FO126: 51674 | FP126: 92936 | FQ126: 111 | FR126: 3674 | FS126: 4263 | FT126: 5107 | FU126: 16029
A127: 416 | B127: Lemi | C127: 3063 | E127: 0.7173913043 | F127: 46.44358389 | G127: -3749.591903 | K127: 32.05082795 | L127: 233.4312765 | M127: 9.152842563 | N127: 9308.847535 | P127: 13656 | Q127: 29523 | R127: 0 | S127: -15867 | T127: 10546 | U127: 6011 | X127: -74 | Y127: 2 | Z127: 618 | AA127: 1146 | AB127: 0 | AD127: -528 | AE127: 0 | AF127: -43 | AG127: 0 | AH127: 0 | AI127: -571 | AJ127: 179 | AK127: 1371 | AM127: -86 | AN127: -891 | AO127: -691 | AT127: 21 | AV127: 290 | AW127: 3043 | AY127: -0.6175595238 | AZ127: 55.6546238 | BA127: -4689.451199 | BE127: 22.84208214 | BF127: 299.0469931 | BG127: 9.745899475 | BH127: 11199.80283 | BJ127: 13688 | BK127: 31018 | BL127: 4 | BM127: -17326 | BN127: 10252 | BO127: 6230 | BR127: -79 | BS127: 13 | BT127: -910 | BU127: 1122 | BV127: 0 | BX127: -2032 | BY127: 0 | BZ127: -5 | CA127: 0 | CB127: 0 | CC127: -2037 | CD127: -1859 | CE127: -1457 | CG127: 234 | CH127: -1264 | CI127: -2822 | CN127: 21 | CP127: 292 | CQ127: 2971 | CS127: 0.26870527 | CT127: 52.34791546 | CU127: -4842.140693 | CY127: 21.77595628 | CZ127: 120.1615618 | DA127: 10.02868357 | DB127: 11147.7617 | DD127: 14146 | DE127: 30746 | DF127: 2 | DG127: -16598 | DH127: 10260 | DI127: 6728 | DL127: -137 | DM127: 22 | DN127: 275 | DO127: 1049 | DP127: 154 | DR127: -620 | DS127: 0 | DT127: 2 | DU127: 0 | DV127: 0 | DW127: -618 | DX127: -2272 | DY127: 64 | EA127: 55 | EB127: -1399 | EC127: -165 | EH127: 21 | EJ127: 264 | EQ127: -2315 | ER127: 21 | ES127: 232 | ET127: -1710 | EU127: 0 | EV127: 345 | EW127: -832 | EX127: 52 | EY127: 551 | EZ127: 1466 | FA127: -17 | FB127: 2035 | FC127: 144 | FD127: 2875 | FE127: 104 | FF127: 10350 | FG127: 9378 | FH127: 972 | FI127: 197 | FJ127: 11297 | FK127: 10142 | FL127: 1155 | FM127: 197 | FN127: 12869 | FO127: 11497 | FP127: 1372 | FQ127: 197 | FR127: 113 | FS127: 44 | FT127: 2506 | FU127: 4572
A128: 418 | B128: Lempäälä | C128: 22829 | E128: 1.62417509 | F128: 80.06879646 | G128: -5377.852731 | K128: 32.20139586 | L128: 435.7615314 | M128: 24.02739545 | N128: 6619.650445 | P128: 59699 | Q128: 158465 | R128: 79 | S128: -98687 | T128: 93798 | U128: 23547 | X128: -937 | Y128: 766 | Z128: 18487 | AA128: 15034 | AB128: 0 | AD128: 3453 | AE128: -108 | AF128: 1 | AG128: -120 | AH128: -122 | AI128: 3104 | AJ128: 20919 | AK128: 17024 | AM128: -1419 | AN128: -11015 | AO128: 1321 | AT128: 20.5 | AV128: 129 | AW128: 23206 | AY128: 0.992732049 | AZ128: 92.0360648 | BA128: -6246.487977 | BE128: 27.80251853 | BF128: 342.8854607 | BG128: 13.56353269 | BH128: 9227.182625 | BJ128: 63439 | BK128: 167347 | BL128: 24 | BM128: -103884 | BN128: 91776 | BO128: 22687 | BR128: -918 | BS128: 736 | BT128: 10397 | BU128: 14504 | BV128: 0 | BX128: -4107 | BY128: -86 | BZ128: 1 | CA128: -143 | CB128: -42 | CC128: -4377 | CD128: 16229 | CE128: 9189 | CG128: -4523 | CH128: -10480 | CI128: -21764 | CN128: 20.5 | CP128: 161 | CQ128: 23523 | CS128: 1.022203886 | CT128: 98.6503812 | CU128: -7203.673001 | CY128: 25.14923395 | CZ128: 268.5881903 | DA128: 12.47205462 | DB128: 9899.460103 | DD128: 68504 | DE128: 176656 | DF128: -13 | DG128: -108165 | DH128: 96994 | DI128: 24037 | DL128: -863 | DM128: 740 | DN128: 12743 | DO128: 14761 | DP128: 0 | DR128: -2018 | DS128: -85 | DT128: 0 | DU128: 130 | DV128: -105 | DW128: -2338 | DX128: 13719 | DY128: 9910 | EA128: -3304 | EB128: -12447 | EC128: -24468 | EH128: 20.5 | EJ128: 104 | EQ128: -19399 | ER128: 496 | ES128: 3200 | ET128: -35261 | EU128: 2177 | EV128: 2131 | EW128: -42785 | EX128: 5735 | EY128: 2672 | EZ128: 11721 | FA128: -1008 | FB128: 21659 | FC128: 4963 | FD128: 29223 | FE128: 8504 | FF128: 112590 | FG128: 99778 | FH128: 12812 | FI128: 320 | FJ128: 128938 | FK128: 110182 | FL128: 18756 | FM128: 316 | FN128: 154399 | FO128: 125431 | FP128: 28968 | FQ128: 313 | FR128: 15700 | FS128: 15639 | FT128: 14729 | FU128: 10606
A129: 420 | B129: Leppävirta | C129: 9782 | E129: 2.278334853 | F129: 48.79893097 | G129: -3506.644858 | K129: 49.2944795 | L129: 695.3588223 | M129: 31.27494205 | N129: 8115.313842 | P129: 35297 | Q129: 87515 | R129: 44 | S129: -52174 | T129: 33198 | U129: 25796 | X129: -422 | Y129: 624 | Z129: 7022 | AA129: 6746 | AB129: 3 | AD129: 279 | AE129: -27 | AF129: -149 | AG129: -10 | AH129: -7 | AI129: 86 | AJ129: 4779 | AK129: 6843 | AM129: -944 | AN129: -2815 | AO129: -3002 | AT129: 20 | AV129: 171 | AW129: 9650 | AY129: 1.309079602 | AZ129: 51.75875714 | BA129: -3898.445596 | BE129: 46.67481435 | BF129: 687.1502591 | BG129: 23.20020513 | BH129: 10810.67358 | BJ129: 35387 | BK129: 91930 | BL129: 81 | BM129: -56462 | BN129: 34685 | BO129: 25450 | BR129: -392 | BS129: 498 | BT129: 3779 | BU129: 5428 | BV129: -88 | BX129: -1737 | BY129: -5 | BZ129: 70 | CA129: -1 | CB129: -3 | CC129: -1676 | CD129: 3230 | CE129: 3634 | CG129: -282 | CH129: -2785 | CI129: -3865 | CN129: 21 | CP129: 185 | CQ129: 9454 | CS129: 1.093986198 | CT129: 53.28645899 | CU129: -4211.550666 | CY129: 44.09680917 | CZ129: 702.4539877 | DA129: 23.36590539 | DB129: 10721.91665 | DD129: 35702 | DE129: 92644 | DF129: 59 | DG129: -56883 | DH129: 34789 | DI129: 24657 | DL129: -310 | DM129: 717 | DN129: 2970 | DO129: 6047 | DP129: -426 | DR129: -3503 | DS129: -27 | DT129: -148 | DU129: 11 | DV129: -5 | DW129: -3694 | DX129: -92 | DY129: 2942 | EA129: 996 | EB129: -2684 | EC129: -2364 | EH129: 21 | EJ129: 205 | EQ129: -11504 | ER129: 1463 | ES129: 196 | ET129: -8947 | EU129: 1107 | EV129: 341 | EW129: -5592 | EX129: 174 | EY129: 112 | EZ129: 3275 | FA129: 133 | FB129: 3751 | FC129: 71 | FD129: 1550 | FE129: 3019 | FF129: 35673 | FG129: 32734 | FH129: 2939 | FI129: 495 | FJ129: 36290 | FK129: 33481 | FL129: 2809 | FM129: 495 | FN129: 38177 | FO129: 32370 | FP129: 5807 | FQ129: 390 | FR129: 649 | FS129: 603 | FT129: 558 | FU129: 10343
A130: 421 | B130: Lestijärvi | C130: 789 | E130: 3.917197452 | F130: 43.09456419 | G130: -3991.12801 | K130: 58.13219967 | L130: 2097.591888 | M130: 47.61369906 | N130: 16079.84791 | P130: 8199 | Q130: 13219 | R130: 39 | S130: -4981 | T130: 2569 | U130: 3011 | X130: -27 | Y130: 8 | Z130: 580 | AA130: 588 | AB130: 50 | AD130: 42 | AE130: -1 | AF130: -9 | AG130: 0 | AH130: 0 | AI130: 32 | AJ130: 2497 | AK130: 598 | AM130: 136 | AN130: -122 | AO130: -82 | AT130: 21 | AV130: 160 | AW130: 737 | AY130: 0.5798816568 | AZ130: 41.70243205 | BA130: -4943.012212 | BE130: 56.91682703 | BF130: 1857.530529 | BG130: 33.56970104 | BH130: 20196.74355 | BJ130: 8595 | BK130: 13815 | BL130: 27 | BM130: -5193 | BN130: 2420 | BO130: 2965 | BR130: -27 | BS130: -2 | BT130: 163 | BU130: 616 | BV130: 50 | BX130: -403 | BY130: -1 | BZ130: -38 | CA130: 0 | CB130: 2 | CC130: -440 | CD130: 2007 | CE130: -17 | CG130: 381 | CH130: -305 | CI130: -570 | CN130: 21 | CP130: 246 | CQ130: 719 | CS130: 0.4975124378 | CT130: 49.7784031 | CU130: -6022.253129 | CY130: 48.23445826 | CZ130: 2496.522949 | DA130: 33.21711095 | DB130: 20922.11405 | DD130: 8727 | DE130: 14151 | DF130: 27 | DG130: -5397 | DH130: 2381 | DI130: 3107 | DL130: -28 | DM130: 4 | DN130: 67 | DO130: 811 | DP130: 0 | DR130: -744 | DS130: -1 | DT130: -13 | DU130: 0 | DV130: 4 | DW130: -754 | DX130: 1278 | DY130: 29 | EA130: -141 | EB130: -168 | EC130: -631 | EH130: 21 | EJ130: 262 | EQ130: -690 | ER130: 5 | ES130: 5 | ET130: -726 | EU130: 5 | EV130: 168 | EW130: -673 | EX130: 0 | EY130: 13 | EZ130: 809 | FA130: 26 | FB130: 95 | FC130: -76 | FD130: 1251 | FE130: -18 | FF130: 4076 | FG130: 3888 | FH130: 188 | FI130: 0 | FJ130: 3949 | FK130: 3825 | FL130: 124 | FM130: 0 | FN130: 5084 | FO130: 4943 | FP130: 141 | FQ130: 0 | FR130: 444 | FS130: 395 | FT130: 337 | FU130: 35
A131: 422 | B131: Lieksa | C131: 11297 | E131: 0.8750758495 | F131: 39.77873786 | G131: -2461.981057 | K131: 52.2837993 | L131: 1754.182526 | M131: 53.76128821 | N131: 11909.62202 | P131: 66785 | Q131: 139928 | R131: -3 | S131: -73146 | T131: 40482 | U131: 43414 | X131: -441 | Y131: 574 | Z131: 10883 | AA131: 6583 | AB131: 574 | AD131: 4874 | AE131: 1 | AF131: -62 | AG131: -1 | AH131: 11 | AI131: 4823 | AJ131: 31860 | AK131: 10547 | AM131: 5540 | AN131: -12530 | AO131: 4764 | AT131: 21 | AV131: 78 | AW131: 11098 | AY131: 0.643313709 | AZ131: 36.87971824 | BA131: -2373.130294 | BE131: 55.08251807 | BF131: 1372.769868 | BG131: 34.91041328 | BH131: 14352.76626 | BJ131: 70729 | BK131: 139581 | BL131: -2 | BM131: -68854 | BN131: 38403 | BO131: 37374 | BR131: -392 | BS131: 541 | BT131: 7072 | BU131: 6056 | BV131: 0 | BX131: 1016 | BY131: 0 | BZ131: 1 | CA131: 0 | CB131: 51 | CC131: 1068 | CD131: 32996 | CE131: 7228 | CG131: -150 | CH131: -11313 | CI131: 616 | CN131: 21 | CP131: 96 | CQ131: 10884 | CS131: 0.6835258801 | CT131: 36.51747056 | CU131: -2787.210584 | CY131: 55.2013895 | CZ131: 1243.568541 | DA131: 34.03083768 | DB131: 15013.23043 | DD131: 72866 | DE131: 141689 | DF131: -3 | DG131: -68826 | DH131: 38405 | DI131: 37236 | DL131: -308 | DM131: 569 | DN131: 7076 | DO131: 6845 | DP131: 0 | DR131: 231 | DS131: -7 | DT131: -8 | DU131: 9 | DV131: 29 | DW131: 236 | DX131: 33019 | DY131: 6728 | EA131: 2099 | EB131: -10555 | EC131: -3832 | EH131: 21 | EJ131: 72 | EQ131: -18607 | ER131: 256 | ES131: 12568 | ET131: -7749 | EU131: 1005 | EV131: 132 | EW131: -10692 | EX131: 6 | EY131: 126 | EZ131: 10913 | FA131: -1202 | FB131: 3200 | FC131: 57 | FD131: 7284 | FE131: 3248 | FF131: 45460 | FG131: 33759 | FH131: 11701 | FI131: 716 | FJ131: 37404 | FK131: 30314 | FL131: 7090 | FM131: 70 | FN131: 37381 | FO131: 30232 | FP131: 7149 | FQ131: 70 | FR131: 5045 | FS131: 5246 | FT131: 1449 | FU131: 11512
A132: 423 | B132: Lieto | C132: 19596 | E132: 1.973432888 | F132: 71.84095497 | G132: -4703.868136 | K132: 27.38552339 | L132: 355.582772 | M132: 21.02038961 | N132: 6174.372321 | P132: 52269 | Q132: 138306 | R132: 5 | S132: -86032 | T132: 75955 | U132: 21394 | X132: -612 | Y132: 40 | Z132: 10745 | AA132: 8790 | AB132: 0 | AD132: 1955 | AE132: -1 | AF132: 0 | AG132: 0 | AH132: -64 | AI132: 1890 | AJ132: 9613 | AK132: 8428 | AM132: -1121 | AN132: -5139 | AO132: -9278 | AT132: 19.5 | AV132: 239 | AW132: 19831 | AY132: 1.109930872 | AZ132: 77.29445698 | BA132: -4970.752862 | BE132: 23.94342569 | BF132: 473.7027886 | BG132: 21.04158229 | BH132: 8217.134789 | BJ132: 53617 | BK132: 143266 | BL132: 8 | BM132: -89641 | BN132: 75125 | BO132: 21032 | BR132: -637 | BS132: 53 | BT132: 5932 | BU132: 10014 | BV132: 0 | BX132: -4082 | BY132: -5 | BZ132: 0 | CA132: 0 | CB132: -79 | CC132: -4166 | CD132: 5433 | CE132: 2479 | CG132: 546 | CH132: -5280 | CI132: -6341 | CN132: 19.5 | CP132: 218 | CQ132: 19994 | CS132: 2.084100824 | CT132: 79.7110022 | CU132: -5130.539162 | CY132: 21.82195422 | CZ132: 548.7146144 | DA132: 21.13066736 | DB132: 8115.784735 | DD132: 52462 | DE132: 145349 | DF132: 23 | DG132: -92864 | DH132: 79437 | DI132: 21943 | DL132: -693 | DM132: 70 | DN132: 7893 | DO132: 10154 | DP132: 0 | DR132: -2261 | DS132: 0 | DT132: 0 | DU132: 0 | DV132: -51 | DW132: -2312 | DX132: 3113 | DY132: 5665 | EA132: -1281 | EB132: -3420 | EC132: -4134 | EH132: 19.5 | EJ132: 166 | EQ132: -23087 | ER132: 2268 | ES132: 3113 | ET132: -13746 | EU132: 162 | EV132: 4764 | EW132: -12784 | EX132: 34 | EY132: 2951 | EZ132: 10463 | FA132: -702 | FB132: 732 | FC132: 12335 | FD132: 12691 | FE132: -5079 | FF132: 80724 | FG132: 48324 | FH132: 32400 | FI132: 0 | FJ132: 88511 | FK132: 45534 | FL132: 42977 | FM132: 0 | FN132: 92790 | FO132: 54814 | FP132: 37976 | FQ132: 0 | FR132: 6246 | FS132: 6801 | FT132: 6732 | FU132: 13854
A133: 425 | B133: Liminka | C133: 10133 | E133: 9.247232472 | F133: 60.60617494 | G133: -2940.688838 | K133: 49.4854617 | L133: 1254.416264 | M133: 75.19351388 | N133: 6089.114774 | P133: 22895 | Q133: 72060 | R133: 2 | S133: -49163 | T133: 31384 | U133: 25236 | X133: -191 | Y133: 59 | Z133: 7325 | AA133: 5510 | AB133: -15 | AD133: 1800 | AE133: 44 | AF133: 43 | AG133: -8 | AH133: -37 | AI133: 1842 | AJ133: 29126 | AK133: 6535 | AM133: -775 | AN133: -620 | AO133: -2988 | AT133: 21 | AV133: 169 | AW133: 10161 | AY133: 4.221206581 | AZ133: 76.17627691 | BA133: -4758.193091 | BE133: 45.14742707 | BF133: 707.2138569 | BG133: 23.45740732 | BH133: 11004.33028 | BJ133: 21539 | BK133: 73612 | BL133: 1 | BM133: -52072 | BN133: 32097 | BO133: 26851 | BR133: -241 | BS133: 24 | BT133: 6659 | BU133: 5422 | BV133: 265 | BX133: 1502 | BY133: 78 | BZ133: -45 | CA133: -5 | CB133: -21 | CC133: 1509 | CD133: 30591 | CE133: 5606 | CG133: -96 | CH133: -1373 | CI133: -18710 | CN133: 21.5 | CP133: 90 | CQ133: 10191 | CS133: -2.183467742 | CT133: 80.93637082 | CU133: -5152.193112 | CY133: 43.43698097 | CZ133: 964.8709646 | DA133: 30.58014947 | DB133: 8416.347758 | DD133: 25237 | DE133: 77325 | DF133: 2 | DG133: -52086 | DH133: 33743 | DI133: 24598 | DL133: -245 | DM133: 215 | DN133: 6225 | DO133: 6912 | DP133: 383 | DR133: -304 | DS133: 13 | DT133: -2 | DU133: 8 | DV133: 0 | DW133: -301 | DX133: 30291 | DY133: 5315 | EA133: 472 | EB133: -3249 | EC133: -4123 | EH133: 21.5 | EJ133: 85 | EQ133: -11174 | ER133: 47 | ES133: 1604 | ET133: -36559 | EU133: 191 | EV133: 12052 | EW133: -11372 | EX133: 475 | EY133: 1459 | EZ133: 15141 | FA133: -4362 | FB133: 10407 | FC133: 2374 | FD133: 7199 | FE133: -4702 | FF133: 33585 | FG133: 27682 | FH133: 5903 | FI133: 674 | FJ133: 45432 | FK133: 33401 | FL133: 12031 | FM133: 606 | FN133: 51178 | FO133: 35096 | FP133: 16082 | FQ133: 648 | FR133: 885 | FS133: 713 | FT133: 621 | FU133: 8444
A134: 426 | B134: Liperi | C134: 12150 | E134: 0.6255186722 | F134: 50.25716272 | G134: -4158.518519 | K134: 28.75566473 | L134: 895.9670782 | M134: 33.19096506 | N134: 9852.921811 | P134: 60486 | Q134: 121387 | R134: -67 | S134: -60968 | T134: 40020 | U134: 28984 | X134: -603 | Y134: 383 | Z134: 7816 | AA134: 5284 | AB134: -305 | AD134: 2227 | AE134: -19 | AF134: -48 | AG134: 19 | AH134: -87 | AI134: 2092 | AJ134: 11095 | AK134: 6976 | AM134: 774 | AN134: -12870 | AO134: 2587 | AT134: 21.5 | AV134: 209 | AW134: 12145 | AY134: 0.4881516588 | AZ134: 51.05359204 | BA134: -4173.981062 | BE134: 29.00340179 | BF134: 931.1650885 | BG134: 29.37005493 | BH134: 11572.16962 | BJ134: 59894 | BK134: 122909 | BL134: -20 | BM134: -63035 | BN134: 39488 | BO134: 28846 | BR134: -432 | BS134: 344 | BT134: 5211 | BU134: 4528 | BV134: 0 | BX134: 683 | BY134: -77 | BZ134: 1 | CA134: -23 | CB134: -72 | CC134: 512 | CD134: 11789 | CE134: 4962 | CG134: 203 | CH134: -11151 | CI134: -809 | CN134: 21.5 | CP134: 170 | CQ134: 12084 | CS134: 0.4212133149 | CT134: 51.76445135 | CU134: -4387.702747 | CY134: 28.80786383 | CZ134: 723.6014565 | DA134: 29.14793631 | DB134: 11719.21549 | DD134: 60169 | DE134: 125509 | DF134: -37 | DG134: -65377 | DH134: 40749 | DI134: 28499 | DL134: -363 | DM134: 374 | DN134: 3882 | DO134: 4710 | DP134: 0 | DR134: -828 | DS134: 4 | DT134: -4 | DU134: 12 | DV134: -67 | DW134: -907 | DX134: 10762 | DY134: 3465 | EA134: -1764 | EB134: -9759 | EC134: -2087 | EH134: 21.5 | EJ134: 200 | EQ134: -15196 | ER134: 69 | ES134: 10738 | ET134: -6021 | EU134: 26 | EV134: 224 | EW134: -5908 | EX134: 88 | EY134: 268 | EZ134: 16310 | FA134: -2870 | FB134: 10000 | FC134: 494 | FD134: 10905 | FE134: 85 | FF134: 49859 | FG134: 38537 | FH134: 11322 | FI134: 881 | FJ134: 49203 | FK134: 38865 | FL134: 10338 | FM134: 0 | FN134: 50434 | FO134: 40255 | FP134: 10179 | FQ134: 0 | FR134: 43 | FS134: 34 | FT134: 25 | FU134: 4373
A135: 444 | B135: Lohja | C135: 46785 | E135: 0.7503694822 | F135: 63.31744003 | G135: -4975.056108 | K135: 34.7190436 | L135: 463.9093727 | M135: 20.32141968 | N135: 8332.43561 | P135: 163705 | Q135: 406111 | R135: 88 | S135: -242318 | T135: 189856 | U135: 79116 | X135: -1696 | Y135: 121 | Z135: 25079 | AA135: 23234 | AB135: 282 | AD135: 2127 | AE135: -54 | AF135: 13 | AG135: -335 | AH135: 10 | AI135: 1761 | AJ135: 18775 | AK135: 24036 | AM135: 1634 | AN135: -34031 | AO135: -25268 | AT135: 20.5 | AV135: 241 | AW135: 46296 | AY135: 0.8908871454 | AZ135: 67.50789006 | BA135: -5530.974598 | BE135: 31.2233281 | BF135: 413.4266459 | BG135: 14.61539427 | BH135: 10324.77968 | BJ135: 167376 | BK135: 420848 | BL135: 15 | BM135: -253457 | BN135: 188458 | BO135: 79524 | BR135: -1854 | BS135: 104 | BT135: 12775 | BU135: 25222 | BV135: 0 | BX135: -12447 | BY135: 24 | BZ135: -20 | CA135: -223 | CB135: -2 | CC135: -12668 | CD135: 6080 | CE135: 10635 | CG135: 798 | CH135: -14583 | CI135: -23238 | CN135: 20.5 | CP135: 231 | CQ135: 45965 | CS135: 0.9004481595 | CT135: 70.19095945 | CU135: -6001.087784 | CY135: 28.40135864 | CZ135: 402.3278582 | DA135: 13.99027544 | DB135: 10863.78766 | DD135: 177542 | DE135: 429891 | DF135: 35 | DG135: -252314 | DH135: 190088 | DI135: 79533 | DL135: -2339 | DM135: 456 | DN135: 15424 | DO135: 24283 | DP135: 0 | DR135: -8859 | DS135: -22 | DT135: -40 | DU135: 429 | DV135: -5 | DW135: -9355 | DX135: -3088 | DY135: 14016 | EA135: -837 | EB135: -17401 | EC135: -20187 | EH135: 20.5 | EJ135: 195 | EQ135: -52881 | ER135: 1136 | ES135: 2441 | ET135: -39903 | EU135: 2385 | EV135: 3645 | EW135: -48944 | EX135: 3011 | EY135: 11730 | EZ135: 57337 | FA135: 5033 | FB135: 30970 | FC135: -2499 | FD135: 47259 | FE135: -7499 | FF135: 208715 | FG135: 170033 | FH135: 38682 | FI135: 86 | FJ135: 222603 | FK135: 181718 | FL135: 40885 | FM135: 53 | FN135: 244962 | FO135: 212821 | FP135: 32141 | FQ135: 53 | FR135: 4985 | FS135: 4714 | FT135: 3808 | FU135: 6619
A136: 430 | B136: Loimaa | C136: 16150 | E136: 1.208365608 | F136: 46.06212848 | G136: -3668.978328 | K136: 38.43862256 | L136: 695.9133127 | M136: 25.26053437 | N136: 10055.5418 | P136: 68944 | Q136: 163492 | R136: 9 | S136: -94539 | T136: 53515 | U136: 50312 | X136: -589 | Y136: 69 | Z136: 8768 | AA136: 8219 | AB136: 0 | AD136: 549 | AE136: -374 | AF136: 0 | AG136: -201 | AH136: -11 | AI136: -37 | AJ136: 11159 | AK136: 8290 | AM136: 7268 | AN136: -7154 | AO136: 633 | AT136: 20.5 | AV136: 240 | AW136: 16032 | AY136: 0.6133561226 | AZ136: 46.19125928 | BA136: -3823.290918 | BE136: 35.95977967 | BF136: 572.6047904 | BG136: 18.44479553 | BH136: 11331.1502 | BJ136: 70084 | BK136: 167122 | BL136: 6 | BM136: -97032 | BN136: 53278 | BO136: 48729 | BR136: -514 | BS136: 46 | BT136: 4507 | BU136: 8544 | BV136: -62 | BX136: -4099 | BY136: -356 | BZ136: 0 | CA136: -184 | CB136: -44 | CC136: -4683 | CD136: 6476 | CE136: 3590 | CG136: 365 | CH136: -7674 | CI136: -1826 | CN136: 20.5 | CP136: 227 | CQ136: 15875 | CS136: 0.9318369595 | CT136: 47.99919773 | CU136: -3879.937008 | CY136: 36.08482248 | CZ136: 772.8503937 | DA136: 18.46777083 | DB136: 11428.97638 | DD136: 71318 | DE136: 167845 | DF136: 40 | DG136: -96487 | DH136: 54383 | DI136: 48804 | DL136: -436 | DM136: 62 | DN136: 6326 | DO136: 7766 | DP136: -827 | DR136: -2267 | DS136: -330 | DT136: 0 | DU136: 181 | DV136: -37 | DW136: -2815 | DX136: 3630 | DY136: 5035 | EA136: -494 | EB136: -6821 | EC136: -863 | EH136: 21 | EJ136: 161 | EQ136: -8127 | ER136: 95 | ES136: 375 | ET136: -6976 | EU136: 366 | EV136: 1194 | EW136: -6527 | EX136: 25 | EY136: 604 | EZ136: 6052 | FA136: -5220 | FB136: 5520 | FC136: 1012 | FD136: 9307 | FE136: 542 | FF136: 54645 | FG136: 35281 | FH136: 19364 | FI136: 89 | FJ136: 54212 | FK136: 35296 | FL136: 18916 | FM136: 142 | FN136: 58054 | FO136: 38096 | FP136: 19958 | FQ136: 123 | FR136: 788 | FS136: 741 | FT136: 693 | FU136: 20794
A137: 433 | B137: Loppi | C137: 8028 | E137: 0.866499711 | F137: 52.82550345 | G137: -3968.360737 | K137: 44.03600344 | L137: 359.8654709 | M137: 16.45216401 | N137: 7983.806677 | P137: 24606 | Q137: 65185 | R137: -44 | S137: -40623 | T137: 29192 | U137: 15871 | X137: -416 | Y137: 55 | Z137: 4079 | AA137: 3061 | AB137: 163 | AD137: 1181 | AE137: 0 | AF137: 2 | AG137: -1 | AH137: -4 | AI137: 1178 | AJ137: 13651 | AK137: 4355 | AM137: 169 | AN137: -4772 | AO137: 1090 | AT137: 21.5 | AV137: 249 | AW137: 7861 | AY137: 0.4887482419 | AZ137: 54.59021903 | BA137: -4056.862995 | BE137: 43.01217144 | BF137: 417.1225035 | BG137: 15.95886392 | BH137: 9540.134843 | BJ137: 24931 | BK137: 65632 | BL137: -87 | BM137: -40788 | BN137: 28086 | BO137: 15422 | BR137: -372 | BS137: 57 | BT137: 2405 | BU137: 3060 | BV137: 0 | BX137: -655 | BY137: 0 | BZ137: 1 | CA137: -1 | CB137: -28 | CC137: -683 | CD137: 12968 | CE137: 2364 | CG137: -136 | CH137: -5313 | CI137: -25 | CN137: 21.5 | CP137: 216 | CQ137: 7828 | CS137: 0.9861655522 | CT137: 54.63651649 | CU137: -3935.232499 | CY137: 43.16170613 | CZ137: 679.4839039 | DA137: 16.30667957 | DB137: 9373.147675 | DD137: 24879 | DE137: 65892 | DF137: -59 | DG137: -41072 | DH137: 29180 | DI137: 16123 | DL137: -356 | DM137: 40 | DN137: 3915 | DO137: 3150 | DP137: 0 | DR137: 765 | DS137: -1 | DT137: 2 | DU137: 0 | DV137: 21 | DW137: 787 | DX137: 13755 | DY137: 3551 | EA137: -29 | EB137: -3975 | EC137: 919 | EH137: 21.5 | EJ137: 120 | EQ137: -6286 | ER137: 105 | ES137: 2916 | ET137: -3670 | EU137: 4 | EV137: 1277 | EW137: -3141 | EX137: 84 | EY137: 425 | EZ137: 5295 | FA137: -2025 | FB137: 4509 | FC137: 0 | FD137: 5127 | FE137: 282 | FF137: 28791 | FG137: 21129 | FH137: 7662 | FI137: 43 | FJ137: 27988 | FK137: 21663 | FL137: 6325 | FM137: 39 | FN137: 29421 | FO137: 22425 | FP137: 6996 | FQ137: 35 | FR137: 314 | FS137: 161 | FT137: 260 | FU137: 406
A138: 434 | B138: Loviisa | C138: 15085 | E138: 1.677058824 | F138: 52.45893799 | G138: -3651.773285 | K138: 41.80000438 | L138: 703.8117335 | M138: 32.07659071 | N138: 8008.684123 | P138: 52563 | Q138: 136560 | R138: -10 | S138: -84007 | T138: 65949 | U138: 27852 | X138: -419 | Y138: 1578 | Z138: 10953 | AA138: 6525 | AB138: -91 | AD138: 4337 | AE138: -140 | AF138: 188 | AG138: -12 | AH138: -17 | AI138: 4356 | AJ138: 10617 | AK138: 9850 | AM138: -212 | AN138: -6349 | AO138: -2718 | AT138: 19.75 | AV138: 166 | AW138: 14891 | AY138: 1.972154964 | AZ138: 61.54837431 | BA138: -4608.354039 | BE138: 40.94901139 | BF138: 612.7862467 | BG138: 20.44080643 | BH138: 10942.17984 | BJ138: 53875 | BK138: 141448 | BL138: 11857 | BM138: -75716 | BN138: 60000 | BO138: 27357 | BR138: -255 | BS138: 1255 | BT138: 12641 | BU138: 7341 | BV138: -5 | BX138: 5295 | BY138: -14 | BZ138: -10 | CA138: -27 | CB138: -31 | CC138: 5213 | CD138: 15641 | CE138: 56 | CG138: 1919 | CH138: -6217 | CI138: -13202 | CN138: 19.75 | CP138: 40 | CQ138: 14772 | CS138: 0.4736481862 | CT138: 74.86948115 | CU138: -5645.951801 | CY138: 34.77930684 | CZ138: 853.3035473 | DA138: 19.92766434 | DB138: 11295.76225 | DD138: 55484 | DE138: 140789 | DF138: 4552 | DG138: -80753 | DH138: 59292 | DI138: 24859 | DL138: -389 | DM138: 53 | DN138: 3062 | DO138: 8703 | DP138: -260 | DR138: -5901 | DS138: -34 | DT138: -5 | DU138: 30 | DV138: -11 | DW138: -5981 | DX138: 9680 | DY138: -1443 | EA138: 265 | EB138: -6907 | EC138: -16915 | EH138: 19.75 | EJ138: 238 | EQ138: -22713 | ER138: 1985 | ES138: 8160 | ET138: -14632 | EU138: 176 | EV138: 1198 | EW138: -18551 | EX138: 78 | EY138: 3001 | EZ138: 7132 | FA138: 1933 | FB138: 8554 | FC138: 5987 | FD138: 27522 | FE138: 215 | FF138: 57322 | FG138: 42625 | FH138: 14697 | FI138: 1 | FJ138: 65431 | FK138: 44444 | FL138: 20987 | FM138: 1 | FN138: 84874 | FO138: 62919 | FP138: 21955 | FQ138: 1 | FR138: 0 | FS138: 2242 | FT138: 1937 | FU138: 7999
A139: 435 | B139: Luhanka | C139: 734 | E139: 3.10701107 | F139: 54.39056356 | G139: -3591.280654 | K139: 57.06136719 | L139: 1761.580381 | M139: 80.82634013 | N139: 7955.040872 | P139: 2813 | Q139: 7614 | R139: 0 | S139: -4801 | T139: 2436 | U139: 3144 | X139: -8 | Y139: 43 | Z139: 814 | AA139: 307 | AB139: 0 | AD139: 507 | AE139: 0 | AF139: 0 | AG139: 0 | AH139: 0 | AI139: 507 | AJ139: 2860 | AK139: 817 | AM139: -86 | AN139: -243 | AO139: -1264 | AT139: 18.5 | AV139: 49 | AW139: 707 | AY139: 1.419263456 | AZ139: 59.4497012 | BA139: -4002.828854 | BE139: 48.45296385 | BF139: 1991.513437 | BG139: 58.47309136 | BH139: 12431.40028 | BJ139: 2621 | BK139: 7452 | BL139: 0 | BM139: -4831 | BN139: 2452 | BO139: 2959 | BR139: 6 | BS139: -99 | BT139: 487 | BU139: 357 | BV139: 69 | BX139: 199 | BY139: 0 | BZ139: 0 | CA139: 0 | CB139: 0 | CC139: 199 | CD139: 2174 | CE139: 553 | CG139: 99 | CH139: -339 | CI139: -329 | CN139: 18.5 | CP139: 77 | CQ139: 690 | CS139: 0.4822335025 | CT139: 60.29559118 | CU139: -4734.782609 | CY139: 35.17925736 | CZ139: 1807.246377 | DA139: 59.05090199 | DB139: 12613.04348 | DD139: 2553 | DE139: 7929 | DF139: 0 | DG139: -5376 | DH139: 2642 | DI139: 2789 | DL139: -13 | DM139: 29 | DN139: 71 | DO139: 361 | DP139: -1111 | DR139: -1401 | DS139: -2 | DT139: 0 | DU139: 0 | DV139: 0 | DW139: -1403 | DX139: 776 | DY139: 90 | EA139: 223 | EB139: -173 | EC139: -455 | EH139: 18.5 | EJ139: 259 | EQ139: -2085 | ER139: 3 | ES139: 1 | ET139: -882 | EU139: -1 | EV139: 1 | EW139: -575 | EX139: 1 | EY139: 29 | EZ139: 1513 | FA139: -115 | FB139: 428 | FC139: 94 | FD139: 521 | FE139: -99 | FF139: 3164 | FG139: 3164 | FH139: 0 | FI139: 94 | FJ139: 3310 | FK139: 3310 | FL139: 0 | FM139: 0 | FN139: 3865 | FO139: 3654 | FP139: 211 | FQ139: 0 | FR139: 5346 | FS139: 5304 | FT139: 1121 | FU139: 21
A140: 436 | B140: Lumijoki | C140: 2081 | E140: 1.213393871 | F140: 65.91438394 | G140: -4305.141759 | K140: 28.22118198 | L140: 855.358001 | M140: 38.40742492 | N140: 8128.784238 | P140: 5422 | Q140: 16981 | R140: 1 | S140: -11558 | T140: 5788 | U140: 6824 | X140: -69 | Y140: 13 | Z140: 998 | AA140: 996 | AB140: 0 | AD140: 2 | AE140: 0 | AF140: -4 | AG140: -4 | AH140: -1 | AI140: -7 | AJ140: 999 | AK140: 985 | AM140: -131 | AN140: -810 | AO140: 104 | AT140: 20.75 | AV140: 263 | AW140: 2052 | AY140: 1.692037471 | AZ140: 69.86207683 | BA140: -4714.424951 | BE140: 27.6375512 | BF140: 511.6959064 | BG140: 19.92979719 | BH140: 9371.345029 | BJ140: 5172 | BK140: 16090 | BL140: -18 | BM140: -10936 | BN140: 5692 | BO140: 6682 | BR140: -70 | BS140: 5 | BT140: 1373 | BU140: 1289 | BV140: 90 | BX140: 174 | BY140: 10 | BZ140: -11 | CA140: -7 | CB140: -16 | CC140: 150 | CD140: 1147 | CE140: 1376 | CG140: -385 | CH140: -782 | CI140: -687 | CN140: 21 | CP140: 84 | CQ140: 2020 | CS140: 2.393203883 | CT140: 71.04889545 | CU140: -4704.950495 | CY140: 29.36414954 | CZ140: 855.9405941 | DA140: 21.29876626 | DB140: 8907.920792 | DD140: 4962 | DE140: 16175 | DF140: 36 | DG140: -11177 | DH140: 5910 | DI140: 6737 | DL140: -55 | DM140: 6 | DN140: 1421 | DO140: 1025 | DP140: 0 | DR140: 396 | DS140: 18 | DT140: -1 | DU140: 6 | DV140: -12 | DW140: 395 | DX140: 1542 | DY140: 1333 | EA140: 256 | EB140: -560 | EC140: 179 | EH140: 21 | EJ140: 58 | EQ140: -948 | ER140: 10 | ES140: 57 | ET140: -2280 | EU140: 13 | EV140: 204 | EW140: -1195 | EX140: 0 | EY140: 41 | EZ140: 548 | FA140: 1377 | FB140: 1409 | FC140: -9 | FD140: 408 | FE140: 55 | FF140: 8729 | FG140: 4634 | FH140: 4095 | FI140: 1 | FJ140: 9339 | FK140: 5148 | FL140: 4191 | FM140: 1 | FN140: 9239 | FO140: 5094 | FP140: 4145 | FQ140: 1 | FR140: 1352 | FS140: 0 | FT140: 0 | FU140: 151
A141: 440 | B141: Luoto | C141: 5264 | E141: 0.5261915302 | F141: 104.0953835 | G141: -4772.986322 | K141: 39.69055326 | L141: 2414.323708 | M141: 155.6273694 | N141: 5662.424012 | P141: 9289 | Q141: 34196 | R141: 0 | S141: -24907 | T141: 14985 | U141: 13720 | X141: 50 | Y141: -341 | Z141: 3507 | AA141: 2130 | AB141: 18 | AD141: 1395 | AE141: 0 | AF141: -55 | AG141: 0 | AH141: 0 | AI141: 1340 | AJ141: 16753 | AK141: 3602 | AM141: -713 | AN141: -6718 | AO141: -8362 | AT141: 19.5 | AV141: 197 | AW141: 5340 | AY141: 2.766248575 | AZ141: 109.9469983 | BA141: -5279.962547 | BE141: 39.24206429 | BF141: 2264.794007 | BG141: 103.5931193 | BH141: 7979.775281 | BJ141: 9706 | BK141: 35420 | BL141: 0 | BM141: -25714 | BN141: 15056 | BO141: 13350 | BR141: 81 | BS141: -377 | BT141: 2396 | BU141: 2261 | BV141: -2 | BX141: 133 | BY141: 0 | BZ141: 94 | CA141: -24 | CB141: 0 | CC141: 203 | CD141: 17505 | CE141: 2304 | CG141: -234 | CH141: -847 | CI141: -3010 | CN141: 19.5 | CP141: 160 | CQ141: 5417 | CS141: 3.829131653 | CT141: 113.7075013 | CU141: -5422.558612 | CY141: 36.54664737 | CZ141: 2405.94425 | DA141: 106.6066429 | DB141: 7647.775522 | DD141: 10002 | DE141: 37482 | DF141: 0 | DG141: -27480 | DH141: 15769 | DI141: 13142 | DL141: 80 | DM141: -182 | DN141: 1329 | DO141: 2599 | DP141: -2 | DR141: -1272 | DS141: 0 | DT141: 65 | DU141: 13 | DV141: 0 | DW141: -1220 | DX141: 16225 | DY141: 1460 | EA141: -290 | EB141: -319 | EC141: -1173 | EH141: 19.5 | EJ141: 230 | EQ141: -12878 | ER141: 412 | ES141: 502 | ET141: -5699 | EU141: 196 | EV141: 189 | EW141: -3074 | EX141: 191 | EY141: 250 | EZ141: 86 | FA141: 12593 | FB141: 257 | FC141: 2492 | FD141: 1384 | FE141: -125 | FF141: 35526 | FG141: 8421 | FH141: 27105 | FI141: 0 | FJ141: 41322 | FK141: 11150 | FL141: 30172 | FM141: 0 | FN141: 43022 | FO141: 12548 | FP141: 30474 | FQ141: 0 | FR141: 7 | FS141: 0 | FT141: 55 | FU141: 154
A142: 441 | B142: Luumäki | C142: 4747 | E142: 6.428571429 | F142: 48.78991024 | G142: -1486.62313 | K142: 57.21443041 | L142: 3355.803665 | M142: 137.6820345 | N142: 8896.355593 | P142: 23202 | Q142: 49695 | R142: -37 | S142: -26530 | T142: 17264 | U142: 12340 | X142: 81 | Y142: 699 | Z142: 3854 | AA142: 3225 | AB142: 0 | AD142: 629 | AE142: 0 | AF142: 178 | AG142: 0 | AH142: -26 | AI142: 781 | AJ142: 17898 | AK142: 4052 | AM142: 632 | AN142: -472 | AO142: -3678 | AT142: 19.75 | AV142: 125 | AW142: 4662 | AY142: 0.3072992701 | AZ142: 50.8185973 | BA142: -2106.606607 | BE142: 55.17987642 | BF142: 2964.178464 | BG142: 87.28041184 | BH142: 12395.9674 | BJ142: 23540 | BK142: 51657 | BL142: -40 | BM142: -28157 | BN142: 16301 | BO142: 12016 | BR142: -46 | BS142: 152 | BT142: 266 | BU142: 3297 | BV142: 0 | BX142: -3031 | BY142: 1 | BZ142: 3 | CA142: 0 | CB142: -11 | CC142: -3038 | CD142: 15904 | CE142: 1274 | CG142: 55 | CH142: -1215 | CI142: -2688 | CN142: 20.5 | CP142: 279 | CQ142: 4636 | CS142: 2.026998962 | CT142: 48.48930355 | CU142: -2671.699741 | CY142: 55.35545024 | CZ142: 2243.097498 | DA142: 87.39231755 | DB142: 12449.52545 | DD142: 23878 | DE142: 52358 | DF142: -45 | DG142: -28525 | DH142: 16787 | DI142: 12390 | DL142: -77 | DM142: 1268 | DN142: 1843 | DO142: 3500 | DP142: 262 | DR142: -1395 | DS142: 31 | DT142: 7 | DU142: 0 | DV142: -13 | DW142: -1370 | DX142: 14473 | DY142: 922 | EA142: -227 | EB142: -854 | EC142: -2623 | EH142: 20.5 | EJ142: 163 | EQ142: -8088 | ER142: 179 | ES142: 179 | ET142: -4337 | EU142: 36 | EV142: 339 | EW142: -4313 | EX142: 329 | EY142: 439 | EZ142: 2867 | FA142: 180 | FB142: 1102 | FC142: -39 | FD142: 1000 | FE142: -152 | FF142: 19867 | FG142: 18690 | FH142: 1177 | FI142: 259 | FJ142: 19697 | FK142: 18517 | FL142: 1180 | FM142: 268 | FN142: 19676 | FO142: 18671 | FP142: 1005 | FQ142: 268 | FR142: 2202 | FS142: 2186 | FT142: 2170 | FU142: 3451
A143: 475 | B143: Maalahti | C143: 5477 | E143: 1.445358402 | F143: 61.22397113 | G143: -5898.30199 | K143: 37.20165162 | L143: 234.0697462 | M143: 9.101571618 | N143: 9386.890634 | P143: 23054 | Q143: 55336 | R143: -10 | S143: -32292 | T143: 19459 | U143: 16508 | X143: -135 | Y143: 6 | Z143: 3546 | AA143: 2832 | AB143: 76 | AD143: 790 | AE143: 0 | AF143: -61 | AG143: -19 | AH143: -15 | AI143: 695 | AJ143: 5655 | AK143: 3431 | AM143: 12 | AN143: -2409 | AO143: -2436 | AT143: 21.5 | AV143: 207 | AW143: 5477 | AY143: 1.006387226 | AZ143: 69.0898046 | BA143: -6630.272047 | BE143: 33.64188917 | BF143: 309.6585722 | BG143: 9.310692316 | BH143: 12139.30984 | BJ143: 23754 | BK143: 56751 | BL143: -9 | BM143: -33006 | BN143: 19062 | BO143: 16446 | BR143: -142 | BS143: 13 | BT143: 2373 | BU143: 2852 | BV143: 0 | BX143: -479 | BY143: 15 | BZ143: 11 | CA143: -19 | CB143: 0 | CC143: -472 | CD143: 5184 | CE143: 2074 | CG143: -385 | CH143: -2357 | CI143: -4026 | CN143: 21.5 | CP143: 169 | CQ143: 5475 | CS143: 0.7448575949 | CT143: 78.6258537 | CU143: -7800 | CY143: 29.34896795 | CZ143: 297.8995434 | DA143: 8.857373697 | DB143: 12772.78539 | DD143: 24533 | DE143: 58923 | DF143: -10 | DG143: -34400 | DH143: 20116 | DI143: 16116 | DL143: -152 | DM143: 46 | DN143: 1726 | DO143: 2978 | DP143: 0 | DR143: -1252 | DS143: -1 | DT143: 9 | DU143: 24 | DV143: 4 | DW143: -1264 | DX143: 4052 | DY143: 1652 | EA143: -508 | EB143: -2371 | EC143: -6383 | EH143: 21.5 | EJ143: 203 | EQ143: -6513 | ER143: 394 | ES143: 252 | ET143: -7195 | EU143: 742 | EV143: 353 | EW143: -8452 | EX143: 265 | EY143: 152 | EZ143: 110 | FA143: 3996 | FB143: 10750 | FC143: -4563 | FD143: 198 | FE143: 8441 | FF143: 25761 | FG143: 16405 | FH143: 9356 | FI143: 27 | FJ143: 29590 | FK143: 24797 | FL143: 4793 | FM143: 27 | FN143: 35858 | FO143: 22625 | FP143: 13233 | FQ143: 3 | FR143: 1066 | FS143: 1033 | FT143: 1033 | FU143: 983
A144: 480 | B144: Marttila | C144: 1988 | E144: 2.675136116 | F144: 33.28471248 | G144: -1962.77666 | K144: 51.0543471 | L144: 552.3138833 | M144: 26.49193548 | N144: 7609.657948 | P144: 6143 | Q144: 16365 | R144: 0 | S144: -10222 | T144: 6631 | U144: 5051 | X144: -45 | Y144: 11 | Z144: 1426 | AA144: 758 | AB144: 0 | AD144: 668 | AE144: 0 | AF144: -19 | AG144: 0 | AH144: 0 | AI144: 649 | AJ144: 2810 | AK144: 1398 | AM144: 143 | AN144: -503 | AO144: -43 | AT144: 20.25 | AV144: 172 | AW144: 2018 | AY144: 1.533604888 | AZ144: 32.21464779 | BA144: -1893.95441 | BE144: 58.38335893 | BF144: 404.8562934 | BG144: 17.03736502 | BH144: 8673.439049 | BJ144: 6415 | BK144: 16416 | BL144: 0 | BM144: -10001 | BN144: 6243 | BO144: 4505 | BR144: -35 | BS144: 3 | BT144: 715 | BU144: 710 | BV144: 0 | BX144: 5 | BY144: 0 | BZ144: 7 | CA144: 0 | CB144: 0 | CC144: 12 | CD144: 3499 | CE144: 699 | CG144: 53 | CH144: -453 | CI144: 433 | CN144: 20.75 | CP144: 196 | CQ144: 2013 | CS144: 20.14285714 | CT144: 39.1510767 | CU144: -1822.155986 | CY144: 52.9534928 | CZ144: 1094.883259 | DA144: 16.8410798 | DB144: 8796.323895 | DD144: 6488 | DE144: 16995 | DF144: 0 | DG144: -10507 | DH144: 6671 | DI144: 4534 | DL144: -32 | DM144: 4 | DN144: 670 | DO144: 702 | DP144: 0 | DR144: -32 | DS144: 0 | DT144: 4 | DU144: 0 | DV144: 0 | DW144: -28 | DX144: 3481 | DY144: 667 | EA144: -227 | EB144: 0 | EC144: 49 | EH144: 20.75 | EJ144: 196 | EQ144: -1789 | ER144: 232 | ES144: 116 | ET144: -595 | EU144: 281 | EV144: 48 | EW144: -676 | EX144: 40 | EY144: 18 | EZ144: 0 | FA144: 0 | FB144: 0 | FC144: 0 | FD144: 0 | FE144: 986 | FF144: 3548 | FG144: 3067 | FH144: 481 | FI144: 1 | FJ144: 3098 | FK144: 2784 | FL144: 314 | FM144: 1 | FN144: 4084 | FO144: 3578 | FP144: 506 | FQ144: 0 | FR144: 0 | FS144: 0 | FT144: 0 | FU144: 777
A145: 481 | B145: Masku | C145: 9656 | E145: 1.896591235 | F145: 65.52284044 | G145: -4572.597349 | K145: 28.08819715 | L145: 576.2220381 | M145: 26.71692057 | N145: 7872.203811 | P145: 32645 | Q145: 76611 | R145: 3 | S145: -43963 | T145: 40441 | U145: 10056 | X145: -145 | Y145: 82 | Z145: 6471 | AA145: 3952 | AB145: 0 | AD145: 2519 | AE145: 1 | AF145: -37 | AG145: 0 | AH145: 0 | AI145: 2483 | AJ145: 614 | AK145: 6180 | AM145: -378 | AN145: -3341 | AO145: 2483 | AT145: 20.75 | AV145: 192 | AW145: 9554 | AY145: 1.124287749 | AZ145: 75.23132189 | BA145: -5518.002931 | BE145: 24.5298339 | BF145: 506.1754239 | BG145: 19.273033 | BH145: 9586.14193 | BJ145: 33154 | BK145: 79578 | BL145: 2 | BM145: -46422 | BN145: 40329 | BO145: 9194 | BR145: -170 | BS145: 55 | BT145: 2986 | BU145: 3983 | BV145: 0 | BX145: -997 | BY145: 6 | BZ145: 0 | CA145: -8 | CB145: 24 | CC145: -975 | CD145: -545 | CE145: 2740 | CG145: 115 | CH145: -2637 | CI145: -5962 | CN145: 20.75 | CP145: 211 | CQ145: 9534 | CS145: 0.8365200765 | CT145: 84.76486035 | CU145: -6250.052444 | CY145: 21.24439401 | CZ145: 665.7226767 | DA145: 19.21784668 | DB145: 9633.836795 | DD145: 34500 | DE145: 81265 | DF145: 13 | DG145: -46752 | DH145: 40315 | DI145: 8965 | DL145: -201 | DM145: 91 | DN145: 2418 | DO145: 3977 | DP145: 0 | DR145: -1559 | DS145: 0 | DT145: 0 | DU145: 0 | DV145: 0 | DW145: -1559 | DX145: -1221 | DY145: 1722 | EA145: -437 | EB145: -2931 | EC145: -4502 | EH145: 20.75 | EJ145: 226 | EQ145: -4129 | ER145: 27 | ES145: 405 | ET145: -9171 | EU145: 52 | EV145: 417 | EW145: -7434 | EX145: 13 | EY145: 1197 | EZ145: 2349 | FA145: 0 | FB145: 7604 | FC145: 0 | FD145: 8892 | FE145: 0 | FF145: 39813 | FG145: 15795 | FH145: 24018 | FI145: 0 | FJ145: 47417 | FK145: 21424 | FL145: 25993 | FM145: 0 | FN145: 56308 | FO145: 23809 | FP145: 32499 | FQ145: 192 | FR145: 470 | FS145: 452 | FT145: 1247 | FU145: 5291
A146: 483 | B146: Merijärvi | C146: 1119 | E146: 0.5270092227 | F146: 58.2205029 | G146: -1288.650581 | K146: 51.01524677 | L146: 3848.078642 | M146: 142.0415725 | N146: 9888.293119 | P146: 4465 | Q146: 11044 | R146: 1 | S146: -6578 | T146: 2606 | U146: 4303 | X146: -23 | Y146: 68 | Z146: 376 | AA146: 510 | AB146: 0 | AD146: -134 | AE146: 0 | AF146: 0 | AG146: 0 | AH146: -1 | AI146: -135 | AJ146: 2671 | AK146: 389 | AM146: -404 | AN146: -735 | AO146: -284 | AT146: 21.5 | AV146: 281 | AW146: 1104 | AY146: 0.4792899408 | AZ146: 50.84084605 | BA146: -2074.275362 | BE146: 52.86678563 | BF146: 2746.376812 | BG146: 82.41584748 | BH146: 12163.04348 | BJ146: 4465 | BK146: 11361 | BL146: 12 | BM146: -6884 | BN146: 2578 | BO146: 4493 | BR146: -22 | BS146: 55 | BT146: 220 | BU146: 579 | BV146: 77 | BX146: -282 | BY146: 0 | BZ146: -1 | CA146: 0 | CB146: -1 | CC146: -284 | CD146: 2496 | CE146: 210 | CG146: 8 | CH146: -484 | CI146: -1116 | CN146: 21.5 | CP146: 250 | CQ146: 1089 | CS146: -0.2332506203 | CT146: 58.73083475 | CU146: -2796.143251 | CY146: 46.31187931 | CZ146: 2926.538108 | DA146: 85.345878 | DB146: 11907.25436 | DD146: 4599 | DE146: 12031 | DF146: 51 | DG146: -7381 | DH146: 2657 | DI146: 4484 | DL146: -22 | DM146: 145 | DN146: -117 | DO146: 614 | DP146: 0 | DR146: -731 | DS146: 0 | DT146: 3 | DU146: 0 | DV146: 0 | DW146: -728 | DX146: 1763 | DY146: -191 | EA146: -123 | EB146: -380 | EC146: -704 | EH146: 22 | EJ146: 281 | EQ146: -740 | ER146: 23 | ES146: 44 | ET146: -1423 | EU146: 4 | EV146: 93 | EW146: -579 | EX146: 10 | EY146: 56 | EZ146: 1435 | FA146: 600 | FB146: 803 | FC146: -10 | FD146: 749 | FE146: 499 | FF146: 4595 | FG146: 3226 | FH146: 1369 | FI146: 66 | FJ146: 3959 | FK146: 2526 | FL146: 1433 | FM146: 89 | FN146: 4762 | FO146: 2912 | FP146: 1850 | FQ146: 87 | FR146: 1364 | FS146: 459 | FT146: 321 | FU146: 161
A147: 484 | B147: Merikarvia | C147: 3156 | E147: 4.191358025 | F147: 20.63453251 | G147: -354.8795944 | K147: 75.41545674 | L147: 1191.381496 | M147: 45.77718479 | N147: 9499.366286 | P147: 10682 | Q147: 31445 | R147: -1 | S147: -20764 | T147: 9756 | U147: 12279 | X147: -23 | Y147: 86 | Z147: 1334 | AA147: 1495 | AB147: 0 | AD147: -161 | AE147: 0 | AF147: -14 | AG147: 4 | AH147: 1 | AI147: -170 | AJ147: 5803 | AK147: 1330 | AM147: 81 | AN147: -300 | AO147: -393 | AT147: 19.5 | AV147: 270 | AW147: 3115 | AY147: -0.475 | AZ147: 21.17132594 | BA147: -931.9422151 | BE147: 73.98615232 | BF147: 781.3804173 | BG147: 26.00655719 | BH147: 10966.61316 | BJ147: 11006 | BK147: 32134 | BL147: -8 | BM147: -21136 | BN147: 9286 | BO147: 11723 | BR147: -17 | BS147: 31 | BT147: -113 | BU147: 1631 | BV147: 0 | BX147: -1744 | BY147: 0 | BZ147: -28 | CA147: 0 | CB147: 0 | CC147: -1772 | CD147: 4510 | CE147: -119 | CG147: 372 | CH147: -182 | CI147: -1846 | CN147: 19.5 | CP147: 284 | CQ147: 3067 | CS147: 1.997416021 | CT147: 27.83180345 | CU147: -1637.756766 | CY147: 67.25420665 | CZ147: 733.6159113 | DA147: 25.93067361 | DB147: 11776.65471 | DD147: 11415 | DE147: 32354 | DF147: 1 | DG147: -20938 | DH147: 10012 | DI147: 11582 | DL147: 14 | DM147: 88 | DN147: 758 | DO147: 1698 | DP147: 0 | DR147: -940 | DS147: 1 | DT147: -90 | DU147: 1 | DV147: 0 | DW147: -1030 | DX147: 3606 | DY147: 722 | EA147: -399 | EB147: -372 | EC147: -2223 | EH147: 20.5 | EJ147: 229 | EQ147: -1792 | ER147: 8 | ES147: 61 | ET147: -1811 | EU147: 11 | EV147: 73 | EW147: -3375 | EX147: 270 | EY147: 160 | EZ147: 96 | FA147: 9 | FB147: 236 | FC147: -8 | FD147: 2724 | FE147: 129 | FF147: 2409 | FG147: 2089 | FH147: 320 | FI147: 0 | FJ147: 2395 | FK147: 2113 | FL147: 282 | FM147: 0 | FN147: 4891 | FO147: 4443 | FP147: 448 | FQ147: 0 | FR147: 182 | FS147: 153 | FT147: 151 | FU147: 335
A148: 489 | B148: Miehikkälä | C148: 1992 | E148: 2.677506775 | F148: 49.09939236 | G148: -4707.329317 | K148: 53.03942772 | L148: 1437.248996 | M148: 43.49071916 | N148: 12062.249 | P148: 13743 | Q148: 25702 | R148: 1 | S148: -11958 | T148: 5996 | U148: 7909 | X148: -46 | Y148: 18 | Z148: 1919 | AA148: 1232 | AB148: 0 | AD148: 687 | AE148: 0 | AF148: -4 | AG148: 0 | AH148: -10 | AI148: 673 | AJ148: 5817 | AK148: 1899 | AM148: -151 | AN148: -681 | AO148: -292 | AT148: 20 | AV148: 77 | AW148: 1940 | AY148: 1.201101928 | AZ148: 48.11863032 | BA148: -4860.309278 | BE148: 52.22837464 | BF148: 1388.14433 | BG148: 33.48931893 | BH148: 15129.38144 | BJ148: 14853 | BK148: 27376 | BL148: 1 | BM148: -12522 | BN148: 5617 | BO148: 7887 | BR148: -33 | BS148: -123 | BT148: 826 | BU148: 1320 | BV148: 0 | BX148: -494 | BY148: 0 | BZ148: -9 | CA148: 0 | CB148: -12 | CC148: -515 | CD148: 5336 | CE148: 818 | CG148: -189 | CH148: -680 | CI148: -233 | CN148: 20 | CP148: 172 | CQ148: 1857 | CS148: 1.972972973 | CT148: 53.88968028 | CU148: -4907.377491 | CY148: 53.75547322 | CZ148: 1850.83468 | DA148: 38.19635502 | DB148: 13857.83522 | DD148: 11533 | DE148: 23844 | DF148: -4 | DG148: -12315 | DH148: 5882 | DI148: 7857 | DL148: -23 | DM148: 20 | DN148: 1421 | DO148: 1251 | DP148: 0 | DR148: 170 | DS148: 0 | DT148: -5 | DU148: 0 | DV148: -13 | DW148: 152 | DX148: 5487 | DY148: 1410 | EA148: 456 | EB148: -701 | EC148: 285 | EH148: 20.5 | EJ148: 45 | EQ148: -2456 | ER148: 380 | ES148: -115 | ET148: -1109 | EU148: 72 | EV148: -14 | EW148: -1147 | EX148: 38 | EY148: -16 | EZ148: 174 | FA148: 1990 | FB148: 192 | FC148: -5 | FD148: 707 | FE148: 1996 | FF148: 9765 | FG148: 5076 | FH148: 4689 | FI148: 133 | FJ148: 9278 | FK148: 4578 | FL148: 4700 | FM148: 0 | FN148: 11278 | FO148: 4569 | FP148: 6709 | FQ148: 0 | FR148: 306 | FS148: 305 | FT148: 304 | FU148: 28
A149: 491 | B149: Mikkeli | C149: 54261 | E149: 1.476842945 | F149: 99.72755118 | G149: -9602.771788 | K149: 31.26704414 | L149: 672.9326772 | M149: 27.45515335 | N149: 8946.241315 | P149: 273023 | Q149: 551934 | R149: 3714 | S149: -275197 | T149: 199350 | U149: 139118 | X149: -4130 | Y149: -987 | Z149: 58154 | AA149: 50042 | AB149: 24 | AD149: 8136 | AE149: 95 | AF149: -73 | AG149: -1462 | AH149: -815 | AI149: 5881 | AJ149: 63358 | AK149: 53674 | AM149: -1460 | AN149: -37830 | AO149: -30478 | AT149: 20.5 | AV149: 57 | AW149: 53818 | AY149: 0.8854087089 | AZ149: 106.0014247 | BA149: -10371.84585 | BE149: 29.25227593 | BF149: 554.6099818 | BG149: 15.85107049 | BH149: 12770.91308 | BJ149: 266352 | BK149: 561229 | BL149: -78 | BM149: -294955 | BN149: 197629 | BO149: 136843 | BR149: -3718 | BS149: -723 | BT149: 35076 | BU149: 46197 | BV149: 144 | BX149: -10977 | BY149: 253 | BZ149: 0 | CA149: -1042 | CB149: -595 | CC149: -12361 | CD149: 47738 | CE149: 31138 | CG149: 3413 | CH149: -40176 | CI149: -37141 | CN149: 20.5 | CP149: 91 | CQ149: 53134 | CS149: 0.8769840438 | CT149: 115.4123262 | CU149: -11936.82012 | CY149: 25.72019549 | CZ149: 531.2605864 | DA149: 14.68256668 | DB149: 13774.34411 | DD149: 277059 | DE149: 579313 | DF149: -552 | DG149: -302806 | DH149: 202124 | DI149: 141236 | DL149: -3727 | DM149: 522 | DN149: 37349 | DO149: 50093 | DP149: 0 | DR149: -12744 | DS149: 11 | DT149: 0 | DU149: 969 | DV149: -923 | DW149: -14625 | DX149: 20388 | DY149: 30856 | EA149: -4248 | EB149: -43216 | EC149: -57450 | EH149: 20.5 | EJ149: 59 | EQ149: -111464 | ER149: 2394 | ES149: 24918 | ET149: -79687 | EU149: 1457 | EV149: 9951 | EW149: -101631 | EX149: 2568 | EY149: 10757 | EZ149: 75420 | FA149: -9300 | FB149: 77782 | FC149: -19300 | FD149: 111056 | FE149: -12502 | FF149: 505223 | FG149: 389558 | FH149: 115665 | FI149: 25222 | FJ149: 523530 | FK149: 423788 | FL149: 99742 | FM149: 25301 | FN149: 581069 | FO149: 489209 | FP149: 91860 | FQ149: 24156 | FR149: 4629 | FS149: 5436 | FT149: 4996 | FU149: 55357
A150: 494 | B150: Muhos | C150: 9019 | E150: 0.8052415211 | F150: 67.93391564 | G150: -5556.380974 | K150: 33.88009289 | L150: 570.1297261 | M150: 22.50395683 | N150: 9247.144916 | P150: 32127 | Q150: 83488 | R150: 34 | S150: -51327 | T150: 29837 | U150: 27679 | X150: -409 | Y150: 43 | Z150: 5823 | AA150: 5014 | AB150: 0 | AD150: 809 | AE150: -2 | AF150: 39 | AG150: -3 | AH150: -6 | AI150: 837 | AJ150: 4020 | AK150: 5671 | AM150: 516 | AN150: -7339 | AO150: -1596 | AT150: 20.5 | AV150: 208 | AW150: 8980 | AY150: 0.4055313545 | AZ150: 68.80809246 | BA150: -5587.750557 | BE150: 32.85775912 | BF150: 684.5211581 | BG150: 22.2012171 | BH150: 11253.89755 | BJ150: 32609 | BK150: 86278 | BL150: 38 | BM150: -53631 | BN150: 30082 | BO150: 27467 | BR150: -390 | BS150: 54 | BT150: 3582 | BU150: 4828 | BV150: 483 | BX150: -763 | BY150: -3 | BZ150: -50 | CA150: -2 | CB150: -4 | CC150: -822 | CD150: 3132 | CE150: 3441 | CG150: -59 | CH150: -9450 | CI150: -307 | CN150: 21 | CP150: 182 | CQ150: 8908 | CS150: 0.4144536793 | CT150: 77.72330203 | CU150: -6664.571172 | CY150: 28.97820163 | CZ150: 541.9847328 | DA150: 20.3115551 | DB150: 12400.31432 | DD150: 33022 | DE150: 87574 | DF150: 41 | DG150: -54511 | DH150: 30871 | DI150: 27687 | DL150: -364 | DM150: 18 | DN150: 3701 | DO150: 5095 | DP150: 0 | DR150: -1394 | DS150: -1 | DT150: -6 | DU150: 2 | DV150: -2 | DW150: -1405 | DX150: 1609 | DY150: 3421 | EA150: -1281 | EB150: -9478 | EC150: -9132 | EH150: 21.5 | EJ150: 156 | EQ150: -7875 | ER150: 90 | ES150: 518 | ET150: -4901 | EU150: 65 | EV150: 1088 | EW150: -13016 | EX150: 99 | EY150: 364 | EZ150: 11797 | FA150: -3000 | FB150: 10681 | FC150: -500 | FD150: 16510 | FE150: 500 | FF150: 46978 | FG150: 33545 | FH150: 13433 | FI150: 56 | FJ150: 47543 | FK150: 33470 | FL150: 14073 | FM150: 54 | FN150: 55080 | FO150: 39515 | FP150: 15565 | FQ150: 54 | FR150: 294 | FS150: 124 | FT150: 78 | FU150: 745
A151: 495 | B151: Multia | C151: 1636 | E151: 2.018348624 | F151: 37.47129736 | G151: -1740.831296 | K151: 55.45875959 | L151: 1016.503667 | M151: 49.88863319 | N151: 7437.041565 | P151: 2592 | Q151: 13057 | R151: 0 | S151: -10465 | T151: 5458 | U151: 5886 | X151: -8 | Y151: -4 | Z151: 867 | AA151: 638 | AB151: 0 | AD151: 229 | AE151: 0 | AF151: -55 | AG151: 0 | AH151: 0 | AI151: 174 | AJ151: 1159 | AK151: 839 | AM151: 413 | AN151: -423 | AO151: -439 | AT151: 21.75 | AV151: 245 | AW151: 1584 | AY151: 1.253164557 | AZ151: 35.7240559 | BA151: -2234.217172 | BE151: 48.73245813 | BF151: 1108.585859 | BG151: 35.41104972 | BH151: 11426.76768 | BJ151: 5658 | BK151: 16182 | BL151: 0 | BM151: -10524 | BN151: 5379 | BO151: 5778 | BR151: -4 | BS151: -46 | BT151: 583 | BU151: 651 | BV151: 0 | BX151: -68 | BY151: -1 | BZ151: 12 | CA151: 0 | CB151: 0 | CC151: -57 | CD151: 1112 | CE151: 482 | CG151: 569 | CH151: -463 | CI151: -752 | CN151: 22 | CP151: 192 | CQ151: 1566 | CS151: -3.544615385 | CT151: 40.52936786 | CU151: -2738.825032 | CY151: 34.7065818 | CZ151: 1320.561941 | DA151: 31.19794707 | DB151: 13126.43678 | DD151: 5936 | DE151: 18580 | DF151: 0 | DG151: -12644 | DH151: 5647 | DI151: 5834 | DL151: -4 | DM151: 7 | DN151: -1160 | DO151: 865 | DP151: 0 | DR151: -2025 | DS151: -23 | DT151: -1 | DU151: 0 | DV151: 0 | DW151: -2049 | DX151: -851 | DY151: 379 | EA151: 571 | EB151: -317 | EC151: -738 | EH151: 22 | EJ151: 290 | EQ151: -1345 | ER151: 17 | ES151: 50 | ET151: -1387 | EU151: 28 | EV151: 125 | EW151: -1553 | EX151: 2 | EY151: 434 | EZ151: 695 | FA151: -282 | FB151: 703 | FC151: 194 | FD151: 1434 | FE151: -214 | FF151: 2940 | FG151: 2018 | FH151: 922 | FI151: 30 | FJ151: 3356 | FK151: 2352 | FL151: 1004 | FM151: -5 | FN151: 4275 | FO151: 3549 | FP151: 726 | FQ151: 0 | FR151: 3099 | FS151: 2826 | FT151: 3046 | FU151: 4037
A152: 498 | B152: Muonio | C152: 2332 | E152: 1.486600846 | F152: 50.29935694 | G152: -4579.759863 | K152: 21.10829817 | L152: 698.9708405 | M152: 23.36711048 | N152: 10918.09605 | P152: 9266 | Q152: 24954 | R152: 0 | S152: -15688 | T152: 8738 | U152: 9054 | X152: -102 | Y152: 0 | Z152: 2002 | AA152: 1131 | AB152: -11 | AD152: 860 | AE152: 0 | AF152: 15 | AG152: 0 | AH152: 7 | AI152: 882 | AJ152: 798 | AK152: 1990 | AM152: 155 | AN152: -1312 | AO152: 1146 | AT152: 21.5 | AV152: 107 | AW152: 2299 | AY152: 1.164844407 | AZ152: 49.80946991 | BA152: -4565.898217 | BE152: 21.27181614 | BF152: 534.5802523 | BG152: 16.28848947 | BH152: 11979.12136 | BJ152: 8627 | BK152: 25127 | BL152: 0 | BM152: -16500 | BN152: 8650 | BO152: 9228 | BR152: -77 | BS152: 4 | BT152: 1305 | BU152: 1373 | BV152: 9 | BX152: -59 | BY152: 0 | BZ152: 34 | CA152: 0 | CB152: 5 | CC152: -20 | CD152: 738 | CE152: 1306 | CG152: -218 | CH152: -1109 | CI152: 241 | CN152: 21.5 | CP152: 125 | CQ152: 2308 | CS152: 0.5709123758 | CT152: 51.72542715 | CU152: -4735.701906 | CY152: 16.6511682 | CZ152: 682.4090121 | DA152: 15.83483356 | DB152: 12274.26343 | DD152: 8725 | DE152: 26117 | DF152: 0 | DG152: -17392 | DH152: 8856 | DI152: 9166 | DL152: -48 | DM152: 0 | DN152: 582 | DO152: 1405 | DP152: 0 | DR152: -823 | DS152: 0 | DT152: 59 | DU152: 0 | DV152: 0 | DW152: -764 | DX152: -102 | DY152: 574 | EA152: 147 | EB152: -1057 | EC152: -461 | EH152: 21.5 | EJ152: 227 | EQ152: -933 | ER152: 62 | ES152: 27 | ET152: -1227 | EU152: 51 | EV152: 111 | EW152: -1091 | EX152: 45 | EY152: 11 | EZ152: 0 | FA152: -397 | FB152: 19 | FC152: 389 | FD152: 1759 | FE152: 92 | FF152: 9610 | FG152: 5990 | FH152: 3620 | FI152: 27 | FJ152: 8900 | FK152: 4944 | FL152: 3956 | FM152: 31 | FN152: 9700 | FO152: 5531 | FP152: 4169 | FQ152: 5 | FR152: 0 | FS152: 0 | FT152: 0 | FU152: 4811
A153: 499 | B153: Mustasaari | C153: 19384 | E153: 1.58680203 | F153: 64.36823834 | G153: -4766.611638 | K153: 35.72458867 | L153: 285.8543128 | M153: 14.1434086 | N153: 7377.063558 | P153: 55054 | Q153: 149557 | R153: 198 | S153: -94305 | T153: 76796 | U153: 31479 | X153: -575 | Y153: 94 | Z153: 13489 | AA153: 11022 | AB153: 168 | AD153: 2635 | AE153: 1 | AF153: -136 | AG153: -8 | AH153: -31 | AI153: 2461 | AJ153: 11345 | AK153: 12971 | AM153: 771 | AN153: -8287 | AO153: -1454 | AT153: 20.75 | AV153: 178 | AW153: 19444 | AY153: 0.6225991743 | AZ153: 78.76591672 | BA153: -5790.372351 | BE153: 30.08933845 | BF153: 395.3918947 | BG153: 14.25251161 | BH153: 10125.79716 | BJ153: 56879 | BK153: 157487 | BL153: 272 | BM153: -100336 | BN153: 75323 | BO153: 31855 | BR153: -522 | BS153: 92 | BT153: 6412 | BU153: 9524 | BV153: 0 | BX153: -3112 | BY153: 16 | BZ153: 24 | CA153: -31 | CB153: -32 | CC153: -3135 | CD153: 8212 | CE153: 5009 | CG153: -1750 | CH153: -10617 | CI153: -20730 | CN153: 20.75 | CP153: 204 | CQ153: 19448 | CS153: 0.7924082819 | CT153: 85.73552922 | CU153: -6679.247223 | CY153: 27.48339316 | CZ153: 347.4393254 | DA153: 13.90648462 | DB153: 10375.61703 | DD153: 60090 | DE153: 161850 | DF153: 236 | DG153: -101524 | DH153: 76903 | DI153: 33143 | DL153: -575 | DM153: 200 | DN153: 8147 | DO153: 10042 | DP153: 0 | DR153: -1895 | DS153: 33 | DT153: 19 | DU153: 11 | DV153: -3 | DW153: -1857 | DX153: 6583 | DY153: 6881 | EA153: -267 | EB153: -10433 | EC153: -18147 | EH153: 20.75 | EJ153: 155 | EQ153: -15485 | ER153: 284 | ES153: 776 | ET153: -28191 | EU153: 1017 | EV153: 1435 | EW153: -28827 | EX153: 2315 | EY153: 1484 | EZ153: 10204 | FA153: -2859 | FB153: 3776 | FC153: 25332 | FD153: 30358 | FE153: -1645 | FF153: 76742 | FG153: 45940 | FH153: 30802 | FI153: 36 | FJ153: 95233 | FK153: 39099 | FL153: 56134 | FM153: 29 | FN153: 113515 | FO153: 54639 | FP153: 58876 | FQ153: 22 | FR153: 91 | FS153: 70 | FT153: 66 | FU153: 2633
A154: 500 | B154: Muurame | C154: 10097 | E154: 1.924324324 | F154: 85.72359323 | G154: -5509.458255 | K154: 28.79101616 | L154: 346.2414579 | M154: 19.87848953 | N154: 6357.53194 | P154: 23809 | Q154: 67183 | R154: 30 | S154: -43344 | T154: 38655 | U154: 12744 | X154: -384 | Y154: 116 | Z154: 7787 | AA154: 5734 | AB154: 0 | AD154: 2053 | AE154: 0 | AF154: 12 | AG154: -9 | AH154: -53 | AI154: 2003 | AJ154: 4693 | AK154: 6852 | AM154: -553 | AN154: -3854 | AO154: 935 | AT154: 19.5 | AV154: 145 | AW154: 10170 | AY154: 1.466294643 | AZ154: 83.62632497 | BA154: -5502.851524 | BE154: 28.87710515 | BF154: 222.6155359 | BG154: 10.06896552 | BH154: 8069.813176 | BJ154: 24135 | BK154: 70576 | BL154: -52 | BM154: -46493 | BN154: 39403 | BO154: 13256 | BR154: -317 | BS154: 365 | BT154: 6214 | BU154: 6128 | BV154: 0 | BX154: 86 | BY154: 0 | BZ154: -1 | CA154: -34 | CB154: -43 | CC154: 8 | CD154: 4734 | CE154: 5419 | CG154: 332 | CH154: -4125 | CI154: -292 | CN154: 19.5 | CP154: 107 | CQ154: 10164 | CS154: 1.333246821 | CT154: 83.8898495 | CU154: -5803.915781 | CY154: 27.79168261 | CZ154: 292.8964974 | DA154: 9.657461405 | DB154: 8418.634396 | DD154: 24636 | DE154: 73066 | DF154: -69 | DG154: -48499 | DH154: 40052 | DI154: 13387 | DL154: -254 | DM154: 152 | DN154: 4838 | DO154: 5831 | DP154: 0 | DR154: -993 | DS154: 0 | DT154: 1 | DU154: 51 | DV154: -84 | DW154: -1127 | DX154: 3826 | DY154: 3713 | EA154: 2537 | EB154: -3554 | EC154: -3111 | EH154: 19.5 | EJ154: 128 | EQ154: -7339 | ER154: 131 | ES154: 1291 | ET154: -6994 | EU154: 185 | EV154: 1098 | EW154: -8627 | EX154: 289 | EY154: 1514 | EZ154: 7177 | FA154: -3342 | FB154: 1816 | FC154: 605 | FD154: 3601 | FE154: 2595 | FF154: 49795 | FG154: 33003 | FH154: 16792 | FI154: 36 | FJ154: 48713 | FK154: 31490 | FL154: 17223 | FM154: 0 | FN154: 51482 | FO154: 32328 | FP154: 19154 | FQ154: 84 | FR154: 4096 | FS154: 3798 | FT154: 4083 | FU154: 3408
